Workbook

Sheet Info
O6: Stand: 15.10.2018
B8: Arbeitseffizienz und Personalkosten in wachsenden Milchviehbetrieben
B22: Zielgruppe
B23: Für Berater, Landwirte und Fachschulen. Gedacht als eine erste Annäherung an dieses Thema, da jeder Betrieb
B24: anders strukturiert ist. Die Anwendung gibt einen Überblick über die Arbeitseffizienz und die Personalkostendegression
B25: in wachsenden Milchviehbetrieben.
B27: Zur Anwendung
C28: Die Navigation durch die Anwendung erfolgt im Normalfall über die Eingabemaske (siehe Button links oben).
C29: Wenn Sie die Eingabemaske wieder verlassen wollen, kommen Sie über den Button INFO wieder hierher.
C30: In der Eingabemaske erfolgt die Änderung der Grunddaten, die Zusammenstellung der drei Milcherzeugungssysteme
C31: (was will ich vergleichen?) und die Anwahl der gewünschten Grafiken bzw. Tabellen.
C32: Für die drei (änderbaren) Milchleistungsklassen wird die Jahresmilchproduktion berechnet.
C33: Über den Punkt vor den drei Milchleistungsklassen erfolgt die Festlegung der Milchleistung für die Grafiken 3 bis 8.
C34: "Anwendung verlassen" schließt das Programm ohne zu speichern.
C35: Über "Speichern unter" kann die Datei unter einem anderen Namen abgespeichert werden.
B37: Zur Datengrundlage
C38: Es handelt sich um Schätzungen des Arbeitszeitaufwands, auch bei der Nachzucht umgelegt auf die einzelne Kuh.
C39: Beim Automatisierten Futtervorlagesystem (AFS) sind nur mischen und vorlegen automatisiert, die
C40: Futterentnahme erfolgt noch "von Hand".
C41: Basis für die Arbeitszeitschätzwerte sind Literatur- und Praxiszahlen aus eigener Sammlung und vom
C42: Institut für Landtechnik und Tierhaltung (Dr. Bernhard Haidn und Dr. Juliana Mačuhová).
C43: Die daraus abgeleitete Abschätzung des Arbeitszeitaufwands nach Herdengröße für Melken, Füttern
C44: und sonstige Arbeiten wurden vom Institut für Landtechnik und Tierhaltung gegengeprüft.
C45: In den Tabellen und Grafiken wird - abhängig vom Melksystem - der Bereich von 20 bis 200 Kühen dargestellt.
C46: Die Melksysteme sind nach der Melkzeit auf einen Herdengrößenbereich begrenzt
B48: Zur Anpassung der Datenreihen
C49: Im ausgeblendeten Excelblatt FUNDSTELLENSAMMLUNG und in ROHDATEN KUH ab Spalte V sind die
C50: zugrundeliegenden Literatur- und Praxisdaten.
C51: Daraus wurden in den (ausgeblendeten) Excelblättern ROHDATEN KUH und ROHDATEN FÄRSE die
C52: Arbeitszeitbedarfswerte festgelegt und mittels der Potenzfunktion "geglättet".
C53: Wenn Sie den Herdengrößenbereich der Melksysteme ändern wollen - am Beispiel Rohrmelkanlage:
D54: Rohdaten Kuh - Zeile 73: Die Formel für die "geglättete Datenreihe" löschen oder weiterkopieren.
D55: => Diese Zahlen für Melken, Füttern, Sonstiges werden nach oben in die Zeilen 12 - 26 übernommen.
D56: => Die Tabellen bedienen sich aus diesen Zeilen 12 - 36, die Grafiken aus den Tabellen.
C57: Wenn Sie die Arbeitszeiten ändern wollen - am Beispiel Rohrmelkanlage:
D58: Rohdaten Kuh - Zeile 54 - Zellen E bis G: Aus diesen drei Zahlen wird die Potenzfunktion abgeleitet.
D59: Wenn Sie diese Zahlen "anheben", steigt der Zeitaufwand und umgekehrt sinkt er.
D60: Analog können Sie so nachfolgend die Datenreihen der übrigen Melk- und Futtersysteme sowie die
D61: sonstigen Arbeiten ändern. Die Nachzuchtarbeit finden Sie in ROHDATEN FÄRSE, Zeile 52.
C62: ( > 1 h bis < 2,5 Stunden reine Melkzeit/Melkdurchgang).
B64: Wenn Sie Fragen haben, kontaktieren Sie uns
B66: Fachliche Konzeption: | J66: Guido Hofmann, 089 / 17800-461 (-111), guido.hofmann@lfl.bayern.de
J67: Bayerische Landesanstalt für Landwirtschaft - Institut für Agrarökonomie
B68: Makrosteuerung: | J68: Winfried Satzger, LfL - Institut für Agrarökonomie
B70: Zur Schätzung des Arbeitszeitaufwands:
B72: Hinterlegt sind Schätzungen des durchschnittlichen Arbeitszeitaufwands. Die Streuung in der Praxis ist groß.
B73: Im ungünstigsten Fall kann die Einführung einer neuen Technik oder die Stallerweiterung sogar zu einer Mehrarbeit
B74: je Kuh führen.
B75: Wie groß die Streuung in ähnlich großen Milchviehbetrieben ist, zeigt ein Blick in die bayerischen Betriebszweigaus-
B76: wertungen 2013 (BZA). In der Tabelle 1 sind die 175 spezialisierten Milchviehbetriebe in Herdengrößenklassen unterteilt.
B77: In der Herdengrößenklasse von 40 bis 60 Kühen werden im Mittel mit einer Stallarbeitskraft 318.000 kg Milch erzeugt
B78: mit einer Schwankungsbreite von 178 000 bis 460 000 kg Milch/AK.
B80: Tabelle 1: Spannen der Produktivität in kg Milch je Arbeitskraft in den jeweiligen Herdengrößenklassen
C81: Herdengrößenklasse (Kuhbestand) | K81: <40 | L81: 40-60 | M81: 60-80 | N81: 80-100 | O81: >100 | P81: Gesamt
C82: Anzahl Betriebe je Gruppe | K82: 17 | L82: 37 | M82: 52 | N82: 36 | O82: 33 | P82: 175
C83: Kuhbestand (Ø Kühe) | K83: 32.21882353 | L83: 52.55297297 | M83: 68.23173077 | N83: 89.08694444 | O83: 133.5084848 | P83: 78.01794286
C84: Arbeitszeitaufwand (AKh/Kuh) | K84: 85.40176471 | L84: 63.12405405 | M84: 59.14846154 | N84: 53.98 | O84: 48.21666667 | P84: 59.41468571
C85: Kühe/AK (Kuh mit Färse, ohne Außenw.) | K85: 30.15941176 | L85: 40.01594595 | M85: 43.3775 | N85: 46.81916667 | O85: 50.61939394 | P85: 43.45634286
C86: kg ECM/AK - Mittelwert | K86: 239107.8012 | L86: 318126.2873 | M86: 345791.4117 | N86: 378457.9906 | O86: 442487.3412 | P86: 354532.7347
C87: kg ECM/AK - Minimum | K87: 166338.46 | L87: 177610.4 | M87: 219850.82 | N87: 234535.44 | O87: 263998.34 | P87: 166338.46
C88: kg ECM/AK - Maximum | K88: 344142.73 | L88: 460213.54 | M88: 580485.05 | N88: 770827.1 | O88: 703392.12 | P88: 770827.1
C89: Minimum in % vom Mittelwert | K89: 0.6956630406 | L89: 0.5583015522 | M89: 0.6357902844 | N89: 0.6197132729 | O89: 0.5966234859 | P89: 0.4691765913
C90: Maximum in % vom Mittelwert | K90: 1.439278553 | L90: 1.446637887 | M90: 1.67871448 | N90: 2.036757366 | O90: 1.589632187 | P90: 2.174205721
C91: Maximum / Minimum | K91: 2.068930601 | L91: 2.591140721 | M91: 2.640358812 | N91: 3.286612462 | O91: 2.664380844 | P91: 4.634088232
C92: Datengrundlage: BZA Bayern, 175 konventionell wirtschaftende Milchviehbetriebe, Milchkuh mit Nachzucht ohne
C93: Außenwirtschaft. 92 % Laufstallbetriebe,89 % mit Fleckvieh, 94 % mit Teil- oder Vollmischration und 13 % AMS-Betriebe.
B95: Bei der Erstellung der BZA werden auch die Fremdlöhne und die mit 15 € je Stunde bewertete Arbeitszeit der Unter-
B96: nehmerfamilie auf die Betriebszweige verteilt. Umgelegt auf die Milch ergeben sich daraus die Personalstückkosten
B97: in Cent je Kilogramm Milch. Im Mittel der 175 Auswertungen entstanden 11 Cent Personalstückkosten - mit einer
B98: Spanne von 8 bis 17 ct/kg in den Herdengrößengruppen.
B100: Über die Festlegung der Personalstückkosten (wieviel ct/kg vom Umsatz soll für Personalkosten verwendet werden?)
B101: kann In der Excelanwendung über die Arbeitseffizienz der "Stundenlohn" für die geleistete Arbeitsstunde berechnet wer-
B102: den. Es handelt sich dabei nicht um den Arbeitnehmerbrutto- oder Nettostundenlohn, sondern vielmehr um die Personal-
B103: kosten inclusive der Arbeitgeberanteile. Das entspricht analog der in der BZA für die Unternehmerfamilie ausgewiesenen
B104: Arbeitsentlohung, da aus diesem "Brutto-Gewinnbeitrag je Familien-AKh" auch die Sozialversicherungen und die Ein-
B105: kommensteuer zu bezahlen ist.
B106: Die 175 BZA-Betriebe kamen im Mittel auf knapp 12 € "Stundenlohn", in den Gruppen steigt er von knapp 9 auf über
B107: 17 €/Familien-Akh (siehe Tabelle 2).
B109: Tabelle 2: Personalstückkosten und erreichte Arbeitsentlohnung in den jeweiligen Herdengrößenklassen
C110: Herdengrößenklasse (Kuhbestand) | K110: <40 | L110: 40-60 | M110: 60-80 | N110: 80-100 | O110: >100 | P110: Gesamt
C111: Arbeitserledigungskosten | K111: 21.93081442 | L111: 18.74973283 | M111: 17.44295015 | N111: 15.33924378 | O111: 13.23103678 | P111: 16.92819633
C112: davon Personalkosten (ct/kg ECM)* | K112: 16.6835948 | L112: 12.18029151 | M112: 11.14671274 | N112: 9.834984677 | O112: 7.576130815 | P112: 10.95995843
C113: davon Mechanisierungskosten (ct/kg ECM) | K113: =+K111-K112 -> 5.24721962 | L113: =+L111-L112 -> 6.569441313 | M113: 6.296237419 | N113: 5.504259101 | O113: 5.65490596 | P113: 5.968237898
C114: Erreichte Arbeitsentlohnung (€/Familien-Akh) ** | K114: 8.56678177 | L114: 8.592772306 | M114: 9.279041301 | N114: 14.2692339 | O114: 17.24385316 | P114: 11.59324336
C115: Datengrundlage: BZA Bayern, 175 konventionell wirtschaftende Milchviehbetriebe, Milchkuh mit Nachzucht ohne
C116: Außenwirtschaft. 92 % Laufstallbetriebe,89 % mit Fleckvieh, 94 % mit Teil- oder Vollmischration und 13 % AMS-Betriebe.
C117: *) Rechengang: (dem Betriebszweig zugeteilte Fremdlohnkosten und Lohnansatz für Familien-Akh (€)) x 100 / erzeugte Milch (kg ECM)
C118: **) Rechengang: Betriebszweiggewinn (€) / Kalkulatorische Faktoransätze (€) für Familienarbeit, -kapital und -fläche
C119: = erzielte Faktorkostendeckung (%). Erzielte Faktorkostendeckung (%) x 15 € Lohnansatz je Familienarbeitskraftstunde
C120: = erreichte Arbeitsentlohnung (€/Familien-Akh)
B122: Der in der Excel-Anwendung über die Personalstückkosten (ct/kg Milch) abgeleitete Stundenlohn stellt die Personal-
B123: stückkosten je Arbeitskraftstunde dar und muss auf dem Weg zum Nettolohn des Arbeitnehmers um die Sozialver-
B124: sicherungsbeiträge (Arbeitgeber- und Arbeitnehmeranteile) und um die Einkommensteuer reduziert werden.
B125: Eine erste Orientierung liefert hier der AOK-Gehaltsrechner 2018. Mit ihm kann vom Bruttolohn zum Nettolohn runter-
B126: und vom Bruttolohn zur Arbeitgeberbelastung hochgerechnet werden:
C127: https://www.aok-business.de/bayern/tools-service/gehaltsrechner/gehaltsrechner-2018/
B128: Doch ist mit zunehmenden Automatisierungsgrad im Milchviehbetrieb der Blick auf die Personalkosten nicht ausreichend.
B129: Wird statt dem Melker ein Roboter "eingestellt", so steht diese Technik bei den Mechanisierungskosten und erst der
B130: Blick auf die gesamten Arbeitserledigungskosten erlaubt den ehrlichen Vergleich (siehe Tabelle 2).

Sheet Grunddaten
A1: Festlegung der Grunddaten
A2: Die gelb hinterlegten Felder sind Eingabefelder. Beim Systemvergleich öffnet sich beim Anklicken ein Pulldown-Menü.
A4: Festlegung der Jahresarbeitsstunden je Arbeitskraft im Kuhstall
D5: 2600 | F5: AKh/Arbeitskraft
B6: Wie viel Jahresarbeitsstunden erreicht eine Vollzeit-Stallarbeitskraft im Jahr nach Abzug aller freien Zeiten?
B7: (Zur Info: Standard-Familien-Arbeitskraft 2.400 - 2.600 AKh/Jahr, Angestellter mit Tarifvertrag ca. 1.800 AKh/Jahr)
A9: Über die Personalstückkosten je kg Milch zum maximal möglichen Stundenlohn bzw. Jahresgehalt
E10: 10 | F10: ct/kg ECM
B11: Wenn vom Umsatz je kg Milch ein fester Centbetrag für die Entlohnung des Stallpersonals ausreichen soll -
B12: welchen Arbeitgeber-Bruttostundenlohn bzw. welches Jahresgehalt (incl. Arbeitgeberanteile) kann in
B13: Abhängigkeit von Milchleistung, Effizienzstufe und Produktionssystem gezahlt werden?
A15: Über den Stundenlohn zu den Personalstückkosten je kg Milch
E16: 17,5 | F16: €/AKh
B17: Das Stallpersonal bekommt einen festen Stundenlohn (Bruttolohn incl. Arbeitgeberanteile) - wie hoch sind
B18: die Personalkosten je kg Milch in Abhängigkeit von Milchleistung, Effizienzstufe und Produktionssystem?
A20: Auswahl der Effizienzstufe
A21: Die hinterlegten Arbeitszeitaufwandsdaten sind Schätzungen. Über den Effizienzfaktor werden die hinterlegten
A22: Arbeitszeiten prozentual angehoben (> 100 %: Betrieb braucht mehr Zeit für die Arbeitserledigung) oder abgesenkt.
A23: Die aktuelle oder erreichbare Effizienzstufe ist u.a. abhängig von:
B24: Entscheidungsträger im Betrieb und seine Mitarbeiter
B25: Rationalisierungsstufe im Betrieb (auch abhängig vom Rationalisierungsdruck in der Unternehmerfamilie => Zeit ist bereits knapp?)
B26: => Ersatz von Arbeitszeit durch Technik, strukturierte Arbeitsabläufe, Beschränkung auf das Notwendige … .
B27: Innere und äußere Verkehrslage (kurze Wege)
D28: 1 | G28: < 100 % => Höhere Effizienz = weniger Akh/Kuh; > 100 % => Geringere Effizienz = mehr Akh/Kuh
A30: Festlegung der Milchleistungsklassen
A31: Niedrig | D31: 6000 | F31: kg/Kuh
A32: Mittel | D32: 8000 | F32: kg/Kuh
A33: Hoch | D33: 10000 | F33: kg/Kuh
A36: Systemvergleich - Auswahl der Kombinationen für maximal 3 Systeme:
A37: Drei verschiedene Stallsysteme können tabellarisch dargestellt und in den Grafiken miteinander verglichen werden.
G38: System 1 | I38: System 2 | K38: System 3
B39: Stall- + Melksystem | G39: Anbindestall-Rohr-MA | I39: Laufstall-FGM 2x6 | K39: Laufstall-AMS 3 Boxen
B40: Füttterungssystem | G40: Siloblock | I40: FMW | K40: AFS
B41: Nachzucht + EKA | G41: JV maximal - 32 Monate EKA | I41: JV normal - 29 Monate EKA | K41: keine eigene Nachzucht
B43: Übersicht über die hinterlegten Auswahlmöglichkeiten:
C44: Stall- + Melksystem | H44: Fütterungssystem | K44: Nachzucht Laufstall
C46: Anbindestall-Rohr-MA | H46: Siloblock | I46: (Siloblockschneider, KF von Hand) | K46: keine eigene Nachzucht
C47: Laufstall-FGM 2x2 o. 1x4 | H47: FMW | I47: (Futtermischwagen, KF-Automat) | K47: JV reduziert - 26 Monate EKA
C48: Laufstall-FGM 2x3 | H48: AFS | I48: (Autom. Futter mischen und vorlegen) | K48: JV reduziert - 29 Monate EKA
C49: Laufstall-FGM 2x4 | K49: JV reduziert - 32 Monate EKA
C50: Laufstall-FGM 2x6 | K50: JV normal - 26 Monate EKA
C51: Laufstall-FGM 2x8 | K51: JV normal - 29 Monate EKA
C52: Laufstall-FGM 2x10 | K52: JV normal - 32 Monate EKA
C53: Laufstall-Karussell 20 | K53: JV maximal - 26 Monate EKA
C54: Laufstall-AMS 1 Box | K54: JV maximal - 29 Monate EKA
C55: Laufstall-AMS 2 Boxen | K55: JV maximal - 32 Monate EKA
C56: Laufstall-AMS 3 Boxen

Sheet Tabelle System 1 - 3 (hidden)
A1: 1 | C1: 2 | D1: 3 | E1: 4 | F1: 5 | G1: 6 | H1: 7 | I1: 8 | J1: 9 | K1: 10 | L1: 11 | M1: 12 | N1: 13 | O1: 14 | P1: 15 | Q1: 16 | R1: 17 | S1: 18 | T1: 19 | U1: 20 | V1: 21
A2: Tabellarische Zusammenstellung der Daten für die ausgewählten Systeme 1 bis 3:
A4: Woher kommen die Daten: | B4: Die Arbeitszeitwerte kommen aus dem Excelblatt ROHDATEN KUH, Zeile 11 bis 35 (ausgeblendet), die übrigen Daten aus GRUNDDATEN.
A5: Wohin gehen diese Daten: | B5: In das Excelblatt GRAFIKEN. Über den acht Grafiken stehet eine Kopie der für die Grafik benötigten Daten aus den Systemen 1 bis 3.
A7: System 1: | B7: =CONCATENATE(A10," - ",A11," - ",A13) -> Anbindestall-Rohr-MA - Siloblock - JV maximal - 32 Monate EKA
B8: Kühe Ø | C8: 20 | D8: 30 | E8: 40 | F8: 50 | G8: 60 | H8: 70 | I8: 80 | J8: 90 | K8: 100 | L8: 110 | M8: 120 | N8: 130 | O8: 140 | P8: 150 | Q8: 160 | R8: 170 | S8: 180 | T8: 190 | U8: 200
I9: AKh/Kuh
A10: =VLOOKUP(Grunddaten!$G39,'Rohdaten KUH'!$B$12:$U$36,A$1,FALSE) -> Anbindestall-Rohr-MA | C10: =IF(ISNUMBER(VLOOKUP($A10,'Rohdaten KUH'!$B$12:$U$36,C$1,FALSE)),VLOOKUP($A10,'Rohdaten KUH'!$B$12:$U$36,C$1,FALSE)*Grunddaten!$D$28," ") -> 55.29489651 | D10: =IF(ISNUMBER(VLOOKUP($A10,'Rohdaten KUH'!$B$12:$U$36,D$1,FALSE)),VLOOKUP($A10,'Rohdaten KUH'!$B$12:$U$36,D$1,FALSE)*Grunddaten!$D$28," ") -> 49.2322598 | E10: =IF(ISNUMBER(VLOOKUP($A10,'Rohdaten KUH'!$B$12:$U$36,E$1,FALSE)),VLOOKUP($A10,'Rohdaten KUH'!$B$12:$U$36,E$1,FALSE)*Grunddaten!$D$28," ") -> 45.33831452 | F10: =IF(ISNUMBER(VLOOKUP($A10,'Rohdaten KUH'!$B$12:$U$36,F$1,FALSE)),VLOOKUP($A10,'Rohdaten KUH'!$B$12:$U$36,F$1,FALSE)*Grunddaten!$D$28," ") -> 42.53131729 | G10: =IF(ISNUMBER(VLOOKUP($A10,'Rohdaten KUH'!$B$12:$U$36,G$1,FALSE)),VLOOKUP($A10,'Rohdaten KUH'!$B$12:$U$36,G$1,FALSE)*Grunddaten!$D$28," ") -> 40.36733623 | H10: =IF(ISNUMBER(VLOOKUP($A10,'Rohdaten KUH'!$B$12:$U$36,H$1,FALSE)),VLOOKUP($A10,'Rohdaten KUH'!$B$12:$U$36,H$1,FALSE)*Grunddaten!$D$28," ") ->  | I10: =IF(ISNUMBER(VLOOKUP($A10,'Rohdaten KUH'!$B$12:$U$36,I$1,FALSE)),VLOOKUP($A10,'Rohdaten KUH'!$B$12:$U$36,I$1,FALSE)*Grunddaten!$D$28," ") ->  | J10: =IF(ISNUMBER(VLOOKUP($A10,'Rohdaten KUH'!$B$12:$U$36,J$1,FALSE)),VLOOKUP($A10,'Rohdaten KUH'!$B$12:$U$36,J$1,FALSE)*Grunddaten!$D$28," ") ->  | K10: =IF(ISNUMBER(VLOOKUP($A10,'Rohdaten KUH'!$B$12:$U$36,K$1,FALSE)),VLOOKUP($A10,'Rohdaten KUH'!$B$12:$U$36,K$1,FALSE)*Grunddaten!$D$28," ") ->  | L10: =IF(ISNUMBER(VLOOKUP($A10,'Rohdaten KUH'!$B$12:$U$36,L$1,FALSE)),VLOOKUP($A10,'Rohdaten KUH'!$B$12:$U$36,L$1,FALSE)*Grunddaten!$D$28," ") ->  | M10: =IF(ISNUMBER(VLOOKUP($A10,'Rohdaten KUH'!$B$12:$U$36,M$1,FALSE)),VLOOKUP($A10,'Rohdaten KUH'!$B$12:$U$36,M$1,FALSE)*Grunddaten!$D$28," ") ->  | N10: =IF(ISNUMBER(VLOOKUP($A10,'Rohdaten KUH'!$B$12:$U$36,N$1,FALSE)),VLOOKUP($A10,'Rohdaten KUH'!$B$12:$U$36,N$1,FALSE)*Grunddaten!$D$28," ") ->  | O10: =IF(ISNUMBER(VLOOKUP($A10,'Rohdaten KUH'!$B$12:$U$36,O$1,FALSE)),VLOOKUP($A10,'Rohdaten KUH'!$B$12:$U$36,O$1,FALSE)*Grunddaten!$D$28," ") ->  | P10: =IF(ISNUMBER(VLOOKUP($A10,'Rohdaten KUH'!$B$12:$U$36,P$1,FALSE)),VLOOKUP($A10,'Rohdaten KUH'!$B$12:$U$36,P$1,FALSE)*Grunddaten!$D$28," ") ->  | Q10: =IF(ISNUMBER(VLOOKUP($A10,'Rohdaten KUH'!$B$12:$U$36,Q$1,FALSE)),VLOOKUP($A10,'Rohdaten KUH'!$B$12:$U$36,Q$1,FALSE)*Grunddaten!$D$28," ") ->  | R10: =IF(ISNUMBER(VLOOKUP($A10,'Rohdaten KUH'!$B$12:$U$36,R$1,FALSE)),VLOOKUP($A10,'Rohdaten KUH'!$B$12:$U$36,R$1,FALSE)*Grunddaten!$D$28," ") ->  | S10: =IF(ISNUMBER(VLOOKUP($A10,'Rohdaten KUH'!$B$12:$U$36,S$1,FALSE)),VLOOKUP($A10,'Rohdaten KUH'!$B$12:$U$36,S$1,FALSE)*Grunddaten!$D$28," ") ->  | T10: =IF(ISNUMBER(VLOOKUP($A10,'Rohdaten KUH'!$B$12:$U$36,T$1,FALSE)),VLOOKUP($A10,'Rohdaten KUH'!$B$12:$U$36,T$1,FALSE)*Grunddaten!$D$28," ") ->  | U10: =IF(ISNUMBER(VLOOKUP($A10,'Rohdaten KUH'!$B$12:$U$36,U$1,FALSE)),VLOOKUP($A10,'Rohdaten KUH'!$B$12:$U$36,U$1,FALSE)*Grunddaten!$D$28," ") -> 
A11: =VLOOKUP(Grunddaten!$G40,'Rohdaten KUH'!$B$12:$U$36,A$1,FALSE) -> Siloblock | C11: =IF(ISNUMBER(C$10),VLOOKUP($A11,'Rohdaten KUH'!$B$12:$U$36,C$1,FALSE)*Grunddaten!$D$28," ") -> 17.83554564 | D11: =IF(ISNUMBER(D$10),VLOOKUP($A11,'Rohdaten KUH'!$B$12:$U$36,D$1,FALSE)*Grunddaten!$D$28," ") -> 16.21335031 | E11: =IF(ISNUMBER(E$10),VLOOKUP($A11,'Rohdaten KUH'!$B$12:$U$36,E$1,FALSE)*Grunddaten!$D$28," ") -> 15.03207437 | F11: =IF(ISNUMBER(F$10),VLOOKUP($A11,'Rohdaten KUH'!$B$12:$U$36,F$1,FALSE)*Grunddaten!$D$28," ") -> 14.45459224 | G11: =IF(ISNUMBER(G$10),VLOOKUP($A11,'Rohdaten KUH'!$B$12:$U$36,G$1,FALSE)*Grunddaten!$D$28," ") -> 13.54694774 | H11: =IF(ISNUMBER(H$10),VLOOKUP($A11,'Rohdaten KUH'!$B$12:$U$36,H$1,FALSE)*Grunddaten!$D$28," ") ->  | I11: =IF(ISNUMBER(I$10),VLOOKUP($A11,'Rohdaten KUH'!$B$12:$U$36,I$1,FALSE)*Grunddaten!$D$28," ") ->  | J11: =IF(ISNUMBER(J$10),VLOOKUP($A11,'Rohdaten KUH'!$B$12:$U$36,J$1,FALSE)*Grunddaten!$D$28," ") ->  | K11: =IF(ISNUMBER(K$10),VLOOKUP($A11,'Rohdaten KUH'!$B$12:$U$36,K$1,FALSE)*Grunddaten!$D$28," ") ->  | L11: =IF(ISNUMBER(L$10),VLOOKUP($A11,'Rohdaten KUH'!$B$12:$U$36,L$1,FALSE)*Grunddaten!$D$28," ") ->  | M11: =IF(ISNUMBER(M$10),VLOOKUP($A11,'Rohdaten KUH'!$B$12:$U$36,M$1,FALSE)*Grunddaten!$D$28," ") ->  | N11: =IF(ISNUMBER(N$10),VLOOKUP($A11,'Rohdaten KUH'!$B$12:$U$36,N$1,FALSE)*Grunddaten!$D$28," ") ->  | O11: =IF(ISNUMBER(O$10),VLOOKUP($A11,'Rohdaten KUH'!$B$12:$U$36,O$1,FALSE)*Grunddaten!$D$28," ") ->  | P11: =IF(ISNUMBER(P$10),VLOOKUP($A11,'Rohdaten KUH'!$B$12:$U$36,P$1,FALSE)*Grunddaten!$D$28," ") ->  | Q11: =IF(ISNUMBER(Q$10),VLOOKUP($A11,'Rohdaten KUH'!$B$12:$U$36,Q$1,FALSE)*Grunddaten!$D$28," ") ->  | R11: =IF(ISNUMBER(R$10),VLOOKUP($A11,'Rohdaten KUH'!$B$12:$U$36,R$1,FALSE)*Grunddaten!$D$28," ") ->  | S11: =IF(ISNUMBER(S$10),VLOOKUP($A11,'Rohdaten KUH'!$B$12:$U$36,S$1,FALSE)*Grunddaten!$D$28," ") ->  | T11: =IF(ISNUMBER(T$10),VLOOKUP($A11,'Rohdaten KUH'!$B$12:$U$36,T$1,FALSE)*Grunddaten!$D$28," ") ->  | U11: =IF(ISNUMBER(U$10),VLOOKUP($A11,'Rohdaten KUH'!$B$12:$U$36,U$1,FALSE)*Grunddaten!$D$28," ") -> 
A12: =+'Rohdaten KUH'!B26 -> Sonstige Arbeiten (Milchkuh) | C12: =IF(ISNUMBER(C$10),VLOOKUP($A12,'Rohdaten KUH'!$B$12:$U$36,C$1,FALSE)*Grunddaten!$D$28," ") -> 25.07060381 | D12: =IF(ISNUMBER(D$10),VLOOKUP($A12,'Rohdaten KUH'!$B$12:$U$36,D$1,FALSE)*Grunddaten!$D$28," ") -> 22.05727201 | E12: =IF(ISNUMBER(E$10),VLOOKUP($A12,'Rohdaten KUH'!$B$12:$U$36,E$1,FALSE)*Grunddaten!$D$28," ") -> 20.14159 | F12: =IF(ISNUMBER(F$10),VLOOKUP($A12,'Rohdaten KUH'!$B$12:$U$36,F$1,FALSE)*Grunddaten!$D$28," ") -> 18.77101305 | G12: =IF(ISNUMBER(G$10),VLOOKUP($A12,'Rohdaten KUH'!$B$12:$U$36,G$1,FALSE)*Grunddaten!$D$28," ") -> 17.72069523 | H12: =IF(ISNUMBER(H$10),VLOOKUP($A12,'Rohdaten KUH'!$B$12:$U$36,H$1,FALSE)*Grunddaten!$D$28," ") ->  | I12: =IF(ISNUMBER(I$10),VLOOKUP($A12,'Rohdaten KUH'!$B$12:$U$36,I$1,FALSE)*Grunddaten!$D$28," ") ->  | J12: =IF(ISNUMBER(J$10),VLOOKUP($A12,'Rohdaten KUH'!$B$12:$U$36,J$1,FALSE)*Grunddaten!$D$28," ") ->  | K12: =IF(ISNUMBER(K$10),VLOOKUP($A12,'Rohdaten KUH'!$B$12:$U$36,K$1,FALSE)*Grunddaten!$D$28," ") ->  | L12: =IF(ISNUMBER(L$10),VLOOKUP($A12,'Rohdaten KUH'!$B$12:$U$36,L$1,FALSE)*Grunddaten!$D$28," ") ->  | M12: =IF(ISNUMBER(M$10),VLOOKUP($A12,'Rohdaten KUH'!$B$12:$U$36,M$1,FALSE)*Grunddaten!$D$28," ") ->  | N12: =IF(ISNUMBER(N$10),VLOOKUP($A12,'Rohdaten KUH'!$B$12:$U$36,N$1,FALSE)*Grunddaten!$D$28," ") ->  | O12: =IF(ISNUMBER(O$10),VLOOKUP($A12,'Rohdaten KUH'!$B$12:$U$36,O$1,FALSE)*Grunddaten!$D$28," ") ->  | P12: =IF(ISNUMBER(P$10),VLOOKUP($A12,'Rohdaten KUH'!$B$12:$U$36,P$1,FALSE)*Grunddaten!$D$28," ") ->  | Q12: =IF(ISNUMBER(Q$10),VLOOKUP($A12,'Rohdaten KUH'!$B$12:$U$36,Q$1,FALSE)*Grunddaten!$D$28," ") ->  | R12: =IF(ISNUMBER(R$10),VLOOKUP($A12,'Rohdaten KUH'!$B$12:$U$36,R$1,FALSE)*Grunddaten!$D$28," ") ->  | S12: =IF(ISNUMBER(S$10),VLOOKUP($A12,'Rohdaten KUH'!$B$12:$U$36,S$1,FALSE)*Grunddaten!$D$28," ") ->  | T12: =IF(ISNUMBER(T$10),VLOOKUP($A12,'Rohdaten KUH'!$B$12:$U$36,T$1,FALSE)*Grunddaten!$D$28," ") ->  | U12: =IF(ISNUMBER(U$10),VLOOKUP($A12,'Rohdaten KUH'!$B$12:$U$36,U$1,FALSE)*Grunddaten!$D$28," ") -> 
A13: =VLOOKUP(Grunddaten!$G41,'Rohdaten KUH'!$B$12:$U$36,A$1,FALSE) -> JV maximal - 32 Monate EKA | C13: =IF(ISNUMBER(C$10),VLOOKUP($A13,'Rohdaten KUH'!$B$12:$U$36,C$1,FALSE)*Grunddaten!$D$28," ") -> 19.56527747 | D13: =IF(ISNUMBER(D$10),VLOOKUP($A13,'Rohdaten KUH'!$B$12:$U$36,D$1,FALSE)*Grunddaten!$D$28," ") -> 18.06909054 | E13: =IF(ISNUMBER(E$10),VLOOKUP($A13,'Rohdaten KUH'!$B$12:$U$36,E$1,FALSE)*Grunddaten!$D$28," ") -> 17.07744438 | F13: =IF(ISNUMBER(F$10),VLOOKUP($A13,'Rohdaten KUH'!$B$12:$U$36,F$1,FALSE)*Grunddaten!$D$28," ") -> 16.34589851 | G13: =IF(ISNUMBER(G$10),VLOOKUP($A13,'Rohdaten KUH'!$B$12:$U$36,G$1,FALSE)*Grunddaten!$D$28," ") -> 15.77150588 | H13: =IF(ISNUMBER(H$10),VLOOKUP($A13,'Rohdaten KUH'!$B$12:$U$36,H$1,FALSE)*Grunddaten!$D$28," ") ->  | I13: =IF(ISNUMBER(I$10),VLOOKUP($A13,'Rohdaten KUH'!$B$12:$U$36,I$1,FALSE)*Grunddaten!$D$28," ") ->  | J13: =IF(ISNUMBER(J$10),VLOOKUP($A13,'Rohdaten KUH'!$B$12:$U$36,J$1,FALSE)*Grunddaten!$D$28," ") ->  | K13: =IF(ISNUMBER(K$10),VLOOKUP($A13,'Rohdaten KUH'!$B$12:$U$36,K$1,FALSE)*Grunddaten!$D$28," ") ->  | L13: =IF(ISNUMBER(L$10),VLOOKUP($A13,'Rohdaten KUH'!$B$12:$U$36,L$1,FALSE)*Grunddaten!$D$28," ") ->  | M13: =IF(ISNUMBER(M$10),VLOOKUP($A13,'Rohdaten KUH'!$B$12:$U$36,M$1,FALSE)*Grunddaten!$D$28," ") ->  | N13: =IF(ISNUMBER(N$10),VLOOKUP($A13,'Rohdaten KUH'!$B$12:$U$36,N$1,FALSE)*Grunddaten!$D$28," ") ->  | O13: =IF(ISNUMBER(O$10),VLOOKUP($A13,'Rohdaten KUH'!$B$12:$U$36,O$1,FALSE)*Grunddaten!$D$28," ") ->  | P13: =IF(ISNUMBER(P$10),VLOOKUP($A13,'Rohdaten KUH'!$B$12:$U$36,P$1,FALSE)*Grunddaten!$D$28," ") ->  | Q13: =IF(ISNUMBER(Q$10),VLOOKUP($A13,'Rohdaten KUH'!$B$12:$U$36,Q$1,FALSE)*Grunddaten!$D$28," ") ->  | R13: =IF(ISNUMBER(R$10),VLOOKUP($A13,'Rohdaten KUH'!$B$12:$U$36,R$1,FALSE)*Grunddaten!$D$28," ") ->  | S13: =IF(ISNUMBER(S$10),VLOOKUP($A13,'Rohdaten KUH'!$B$12:$U$36,S$1,FALSE)*Grunddaten!$D$28," ") ->  | T13: =IF(ISNUMBER(T$10),VLOOKUP($A13,'Rohdaten KUH'!$B$12:$U$36,T$1,FALSE)*Grunddaten!$D$28," ") ->  | U13: =IF(ISNUMBER(U$10),VLOOKUP($A13,'Rohdaten KUH'!$B$12:$U$36,U$1,FALSE)*Grunddaten!$D$28," ") -> 
A14: Arbeitszeitbedarf je Kuh und Jahr | B14: AKh/Kuh | C14: =IF(ISNUMBER(C10),SUM(C10:C13)," ") -> 117.7663234 | D14: =IF(ISNUMBER(D10),SUM(D10:D13)," ") -> 105.5719727 | E14: 97.58942327 | F14: 92.1028211 | G14: 87.40648509
A16: Arbeitszeitbedarf Herde und Jahr | C16: =IF(ISNUMBER(C14),C14*C8," ") -> 2355.326469 | D16: =IF(ISNUMBER(D14),D14*D8," ") -> 3167.15918 | E16: 3903.576931 | F16: 4605.141055 | G16: 5244.389106 | V16: Rechengang:
V17: Kühe Ø x Arbeitszeitbedarf (AKh/Kuh)
A18: Erzeugte Jahresmilchmenge (Tsd kg) in Abhängigkeit von Herdengröße und Milchleistung | I18: Tsd kg Milch | V18: Rechengang:
A19: Milchleistungsklasse niedrig (kg/Kuh) | B19: =+Grunddaten!$D$31 -> 6000 | C19: =IF(ISNUMBER(C10),+C8*$B19/1000," ") -> 120 | D19: =IF(ISNUMBER(D10),+D8*$B19/1000," ") -> 180 | E19: 240 | F19: 300 | G19: 360 | V19: Kühe Ø x Milchleistung (kg/Kuh) / 1.000
A20: Milchleistungsklasse mittel (kg/Kuh) | B20: =+Grunddaten!$D$32 -> 8000 | C20: =IF(ISNUMBER(C10),+C8*$B20/1000," ") -> 160 | D20: =IF(ISNUMBER(D10),+D8*$B20/1000," ") -> 240 | E20: 320 | F20: 400 | G20: 480
A21: Milchleistungsklasse hoch (kg/Kuh) | B21: =+Grunddaten!$D$33 -> 10000 | C21: =IF(ISNUMBER(C10),+C8*$B21/1000," ") -> 200 | D21: =IF(ISNUMBER(D10),+D8*$B21/1000," ") -> 300 | E21: 400 | F21: 500 | G21: 600
A23: Arbeitseffizienz (kg/AKh) in Abhängigkeit von Herdengröße und Milchleistung | I23: kg Milch/AKh | V23: Rechengang:
A24: Milchleistungsklasse niedrig (kg/Kuh) | B24: =+Grunddaten!$D$31 -> 6000 | C24: =IF(ISNUMBER(C10),+C19*1000/C16," ") -> 50.94835115 | D24: =IF(ISNUMBER(D10),+D19*1000/D16," ") -> 56.83326596 | E24: 61.48207253 | F24: 65.14458437 | G24: 68.64479213 | V24: Erzeugte Jahresmilchmenge (kg) / Arbeitszeitbedarf Herde und Jahr (AKh)
A25: Milchleistungsklasse mittel (kg/Kuh) | B25: =+Grunddaten!$D$32 -> 8000 | C25: =IF(ISNUMBER(C10),+C20*1000/C16," ") -> 67.93113487 | D25: =IF(ISNUMBER(D10),+D20*1000/D16," ") -> 75.77768794 | E25: 81.97609671 | F25: 86.85944583 | G25: 91.52638951
A26: Milchleistungsklasse hoch (kg/Kuh) | B26: =+Grunddaten!$D$33 -> 10000 | C26: =IF(ISNUMBER(C10),+C21*1000/C16," ") -> 84.91391859 | D26: =IF(ISNUMBER(D10),+D21*1000/D16," ") -> 94.72210993 | E26: 102.4701209 | F26: 108.5743073 | G26: 114.4079869
A28: Arbeitseffizienz (Tsd kg/AK) in Abhängigkeit von Herdengröße und Milchleistung | I28: Tsd kg Milch/AK | V28: Rechengang:
A29: Jahresarbeitsstunden je Arbeitskraft im Kuhstall | C29: =+Grunddaten!$D$5 -> 2600 | D29: AKh/AK | V29: Arbeitseffizienz (kg/AKh) x AKh/AK / 1.000
A30: Milchleistungsklasse niedrig (kg/Kuh) | B30: =+Grunddaten!$D$31 -> 6000 | C30: =IF(ISNUMBER(C16),C24*$C29/1000," ") -> 132.465713 | D30: =IF(ISNUMBER(D16),D24*$C29/1000," ") -> 147.7664915 | E30: 159.8533886 | F30: 169.3759194 | G30: 178.4764595
A31: Milchleistungsklasse mittel (kg/Kuh) | B31: =+Grunddaten!$D$32 -> 8000 | C31: =IF(ISNUMBER(C16),C25*$C29/1000," ") -> 176.6209507 | D31: =IF(ISNUMBER(D16),D25*$C29/1000," ") -> 197.0219886 | E31: 213.1378514 | F31: 225.8345592 | G31: 237.9686127
A32: Milchleistungsklasse hoch (kg/Kuh) | B32: =+Grunddaten!$D$33 -> 10000 | C32: =IF(ISNUMBER(C16),C26*$C29/1000," ") -> 220.7761883 | D32: =IF(ISNUMBER(D16),D26*$C29/1000," ") -> 246.2774858 | E32: 266.4223143 | F32: 282.293199 | G32: 297.4607659
A34: Personalstückkosten (ct/kg Milch) | I34: ct/kg Milch | V34: Rechengang:
A35: Der Stundenlohn wurde festgelegt auf | B35: =+Grunddaten!$E$16 -> 17,5 | C35: €/AKh. Mit der erreichten Arbeitseffizienz (kg/AKh) entstehen dadurch folgende Personalkosten (ct/kg Milch): | V35: Stundenlohn (€/AKh) x 100 / Arbeitseffizienz (kg Milch/AKh)
A36: Milchleistungsklasse niedrig (kg/Kuh) | B36: =+Grunddaten!$D$31 -> 6000 | C36: =IF(ISNUMBER(C10),+$B35*100/C24," ") -> 34.348511 | D36: =IF(ISNUMBER(D10),+$B35*100/D24," ") -> 30.79182536 | E36: 28.46358179 | F36: 26.86332282 | G36: 25.49355815
A37: Milchleistungsklasse mittel (kg/Kuh) | B37: =+Grunddaten!$D$32 -> 8000 | C37: =IF(ISNUMBER(C10),+$B35*100/C25," ") -> 25.76138325 | D37: =IF(ISNUMBER(D10),+$B35*100/D25," ") -> 23.09386902 | E37: 21.34768634 | F37: 20.14749211 | G37: 19.12016861
A38: Milchleistungsklasse hoch (kg/Kuh) | B38: =+Grunddaten!$D$33 -> 10000 | C38: =IF(ISNUMBER(C10),+$B35*100/C26," ") -> 20.6091066 | D38: =IF(ISNUMBER(D10),+$B35*100/D26," ") -> 18.47509522 | E38: 17.07814907 | F38: 16.11799369 | G38: 15.29613489
A40: Bruttojahreseinkommen (€/AK) | I40: €/AK | V40: Rechengang:
A41: Wenn mit dem Stallpersonal ein fester Stücklohn von | D41: =+Grunddaten!$E$10 -> 10 | E41: ct/kg bei einer Jahresarbeitsstundenzahl von | K41: =+Grunddaten!$D$5 -> 2600 | L41: AKh/AK vereinbart wird, | V41: Arbeitseffizienz (Tsd kg Milch/AK) x 1.000 x Personalstückkosten (ct/kg) / 100
A42: welcher Jahreslohn (€/AK; incl. Arbeitgeberanteile und Sozialversicherungsbeiträge) kann dann in Abhängigkeit von der Milchleistung erzielt werden?
A43: Milchleistungsklasse niedrig (kg/Kuh) | B43: =+Grunddaten!$D$31 -> 6000 | C43: =IF(ISNUMBER(C10),C30*1000*$D41/100," ") -> 13246.5713 | D43: =IF(ISNUMBER(D10),D30*1000*$D41/100," ") -> 14776.64915 | E43: 15985.33886 | F43: 16937.59194 | G43: 17847.64595
A44: Milchleistungsklasse mittel (kg/Kuh) | B44: =+Grunddaten!$D$32 -> 8000 | C44: =IF(ISNUMBER(C10),C31*1000*$D41/100," ") -> 17662.09507 | D44: 19702.19886 | E44: 21313.78514 | F44: 22583.45592 | G44: 23796.86127
A45: Milchleistungsklasse hoch (kg/Kuh) | B45: =+Grunddaten!$D$33 -> 10000 | C45: =IF(ISNUMBER(C10),C32*1000*$D41/100," ") -> 22077.61883 | D45: 24627.74858 | E45: 26642.23143 | F45: 28229.3199 | G45: 29746.07659
A47: Bruttostundenlohn (€/AKh) | I47: €/AKh | V47: Rechengang:
A48: Wenn mit dem Stallpersonal ein fester Stücklohn von | D48: =+Grunddaten!$E$10 -> 10 | E48: ct/kg bei einer Jahresarbeitsstundenzahl von | K48: =+Grunddaten!$D$5 -> 2600 | L48: AKh/AK vereinbart wird, | V48: Arbeitseffizienz (kg/AKh) x Personalstückkosten (ct/kg) / 100
A49: welcher Stundenlohn (€/Akh; incl. Arbeitgeberanteile und Sozialversicherungsbeiträge) kann dann in Abhängigkeit von der Milchleistung erzielt werden?
A50: Milchleistungsklasse niedrig (kg/Kuh) | B50: =+Grunddaten!$D$31 -> 6000 | C50: =IF(ISNUMBER(C43),C24*$D$48/100," ") -> 5.094835115 | D50: =IF(ISNUMBER(D43),D24*$D$48/100," ") -> 5.683326596 | E50: 6.148207253 | F50: 6.514458437 | G50: 6.864479213 | H50: =IF(ISNUMBER(H43),H43/$K$48," ") -> 
A51: Milchleistungsklasse mittel (kg/Kuh) | B51: =+Grunddaten!$D$32 -> 8000 | C51: =IF(ISNUMBER(C44),C25*$D$48/100," ") -> 6.793113487 | D51: 7.577768794 | E51: 8.197609671 | F51: 8.685944583 | G51: 9.152638951 | H51: =IF(ISNUMBER(H44),H44/$K$48," ") -> 
A52: Milchleistungsklasse hoch (kg/Kuh) | B52: =+Grunddaten!$D$33 -> 10000 | C52: =IF(ISNUMBER(C45),C26*$D$48/100," ") -> 8.491391859 | D52: 9.472210993 | E52: 10.24701209 | F52: 10.85743073 | G52: 11.44079869 | H52: =IF(ISNUMBER(H45),H45/$K$48," ") -> 
A55: System 2: | B55: =CONCATENATE(A58," - ",A59," - ",A61) -> Laufstall-FGM 2x6 - FMW - JV normal - 29 Monate EKA
B56: Kühe Ø | C56: 20 | D56: 30 | E56: 40 | F56: 50 | G56: 60 | H56: 70 | I56: 80 | J56: 90 | K56: 100 | L56: 110 | M56: 120 | N56: 130 | O56: 140 | P56: 150 | Q56: 160 | R56: 170 | S56: 180 | T56: 190 | U56: 200
I57: AKh/Kuh
A58: =VLOOKUP(Grunddaten!$I39,'Rohdaten KUH'!$B$12:$U$36,A$1,FALSE) -> Laufstall-FGM 2x6 | C58: =IF(ISNUMBER(VLOOKUP($A58,'Rohdaten KUH'!$B$12:$U$36,C$1,FALSE)),VLOOKUP($A58,'Rohdaten KUH'!$B$12:$U$36,C$1,FALSE)*Grunddaten!$D$28," ") ->  | D58: =IF(ISNUMBER(VLOOKUP($A58,'Rohdaten KUH'!$B$12:$U$36,D$1,FALSE)),VLOOKUP($A58,'Rohdaten KUH'!$B$12:$U$36,D$1,FALSE)*Grunddaten!$D$28," ") ->  | E58: =IF(ISNUMBER(VLOOKUP($A58,'Rohdaten KUH'!$B$12:$U$36,E$1,FALSE)),VLOOKUP($A58,'Rohdaten KUH'!$B$12:$U$36,E$1,FALSE)*Grunddaten!$D$28," ") ->  | F58: =IF(ISNUMBER(VLOOKUP($A58,'Rohdaten KUH'!$B$12:$U$36,F$1,FALSE)),VLOOKUP($A58,'Rohdaten KUH'!$B$12:$U$36,F$1,FALSE)*Grunddaten!$D$28," ") ->  | G58: =IF(ISNUMBER(VLOOKUP($A58,'Rohdaten KUH'!$B$12:$U$36,G$1,FALSE)),VLOOKUP($A58,'Rohdaten KUH'!$B$12:$U$36,G$1,FALSE)*Grunddaten!$D$28," ") -> 23.12282387 | H58: =IF(ISNUMBER(VLOOKUP($A58,'Rohdaten KUH'!$B$12:$U$36,H$1,FALSE)),VLOOKUP($A58,'Rohdaten KUH'!$B$12:$U$36,H$1,FALSE)*Grunddaten!$D$28," ") -> 22.23074811 | I58: =IF(ISNUMBER(VLOOKUP($A58,'Rohdaten KUH'!$B$12:$U$36,I$1,FALSE)),VLOOKUP($A58,'Rohdaten KUH'!$B$12:$U$36,I$1,FALSE)*Grunddaten!$D$28," ") -> 21.48586409 | J58: =IF(ISNUMBER(VLOOKUP($A58,'Rohdaten KUH'!$B$12:$U$36,J$1,FALSE)),VLOOKUP($A58,'Rohdaten KUH'!$B$12:$U$36,J$1,FALSE)*Grunddaten!$D$28," ") -> 20.84957435 | K58: =IF(ISNUMBER(VLOOKUP($A58,'Rohdaten KUH'!$B$12:$U$36,K$1,FALSE)),VLOOKUP($A58,'Rohdaten KUH'!$B$12:$U$36,K$1,FALSE)*Grunddaten!$D$28," ") -> 20.29637757 | L58: =IF(ISNUMBER(VLOOKUP($A58,'Rohdaten KUH'!$B$12:$U$36,L$1,FALSE)),VLOOKUP($A58,'Rohdaten KUH'!$B$12:$U$36,L$1,FALSE)*Grunddaten!$D$28," ") -> 19.80860539 | M58: =IF(ISNUMBER(VLOOKUP($A58,'Rohdaten KUH'!$B$12:$U$36,M$1,FALSE)),VLOOKUP($A58,'Rohdaten KUH'!$B$12:$U$36,M$1,FALSE)*Grunddaten!$D$28," ") -> 19.37354725 | N58: =IF(ISNUMBER(VLOOKUP($A58,'Rohdaten KUH'!$B$12:$U$36,N$1,FALSE)),VLOOKUP($A58,'Rohdaten KUH'!$B$12:$U$36,N$1,FALSE)*Grunddaten!$D$28," ") -> 18.98177549 | O58: =IF(ISNUMBER(VLOOKUP($A58,'Rohdaten KUH'!$B$12:$U$36,O$1,FALSE)),VLOOKUP($A58,'Rohdaten KUH'!$B$12:$U$36,O$1,FALSE)*Grunddaten!$D$28," ") -> 18.62611813 | P58: =IF(ISNUMBER(VLOOKUP($A58,'Rohdaten KUH'!$B$12:$U$36,P$1,FALSE)),VLOOKUP($A58,'Rohdaten KUH'!$B$12:$U$36,P$1,FALSE)*Grunddaten!$D$28," ") -> 18.30100145 | Q58: =IF(ISNUMBER(VLOOKUP($A58,'Rohdaten KUH'!$B$12:$U$36,Q$1,FALSE)),VLOOKUP($A58,'Rohdaten KUH'!$B$12:$U$36,Q$1,FALSE)*Grunddaten!$D$28," ") -> 18.00201418 | R58: =IF(ISNUMBER(VLOOKUP($A58,'Rohdaten KUH'!$B$12:$U$36,R$1,FALSE)),VLOOKUP($A58,'Rohdaten KUH'!$B$12:$U$36,R$1,FALSE)*Grunddaten!$D$28," ") -> 17.72560954 | S58: =IF(ISNUMBER(VLOOKUP($A58,'Rohdaten KUH'!$B$12:$U$36,S$1,FALSE)),VLOOKUP($A58,'Rohdaten KUH'!$B$12:$U$36,S$1,FALSE)*Grunddaten!$D$28," ") ->  | T58: =IF(ISNUMBER(VLOOKUP($A58,'Rohdaten KUH'!$B$12:$U$36,T$1,FALSE)),VLOOKUP($A58,'Rohdaten KUH'!$B$12:$U$36,T$1,FALSE)*Grunddaten!$D$28," ") ->  | U58: =IF(ISNUMBER(VLOOKUP($A58,'Rohdaten KUH'!$B$12:$U$36,U$1,FALSE)),VLOOKUP($A58,'Rohdaten KUH'!$B$12:$U$36,U$1,FALSE)*Grunddaten!$D$28," ") -> 
A59: =VLOOKUP(Grunddaten!$I40,'Rohdaten KUH'!$B$12:$U$36,A$1,FALSE) -> FMW | C59: =IF(ISNUMBER(C$58),VLOOKUP($A59,'Rohdaten KUH'!$B$12:$U$36,C$1,FALSE)*Grunddaten!$D$28," ") ->  | D59: =IF(ISNUMBER(D$58),VLOOKUP($A59,'Rohdaten KUH'!$B$12:$U$36,D$1,FALSE)*Grunddaten!$D$28," ") ->  | E59: =IF(ISNUMBER(E$58),VLOOKUP($A59,'Rohdaten KUH'!$B$12:$U$36,E$1,FALSE)*Grunddaten!$D$28," ") ->  | F59: =IF(ISNUMBER(F$58),VLOOKUP($A59,'Rohdaten KUH'!$B$12:$U$36,F$1,FALSE)*Grunddaten!$D$28," ") ->  | G59: =IF(ISNUMBER(G$58),VLOOKUP($A59,'Rohdaten KUH'!$B$12:$U$36,G$1,FALSE)*Grunddaten!$D$28," ") -> 12.41879461 | H59: =IF(ISNUMBER(H$58),VLOOKUP($A59,'Rohdaten KUH'!$B$12:$U$36,H$1,FALSE)*Grunddaten!$D$28," ") -> 11.54907818 | I59: =IF(ISNUMBER(I$58),VLOOKUP($A59,'Rohdaten KUH'!$B$12:$U$36,I$1,FALSE)*Grunddaten!$D$28," ") -> 10.84508483 | J59: =IF(ISNUMBER(J$58),VLOOKUP($A59,'Rohdaten KUH'!$B$12:$U$36,J$1,FALSE)*Grunddaten!$D$28," ") -> 10.25982548 | K59: =IF(ISNUMBER(K$58),VLOOKUP($A59,'Rohdaten KUH'!$B$12:$U$36,K$1,FALSE)*Grunddaten!$D$28," ") -> 9.763107439 | L59: =IF(ISNUMBER(L$58),VLOOKUP($A59,'Rohdaten KUH'!$B$12:$U$36,L$1,FALSE)*Grunddaten!$D$28," ") -> 9.334520184 | M59: =IF(ISNUMBER(M$58),VLOOKUP($A59,'Rohdaten KUH'!$B$12:$U$36,M$1,FALSE)*Grunddaten!$D$28," ") -> 8.959700286 | N59: =IF(ISNUMBER(N$58),VLOOKUP($A59,'Rohdaten KUH'!$B$12:$U$36,N$1,FALSE)*Grunddaten!$D$28," ") -> 8.628204576 | O59: =IF(ISNUMBER(O$58),VLOOKUP($A59,'Rohdaten KUH'!$B$12:$U$36,O$1,FALSE)*Grunddaten!$D$28," ") -> 8.332232093 | P59: =IF(ISNUMBER(P$58),VLOOKUP($A59,'Rohdaten KUH'!$B$12:$U$36,P$1,FALSE)*Grunddaten!$D$28," ") -> 8.065821328 | Q59: =IF(ISNUMBER(Q$58),VLOOKUP($A59,'Rohdaten KUH'!$B$12:$U$36,Q$1,FALSE)*Grunddaten!$D$28," ") -> 7.824326971 | R59: =IF(ISNUMBER(R$58),VLOOKUP($A59,'Rohdaten KUH'!$B$12:$U$36,R$1,FALSE)*Grunddaten!$D$28," ") -> 7.604067927 | S59: =IF(ISNUMBER(S$58),VLOOKUP($A59,'Rohdaten KUH'!$B$12:$U$36,S$1,FALSE)*Grunddaten!$D$28," ") ->  | T59: =IF(ISNUMBER(T$58),VLOOKUP($A59,'Rohdaten KUH'!$B$12:$U$36,T$1,FALSE)*Grunddaten!$D$28," ") ->  | U59: =IF(ISNUMBER(U$58),VLOOKUP($A59,'Rohdaten KUH'!$B$12:$U$36,U$1,FALSE)*Grunddaten!$D$28," ") -> 
A60: =+'Rohdaten KUH'!B26 -> Sonstige Arbeiten (Milchkuh) | C60: =IF(ISNUMBER(C$58),VLOOKUP($A60,'Rohdaten KUH'!$B$12:$U$36,C$1,FALSE)*Grunddaten!$D$28," ") ->  | D60: =IF(ISNUMBER(D$58),VLOOKUP($A60,'Rohdaten KUH'!$B$12:$U$36,D$1,FALSE)*Grunddaten!$D$28," ") ->  | E60: =IF(ISNUMBER(E$58),VLOOKUP($A60,'Rohdaten KUH'!$B$12:$U$36,E$1,FALSE)*Grunddaten!$D$28," ") ->  | F60: =IF(ISNUMBER(F$58),VLOOKUP($A60,'Rohdaten KUH'!$B$12:$U$36,F$1,FALSE)*Grunddaten!$D$28," ") ->  | G60: =IF(ISNUMBER(G$58),VLOOKUP($A60,'Rohdaten KUH'!$B$12:$U$36,G$1,FALSE)*Grunddaten!$D$28," ") -> 17.72069523 | H60: =IF(ISNUMBER(H$58),VLOOKUP($A60,'Rohdaten KUH'!$B$12:$U$36,H$1,FALSE)*Grunddaten!$D$28," ") -> 16.87864882 | I60: =IF(ISNUMBER(I$58),VLOOKUP($A60,'Rohdaten KUH'!$B$12:$U$36,I$1,FALSE)*Grunddaten!$D$28," ") -> 16.18164648 | J60: =IF(ISNUMBER(J$58),VLOOKUP($A60,'Rohdaten KUH'!$B$12:$U$36,J$1,FALSE)*Grunddaten!$D$28," ") -> 15.59077707 | K60: =IF(ISNUMBER(K$58),VLOOKUP($A60,'Rohdaten KUH'!$B$12:$U$36,K$1,FALSE)*Grunddaten!$D$28," ") -> 15.08053223 | L60: =IF(ISNUMBER(L$58),VLOOKUP($A60,'Rohdaten KUH'!$B$12:$U$36,L$1,FALSE)*Grunddaten!$D$28," ") -> 14.6333603 | M60: =IF(ISNUMBER(M$58),VLOOKUP($A60,'Rohdaten KUH'!$B$12:$U$36,M$1,FALSE)*Grunddaten!$D$28," ") -> 14.23671247 | N60: =IF(ISNUMBER(N$58),VLOOKUP($A60,'Rohdaten KUH'!$B$12:$U$36,N$1,FALSE)*Grunddaten!$D$28," ") -> 13.88133306 | O60: =IF(ISNUMBER(O$58),VLOOKUP($A60,'Rohdaten KUH'!$B$12:$U$36,O$1,FALSE)*Grunddaten!$D$28," ") -> 13.56021685 | P60: =IF(ISNUMBER(P$58),VLOOKUP($A60,'Rohdaten KUH'!$B$12:$U$36,P$1,FALSE)*Grunddaten!$D$28," ") -> 13.26794536 | Q60: =IF(ISNUMBER(Q$58),VLOOKUP($A60,'Rohdaten KUH'!$B$12:$U$36,Q$1,FALSE)*Grunddaten!$D$28," ") -> 13.00024887 | R60: =IF(ISNUMBER(R$58),VLOOKUP($A60,'Rohdaten KUH'!$B$12:$U$36,R$1,FALSE)*Grunddaten!$D$28," ") -> 12.75370839 | S60: =IF(ISNUMBER(S$58),VLOOKUP($A60,'Rohdaten KUH'!$B$12:$U$36,S$1,FALSE)*Grunddaten!$D$28," ") ->  | T60: =IF(ISNUMBER(T$58),VLOOKUP($A60,'Rohdaten KUH'!$B$12:$U$36,T$1,FALSE)*Grunddaten!$D$28," ") ->  | U60: =IF(ISNUMBER(U$58),VLOOKUP($A60,'Rohdaten KUH'!$B$12:$U$36,U$1,FALSE)*Grunddaten!$D$28," ") -> 
A61: =VLOOKUP(Grunddaten!$I41,'Rohdaten KUH'!$B$12:$U$36,A$1,FALSE) -> JV normal - 29 Monate EKA | C61: =IF(ISNUMBER(C$58),VLOOKUP($A61,'Rohdaten KUH'!$B$12:$U$36,C$1,FALSE)*Grunddaten!$D$28," ") ->  | D61: =IF(ISNUMBER(D$58),VLOOKUP($A61,'Rohdaten KUH'!$B$12:$U$36,D$1,FALSE)*Grunddaten!$D$28," ") ->  | E61: =IF(ISNUMBER(E$58),VLOOKUP($A61,'Rohdaten KUH'!$B$12:$U$36,E$1,FALSE)*Grunddaten!$D$28," ") ->  | F61: =IF(ISNUMBER(F$58),VLOOKUP($A61,'Rohdaten KUH'!$B$12:$U$36,F$1,FALSE)*Grunddaten!$D$28," ") ->  | G61: =IF(ISNUMBER(G$58),VLOOKUP($A61,'Rohdaten KUH'!$B$12:$U$36,G$1,FALSE)*Grunddaten!$D$28," ") -> 10.93955389 | H61: =IF(ISNUMBER(H$58),VLOOKUP($A61,'Rohdaten KUH'!$B$12:$U$36,H$1,FALSE)*Grunddaten!$D$28," ") -> 10.61364162 | I61: =IF(ISNUMBER(I$58),VLOOKUP($A61,'Rohdaten KUH'!$B$12:$U$36,I$1,FALSE)*Grunddaten!$D$28," ") -> 10.33918241 | J61: =IF(ISNUMBER(J$58),VLOOKUP($A61,'Rohdaten KUH'!$B$12:$U$36,J$1,FALSE)*Grunddaten!$D$28," ") -> 10.10298934 | K61: =IF(ISNUMBER(K$58),VLOOKUP($A61,'Rohdaten KUH'!$B$12:$U$36,K$1,FALSE)*Grunddaten!$D$28," ") -> 9.896283228 | L61: =IF(ISNUMBER(L$58),VLOOKUP($A61,'Rohdaten KUH'!$B$12:$U$36,L$1,FALSE)*Grunddaten!$D$28," ") -> 9.712940479 | M61: =IF(ISNUMBER(M$58),VLOOKUP($A61,'Rohdaten KUH'!$B$12:$U$36,M$1,FALSE)*Grunddaten!$D$28," ") -> 9.548529196 | N61: =IF(ISNUMBER(N$58),VLOOKUP($A61,'Rohdaten KUH'!$B$12:$U$36,N$1,FALSE)*Grunddaten!$D$28," ") -> 9.399744181 | O61: =IF(ISNUMBER(O$58),VLOOKUP($A61,'Rohdaten KUH'!$B$12:$U$36,O$1,FALSE)*Grunddaten!$D$28," ") -> 9.26405847 | P61: =IF(ISNUMBER(P$58),VLOOKUP($A61,'Rohdaten KUH'!$B$12:$U$36,P$1,FALSE)*Grunddaten!$D$28," ") -> 9.139499193 | Q61: =IF(ISNUMBER(Q$58),VLOOKUP($A61,'Rohdaten KUH'!$B$12:$U$36,Q$1,FALSE)*Grunddaten!$D$28," ") -> 9.024498265 | R61: =IF(ISNUMBER(R$58),VLOOKUP($A61,'Rohdaten KUH'!$B$12:$U$36,R$1,FALSE)*Grunddaten!$D$28," ") -> 8.917789903 | S61: =IF(ISNUMBER(S$58),VLOOKUP($A61,'Rohdaten KUH'!$B$12:$U$36,S$1,FALSE)*Grunddaten!$D$28," ") ->  | T61: =IF(ISNUMBER(T$58),VLOOKUP($A61,'Rohdaten KUH'!$B$12:$U$36,T$1,FALSE)*Grunddaten!$D$28," ") ->  | U61: =IF(ISNUMBER(U$58),VLOOKUP($A61,'Rohdaten KUH'!$B$12:$U$36,U$1,FALSE)*Grunddaten!$D$28," ") -> 
A62: Arbeitszeitbedarf je Kuh und Jahr | B62: AKh/Kuh | C62: =IF(ISNUMBER(C58),SUM(C58:C61)," ") ->  | D62: =IF(ISNUMBER(D58),SUM(D58:D61)," ") ->  | E62: =IF(ISNUMBER(E58),SUM(E58:E61)," ") ->  | F62: =IF(ISNUMBER(F58),SUM(F58:F61)," ") ->  | G62: =IF(ISNUMBER(G58),SUM(G58:G61)," ") -> 64.20186761 | H62: =IF(ISNUMBER(H58),SUM(H58:H61)," ") -> 61.27211672 | I62: =IF(ISNUMBER(I58),SUM(I58:I61)," ") -> 58.8517778 | J62: =IF(ISNUMBER(J58),SUM(J58:J61)," ") -> 56.80316625 | K62: =IF(ISNUMBER(K58),SUM(K58:K61)," ") -> 55.03630047 | L62: =IF(ISNUMBER(L58),SUM(L58:L61)," ") -> 53.48942636 | M62: =IF(ISNUMBER(M58),SUM(M58:M61)," ") -> 52.11848921 | N62: =IF(ISNUMBER(N58),SUM(N58:N61)," ") -> 50.89105731 | O62: =IF(ISNUMBER(O58),SUM(O58:O61)," ") -> 49.78262554 | P62: =IF(ISNUMBER(P58),SUM(P58:P61)," ") -> 48.77426734 | Q62: =IF(ISNUMBER(Q58),SUM(Q58:Q61)," ") -> 47.85108828 | R62: =IF(ISNUMBER(R58),SUM(R58:R61)," ") -> 47.00117576 | S62: =IF(ISNUMBER(S58),SUM(S58:S61)," ") ->  | T62: =IF(ISNUMBER(T58),SUM(T58:T61)," ") ->  | U62: =IF(ISNUMBER(U58),SUM(U58:U61)," ") -> 
A64: Arbeitszeitbedarf Herde und Jahr | C64: =IF(ISNUMBER(C62),C62*C56," ") ->  | D64: =IF(ISNUMBER(D62),D62*D56," ") ->  | G64: 3852.112057 | H64: 4289.048171 | I64: 4708.142224 | J64: 5112.284962 | K64: 5503.630047 | L64: 5883.836899 | M64: 6254.218705 | N64: 6615.837451 | O64: 6969.567576 | P64: 7316.140101 | Q64: 7656.174125 | R64: 7990.199879 | V64: Rechengang:
V65: Kühe Ø x Arbeitszeitbedarf (AKh/Kuh)
A66: Erzeugte Milchmenge (Tsd kg) in Abhängigkeit von Herdengröße und Milchleistung | I66: Tsd kg Milch | V66: Rechengang:
A67: Milchleistungsklasse niedrig (kg/Kuh) | B67: =+Grunddaten!$D$31 -> 6000 | C67: =IF(ISNUMBER(C58),+C56*$B67/1000," ") ->  | D67: =IF(ISNUMBER(D58),+D56*$B67/1000," ") ->  | G67: 360 | H67: 420 | I67: 480 | J67: 540 | K67: 600 | L67: 660 | M67: 720 | N67: 780 | O67: 840 | P67: 900 | Q67: 960 | R67: 1020 | V67: Kühe Ø x Milchleistung (kg/Kuh) / 1.000
A68: Milchleistungsklasse mittel (kg/Kuh) | B68: =+Grunddaten!$D$32 -> 8000 | C68: =IF(ISNUMBER(C58),+C56*$B68/1000," ") ->  | D68: =IF(ISNUMBER(D58),+D56*$B68/1000," ") ->  | G68: 480 | H68: 560 | I68: 640 | J68: 720 | K68: 800 | L68: 880 | M68: 960 | N68: 1040 | O68: 1120 | P68: 1200 | Q68: 1280 | R68: 1360
A69: Milchleistungsklasse hoch (kg/Kuh) | B69: =+Grunddaten!$D$33 -> 10000 | C69: =IF(ISNUMBER(C58),+C56*$B69/1000," ") ->  | D69: =IF(ISNUMBER(D58),+D56*$B69/1000," ") ->  | G69: 600 | H69: 700 | I69: 800 | J69: 900 | K69: 1000 | L69: 1100 | M69: 1200 | N69: 1300 | O69: 1400 | P69: 1500 | Q69: 1600 | R69: 1700
A71: Arbeitseffizienz (kg/AKh) in Abhängigkeit von Herdengröße und Milchleistung | I71: kg Milch/AKh | V71: Rechengang:
A72: Milchleistungsklasse niedrig (kg/Kuh) | B72: =+Grunddaten!$D$31 -> 6000 | C72: =IF(ISNUMBER(C58),+C67*1000/C64," ") ->  | D72: =IF(ISNUMBER(D58),+D67*1000/D64," ") ->  | G72: 93.45522526 | H72: 97.92382442 | I72: 101.9510408 | J72: 105.6279147 | K72: 109.0189557 | L72: 112.1717021 | M72: 115.1222933 | N72: 117.8989063 | O72: 120.5239767 | P72: 123.0156869 | Q72: 125.3889977 | R72: 127.656381 | V72: Erzeugte Jahresmilchmenge (kg) / Arbeitszeitbedarf Herde und Jahr (AKh)
A73: Milchleistungsklasse mittel (kg/Kuh) | B73: =+Grunddaten!$D$32 -> 8000 | C73: =IF(ISNUMBER(C58),+C68*1000/C64," ") ->  | D73: =IF(ISNUMBER(D58),+D68*1000/D64," ") ->  | G73: 124.606967 | H73: 130.5650992 | I73: 135.9347211 | J73: 140.8372196 | K73: 145.3586075 | L73: 149.5622695 | M73: 153.4963911 | N73: 157.1985418 | O73: 160.6986356 | P73: 164.0209159 | Q73: 167.1853303 | R73: 170.208508
A74: Milchleistungsklasse hoch (kg/Kuh) | B74: =+Grunddaten!$D$33 -> 10000 | C74: =IF(ISNUMBER(C58),+C69*1000/C64," ") ->  | D74: =IF(ISNUMBER(D58),+D69*1000/D64," ") ->  | G74: 155.7587088 | H74: 163.206374 | I74: 169.9184013 | J74: 176.0465245 | K74: 181.6982594 | L74: 186.9528369 | M74: 191.8704888 | N74: 196.4981772 | O74: 200.8732945 | P74: 205.0261449 | Q74: 208.9816629 | R74: 212.760635
A76: Arbeitseffizienz (Tsd kg/AK) in Abhängigkeit von Herdengröße und Milchleistung | I76: Tsd kg Milch/AK | V76: Rechengang:
A77: Jahresarbeitsstunden je Arbeitskraft im Kuhstall | C77: =+Grunddaten!$D$5 -> 2600 | D77: AKh/AK | V77: Arbeitseffizienz (kg/AKh) x AKh/AK / 1.000
A78: Milchleistungsklasse niedrig (kg/Kuh) | B78: =+Grunddaten!$D$31 -> 6000 | C78: =IF(ISNUMBER(C64),C72*$C77/1000," ") ->  | D78: =IF(ISNUMBER(D64),D72*$C77/1000," ") ->  | E78: =IF(ISNUMBER(E64),E72*$C77/1000," ") ->  | F78: =IF(ISNUMBER(F64),F72*$C77/1000," ") ->  | G78: =IF(ISNUMBER(G64),G72*$C77/1000," ") -> 242.9835857 | H78: =IF(ISNUMBER(H64),H72*$C77/1000," ") -> 254.6019435 | I78: =IF(ISNUMBER(I64),I72*$C77/1000," ") -> 265.0727061 | J78: =IF(ISNUMBER(J64),J72*$C77/1000," ") -> 274.6325783 | K78: =IF(ISNUMBER(K64),K72*$C77/1000," ") -> 283.4492847 | L78: =IF(ISNUMBER(L64),L72*$C77/1000," ") -> 291.6464255 | M78: =IF(ISNUMBER(M64),M72*$C77/1000," ") -> 299.3179625 | N78: =IF(ISNUMBER(N64),N72*$C77/1000," ") -> 306.5371565 | O78: =IF(ISNUMBER(O64),O72*$C77/1000," ") -> 313.3623394 | P78: =IF(ISNUMBER(P64),P72*$C77/1000," ") -> 319.840786 | Q78: =IF(ISNUMBER(Q64),Q72*$C77/1000," ") -> 326.0113941 | R78: =IF(ISNUMBER(R64),R72*$C77/1000," ") -> 331.9065906 | S78: =IF(ISNUMBER(S64),S72*$C77/1000," ") ->  | T78: =IF(ISNUMBER(T64),T72*$C77/1000," ") ->  | U78: =IF(ISNUMBER(U64),U72*$C77/1000," ") -> 
A79: Milchleistungsklasse mittel (kg/Kuh) | B79: =+Grunddaten!$D$32 -> 8000 | C79: =IF(ISNUMBER(C64),C73*$C77/1000," ") ->  | D79: =IF(ISNUMBER(D64),D73*$C77/1000," ") ->  | G79: 323.9781142 | H79: 339.469258 | I79: 353.4302748 | J79: 366.176771 | K79: 377.9323796 | L79: 388.8619007 | M79: 399.0906167 | N79: 408.7162087 | O79: 417.8164525 | P79: 426.4543813 | Q79: 434.6818588 | R79: 442.5421208
A80: Milchleistungsklasse hoch (kg/Kuh) | B80: =+Grunddaten!$D$33 -> 10000 | C80: =IF(ISNUMBER(C64),C74*$C77/1000," ") ->  | D80: =IF(ISNUMBER(D64),D74*$C77/1000," ") ->  | G80: 404.9726428 | H80: 424.3365725 | I80: 441.7878435 | J80: 457.7209638 | K80: 472.4154745 | L80: 486.0773759 | M80: 498.8632709 | N80: 510.8952608 | O80: 522.2705656 | P80: 533.0679766 | Q80: 543.3523235 | R80: 553.177651
A82: Personalstückkosten (ct/kg Milch) | I82: ct/kg Milch | V82: Rechengang:
A83: Der Stundenlohn wurde festgelegt auf | B83: =+Grunddaten!$E$16 -> 17,5 | C83: €/AKh. Mit der erreichten Arbeitseffizienz (kg/AKh) entstehen dadurch folgende Personalkosten (ct/kg Milch): | V83: Stundenlohn (€/AKh) x 100 / Arbeitseffizienz (kg Milch/AKh)
A84: Milchleistungsklasse niedrig (kg/Kuh) | B84: =+Grunddaten!$D$31 -> 6000 | C84: =IF(ISNUMBER(C58),+$B83*100/C72," ") ->  | D84: =IF(ISNUMBER(D58),+$B83*100/D72," ") ->  | E84: =IF(ISNUMBER(E58),+$B83*100/E72," ") ->  | F84: =IF(ISNUMBER(F58),+$B83*100/F72," ") ->  | G84: =IF(ISNUMBER(G58),+$B83*100/G72," ") -> 18.72554472 | H84: =IF(ISNUMBER(H58),+$B83*100/H72," ") -> 17.87103404 | I84: =IF(ISNUMBER(I58),+$B83*100/I72," ") -> 17.16510186 | J84: =IF(ISNUMBER(J58),+$B83*100/J72," ") -> 16.56759016 | K84: =IF(ISNUMBER(K58),+$B83*100/K72," ") -> 16.0522543 | L84: =IF(ISNUMBER(L58),+$B83*100/L72," ") -> 15.60108269 | M84: =IF(ISNUMBER(M58),+$B83*100/M72," ") -> 15.20122602 | N84: =IF(ISNUMBER(N58),+$B83*100/N72," ") -> 14.84322505 | O84: =IF(ISNUMBER(O58),+$B83*100/O72," ") -> 14.51993245 | P84: =IF(ISNUMBER(P58),+$B83*100/P72," ") -> 14.22582797 | Q84: =IF(ISNUMBER(Q58),+$B83*100/Q72," ") -> 13.95656742 | R84: =IF(ISNUMBER(R58),+$B83*100/R72," ") -> 13.70867626 | S84: =IF(ISNUMBER(S58),+$B83*100/S72," ") ->  | T84: =IF(ISNUMBER(T58),+$B83*100/T72," ") ->  | U84: =IF(ISNUMBER(U58),+$B83*100/U72," ") -> 
A85: Milchleistungsklasse mittel (kg/Kuh) | B85: =+Grunddaten!$D$32 -> 8000 | C85: =IF(ISNUMBER(C58),+$B83*100/C73," ") ->  | D85: =IF(ISNUMBER(D58),+$B83*100/D73," ") ->  | G85: 14.04415854 | H85: 13.40327553 | I85: 12.87382639 | J85: 12.42569262 | K85: 12.03919073 | L85: 11.70081202 | M85: 11.40091951 | N85: 11.13241879 | O85: 10.88994934 | P85: 10.66937098 | Q85: 10.46742556 | R85: 10.2815072
A86: Milchleistungsklasse hoch (kg/Kuh) | B86: =+Grunddaten!$D$33 -> 10000 | C86: =IF(ISNUMBER(C58),+$B83*100/C74," ") ->  | D86: =IF(ISNUMBER(D58),+$B83*100/D74," ") ->  | G86: 11.23532683 | H86: 10.72262043 | I86: 10.29906112 | J86: 9.940554094 | K86: 9.631352582 | L86: 9.360649612 | M86: 9.120735611 | N86: 8.90593503 | O86: 8.71195947 | P86: 8.535496784 | Q86: 8.373940449 | R86: 8.225205758
A88: Bruttojahreseinkommen (€/AK) | I88: €/AK | V88: Rechengang:
A89: Wenn mit dem Stallpersonal ein fester Stücklohn von | D89: =+Grunddaten!$E$10 -> 10 | E89: ct/kg bei einer Jahresarbeitsstundenzahl von | K89: =+Grunddaten!$D$5 -> 2600 | L89: AKh/AK vereinbart wird, | V89: Arbeitseffizienz (Tsd kg Milch/AK) x 1.000 x Personalstückkosten (ct/kg) / 100
A90: welcher Jahreslohn (€/AK; incl. Arbeitgeberanteile und Sozialversicherungsbeiträge) kann dann in Abhängigkeit von der Milchleistung erzielt werden?
A91: Milchleistungsklasse niedrig (kg/Kuh) | B91: =+Grunddaten!$D$31 -> 6000 | C91: =IF(ISNUMBER(C58),C78*1000*$D89/100," ") ->  | D91: =IF(ISNUMBER(D58),D78*1000*$D89/100," ") ->  | G91: 24298.35857 | H91: 25460.19435 | I91: 26507.27061 | J91: 27463.25783 | K91: 28344.92847 | L91: 29164.64255 | M91: 29931.79625 | N91: 30653.71565 | O91: 31336.23394 | P91: 31984.0786 | Q91: 32601.13941 | R91: 33190.65906
A92: Milchleistungsklasse mittel (kg/Kuh) | B92: =+Grunddaten!$D$32 -> 8000 | C92: =IF(ISNUMBER(C58),C79*1000*$D89/100," ") ->  | D92: =IF(ISNUMBER(D58),D79*1000*$D89/100," ") ->  | G92: 32397.81142 | H92: 33946.9258 | I92: 35343.02748 | J92: 36617.6771 | K92: 37793.23796 | L92: 38886.19007 | M92: 39909.06167 | N92: 40871.62087 | O92: 41781.64525 | P92: 42645.43813 | Q92: 43468.18588 | R92: 44254.21208
A93: Milchleistungsklasse hoch (kg/Kuh) | B93: =+Grunddaten!$D$33 -> 10000 | C93: =IF(ISNUMBER(C58),C80*1000*$D89/100," ") ->  | D93: =IF(ISNUMBER(D58),D80*1000*$D89/100," ") ->  | G93: 40497.26428 | H93: 42433.65725 | I93: 44178.78435 | J93: 45772.09638 | K93: 47241.54745 | L93: 48607.73759 | M93: 49886.32709 | N93: 51089.52608 | O93: 52227.05656 | P93: 53306.79766 | Q93: 54335.23235 | R93: 55317.7651
A95: Bruttostundenlohn (€/AKh) | I95: €/AKh | V95: Rechengang:
A96: Wenn mit dem Stallpersonal ein fester Stücklohn von | D96: =+Grunddaten!$E$10 -> 10 | E96: ct/kg bei einer Jahresarbeitsstundenzahl von | K96: =+Grunddaten!$D$5 -> 2600 | L96: AKh/AK vereinbart wird, | V96: Arbeitseffizienz (kg/AKh) x Personalstückkosten (ct/kg) / 100
A97: welcher Stundenlohn (€/Akh; incl. Arbeitgeberanteile und Sozialversicherungsbeiträge) kann dann in Abhängigkeit von der Milchleistung erzielt werden?
A98: Milchleistungsklasse niedrig (kg/Kuh) | B98: =+Grunddaten!$D$31 -> 6000 | C98: =IF(ISNUMBER(C91),C91/$K$96," ") ->  | D98: =IF(ISNUMBER(D91),D91/$K$96," ") ->  | G98: 9.345522526 | H98: 9.792382442 | I98: 10.19510408 | J98: 10.56279147 | K98: 10.90189557 | L98: 11.21717021 | M98: 11.51222933 | N98: 11.78989063 | O98: 12.05239767 | P98: 12.30156869 | Q98: 12.53889977 | R98: 12.7656381
A99: Milchleistungsklasse mittel (kg/Kuh) | B99: =+Grunddaten!$D$32 -> 8000 | C99: =IF(ISNUMBER(C92),C92/$K$96," ") ->  | D99: =IF(ISNUMBER(D92),D92/$K$96," ") ->  | G99: 12.4606967 | H99: 13.05650992 | I99: 13.59347211 | J99: 14.08372196 | K99: 14.53586075 | L99: 14.95622695 | M99: 15.34963911 | N99: 15.71985418 | O99: 16.06986356 | P99: 16.40209159 | Q99: 16.71853303 | R99: 17.0208508
A100: Milchleistungsklasse hoch (kg/Kuh) | B100: =+Grunddaten!$D$33 -> 10000 | C100: =IF(ISNUMBER(C93),C93/$K$96," ") ->  | D100: =IF(ISNUMBER(D93),D93/$K$96," ") ->  | G100: 15.57587088 | H100: 16.3206374 | I100: 16.99184013 | J100: 17.60465245 | K100: 18.16982594 | L100: 18.69528369 | M100: 19.18704888 | N100: 19.64981772 | O100: 20.08732945 | P100: 20.50261449 | Q100: 20.89816629 | R100: 21.2760635
A103: System 3: | B103: =CONCATENATE(A106," - ",A107," - ",A109) -> Laufstall-AMS 3 Boxen - AFS - keine eigene Nachzucht
B104: Kühe Ø | C104: 20 | D104: 30 | E104: 40 | F104: 50 | G104: 60 | H104: 70 | I104: 80 | J104: 90 | K104: 100 | L104: 110 | M104: 120 | N104: 130 | O104: 140 | P104: 150 | Q104: 160 | R104: 170 | S104: 180 | T104: 190 | U104: 200
I105: AKh/Kuh
A106: =VLOOKUP(Grunddaten!$K39,'Rohdaten KUH'!$B$12:$U$36,A$1,FALSE) -> Laufstall-AMS 3 Boxen | C106: =IF(ISNUMBER(VLOOKUP($A106,'Rohdaten KUH'!$B$12:$U$36,C$1,FALSE)),VLOOKUP($A106,'Rohdaten KUH'!$B$12:$U$36,C$1,FALSE)*Grunddaten!$D$28," ") ->  | D106: =IF(ISNUMBER(VLOOKUP($A106,'Rohdaten KUH'!$B$12:$U$36,D$1,FALSE)),VLOOKUP($A106,'Rohdaten KUH'!$B$12:$U$36,D$1,FALSE)*Grunddaten!$D$28," ") ->  | E106: =IF(ISNUMBER(VLOOKUP($A106,'Rohdaten KUH'!$B$12:$U$36,E$1,FALSE)),VLOOKUP($A106,'Rohdaten KUH'!$B$12:$U$36,E$1,FALSE)*Grunddaten!$D$28," ") ->  | F106: =IF(ISNUMBER(VLOOKUP($A106,'Rohdaten KUH'!$B$12:$U$36,F$1,FALSE)),VLOOKUP($A106,'Rohdaten KUH'!$B$12:$U$36,F$1,FALSE)*Grunddaten!$D$28," ") ->  | G106: =IF(ISNUMBER(VLOOKUP($A106,'Rohdaten KUH'!$B$12:$U$36,G$1,FALSE)),VLOOKUP($A106,'Rohdaten KUH'!$B$12:$U$36,G$1,FALSE)*Grunddaten!$D$28," ") ->  | H106: =IF(ISNUMBER(VLOOKUP($A106,'Rohdaten KUH'!$B$12:$U$36,H$1,FALSE)),VLOOKUP($A106,'Rohdaten KUH'!$B$12:$U$36,H$1,FALSE)*Grunddaten!$D$28," ") ->  | I106: =IF(ISNUMBER(VLOOKUP($A106,'Rohdaten KUH'!$B$12:$U$36,I$1,FALSE)),VLOOKUP($A106,'Rohdaten KUH'!$B$12:$U$36,I$1,FALSE)*Grunddaten!$D$28," ") ->  | J106: =IF(ISNUMBER(VLOOKUP($A106,'Rohdaten KUH'!$B$12:$U$36,J$1,FALSE)),VLOOKUP($A106,'Rohdaten KUH'!$B$12:$U$36,J$1,FALSE)*Grunddaten!$D$28," ") ->  | K106: =IF(ISNUMBER(VLOOKUP($A106,'Rohdaten KUH'!$B$12:$U$36,K$1,FALSE)),VLOOKUP($A106,'Rohdaten KUH'!$B$12:$U$36,K$1,FALSE)*Grunddaten!$D$28," ") ->  | L106: =IF(ISNUMBER(VLOOKUP($A106,'Rohdaten KUH'!$B$12:$U$36,L$1,FALSE)),VLOOKUP($A106,'Rohdaten KUH'!$B$12:$U$36,L$1,FALSE)*Grunddaten!$D$28," ") ->  | M106: =IF(ISNUMBER(VLOOKUP($A106,'Rohdaten KUH'!$B$12:$U$36,M$1,FALSE)),VLOOKUP($A106,'Rohdaten KUH'!$B$12:$U$36,M$1,FALSE)*Grunddaten!$D$28," ") ->  | N106: =IF(ISNUMBER(VLOOKUP($A106,'Rohdaten KUH'!$B$12:$U$36,N$1,FALSE)),VLOOKUP($A106,'Rohdaten KUH'!$B$12:$U$36,N$1,FALSE)*Grunddaten!$D$28," ") ->  | O106: =IF(ISNUMBER(VLOOKUP($A106,'Rohdaten KUH'!$B$12:$U$36,O$1,FALSE)),VLOOKUP($A106,'Rohdaten KUH'!$B$12:$U$36,O$1,FALSE)*Grunddaten!$D$28," ") -> 9.088720898 | P106: =IF(ISNUMBER(VLOOKUP($A106,'Rohdaten KUH'!$B$12:$U$36,P$1,FALSE)),VLOOKUP($A106,'Rohdaten KUH'!$B$12:$U$36,P$1,FALSE)*Grunddaten!$D$28," ") -> 8.574502037 | Q106: =IF(ISNUMBER(VLOOKUP($A106,'Rohdaten KUH'!$B$12:$U$36,Q$1,FALSE)),VLOOKUP($A106,'Rohdaten KUH'!$B$12:$U$36,Q$1,FALSE)*Grunddaten!$D$28," ") -> 8.119851425 | R106: =IF(ISNUMBER(VLOOKUP($A106,'Rohdaten KUH'!$B$12:$U$36,R$1,FALSE)),VLOOKUP($A106,'Rohdaten KUH'!$B$12:$U$36,R$1,FALSE)*Grunddaten!$D$28," ") -> 7.714755272 | S106: =IF(ISNUMBER(VLOOKUP($A106,'Rohdaten KUH'!$B$12:$U$36,S$1,FALSE)),VLOOKUP($A106,'Rohdaten KUH'!$B$12:$U$36,S$1,FALSE)*Grunddaten!$D$28," ") -> 7.35134815 | T106: =IF(ISNUMBER(VLOOKUP($A106,'Rohdaten KUH'!$B$12:$U$36,T$1,FALSE)),VLOOKUP($A106,'Rohdaten KUH'!$B$12:$U$36,T$1,FALSE)*Grunddaten!$D$28," ") -> 7.023362866 | U106: =IF(ISNUMBER(VLOOKUP($A106,'Rohdaten KUH'!$B$12:$U$36,U$1,FALSE)),VLOOKUP($A106,'Rohdaten KUH'!$B$12:$U$36,U$1,FALSE)*Grunddaten!$D$28," ") -> 6.725741756
A107: =VLOOKUP(Grunddaten!$K40,'Rohdaten KUH'!$B$12:$U$36,A$1,FALSE) -> AFS | C107: =IF(ISNUMBER(C$106),VLOOKUP($A107,'Rohdaten KUH'!$B$12:$U$36,C$1,FALSE)*Grunddaten!$D$28," ") ->  | D107: =IF(ISNUMBER(D$106),VLOOKUP($A107,'Rohdaten KUH'!$B$12:$U$36,D$1,FALSE)*Grunddaten!$D$28," ") ->  | E107: =IF(ISNUMBER(E$106),VLOOKUP($A107,'Rohdaten KUH'!$B$12:$U$36,E$1,FALSE)*Grunddaten!$D$28," ") ->  | F107: =IF(ISNUMBER(F$106),VLOOKUP($A107,'Rohdaten KUH'!$B$12:$U$36,F$1,FALSE)*Grunddaten!$D$28," ") ->  | G107: =IF(ISNUMBER(G$106),VLOOKUP($A107,'Rohdaten KUH'!$B$12:$U$36,G$1,FALSE)*Grunddaten!$D$28," ") ->  | H107: =IF(ISNUMBER(H$106),VLOOKUP($A107,'Rohdaten KUH'!$B$12:$U$36,H$1,FALSE)*Grunddaten!$D$28," ") ->  | I107: =IF(ISNUMBER(I$106),VLOOKUP($A107,'Rohdaten KUH'!$B$12:$U$36,I$1,FALSE)*Grunddaten!$D$28," ") ->  | J107: =IF(ISNUMBER(J$106),VLOOKUP($A107,'Rohdaten KUH'!$B$12:$U$36,J$1,FALSE)*Grunddaten!$D$28," ") ->  | K107: =IF(ISNUMBER(K$106),VLOOKUP($A107,'Rohdaten KUH'!$B$12:$U$36,K$1,FALSE)*Grunddaten!$D$28," ") ->  | L107: =IF(ISNUMBER(L$106),VLOOKUP($A107,'Rohdaten KUH'!$B$12:$U$36,L$1,FALSE)*Grunddaten!$D$28," ") ->  | M107: =IF(ISNUMBER(M$106),VLOOKUP($A107,'Rohdaten KUH'!$B$12:$U$36,M$1,FALSE)*Grunddaten!$D$28," ") ->  | N107: =IF(ISNUMBER(N$106),VLOOKUP($A107,'Rohdaten KUH'!$B$12:$U$36,N$1,FALSE)*Grunddaten!$D$28," ") ->  | O107: =IF(ISNUMBER(O$106),VLOOKUP($A107,'Rohdaten KUH'!$B$12:$U$36,O$1,FALSE)*Grunddaten!$D$28," ") -> 6.188885165 | P107: =IF(ISNUMBER(P$106),VLOOKUP($A107,'Rohdaten KUH'!$B$12:$U$36,P$1,FALSE)*Grunddaten!$D$28," ") -> 5.854006388 | Q107: =IF(ISNUMBER(Q$106),VLOOKUP($A107,'Rohdaten KUH'!$B$12:$U$36,Q$1,FALSE)*Grunddaten!$D$28," ") -> 5.546485916 | R107: =IF(ISNUMBER(R$106),VLOOKUP($A107,'Rohdaten KUH'!$B$12:$U$36,R$1,FALSE)*Grunddaten!$D$28," ") -> 5.262410633 | S107: =IF(ISNUMBER(S$106),VLOOKUP($A107,'Rohdaten KUH'!$B$12:$U$36,S$1,FALSE)*Grunddaten!$D$28," ") -> 4.998622582 | T107: =IF(ISNUMBER(T$106),VLOOKUP($A107,'Rohdaten KUH'!$B$12:$U$36,T$1,FALSE)*Grunddaten!$D$28," ") -> 4.752540135 | U107: =IF(ISNUMBER(U$106),VLOOKUP($A107,'Rohdaten KUH'!$B$12:$U$36,U$1,FALSE)*Grunddaten!$D$28," ") -> 4.522028511
A108: =+'Rohdaten KUH'!B26 -> Sonstige Arbeiten (Milchkuh) | C108: =IF(ISNUMBER(C$106),VLOOKUP($A108,'Rohdaten KUH'!$B$12:$U$36,C$1,FALSE)*Grunddaten!$D$28," ") ->  | D108: =IF(ISNUMBER(D$106),VLOOKUP($A108,'Rohdaten KUH'!$B$12:$U$36,D$1,FALSE)*Grunddaten!$D$28," ") ->  | E108: =IF(ISNUMBER(E$106),VLOOKUP($A108,'Rohdaten KUH'!$B$12:$U$36,E$1,FALSE)*Grunddaten!$D$28," ") ->  | F108: =IF(ISNUMBER(F$106),VLOOKUP($A108,'Rohdaten KUH'!$B$12:$U$36,F$1,FALSE)*Grunddaten!$D$28," ") ->  | G108: =IF(ISNUMBER(G$106),VLOOKUP($A108,'Rohdaten KUH'!$B$12:$U$36,G$1,FALSE)*Grunddaten!$D$28," ") ->  | H108: =IF(ISNUMBER(H$106),VLOOKUP($A108,'Rohdaten KUH'!$B$12:$U$36,H$1,FALSE)*Grunddaten!$D$28," ") ->  | I108: =IF(ISNUMBER(I$106),VLOOKUP($A108,'Rohdaten KUH'!$B$12:$U$36,I$1,FALSE)*Grunddaten!$D$28," ") ->  | J108: =IF(ISNUMBER(J$106),VLOOKUP($A108,'Rohdaten KUH'!$B$12:$U$36,J$1,FALSE)*Grunddaten!$D$28," ") ->  | K108: =IF(ISNUMBER(K$106),VLOOKUP($A108,'Rohdaten KUH'!$B$12:$U$36,K$1,FALSE)*Grunddaten!$D$28," ") ->  | L108: =IF(ISNUMBER(L$106),VLOOKUP($A108,'Rohdaten KUH'!$B$12:$U$36,L$1,FALSE)*Grunddaten!$D$28," ") ->  | M108: =IF(ISNUMBER(M$106),VLOOKUP($A108,'Rohdaten KUH'!$B$12:$U$36,M$1,FALSE)*Grunddaten!$D$28," ") ->  | N108: =IF(ISNUMBER(N$106),VLOOKUP($A108,'Rohdaten KUH'!$B$12:$U$36,N$1,FALSE)*Grunddaten!$D$28," ") ->  | O108: =IF(ISNUMBER(O$106),VLOOKUP($A108,'Rohdaten KUH'!$B$12:$U$36,O$1,FALSE)*Grunddaten!$D$28," ") -> 13.56021685 | P108: =IF(ISNUMBER(P$106),VLOOKUP($A108,'Rohdaten KUH'!$B$12:$U$36,P$1,FALSE)*Grunddaten!$D$28," ") -> 13.26794536 | Q108: =IF(ISNUMBER(Q$106),VLOOKUP($A108,'Rohdaten KUH'!$B$12:$U$36,Q$1,FALSE)*Grunddaten!$D$28," ") -> 13.00024887 | R108: =IF(ISNUMBER(R$106),VLOOKUP($A108,'Rohdaten KUH'!$B$12:$U$36,R$1,FALSE)*Grunddaten!$D$28," ") -> 12.75370839 | S108: =IF(ISNUMBER(S$106),VLOOKUP($A108,'Rohdaten KUH'!$B$12:$U$36,S$1,FALSE)*Grunddaten!$D$28," ") -> 12.52554753 | T108: =IF(ISNUMBER(T$106),VLOOKUP($A108,'Rohdaten KUH'!$B$12:$U$36,T$1,FALSE)*Grunddaten!$D$28," ") -> 12.31348368 | U108: =IF(ISNUMBER(U$106),VLOOKUP($A108,'Rohdaten KUH'!$B$12:$U$36,U$1,FALSE)*Grunddaten!$D$28," ") -> 12.11561953
A109: =VLOOKUP(Grunddaten!$K41,'Rohdaten KUH'!$B$12:$U$36,A$1,FALSE) -> keine eigene Nachzucht | C109: =IF(ISNUMBER(C$106),VLOOKUP($A109,'Rohdaten KUH'!$B$12:$U$36,C$1,FALSE)*Grunddaten!$D$28," ") ->  | D109: =IF(ISNUMBER(D$106),VLOOKUP($A109,'Rohdaten KUH'!$B$12:$U$36,D$1,FALSE)*Grunddaten!$D$28," ") ->  | E109: =IF(ISNUMBER(E$106),VLOOKUP($A109,'Rohdaten KUH'!$B$12:$U$36,E$1,FALSE)*Grunddaten!$D$28," ") ->  | F109: =IF(ISNUMBER(F$106),VLOOKUP($A109,'Rohdaten KUH'!$B$12:$U$36,F$1,FALSE)*Grunddaten!$D$28," ") ->  | G109: =IF(ISNUMBER(G$106),VLOOKUP($A109,'Rohdaten KUH'!$B$12:$U$36,G$1,FALSE)*Grunddaten!$D$28," ") ->  | H109: =IF(ISNUMBER(H$106),VLOOKUP($A109,'Rohdaten KUH'!$B$12:$U$36,H$1,FALSE)*Grunddaten!$D$28," ") ->  | I109: =IF(ISNUMBER(I$106),VLOOKUP($A109,'Rohdaten KUH'!$B$12:$U$36,I$1,FALSE)*Grunddaten!$D$28," ") ->  | J109: =IF(ISNUMBER(J$106),VLOOKUP($A109,'Rohdaten KUH'!$B$12:$U$36,J$1,FALSE)*Grunddaten!$D$28," ") ->  | K109: =IF(ISNUMBER(K$106),VLOOKUP($A109,'Rohdaten KUH'!$B$12:$U$36,K$1,FALSE)*Grunddaten!$D$28," ") ->  | L109: =IF(ISNUMBER(L$106),VLOOKUP($A109,'Rohdaten KUH'!$B$12:$U$36,L$1,FALSE)*Grunddaten!$D$28," ") ->  | M109: =IF(ISNUMBER(M$106),VLOOKUP($A109,'Rohdaten KUH'!$B$12:$U$36,M$1,FALSE)*Grunddaten!$D$28," ") ->  | N109: =IF(ISNUMBER(N$106),VLOOKUP($A109,'Rohdaten KUH'!$B$12:$U$36,N$1,FALSE)*Grunddaten!$D$28," ") ->  | O109: =IF(ISNUMBER(O$106),VLOOKUP($A109,'Rohdaten KUH'!$B$12:$U$36,O$1,FALSE)*Grunddaten!$D$28," ") -> 1.385498797 | P109: =IF(ISNUMBER(P$106),VLOOKUP($A109,'Rohdaten KUH'!$B$12:$U$36,P$1,FALSE)*Grunddaten!$D$28," ") -> 1.331898047 | Q109: =IF(ISNUMBER(Q$106),VLOOKUP($A109,'Rohdaten KUH'!$B$12:$U$36,Q$1,FALSE)*Grunddaten!$D$28," ") -> 1.283636626 | R109: =IF(ISNUMBER(R$106),VLOOKUP($A109,'Rohdaten KUH'!$B$12:$U$36,R$1,FALSE)*Grunddaten!$D$28," ") -> 1.239896061 | S109: =IF(ISNUMBER(S$106),VLOOKUP($A109,'Rohdaten KUH'!$B$12:$U$36,S$1,FALSE)*Grunddaten!$D$28," ") -> 1.200022344 | T109: =IF(ISNUMBER(T$106),VLOOKUP($A109,'Rohdaten KUH'!$B$12:$U$36,T$1,FALSE)*Grunddaten!$D$28," ") -> 1.163485883 | U109: =IF(ISNUMBER(U$106),VLOOKUP($A109,'Rohdaten KUH'!$B$12:$U$36,U$1,FALSE)*Grunddaten!$D$28," ") -> 1.129852732
A110: Arbeitszeitbedarf je Kuh und Jahr | B110: AKh/Kuh | C110: =IF(ISNUMBER(C106),SUM(C106:C109)," ") ->  | D110: =IF(ISNUMBER(D106),SUM(D106:D109)," ") ->  | E110: =IF(ISNUMBER(E106),SUM(E106:E109)," ") ->  | F110: =IF(ISNUMBER(F106),SUM(F106:F109)," ") ->  | G110: =IF(ISNUMBER(G106),SUM(G106:G109)," ") ->  | H110: =IF(ISNUMBER(H106),SUM(H106:H109)," ") ->  | I110: =IF(ISNUMBER(I106),SUM(I106:I109)," ") ->  | J110: =IF(ISNUMBER(J106),SUM(J106:J109)," ") ->  | K110: =IF(ISNUMBER(K106),SUM(K106:K109)," ") ->  | L110: =IF(ISNUMBER(L106),SUM(L106:L109)," ") ->  | M110: =IF(ISNUMBER(M106),SUM(M106:M109)," ") ->  | N110: =IF(ISNUMBER(N106),SUM(N106:N109)," ") ->  | O110: =IF(ISNUMBER(O106),SUM(O106:O109)," ") -> 30.22332171 | P110: =IF(ISNUMBER(P106),SUM(P106:P109)," ") -> 29.02835184 | Q110: =IF(ISNUMBER(Q106),SUM(Q106:Q109)," ") -> 27.95022284 | R110: =IF(ISNUMBER(R106),SUM(R106:R109)," ") -> 26.97077036 | S110: =IF(ISNUMBER(S106),SUM(S106:S109)," ") -> 26.07554061 | T110: =IF(ISNUMBER(T106),SUM(T106:T109)," ") -> 25.25287256 | U110: =IF(ISNUMBER(U106),SUM(U106:U109)," ") -> 24.49324253
A112: Arbeitszeitbedarf Herde und Jahr | C112: =IF(ISNUMBER(C110),C110*C104," ") ->  | D112: =IF(ISNUMBER(D110),D110*D104," ") ->  | O112: 4231.26504 | P112: 4354.252775 | Q112: 4472.035654 | R112: 4585.030961 | S112: 4693.597309 | T112: 4798.045787 | U112: 4898.648506 | V112: Rechengang:
V113: Kühe Ø x Arbeitszeitbedarf (AKh/Kuh)
A114: Erzeugte Milchmenge (Tsd kg) in Abhängigkeit von Herdengröße und Milchleistung | I114: Tsd kg Milch | V114: Rechengang:
A115: Milchleistungsklasse niedrig (kg/Kuh) | B115: =+Grunddaten!$D$31 -> 6000 | C115: =IF(ISNUMBER(C106),+C104*$B115/1000," ") ->  | D115: =IF(ISNUMBER(D106),+D104*$B115/1000," ") ->  | O115: 840 | P115: 900 | Q115: 960 | R115: 1020 | S115: 1080 | T115: 1140 | U115: 1200 | V115: Kühe Ø x Milchleistung (kg/Kuh) / 1.000
A116: Milchleistungsklasse mittel (kg/Kuh) | B116: =+Grunddaten!$D$32 -> 8000 | C116: =IF(ISNUMBER(C106),+C104*$B116/1000," ") ->  | D116: =IF(ISNUMBER(D106),+D104*$B116/1000," ") ->  | O116: 1120 | P116: 1200 | Q116: 1280 | R116: 1360 | S116: 1440 | T116: 1520 | U116: 1600
A117: Milchleistungsklasse hoch (kg/Kuh) | B117: =+Grunddaten!$D$33 -> 10000 | C117: =IF(ISNUMBER(C106),+C104*$B117/1000," ") ->  | D117: =IF(ISNUMBER(D106),+D104*$B117/1000," ") ->  | O117: 1400 | P117: 1500 | Q117: 1600 | R117: 1700 | S117: 1800 | T117: 1900 | U117: 2000
A119: Arbeitseffizienz (kg/AKh) in Abhängigkeit von Herdengröße und Milchleistung | I119: kg Milch/AKh | V119: Rechengang:
A120: Milchleistungsklasse niedrig (kg/Kuh) | B120: =+Grunddaten!$D$31 -> 6000 | C120: =IF(ISNUMBER(C106),+C115*1000/C112," ") ->  | D120: =IF(ISNUMBER(D106),+D115*1000/D112," ") ->  | O120: 198.5221895 | P120: 206.694477 | Q120: 214.6673404 | R120: 222.4630561 | S120: 230.1006944 | T120: 237.5967322 | U120: 244.9655244 | V120: Erzeugte Jahresmilchmenge (kg) / Arbeitszeitbedarf Herde und Jahr (AKh)
A121: Milchleistungsklasse mittel (kg/Kuh) | B121: =+Grunddaten!$D$32 -> 8000 | C121: =IF(ISNUMBER(C106),+C116*1000/C112," ") ->  | D121: =IF(ISNUMBER(D106),+D116*1000/D112," ") ->  | O121: 264.6962527 | P121: 275.592636 | Q121: 286.2231205 | R121: 296.6174082 | S121: 306.8009259 | T121: 316.7956429 | U121: 326.6206991
A122: Milchleistungsklasse hoch (kg/Kuh) | B122: =+Grunddaten!$D$33 -> 10000 | C122: =IF(ISNUMBER(C106),+C117*1000/C112," ") ->  | D122: =IF(ISNUMBER(D106),+D117*1000/D112," ") ->  | O122: 330.8703158 | P122: 344.490795 | Q122: 357.7789007 | R122: 370.7717602 | S122: 383.5011573 | T122: 395.9945537 | U122: 408.2758739
A124: Arbeitseffizienz (Tsd kg/AK) in Abhängigkeit von Herdengröße und Milchleistung | I124: Tsd kg Milch/AK | V124: Rechengang:
A125: Jahresarbeitsstunden je Arbeitskraft im Kuhstall | C125: =+Grunddaten!$D$5 -> 2600 | D125: AKh/AK | V125: Arbeitseffizienz (kg/AKh) x AKh/AK / 1.000
A126: Milchleistungsklasse niedrig (kg/Kuh) | B126: =+Grunddaten!$D$31 -> 6000 | C126: =IF(ISNUMBER(C112),C120*$C125/1000," ") ->  | D126: =IF(ISNUMBER(D112),D120*$C125/1000," ") ->  | E126: =IF(ISNUMBER(E112),E120*$C125/1000," ") ->  | F126: =IF(ISNUMBER(F112),F120*$C125/1000," ") ->  | G126: =IF(ISNUMBER(G112),G120*$C125/1000," ") ->  | H126: =IF(ISNUMBER(H112),H120*$C125/1000," ") ->  | I126: =IF(ISNUMBER(I112),I120*$C125/1000," ") ->  | J126: =IF(ISNUMBER(J112),J120*$C125/1000," ") ->  | K126: =IF(ISNUMBER(K112),K120*$C125/1000," ") ->  | L126: =IF(ISNUMBER(L112),L120*$C125/1000," ") ->  | M126: =IF(ISNUMBER(M112),M120*$C125/1000," ") ->  | N126: =IF(ISNUMBER(N112),N120*$C125/1000," ") ->  | O126: =IF(ISNUMBER(O112),O120*$C125/1000," ") -> 516.1576927 | P126: =IF(ISNUMBER(P112),P120*$C125/1000," ") -> 537.4056401 | Q126: =IF(ISNUMBER(Q112),Q120*$C125/1000," ") -> 558.135085 | R126: =IF(ISNUMBER(R112),R120*$C125/1000," ") -> 578.4039459 | S126: =IF(ISNUMBER(S112),S120*$C125/1000," ") -> 598.2618054 | T126: =IF(ISNUMBER(T112),T120*$C125/1000," ") -> 617.7515037 | U126: =IF(ISNUMBER(U112),U120*$C125/1000," ") -> 636.9103633
A127: Milchleistungsklasse mittel (kg/Kuh) | B127: =+Grunddaten!$D$32 -> 8000 | C127: =IF(ISNUMBER(C112),C121*$C125/1000," ") ->  | D127: =IF(ISNUMBER(D112),D121*$C125/1000," ") ->  | O127: 688.2102569 | P127: 716.5408535 | Q127: 744.1801134 | R127: 771.2052612 | S127: 797.6824072 | T127: 823.6686716 | U127: 849.2138178
A128: Milchleistungsklasse hoch (kg/Kuh) | B128: =+Grunddaten!$D$33 -> 10000 | C128: =IF(ISNUMBER(C112),C122*$C125/1000," ") ->  | D128: =IF(ISNUMBER(D112),D122*$C125/1000," ") ->  | O128: 860.2628211 | P128: 895.6760669 | Q128: 930.2251417 | R128: 964.0065765 | S128: 997.103009 | T128: 1029.58584 | U128: 1061.517272
A130: Personalstückkosten (ct/kg Milch) | I130: ct/kg Milch | V130: Rechengang:
A131: Der Stundenlohn wurde festgelegt auf | B131: =+Grunddaten!$E$16 -> 17,5 | C131: €/AKh. Mit der erreichten Arbeitseffizienz (kg/AKh) entstehen dadurch folgende Personalkosten (ct/kg Milch): | V131: Stundenlohn (€/AKh) x 100 / Arbeitseffizienz (kg Milch/AKh)
A132: Milchleistungsklasse niedrig (kg/Kuh) | B132: =+Grunddaten!$D$31 -> 6000 | C132: =IF(ISNUMBER(C106),+$B131*100/C120," ") ->  | D132: =IF(ISNUMBER(D106),+$B131*100/D120," ") ->  | E132: =IF(ISNUMBER(E106),+$B131*100/E120," ") ->  | F132: =IF(ISNUMBER(F106),+$B131*100/F120," ") ->  | G132: =IF(ISNUMBER(G106),+$B131*100/G120," ") ->  | H132: =IF(ISNUMBER(H106),+$B131*100/H120," ") ->  | I132: =IF(ISNUMBER(I106),+$B131*100/I120," ") ->  | J132: =IF(ISNUMBER(J106),+$B131*100/J120," ") ->  | K132: =IF(ISNUMBER(K106),+$B131*100/K120," ") ->  | L132: =IF(ISNUMBER(L106),+$B131*100/L120," ") ->  | M132: =IF(ISNUMBER(M106),+$B131*100/M120," ") ->  | N132: =IF(ISNUMBER(N106),+$B131*100/N120," ") ->  | O132: =IF(ISNUMBER(O106),+$B131*100/O120," ") -> 8.815135499 | P132: =IF(ISNUMBER(P106),+$B131*100/P120," ") -> 8.466602619 | Q132: =IF(ISNUMBER(Q106),+$B131*100/Q120," ") -> 8.152148328 | R132: =IF(ISNUMBER(R106),+$B131*100/R120," ") -> 7.866474688 | S132: =IF(ISNUMBER(S106),+$B131*100/S120," ") -> 7.60536601 | T132: =IF(ISNUMBER(T106),+$B131*100/T120," ") -> 7.365421165 | U132: =IF(ISNUMBER(U106),+$B131*100/U120," ") -> 7.143862405
A133: Milchleistungsklasse mittel (kg/Kuh) | B133: =+Grunddaten!$D$32 -> 8000 | C133: =IF(ISNUMBER(C106),+$B131*100/C121," ") ->  | D133: =IF(ISNUMBER(D106),+$B131*100/D121," ") ->  | O133: 6.611351624 | P133: 6.349951964 | Q133: 6.114111246 | R133: 5.899856016 | S133: 5.704024508 | T133: 5.524065873 | U133: 5.357896804
A134: Milchleistungsklasse hoch (kg/Kuh) | B134: =+Grunddaten!$D$33 -> 10000 | C134: =IF(ISNUMBER(C106),+$B131*100/C122," ") ->  | D134: =IF(ISNUMBER(D106),+$B131*100/D122," ") ->  | O134: 5.2890813 | P134: 5.079961571 | Q134: 4.891288997 | R134: 4.719884813 | S134: 4.563219606 | T134: 4.419252699 | U134: 4.286317443
A136: Bruttojahreseinkommen (€/AK) | I136: €/AK | V136: Rechengang:
A137: Wenn mit dem Stallpersonal ein fester Stücklohn von | D137: =+Grunddaten!$E$10 -> 10 | E137: ct/kg bei einer Jahresarbeitsstundenzahl von | K137: =+Grunddaten!$D$5 -> 2600 | L137: AKh/AK vereinbart wird, | V137: Arbeitseffizienz (Tsd kg Milch/AK) x 1.000 x Personalstückkosten (ct/kg) / 100
A138: welcher Jahreslohn (€/AK; incl. Arbeitgeberanteile und Sozialversicherungsbeiträge) kann dann in Abhängigkeit von der Milchleistung erzielt werden?
A139: Milchleistungsklasse niedrig (kg/Kuh) | B139: =+Grunddaten!$D$31 -> 6000 | C139: =IF(ISNUMBER(C106),C126*1000*$D137/100," ") ->  | D139: =IF(ISNUMBER(D106),D126*1000*$D137/100," ") ->  | O139: 51615.76927 | P139: 53740.56401 | Q139: 55813.5085 | R139: 57840.39459 | S139: 59826.18054 | T139: 61775.15037 | U139: 63691.03633
A140: Milchleistungsklasse mittel (kg/Kuh) | B140: =+Grunddaten!$D$32 -> 8000 | C140: =IF(ISNUMBER(C106),C127*1000*$D137/100," ") ->  | D140: =IF(ISNUMBER(D106),D127*1000*$D137/100," ") ->  | O140: 68821.02569 | P140: 71654.08535 | Q140: 74418.01134 | R140: 77120.52612 | S140: 79768.24072 | T140: 82366.86716 | U140: 84921.38178
A141: Milchleistungsklasse hoch (kg/Kuh) | B141: =+Grunddaten!$D$33 -> 10000 | C141: =IF(ISNUMBER(C106),C128*1000*$D137/100," ") ->  | D141: =IF(ISNUMBER(D106),D128*1000*$D137/100," ") ->  | O141: 86026.28211 | P141: 89567.60669 | Q141: 93022.51417 | R141: 96400.65765 | S141: 99710.3009 | T141: 102958.584 | U141: 106151.7272
A143: Bruttostundenlohn (€/AKh) | I143: €/AKh | V143: Rechengang:
A144: Wenn mit dem Stallpersonal ein fester Stücklohn von | D144: =+Grunddaten!$E$10 -> 10 | E144: ct/kg bei einer Jahresarbeitsstundenzahl von | K144: =+Grunddaten!$D$5 -> 2600 | L144: AKh/AK vereinbart wird, | V144: Arbeitseffizienz (kg/AKh) x Personalstückkosten (ct/kg) / 100
A145: welcher Stundenlohn (€/Akh; incl. Arbeitgeberanteile und Sozialversicherungsbeiträge) kann dann in Abhängigkeit von der Milchleistung erzielt werden?
A146: Milchleistungsklasse niedrig (kg/Kuh) | B146: =+Grunddaten!$D$31 -> 6000 | C146: =IF(ISNUMBER(C139),C139/$K$144," ") ->  | D146: =IF(ISNUMBER(D139),D139/$K$144," ") ->  | O146: 19.85221895 | P146: 20.6694477 | Q146: 21.46673404 | R146: 22.24630561 | S146: 23.01006944 | T146: 23.75967322 | U146: 24.49655244
A147: Milchleistungsklasse mittel (kg/Kuh) | B147: =+Grunddaten!$D$32 -> 8000 | C147: =IF(ISNUMBER(C140),C140/$K$144," ") ->  | D147: =IF(ISNUMBER(D140),D140/$K$144," ") ->  | O147: 26.46962527 | P147: 27.5592636 | Q147: 28.62231205 | R147: 29.66174082 | S147: 30.68009259 | T147: 31.67956429 | U147: 32.66206991
A148: Milchleistungsklasse hoch (kg/Kuh) | B148: =+Grunddaten!$D$33 -> 10000 | C148: =IF(ISNUMBER(C141),C141/$K$144," ") ->  | D148: =IF(ISNUMBER(D141),D141/$K$144," ") ->  | O148: 33.08703158 | P148: 34.4490795 | Q148: 35.77789007 | R148: 37.07717602 | S148: 38.35011573 | T148: 39.59945537 | U148: 40.82758739

Sheet Grafiken (hidden)
A1: Grafiken
A3: In acht Grafiken werden die Systeme 1 - 3 gegenübergestellt.
A4: Über jeder Grafik werden die benötigten Daten dargestellt. Die Daten kommen aus dem Excelblatt TABELLE SYSTEM 1 - 3.
A5: Die Grafiken 3 bis 5 sind abhängig von der Jahresmilchleistung der Kuh. Die Darstellung wird auf eine Milchleistung beschränkt. Sie ist voreingestellt auf die mittlere Leistungsstufe, kann aber abgeändert werden.
R6: ='Tabelle System 1 - 3'!K19 ->  | S6: ='Tabelle System 1 - 3'!L19 ->  | T6: ='Tabelle System 1 - 3'!M19 ->  | U6: ='Tabelle System 1 - 3'!N19 -> 
A7: 1. Jahresarbeitszeitbedarf je Milchkuh in Abhängigkeit von Herdengröße, Nachzuchtintensität sowie Melk- und Fütterungsystem
H9: Anzahl Kühe | I9: 20 | J9: 30 | K9: 40 | L9: 50 | M9: 60 | N9: 70 | O9: 80 | P9: 90 | Q9: 100 | R9: 110 | S9: 120 | T9: 130 | U9: 140 | V9: 150 | W9: 160 | X9: 170 | Y9: 180 | Z9: 190 | AA9: 200
H10: ='Tabelle System 1 - 3'!$B$7 -> Anbindestall-Rohr-MA - Siloblock - JV maximal - 32 Monate EKA | I10: =IF('Tabelle System 1 - 3'!C14="",#N/A,'Tabelle System 1 - 3'!C14) -> 117.7663234 | J10: =IF('Tabelle System 1 - 3'!D14="",#N/A,'Tabelle System 1 - 3'!D14) -> 105.5719727 | K10: =IF('Tabelle System 1 - 3'!E14="",#N/A,'Tabelle System 1 - 3'!E14) -> 97.58942327 | L10: =IF('Tabelle System 1 - 3'!F14="",#N/A,'Tabelle System 1 - 3'!F14) -> 92.1028211 | M10: =IF('Tabelle System 1 - 3'!G14="",#N/A,'Tabelle System 1 - 3'!G14) -> 87.40648509 | N10: =IF('Tabelle System 1 - 3'!H14="",#N/A,'Tabelle System 1 - 3'!H14) ->  | O10: =IF('Tabelle System 1 - 3'!I14="",#N/A,'Tabelle System 1 - 3'!I14) ->  | P10: =IF('Tabelle System 1 - 3'!J14="",#N/A,'Tabelle System 1 - 3'!J14) ->  | Q10: =IF('Tabelle System 1 - 3'!K14="",#N/A,'Tabelle System 1 - 3'!K14) ->  | R10: =IF('Tabelle System 1 - 3'!L14="",#N/A,'Tabelle System 1 - 3'!L14) ->  | S10: =IF('Tabelle System 1 - 3'!M14="",#N/A,'Tabelle System 1 - 3'!M14) ->  | T10: =IF('Tabelle System 1 - 3'!N14="",#N/A,'Tabelle System 1 - 3'!N14) ->  | U10: =IF('Tabelle System 1 - 3'!O14="",#N/A,'Tabelle System 1 - 3'!O14) ->  | V10: =IF('Tabelle System 1 - 3'!P14="",#N/A,'Tabelle System 1 - 3'!P14) ->  | W10: =IF('Tabelle System 1 - 3'!Q14="",#N/A,'Tabelle System 1 - 3'!Q14) ->  | X10: =IF('Tabelle System 1 - 3'!R14="",#N/A,'Tabelle System 1 - 3'!R14) ->  | Y10: =IF('Tabelle System 1 - 3'!S14="",#N/A,'Tabelle System 1 - 3'!S14) ->  | Z10: =IF('Tabelle System 1 - 3'!T14="",#N/A,'Tabelle System 1 - 3'!T14) ->  | AA10: =IF('Tabelle System 1 - 3'!U14="",#N/A,'Tabelle System 1 - 3'!U14) -> 
H11: =+'Tabelle System 1 - 3'!$B$55 -> Laufstall-FGM 2x6 - FMW - JV normal - 29 Monate EKA | I11: =IF('Tabelle System 1 - 3'!C62="",#N/A,'Tabelle System 1 - 3'!C62) ->  | J11: =IF('Tabelle System 1 - 3'!D62="",#N/A,'Tabelle System 1 - 3'!D62) ->  | K11: =IF('Tabelle System 1 - 3'!E62="",#N/A,'Tabelle System 1 - 3'!E62) ->  | L11: =IF('Tabelle System 1 - 3'!F62="",#N/A,'Tabelle System 1 - 3'!F62) ->  | M11: =IF('Tabelle System 1 - 3'!G62="",#N/A,'Tabelle System 1 - 3'!G62) -> 64.20186761 | N11: =IF('Tabelle System 1 - 3'!H62="",#N/A,'Tabelle System 1 - 3'!H62) -> 61.27211672 | O11: =IF('Tabelle System 1 - 3'!I62="",#N/A,'Tabelle System 1 - 3'!I62) -> 58.8517778 | P11: =IF('Tabelle System 1 - 3'!J62="",#N/A,'Tabelle System 1 - 3'!J62) -> 56.80316625 | Q11: =IF('Tabelle System 1 - 3'!K62="",#N/A,'Tabelle System 1 - 3'!K62) -> 55.03630047 | R11: =IF('Tabelle System 1 - 3'!L62="",#N/A,'Tabelle System 1 - 3'!L62) -> 53.48942636 | S11: =IF('Tabelle System 1 - 3'!M62="",#N/A,'Tabelle System 1 - 3'!M62) -> 52.11848921 | T11: =IF('Tabelle System 1 - 3'!N62="",#N/A,'Tabelle System 1 - 3'!N62) -> 50.89105731 | U11: =IF('Tabelle System 1 - 3'!O62="",#N/A,'Tabelle System 1 - 3'!O62) -> 49.78262554 | V11: =IF('Tabelle System 1 - 3'!P62="",#N/A,'Tabelle System 1 - 3'!P62) -> 48.77426734 | W11: =IF('Tabelle System 1 - 3'!Q62="",#N/A,'Tabelle System 1 - 3'!Q62) -> 47.85108828 | X11: =IF('Tabelle System 1 - 3'!R62="",#N/A,'Tabelle System 1 - 3'!R62) -> 47.00117576 | Y11: =IF('Tabelle System 1 - 3'!S62="",#N/A,'Tabelle System 1 - 3'!S62) ->  | Z11: =IF('Tabelle System 1 - 3'!T62="",#N/A,'Tabelle System 1 - 3'!T62) ->  | AA11: =IF('Tabelle System 1 - 3'!U62="",#N/A,'Tabelle System 1 - 3'!U62) -> 
H12: =+'Tabelle System 1 - 3'!$B$103 -> Laufstall-AMS 3 Boxen - AFS - keine eigene Nachzucht | I12: =IF('Tabelle System 1 - 3'!C110="",#N/A,'Tabelle System 1 - 3'!C110) ->  | J12: =IF('Tabelle System 1 - 3'!D110="",#N/A,'Tabelle System 1 - 3'!D110) ->  | K12: =IF('Tabelle System 1 - 3'!E110="",#N/A,'Tabelle System 1 - 3'!E110) ->  | L12: =IF('Tabelle System 1 - 3'!F110="",#N/A,'Tabelle System 1 - 3'!F110) ->  | M12: =IF('Tabelle System 1 - 3'!G110="",#N/A,'Tabelle System 1 - 3'!G110) ->  | N12: =IF('Tabelle System 1 - 3'!H110="",#N/A,'Tabelle System 1 - 3'!H110) ->  | O12: =IF('Tabelle System 1 - 3'!I110="",#N/A,'Tabelle System 1 - 3'!I110) ->  | P12: =IF('Tabelle System 1 - 3'!J110="",#N/A,'Tabelle System 1 - 3'!J110) ->  | Q12: =IF('Tabelle System 1 - 3'!K110="",#N/A,'Tabelle System 1 - 3'!K110) ->  | R12: =IF('Tabelle System 1 - 3'!L110="",#N/A,'Tabelle System 1 - 3'!L110) ->  | S12: =IF('Tabelle System 1 - 3'!M110="",#N/A,'Tabelle System 1 - 3'!M110) ->  | T12: =IF('Tabelle System 1 - 3'!N110="",#N/A,'Tabelle System 1 - 3'!N110) ->  | U12: =IF('Tabelle System 1 - 3'!O110="",#N/A,'Tabelle System 1 - 3'!O110) -> 30.22332171 | V12: =IF('Tabelle System 1 - 3'!P110="",#N/A,'Tabelle System 1 - 3'!P110) -> 29.02835184 | W12: =IF('Tabelle System 1 - 3'!Q110="",#N/A,'Tabelle System 1 - 3'!Q110) -> 27.95022284 | X12: =IF('Tabelle System 1 - 3'!R110="",#N/A,'Tabelle System 1 - 3'!R110) -> 26.97077036 | Y12: =IF('Tabelle System 1 - 3'!S110="",#N/A,'Tabelle System 1 - 3'!S110) -> 26.07554061 | Z12: =IF('Tabelle System 1 - 3'!T110="",#N/A,'Tabelle System 1 - 3'!T110) -> 25.25287256 | AA12: =IF('Tabelle System 1 - 3'!U110="",#N/A,'Tabelle System 1 - 3'!U110) -> 24.49324253
G32: Erzeugte Jahremilchmenge (Tsd kg) bei einer Milchleistung je Kuh (kg) von:
G33: Herdengröße | I33: 20 | J33: 30 | K33: 40 | L33: 50 | M33: 60 | N33: 70 | O33: 80 | P33: 90 | Q33: 100 | R33: 110 | S33: 120 | T33: 130 | U33: 140 | V33: 150 | W33: 160 | X33: 170 | Y33: 180 | Z33: 190 | AA33: 200
G34: =+Grunddaten!$D$31 -> 6000 | H34: kg/Kuh | I34: =+I33*$G34/1000 -> 120 | J34: =+J33*$G34/1000 -> 180 | K34: 240 | L34: 300 | M34: 360 | N34: 420 | O34: 480 | P34: 540 | Q34: 600 | R34: 660 | S34: 720 | T34: 780 | U34: 840 | V34: 900 | W34: 960 | X34: 1020 | Y34: 1080 | Z34: 1140 | AA34: =+AA33*$G34/1000 -> 1200
G35: =+Grunddaten!$D$32 -> 8000 | H35: kg/Kuh | I35: =+I33*$G35/1000 -> 160 | J35: =+J33*$G35/1000 -> 240 | K35: 320 | L35: 400 | M35: 480 | N35: 560 | O35: 640 | P35: 720 | Q35: 800 | R35: 880 | S35: 960 | T35: 1040 | U35: 1120 | V35: 1200 | W35: 1280 | X35: 1360 | Y35: 1440 | Z35: 1520 | AA35: =+AA33*$G35/1000 -> 1600
G36: =+Grunddaten!$D$33 -> 10000 | H36: kg/Kuh | I36: =+I33*$G36/1000 -> 200 | J36: =+J33*$G36/1000 -> 300 | K36: 400 | L36: 500 | M36: 600 | N36: 700 | O36: 800 | P36: 900 | Q36: 1000 | R36: 1100 | S36: 1200 | T36: 1300 | U36: 1400 | V36: 1500 | W36: 1600 | X36: 1700 | Y36: 1800 | Z36: 1900 | AA36: 2000
A39: 2. Jahresarbeitszeitbedarf für die Herde in Abhängigkeit von Herdengröße, Nachzuchtintensität sowie Melk- und Fütterungsystem
H41: Anzahl Kühe | I41: 20 | J41: 30 | K41: 40 | L41: 50 | M41: 60 | N41: 70 | O41: 80 | P41: 90 | Q41: 100 | R41: 110 | S41: 120 | T41: 130 | U41: 140 | V41: 150 | W41: 160 | X41: 170 | Y41: 180 | Z41: 190 | AA41: 200
H42: ='Tabelle System 1 - 3'!$B$7 -> Anbindestall-Rohr-MA - Siloblock - JV maximal - 32 Monate EKA | I42: =IF('Tabelle System 1 - 3'!C16="",#N/A,'Tabelle System 1 - 3'!C16) -> 2355.326469 | J42: =IF('Tabelle System 1 - 3'!D16="",#N/A,'Tabelle System 1 - 3'!D16) -> 3167.15918 | K42: =IF('Tabelle System 1 - 3'!E16="",#N/A,'Tabelle System 1 - 3'!E16) -> 3903.576931 | L42: =IF('Tabelle System 1 - 3'!F16="",#N/A,'Tabelle System 1 - 3'!F16) -> 4605.141055 | M42: =IF('Tabelle System 1 - 3'!G16="",#N/A,'Tabelle System 1 - 3'!G16) -> 5244.389106 | N42: =IF('Tabelle System 1 - 3'!H16="",#N/A,'Tabelle System 1 - 3'!H16) ->  | O42: =IF('Tabelle System 1 - 3'!I16="",#N/A,'Tabelle System 1 - 3'!I16) ->  | P42: =IF('Tabelle System 1 - 3'!J16="",#N/A,'Tabelle System 1 - 3'!J16) ->  | Q42: =IF('Tabelle System 1 - 3'!K16="",#N/A,'Tabelle System 1 - 3'!K16) ->  | R42: =IF('Tabelle System 1 - 3'!L16="",#N/A,'Tabelle System 1 - 3'!L16) ->  | S42: =IF('Tabelle System 1 - 3'!M16="",#N/A,'Tabelle System 1 - 3'!M16) ->  | T42: =IF('Tabelle System 1 - 3'!N16="",#N/A,'Tabelle System 1 - 3'!N16) ->  | U42: =IF('Tabelle System 1 - 3'!O16="",#N/A,'Tabelle System 1 - 3'!O16) ->  | V42: =IF('Tabelle System 1 - 3'!P16="",#N/A,'Tabelle System 1 - 3'!P16) ->  | W42: =IF('Tabelle System 1 - 3'!Q16="",#N/A,'Tabelle System 1 - 3'!Q16) ->  | X42: =IF('Tabelle System 1 - 3'!R16="",#N/A,'Tabelle System 1 - 3'!R16) ->  | Y42: =IF('Tabelle System 1 - 3'!S16="",#N/A,'Tabelle System 1 - 3'!S16) ->  | Z42: =IF('Tabelle System 1 - 3'!T16="",#N/A,'Tabelle System 1 - 3'!T16) ->  | AA42: =IF('Tabelle System 1 - 3'!U16="",#N/A,'Tabelle System 1 - 3'!U16) -> 
H43: =+'Tabelle System 1 - 3'!$B$55 -> Laufstall-FGM 2x6 - FMW - JV normal - 29 Monate EKA | I43: =IF('Tabelle System 1 - 3'!C64="",#N/A,'Tabelle System 1 - 3'!C64) ->  | J43: =IF('Tabelle System 1 - 3'!D64="",#N/A,'Tabelle System 1 - 3'!D64) ->  | K43: =IF('Tabelle System 1 - 3'!E64="",#N/A,'Tabelle System 1 - 3'!E64) ->  | L43: =IF('Tabelle System 1 - 3'!F64="",#N/A,'Tabelle System 1 - 3'!F64) ->  | M43: =IF('Tabelle System 1 - 3'!G64="",#N/A,'Tabelle System 1 - 3'!G64) -> 3852.112057 | N43: =IF('Tabelle System 1 - 3'!H64="",#N/A,'Tabelle System 1 - 3'!H64) -> 4289.048171 | O43: =IF('Tabelle System 1 - 3'!I64="",#N/A,'Tabelle System 1 - 3'!I64) -> 4708.142224 | P43: =IF('Tabelle System 1 - 3'!J64="",#N/A,'Tabelle System 1 - 3'!J64) -> 5112.284962 | Q43: =IF('Tabelle System 1 - 3'!K64="",#N/A,'Tabelle System 1 - 3'!K64) -> 5503.630047 | R43: =IF('Tabelle System 1 - 3'!L64="",#N/A,'Tabelle System 1 - 3'!L64) -> 5883.836899 | S43: =IF('Tabelle System 1 - 3'!M64="",#N/A,'Tabelle System 1 - 3'!M64) -> 6254.218705 | T43: =IF('Tabelle System 1 - 3'!N64="",#N/A,'Tabelle System 1 - 3'!N64) -> 6615.837451 | U43: =IF('Tabelle System 1 - 3'!O64="",#N/A,'Tabelle System 1 - 3'!O64) -> 6969.567576 | V43: =IF('Tabelle System 1 - 3'!P64="",#N/A,'Tabelle System 1 - 3'!P64) -> 7316.140101 | W43: =IF('Tabelle System 1 - 3'!Q64="",#N/A,'Tabelle System 1 - 3'!Q64) -> 7656.174125 | X43: =IF('Tabelle System 1 - 3'!R64="",#N/A,'Tabelle System 1 - 3'!R64) -> 7990.199879 | Y43: =IF('Tabelle System 1 - 3'!S64="",#N/A,'Tabelle System 1 - 3'!S64) ->  | Z43: =IF('Tabelle System 1 - 3'!T64="",#N/A,'Tabelle System 1 - 3'!T64) ->  | AA43: =IF('Tabelle System 1 - 3'!U64="",#N/A,'Tabelle System 1 - 3'!U64) -> 
H44: =+'Tabelle System 1 - 3'!$B$103 -> Laufstall-AMS 3 Boxen - AFS - keine eigene Nachzucht | I44: =IF('Tabelle System 1 - 3'!C112="",#N/A,'Tabelle System 1 - 3'!C112) ->  | J44: =IF('Tabelle System 1 - 3'!D112="",#N/A,'Tabelle System 1 - 3'!D112) ->  | K44: =IF('Tabelle System 1 - 3'!E112="",#N/A,'Tabelle System 1 - 3'!E112) ->  | L44: =IF('Tabelle System 1 - 3'!F112="",#N/A,'Tabelle System 1 - 3'!F112) ->  | M44: =IF('Tabelle System 1 - 3'!G112="",#N/A,'Tabelle System 1 - 3'!G112) ->  | N44: =IF('Tabelle System 1 - 3'!H112="",#N/A,'Tabelle System 1 - 3'!H112) ->  | O44: =IF('Tabelle System 1 - 3'!I112="",#N/A,'Tabelle System 1 - 3'!I112) ->  | P44: =IF('Tabelle System 1 - 3'!J112="",#N/A,'Tabelle System 1 - 3'!J112) ->  | Q44: =IF('Tabelle System 1 - 3'!K112="",#N/A,'Tabelle System 1 - 3'!K112) ->  | R44: =IF('Tabelle System 1 - 3'!L112="",#N/A,'Tabelle System 1 - 3'!L112) ->  | S44: =IF('Tabelle System 1 - 3'!M112="",#N/A,'Tabelle System 1 - 3'!M112) ->  | T44: =IF('Tabelle System 1 - 3'!N112="",#N/A,'Tabelle System 1 - 3'!N112) ->  | U44: =IF('Tabelle System 1 - 3'!O112="",#N/A,'Tabelle System 1 - 3'!O112) -> 4231.26504 | V44: =IF('Tabelle System 1 - 3'!P112="",#N/A,'Tabelle System 1 - 3'!P112) -> 4354.252775 | W44: =IF('Tabelle System 1 - 3'!Q112="",#N/A,'Tabelle System 1 - 3'!Q112) -> 4472.035654 | X44: =IF('Tabelle System 1 - 3'!R112="",#N/A,'Tabelle System 1 - 3'!R112) -> 4585.030961 | Y44: =IF('Tabelle System 1 - 3'!S112="",#N/A,'Tabelle System 1 - 3'!S112) -> 4693.597309 | Z44: =IF('Tabelle System 1 - 3'!T112="",#N/A,'Tabelle System 1 - 3'!T112) -> 4798.045787 | AA44: =IF('Tabelle System 1 - 3'!U112="",#N/A,'Tabelle System 1 - 3'!U112) -> 4898.648506
AC48: AKh/ Jahr | AD48: AKh/ Tag | AE48: AK
AE49: =CONCATENATE("(",Grunddaten!$D$5," AKh)") -> (2600 AKh)
AC50: 7000 | AD50: =+AC50/365 -> 19.17808219 | AE50: =+AC50/Grunddaten!$D$5 -> 2.692307692
AC51: 6500 | AD51: 17.80821918 | AE51: =+AC51/Grunddaten!$D$5 -> 2.5
AC52: 6000 | AD52: =+AC52/365 -> 16.43835616 | AE52: =+AC52/Grunddaten!$D$5 -> 2.307692308
E53: Rechengang: | AC53: 5500 | AD53: =+AC53/365 -> 15.06849315 | AE53: =+AC53/Grunddaten!$D$5 -> 2.115384615
E54: Kühe Ø x Arbeitszeitbedarf (AKh/Kuh) | AC54: 5000 | AD54: 13.69863014 | AE54: =+AC54/Grunddaten!$D$5 -> 1.923076923
AC55: 4500 | AD55: 12.32876712 | AE55: =+AC55/Grunddaten!$D$5 -> 1.730769231
AC56: 4000 | AD56: 10.95890411 | AE56: =+AC56/Grunddaten!$D$5 -> 1.538461538
AC57: 3500 | AD57: 9.589041096 | AE57: =+AC57/Grunddaten!$D$5 -> 1.346153846
AC58: 3000 | AD58: 8.219178082 | AE58: =+AC58/Grunddaten!$D$5 -> 1.153846154
AC59: 2500 | AD59: 6.849315068 | AE59: =+AC59/Grunddaten!$D$5 -> 0.9615384615
AC60: 2000 | AD60: 5.479452055 | AE60: =+AC60/Grunddaten!$D$5 -> 0.7692307692
G63: Erzeugte Jahremilchmenge (Tsd kg) bei einer Milchleistung je Kuh (kg) von:
G64: Herdengröße | I64: 20 | J64: 30 | K64: 40 | L64: 50 | M64: 60 | N64: 70 | O64: 80 | P64: 90 | Q64: 100 | R64: 110 | S64: 120 | T64: 130 | U64: 140 | V64: 150 | W64: 160 | X64: 170 | Y64: 180 | Z64: 190 | AA64: 200
G65: =+Grunddaten!$D$31 -> 6000 | H65: kg/Kuh | I65: =+I64*$G65/1000 -> 120 | J65: 180 | K65: 240 | L65: 300 | M65: 360 | N65: 420 | O65: 480 | P65: 540 | Q65: 600 | R65: 660 | S65: 720 | T65: 780 | U65: 840 | V65: 900 | W65: 960 | X65: 1020 | Y65: 1080 | Z65: 1140 | AA65: 1200
G66: =+Grunddaten!$D$32 -> 8000 | H66: kg/Kuh | I66: =+I64*$G66/1000 -> 160 | J66: 240 | K66: 320 | L66: 400 | M66: 480 | N66: 560 | O66: 640 | P66: 720 | Q66: 800 | R66: 880 | S66: 960 | T66: 1040 | U66: 1120 | V66: 1200 | W66: 1280 | X66: 1360 | Y66: 1440 | Z66: 1520 | AA66: 1600
G67: =+Grunddaten!$D$33 -> 10000 | H67: kg/Kuh | I67: =+I64*$G67/1000 -> 200 | J67: 300 | K67: 400 | L67: 500 | M67: 600 | N67: 700 | O67: 800 | P67: 900 | Q67: 1000 | R67: 1100 | S67: 1200 | T67: 1300 | U67: 1400 | V67: 1500 | W67: 1600 | X67: 1700 | Y67: 1800 | Z67: 1900 | AA67: 2000
A70: 3. Jahresmilchproduktion (Tsd kg Milch) in Abhängigkeit von Herdengröße, Nachzuchtintensität, Melk- und Fütterungsystem sowie der Milchleistung
I72: 2 | J72: 3 | K72: 4 | L72: 5 | M72: 6 | N72: 7 | O72: 8 | P72: 9 | Q72: 10 | R72: 11 | S72: 12 | T72: 13 | U72: 14 | V72: 15 | W72: 16 | X72: 17 | Y72: 18 | Z72: 19 | AA72: 20
B73: Auswahl der Milchleistung | F73: 8000 | G73: kg/Kuh
H75: Anzahl Kühe | I75: 20 | J75: 30 | K75: 40 | L75: 50 | M75: 60 | N75: 70 | O75: 80 | P75: 90 | Q75: 100 | R75: 110 | S75: 120 | T75: 130 | U75: 140 | V75: 150 | W75: 160 | X75: 170 | Y75: 180 | Z75: 190 | AA75: 200
H76: ='Tabelle System 1 - 3'!$B$7 -> Anbindestall-Rohr-MA - Siloblock - JV maximal - 32 Monate EKA | I76: =IF('Tabelle System 1 - 3'!C19="",#N/A,VLOOKUP($F$73,'Tabelle System 1 - 3'!$B$19:$U$21,I72,FALSE)) -> 160 | J76: =IF('Tabelle System 1 - 3'!D19="",#N/A,VLOOKUP($F$73,'Tabelle System 1 - 3'!$B$19:$U$21,J72,FALSE)) -> 240 | K76: =IF('Tabelle System 1 - 3'!E19="",#N/A,VLOOKUP($F$73,'Tabelle System 1 - 3'!$B$19:$U$21,K72,FALSE)) -> 320 | L76: =IF('Tabelle System 1 - 3'!F19="",#N/A,VLOOKUP($F$73,'Tabelle System 1 - 3'!$B$19:$U$21,L72,FALSE)) -> 400 | M76: =IF('Tabelle System 1 - 3'!G19="",#N/A,VLOOKUP($F$73,'Tabelle System 1 - 3'!$B$19:$U$21,M72,FALSE)) -> 480 | N76: =IF('Tabelle System 1 - 3'!H19="",#N/A,VLOOKUP($F$73,'Tabelle System 1 - 3'!$B$19:$U$21,N72,FALSE)) ->  | O76: =IF('Tabelle System 1 - 3'!I19="",#N/A,VLOOKUP($F$73,'Tabelle System 1 - 3'!$B$19:$U$21,O72,FALSE)) ->  | P76: =IF('Tabelle System 1 - 3'!J19="",#N/A,VLOOKUP($F$73,'Tabelle System 1 - 3'!$B$19:$U$21,P72,FALSE)) ->  | Q76: =IF('Tabelle System 1 - 3'!K19="",#N/A,VLOOKUP($F$73,'Tabelle System 1 - 3'!$B$19:$U$21,Q72,FALSE)) ->  | R76: =IF('Tabelle System 1 - 3'!L19="",#N/A,VLOOKUP($F$73,'Tabelle System 1 - 3'!$B$19:$U$21,R72,FALSE)) ->  | S76: =IF('Tabelle System 1 - 3'!M19="",#N/A,VLOOKUP($F$73,'Tabelle System 1 - 3'!$B$19:$U$21,S72,FALSE)) ->  | T76: =IF('Tabelle System 1 - 3'!N19="",#N/A,VLOOKUP($F$73,'Tabelle System 1 - 3'!$B$19:$U$21,T72,FALSE)) ->  | U76: =IF('Tabelle System 1 - 3'!O19="",#N/A,VLOOKUP($F$73,'Tabelle System 1 - 3'!$B$19:$U$21,U72,FALSE)) ->  | V76: =IF('Tabelle System 1 - 3'!P19="",#N/A,VLOOKUP($F$73,'Tabelle System 1 - 3'!$B$19:$U$21,V72,FALSE)) ->  | W76: =IF('Tabelle System 1 - 3'!Q19="",#N/A,VLOOKUP($F$73,'Tabelle System 1 - 3'!$B$19:$U$21,W72,FALSE)) ->  | X76: =IF('Tabelle System 1 - 3'!R19="",#N/A,VLOOKUP($F$73,'Tabelle System 1 - 3'!$B$19:$U$21,X72,FALSE)) ->  | Y76: =IF('Tabelle System 1 - 3'!S19="",#N/A,VLOOKUP($F$73,'Tabelle System 1 - 3'!$B$19:$U$21,Y72,FALSE)) ->  | Z76: =IF('Tabelle System 1 - 3'!T19="",#N/A,VLOOKUP($F$73,'Tabelle System 1 - 3'!$B$19:$U$21,Z72,FALSE)) ->  | AA76: =IF('Tabelle System 1 - 3'!U19="",#N/A,VLOOKUP($F$73,'Tabelle System 1 - 3'!$B$19:$U$21,AA72,FALSE)) -> 
H77: =+'Tabelle System 1 - 3'!$B$55 -> Laufstall-FGM 2x6 - FMW - JV normal - 29 Monate EKA | I77: =IF('Tabelle System 1 - 3'!C67="",#N/A,VLOOKUP($F$73,'Tabelle System 1 - 3'!$B$67:$U$69,I72,FALSE)) ->  | J77: =IF('Tabelle System 1 - 3'!D67="",#N/A,VLOOKUP($F$73,'Tabelle System 1 - 3'!$B$67:$U$69,J72,FALSE)) ->  | K77: =IF('Tabelle System 1 - 3'!E67="",#N/A,VLOOKUP($F$73,'Tabelle System 1 - 3'!$B$67:$U$69,K72,FALSE)) ->  | L77: =IF('Tabelle System 1 - 3'!F67="",#N/A,VLOOKUP($F$73,'Tabelle System 1 - 3'!$B$67:$U$69,L72,FALSE)) ->  | M77: =IF('Tabelle System 1 - 3'!G67="",#N/A,VLOOKUP($F$73,'Tabelle System 1 - 3'!$B$67:$U$69,M72,FALSE)) -> 480 | N77: =IF('Tabelle System 1 - 3'!H67="",#N/A,VLOOKUP($F$73,'Tabelle System 1 - 3'!$B$67:$U$69,N72,FALSE)) -> 560 | O77: =IF('Tabelle System 1 - 3'!I67="",#N/A,VLOOKUP($F$73,'Tabelle System 1 - 3'!$B$67:$U$69,O72,FALSE)) -> 640 | P77: =IF('Tabelle System 1 - 3'!J67="",#N/A,VLOOKUP($F$73,'Tabelle System 1 - 3'!$B$67:$U$69,P72,FALSE)) -> 720 | Q77: =IF('Tabelle System 1 - 3'!K67="",#N/A,VLOOKUP($F$73,'Tabelle System 1 - 3'!$B$67:$U$69,Q72,FALSE)) -> 800 | R77: =IF('Tabelle System 1 - 3'!L67="",#N/A,VLOOKUP($F$73,'Tabelle System 1 - 3'!$B$67:$U$69,R72,FALSE)) -> 880 | S77: =IF('Tabelle System 1 - 3'!M67="",#N/A,VLOOKUP($F$73,'Tabelle System 1 - 3'!$B$67:$U$69,S72,FALSE)) -> 960 | T77: =IF('Tabelle System 1 - 3'!N67="",#N/A,VLOOKUP($F$73,'Tabelle System 1 - 3'!$B$67:$U$69,T72,FALSE)) -> 1040 | U77: =IF('Tabelle System 1 - 3'!O67="",#N/A,VLOOKUP($F$73,'Tabelle System 1 - 3'!$B$67:$U$69,U72,FALSE)) -> 1120 | V77: =IF('Tabelle System 1 - 3'!P67="",#N/A,VLOOKUP($F$73,'Tabelle System 1 - 3'!$B$67:$U$69,V72,FALSE)) -> 1200 | W77: =IF('Tabelle System 1 - 3'!Q67="",#N/A,VLOOKUP($F$73,'Tabelle System 1 - 3'!$B$67:$U$69,W72,FALSE)) -> 1280 | X77: =IF('Tabelle System 1 - 3'!R67="",#N/A,VLOOKUP($F$73,'Tabelle System 1 - 3'!$B$67:$U$69,X72,FALSE)) -> 1360 | Y77: =IF('Tabelle System 1 - 3'!S67="",#N/A,VLOOKUP($F$73,'Tabelle System 1 - 3'!$B$67:$U$69,Y72,FALSE)) ->  | Z77: =IF('Tabelle System 1 - 3'!T67="",#N/A,VLOOKUP($F$73,'Tabelle System 1 - 3'!$B$67:$U$69,Z72,FALSE)) ->  | AA77: =IF('Tabelle System 1 - 3'!U67="",#N/A,VLOOKUP($F$73,'Tabelle System 1 - 3'!$B$67:$U$69,AA72,FALSE)) -> 
H78: =+'Tabelle System 1 - 3'!$B$103 -> Laufstall-AMS 3 Boxen - AFS - keine eigene Nachzucht | I78: =IF('Tabelle System 1 - 3'!C115="",#N/A,VLOOKUP($F$73,'Tabelle System 1 - 3'!$B$115:$U$117,I72,FALSE)) ->  | J78: =IF('Tabelle System 1 - 3'!D115="",#N/A,VLOOKUP($F$73,'Tabelle System 1 - 3'!$B$115:$U$117,J72,FALSE)) ->  | K78: =IF('Tabelle System 1 - 3'!E115="",#N/A,VLOOKUP($F$73,'Tabelle System 1 - 3'!$B$115:$U$117,K72,FALSE)) ->  | L78: =IF('Tabelle System 1 - 3'!F115="",#N/A,VLOOKUP($F$73,'Tabelle System 1 - 3'!$B$115:$U$117,L72,FALSE)) ->  | M78: =IF('Tabelle System 1 - 3'!G115="",#N/A,VLOOKUP($F$73,'Tabelle System 1 - 3'!$B$115:$U$117,M72,FALSE)) ->  | N78: =IF('Tabelle System 1 - 3'!H115="",#N/A,VLOOKUP($F$73,'Tabelle System 1 - 3'!$B$115:$U$117,N72,FALSE)) ->  | O78: =IF('Tabelle System 1 - 3'!I115="",#N/A,VLOOKUP($F$73,'Tabelle System 1 - 3'!$B$115:$U$117,O72,FALSE)) ->  | P78: =IF('Tabelle System 1 - 3'!J115="",#N/A,VLOOKUP($F$73,'Tabelle System 1 - 3'!$B$115:$U$117,P72,FALSE)) ->  | Q78: =IF('Tabelle System 1 - 3'!K115="",#N/A,VLOOKUP($F$73,'Tabelle System 1 - 3'!$B$115:$U$117,Q72,FALSE)) ->  | R78: =IF('Tabelle System 1 - 3'!L115="",#N/A,VLOOKUP($F$73,'Tabelle System 1 - 3'!$B$115:$U$117,R72,FALSE)) ->  | S78: =IF('Tabelle System 1 - 3'!M115="",#N/A,VLOOKUP($F$73,'Tabelle System 1 - 3'!$B$115:$U$117,S72,FALSE)) ->  | T78: =IF('Tabelle System 1 - 3'!N115="",#N/A,VLOOKUP($F$73,'Tabelle System 1 - 3'!$B$115:$U$117,T72,FALSE)) ->  | U78: =IF('Tabelle System 1 - 3'!O115="",#N/A,VLOOKUP($F$73,'Tabelle System 1 - 3'!$B$115:$U$117,U72,FALSE)) -> 1120 | V78: =IF('Tabelle System 1 - 3'!P115="",#N/A,VLOOKUP($F$73,'Tabelle System 1 - 3'!$B$115:$U$117,V72,FALSE)) -> 1200 | W78: =IF('Tabelle System 1 - 3'!Q115="",#N/A,VLOOKUP($F$73,'Tabelle System 1 - 3'!$B$115:$U$117,W72,FALSE)) -> 1280 | X78: =IF('Tabelle System 1 - 3'!R115="",#N/A,VLOOKUP($F$73,'Tabelle System 1 - 3'!$B$115:$U$117,X72,FALSE)) -> 1360 | Y78: =IF('Tabelle System 1 - 3'!S115="",#N/A,VLOOKUP($F$73,'Tabelle System 1 - 3'!$B$115:$U$117,Y72,FALSE)) -> 1440 | Z78: =IF('Tabelle System 1 - 3'!T115="",#N/A,VLOOKUP($F$73,'Tabelle System 1 - 3'!$B$115:$U$117,Z72,FALSE)) -> 1520 | AA78: =IF('Tabelle System 1 - 3'!U115="",#N/A,VLOOKUP($F$73,'Tabelle System 1 - 3'!$B$115:$U$117,AA72,FALSE)) -> 1600
E89: Rechengang:
E90: Kühe Ø x Milchleistung (kg/Kuh) / 1.000
G99: Erzeugte Jahremilchmenge (Tsd kg) bei einer Milchleistung je Kuh (kg) von:
G100: Herdengröße | I100: 20 | J100: 30 | K100: 40 | L100: 50 | M100: 60 | N100: 70 | O100: 80 | P100: 90 | Q100: 100 | R100: 110 | S100: 120 | T100: 130 | U100: 140 | V100: 150 | W100: 160 | X100: 170 | Y100: 180 | Z100: 190 | AA100: 200
G101: =+Grunddaten!$D$31 -> 6000 | H101: kg/Kuh | I101: =+I100*$G101/1000 -> 120 | J101: =+J100*$G101/1000 -> 180 | K101: 240 | L101: 300 | M101: 360 | N101: 420 | O101: 480 | P101: 540 | Q101: 600 | R101: 660 | S101: 720 | T101: 780 | U101: 840 | V101: 900 | W101: 960 | X101: 1020 | Y101: 1080 | Z101: 1140 | AA101: =+AA100*$G101/1000 -> 1200
G102: =+Grunddaten!$D$32 -> 8000 | H102: kg/Kuh | I102: =+I100*$G102/1000 -> 160 | J102: =+J100*$G102/1000 -> 240 | K102: 320 | L102: 400 | M102: 480 | N102: 560 | O102: 640 | P102: 720 | Q102: 800 | R102: 880 | S102: 960 | T102: 1040 | U102: 1120 | V102: 1200 | W102: 1280 | X102: 1360 | Y102: 1440 | Z102: 1520 | AA102: =+AA100*$G102/1000 -> 1600
G103: =+Grunddaten!$D$33 -> 10000 | H103: kg/Kuh | I103: =+I100*$G103/1000 -> 200 | J103: =+J100*$G103/1000 -> 300 | K103: 400 | L103: 500 | M103: 600 | N103: 700 | O103: 800 | P103: 900 | Q103: 1000 | R103: 1100 | S103: 1200 | T103: 1300 | U103: 1400 | V103: 1500 | W103: 1600 | X103: 1700 | Y103: 1800 | Z103: 1900 | AA103: 2000
A106: 4. Arbeitseffizienz (kg Milch je AKh) in Abhängigkeit von Herdengröße, Nachzuchtintensität, Melk- und Fütterungsystem sowie der Milchleistung
I108: 2 | J108: 3 | K108: 4 | L108: 5 | M108: 6 | N108: 7 | O108: 8 | P108: 9 | Q108: 10 | R108: 11 | S108: 12 | T108: 13 | U108: 14 | V108: 15 | W108: 16 | X108: 17 | Y108: 18 | Z108: 19 | AA108: 20
B109: Ausgewählte Milchleistung | F109: =+F73 -> 8000 | G109: kg/Kuh (Änderung zentral für Grafiken 3 bis 8 oben bei Grafik 3)
H111: Anzahl Kühe | I111: 20 | J111: 30 | K111: 40 | L111: 50 | M111: 60 | N111: 70 | O111: 80 | P111: 90 | Q111: 100 | R111: 110 | S111: 120 | T111: 130 | U111: 140 | V111: 150 | W111: 160 | X111: 170 | Y111: 180 | Z111: 190 | AA111: 200
H112: ='Tabelle System 1 - 3'!$B$7 -> Anbindestall-Rohr-MA - Siloblock - JV maximal - 32 Monate EKA | I112: =IF('Tabelle System 1 - 3'!C72="",#N/A,VLOOKUP($F$109,'Tabelle System 1 - 3'!$B$24:$U$26,I108,FALSE)) -> 67.93113487 | J112: =IF('Tabelle System 1 - 3'!D24="",#N/A,VLOOKUP($F$109,'Tabelle System 1 - 3'!$B$24:$U$26,J108,FALSE)) -> 75.77768794 | K112: =IF('Tabelle System 1 - 3'!E24="",#N/A,VLOOKUP($F$109,'Tabelle System 1 - 3'!$B$24:$U$26,K108,FALSE)) -> 81.97609671 | L112: =IF('Tabelle System 1 - 3'!F24="",#N/A,VLOOKUP($F$109,'Tabelle System 1 - 3'!$B$24:$U$26,L108,FALSE)) -> 86.85944583 | M112: =IF('Tabelle System 1 - 3'!G24="",#N/A,VLOOKUP($F$109,'Tabelle System 1 - 3'!$B$24:$U$26,M108,FALSE)) -> 91.52638951 | N112: =IF('Tabelle System 1 - 3'!H24="",#N/A,VLOOKUP($F$109,'Tabelle System 1 - 3'!$B$24:$U$26,N108,FALSE)) ->  | O112: =IF('Tabelle System 1 - 3'!I24="",#N/A,VLOOKUP($F$109,'Tabelle System 1 - 3'!$B$24:$U$26,O108,FALSE)) ->  | P112: =IF('Tabelle System 1 - 3'!J24="",#N/A,VLOOKUP($F$109,'Tabelle System 1 - 3'!$B$24:$U$26,P108,FALSE)) ->  | Q112: =IF('Tabelle System 1 - 3'!K24="",#N/A,VLOOKUP($F$109,'Tabelle System 1 - 3'!$B$24:$U$26,Q108,FALSE)) ->  | R112: =IF('Tabelle System 1 - 3'!L24="",#N/A,VLOOKUP($F$109,'Tabelle System 1 - 3'!$B$24:$U$26,R108,FALSE)) ->  | S112: =IF('Tabelle System 1 - 3'!M24="",#N/A,VLOOKUP($F$109,'Tabelle System 1 - 3'!$B$24:$U$26,S108,FALSE)) ->  | T112: =IF('Tabelle System 1 - 3'!N24="",#N/A,VLOOKUP($F$109,'Tabelle System 1 - 3'!$B$24:$U$26,T108,FALSE)) ->  | U112: =IF('Tabelle System 1 - 3'!O24="",#N/A,VLOOKUP($F$109,'Tabelle System 1 - 3'!$B$24:$U$26,U108,FALSE)) ->  | V112: =IF('Tabelle System 1 - 3'!P24="",#N/A,VLOOKUP($F$109,'Tabelle System 1 - 3'!$B$24:$U$26,V108,FALSE)) ->  | W112: =IF('Tabelle System 1 - 3'!Q24="",#N/A,VLOOKUP($F$109,'Tabelle System 1 - 3'!$B$24:$U$26,W108,FALSE)) ->  | X112: =IF('Tabelle System 1 - 3'!R24="",#N/A,VLOOKUP($F$109,'Tabelle System 1 - 3'!$B$24:$U$26,X108,FALSE)) ->  | Y112: =IF('Tabelle System 1 - 3'!S24="",#N/A,VLOOKUP($F$109,'Tabelle System 1 - 3'!$B$24:$U$26,Y108,FALSE)) ->  | Z112: =IF('Tabelle System 1 - 3'!T24="",#N/A,VLOOKUP($F$109,'Tabelle System 1 - 3'!$B$24:$U$26,Z108,FALSE)) ->  | AA112: =IF('Tabelle System 1 - 3'!U24="",#N/A,VLOOKUP($F$109,'Tabelle System 1 - 3'!$B$24:$U$26,AA108,FALSE)) -> 
H113: =+'Tabelle System 1 - 3'!$B$55 -> Laufstall-FGM 2x6 - FMW - JV normal - 29 Monate EKA | I113: =IF('Tabelle System 1 - 3'!C25="",#N/A,VLOOKUP($F$109,'Tabelle System 1 - 3'!$B$72:$U$74,I108,FALSE)) ->  | J113: =IF('Tabelle System 1 - 3'!D25="",#N/A,VLOOKUP($F$109,'Tabelle System 1 - 3'!$B$72:$U$74,J108,FALSE)) ->  | K113: =IF('Tabelle System 1 - 3'!E25="",#N/A,VLOOKUP($F$109,'Tabelle System 1 - 3'!$B$72:$U$74,K108,FALSE)) ->  | L113: =IF('Tabelle System 1 - 3'!F25="",#N/A,VLOOKUP($F$109,'Tabelle System 1 - 3'!$B$72:$U$74,L108,FALSE)) ->  | M113: =IF('Tabelle System 1 - 3'!G25="",#N/A,VLOOKUP($F$109,'Tabelle System 1 - 3'!$B$72:$U$74,M108,FALSE)) -> 124.606967 | N113: =IF('Tabelle System 1 - 3'!H25="",#N/A,VLOOKUP($F$109,'Tabelle System 1 - 3'!$B$72:$U$74,N108,FALSE)) -> 130.5650992 | O113: =IF('Tabelle System 1 - 3'!I25="",#N/A,VLOOKUP($F$109,'Tabelle System 1 - 3'!$B$72:$U$74,O108,FALSE)) -> 135.9347211 | P113: =IF('Tabelle System 1 - 3'!J25="",#N/A,VLOOKUP($F$109,'Tabelle System 1 - 3'!$B$72:$U$74,P108,FALSE)) -> 140.8372196 | Q113: =IF('Tabelle System 1 - 3'!K25="",#N/A,VLOOKUP($F$109,'Tabelle System 1 - 3'!$B$72:$U$74,Q108,FALSE)) -> 145.3586075 | R113: =IF('Tabelle System 1 - 3'!L25="",#N/A,VLOOKUP($F$109,'Tabelle System 1 - 3'!$B$72:$U$74,R108,FALSE)) -> 149.5622695 | S113: =IF('Tabelle System 1 - 3'!M25="",#N/A,VLOOKUP($F$109,'Tabelle System 1 - 3'!$B$72:$U$74,S108,FALSE)) -> 153.4963911 | T113: =IF('Tabelle System 1 - 3'!N25="",#N/A,VLOOKUP($F$109,'Tabelle System 1 - 3'!$B$72:$U$74,T108,FALSE)) -> 157.1985418 | U113: =IF('Tabelle System 1 - 3'!O25="",#N/A,VLOOKUP($F$109,'Tabelle System 1 - 3'!$B$72:$U$74,U108,FALSE)) -> 160.6986356 | V113: =IF('Tabelle System 1 - 3'!P25="",#N/A,VLOOKUP($F$109,'Tabelle System 1 - 3'!$B$72:$U$74,V108,FALSE)) -> 164.0209159 | W113: =IF('Tabelle System 1 - 3'!Q25="",#N/A,VLOOKUP($F$109,'Tabelle System 1 - 3'!$B$72:$U$74,W108,FALSE)) -> 167.1853303 | X113: =IF('Tabelle System 1 - 3'!R25="",#N/A,VLOOKUP($F$109,'Tabelle System 1 - 3'!$B$72:$U$74,X108,FALSE)) -> 170.208508 | Y113: =IF('Tabelle System 1 - 3'!S25="",#N/A,VLOOKUP($F$109,'Tabelle System 1 - 3'!$B$72:$U$74,Y108,FALSE)) ->  | Z113: =IF('Tabelle System 1 - 3'!T25="",#N/A,VLOOKUP($F$109,'Tabelle System 1 - 3'!$B$72:$U$74,Z108,FALSE)) ->  | AA113: =IF('Tabelle System 1 - 3'!U25="",#N/A,VLOOKUP($F$109,'Tabelle System 1 - 3'!$B$72:$U$74,AA108,FALSE)) -> 
H114: =+'Tabelle System 1 - 3'!$B$103 -> Laufstall-AMS 3 Boxen - AFS - keine eigene Nachzucht | I114: =IF('Tabelle System 1 - 3'!C120="",#N/A,VLOOKUP($F$109,'Tabelle System 1 - 3'!$B$120:$U$122,I108,FALSE)) ->  | J114: =IF('Tabelle System 1 - 3'!D120="",#N/A,VLOOKUP($F$109,'Tabelle System 1 - 3'!$B$120:$U$122,J108,FALSE)) ->  | K114: =IF('Tabelle System 1 - 3'!E120="",#N/A,VLOOKUP($F$109,'Tabelle System 1 - 3'!$B$120:$U$122,K108,FALSE)) ->  | L114: =IF('Tabelle System 1 - 3'!F120="",#N/A,VLOOKUP($F$109,'Tabelle System 1 - 3'!$B$120:$U$122,L108,FALSE)) ->  | M114: =IF('Tabelle System 1 - 3'!G120="",#N/A,VLOOKUP($F$109,'Tabelle System 1 - 3'!$B$120:$U$122,M108,FALSE)) ->  | N114: =IF('Tabelle System 1 - 3'!H120="",#N/A,VLOOKUP($F$109,'Tabelle System 1 - 3'!$B$120:$U$122,N108,FALSE)) ->  | O114: =IF('Tabelle System 1 - 3'!I120="",#N/A,VLOOKUP($F$109,'Tabelle System 1 - 3'!$B$120:$U$122,O108,FALSE)) ->  | P114: =IF('Tabelle System 1 - 3'!J120="",#N/A,VLOOKUP($F$109,'Tabelle System 1 - 3'!$B$120:$U$122,P108,FALSE)) ->  | Q114: =IF('Tabelle System 1 - 3'!K120="",#N/A,VLOOKUP($F$109,'Tabelle System 1 - 3'!$B$120:$U$122,Q108,FALSE)) ->  | R114: =IF('Tabelle System 1 - 3'!L120="",#N/A,VLOOKUP($F$109,'Tabelle System 1 - 3'!$B$120:$U$122,R108,FALSE)) ->  | S114: =IF('Tabelle System 1 - 3'!M120="",#N/A,VLOOKUP($F$109,'Tabelle System 1 - 3'!$B$120:$U$122,S108,FALSE)) ->  | T114: =IF('Tabelle System 1 - 3'!N120="",#N/A,VLOOKUP($F$109,'Tabelle System 1 - 3'!$B$120:$U$122,T108,FALSE)) ->  | U114: =IF('Tabelle System 1 - 3'!O120="",#N/A,VLOOKUP($F$109,'Tabelle System 1 - 3'!$B$120:$U$122,U108,FALSE)) -> 264.6962527 | V114: =IF('Tabelle System 1 - 3'!P120="",#N/A,VLOOKUP($F$109,'Tabelle System 1 - 3'!$B$120:$U$122,V108,FALSE)) -> 275.592636 | W114: =IF('Tabelle System 1 - 3'!Q120="",#N/A,VLOOKUP($F$109,'Tabelle System 1 - 3'!$B$120:$U$122,W108,FALSE)) -> 286.2231205 | X114: =IF('Tabelle System 1 - 3'!R120="",#N/A,VLOOKUP($F$109,'Tabelle System 1 - 3'!$B$120:$U$122,X108,FALSE)) -> 296.6174082 | Y114: =IF('Tabelle System 1 - 3'!S120="",#N/A,VLOOKUP($F$109,'Tabelle System 1 - 3'!$B$120:$U$122,Y108,FALSE)) -> 306.8009259 | Z114: =IF('Tabelle System 1 - 3'!T120="",#N/A,VLOOKUP($F$109,'Tabelle System 1 - 3'!$B$120:$U$122,Z108,FALSE)) -> 316.7956429 | AA114: =IF('Tabelle System 1 - 3'!U120="",#N/A,VLOOKUP($F$109,'Tabelle System 1 - 3'!$B$120:$U$122,AA108,FALSE)) -> 326.6206991
E126: Rechengang:
E127: Erzeugte Jahresmilchmenge (kg) /
E128: Arbeitszeitbedarf Herde und Jahr (AKh)
G136: Erzeugte Jahremilchmenge (Tsd kg) bei einer Milchleistung je Kuh (kg) von:
G137: Herdengröße | I137: 20 | J137: 30 | K137: 40 | L137: 50 | M137: 60 | N137: 70 | O137: 80 | P137: 90 | Q137: 100 | R137: 110 | S137: 120 | T137: 130 | U137: 140 | V137: 150 | W137: 160 | X137: 170 | Y137: 180 | Z137: 190 | AA137: 200
G138: =+Grunddaten!$D$31 -> 6000 | H138: kg/Kuh | I138: =+I137*$G138/1000 -> 120 | J138: =+J137*$G138/1000 -> 180 | K138: 240 | L138: 300 | M138: 360 | N138: 420 | O138: 480 | P138: 540 | Q138: 600 | R138: 660 | S138: 720 | T138: 780 | U138: 840 | V138: 900 | W138: 960 | X138: 1020 | Y138: 1080 | Z138: 1140 | AA138: =+AA137*$G138/1000 -> 1200
G139: =+Grunddaten!$D$32 -> 8000 | H139: kg/Kuh | I139: =+I137*$G139/1000 -> 160 | J139: =+J137*$G139/1000 -> 240 | K139: 320 | L139: 400 | M139: 480 | N139: 560 | O139: 640 | P139: 720 | Q139: 800 | R139: 880 | S139: 960 | T139: 1040 | U139: 1120 | V139: 1200 | W139: 1280 | X139: 1360 | Y139: 1440 | Z139: 1520 | AA139: =+AA137*$G139/1000 -> 1600
G140: =+Grunddaten!$D$33 -> 10000 | H140: kg/Kuh | I140: =+I137*$G140/1000 -> 200 | J140: =+J137*$G140/1000 -> 300 | K140: 400 | L140: 500 | M140: 600 | N140: 700 | O140: 800 | P140: 900 | Q140: 1000 | R140: 1100 | S140: 1200 | T140: 1300 | U140: 1400 | V140: 1500 | W140: 1600 | X140: 1700 | Y140: 1800 | Z140: 1900 | AA140: 2000
A143: 5. Arbeitseffizienz (Tsd kg Milch je AK) in Abhängigkeit von Herdengröße, Nachzuchtintensität, Melk- und Fütterungsystem sowie der Milchleistung
I145: 2 | J145: 3 | K145: 4 | L145: 5 | M145: 6 | N145: 7 | O145: 8 | P145: 9 | Q145: 10 | R145: 11 | S145: 12 | T145: 13 | U145: 14 | V145: 15 | W145: 16 | X145: 17 | Y145: 18 | Z145: 19 | AA145: 20
B146: Ausgewählte Milchleistung | F146: =F73 -> 8000 | G146: kg/Kuh (Änderung zentral für Grafiken 3 bis 8 oben bei Grafik 3) bei | R146: =+Grunddaten!D5 -> 2600 | T146: Arbeitsstunden je Arbeitskraft
H148: Anzahl Kühe | I148: 20 | J148: 30 | K148: 40 | L148: 50 | M148: 60 | N148: 70 | O148: 80 | P148: 90 | Q148: 100 | R148: 110 | S148: 120 | T148: 130 | U148: 140 | V148: 150 | W148: 160 | X148: 170 | Y148: 180 | Z148: 190 | AA148: 200
H149: ='Tabelle System 1 - 3'!$B$7 -> Anbindestall-Rohr-MA - Siloblock - JV maximal - 32 Monate EKA | I149: =IF('Tabelle System 1 - 3'!C30="",#N/A,VLOOKUP($F$146,'Tabelle System 1 - 3'!$B$30:$U$32,I145,FALSE)) -> 176.6209507 | J149: =IF('Tabelle System 1 - 3'!D30="",#N/A,VLOOKUP($F$146,'Tabelle System 1 - 3'!$B$30:$U$32,J145,FALSE)) -> 197.0219886 | K149: =IF('Tabelle System 1 - 3'!E30="",#N/A,VLOOKUP($F$146,'Tabelle System 1 - 3'!$B$30:$U$32,K145,FALSE)) -> 213.1378514 | L149: =IF('Tabelle System 1 - 3'!F30="",#N/A,VLOOKUP($F$146,'Tabelle System 1 - 3'!$B$30:$U$32,L145,FALSE)) -> 225.8345592 | M149: =IF('Tabelle System 1 - 3'!G30="",#N/A,VLOOKUP($F$146,'Tabelle System 1 - 3'!$B$30:$U$32,M145,FALSE)) -> 237.9686127 | N149: =IF('Tabelle System 1 - 3'!H30="",#N/A,VLOOKUP($F$146,'Tabelle System 1 - 3'!$B$30:$U$32,N145,FALSE)) ->  | O149: =IF('Tabelle System 1 - 3'!I30="",#N/A,VLOOKUP($F$146,'Tabelle System 1 - 3'!$B$30:$U$32,O145,FALSE)) ->  | P149: =IF('Tabelle System 1 - 3'!J30="",#N/A,VLOOKUP($F$146,'Tabelle System 1 - 3'!$B$30:$U$32,P145,FALSE)) ->  | Q149: =IF('Tabelle System 1 - 3'!K30="",#N/A,VLOOKUP($F$146,'Tabelle System 1 - 3'!$B$30:$U$32,Q145,FALSE)) ->  | R149: =IF('Tabelle System 1 - 3'!L30="",#N/A,VLOOKUP($F$146,'Tabelle System 1 - 3'!$B$30:$U$32,R145,FALSE)) ->  | S149: =IF('Tabelle System 1 - 3'!M30="",#N/A,VLOOKUP($F$146,'Tabelle System 1 - 3'!$B$30:$U$32,S145,FALSE)) ->  | T149: =IF('Tabelle System 1 - 3'!N30="",#N/A,VLOOKUP($F$146,'Tabelle System 1 - 3'!$B$30:$U$32,T145,FALSE)) ->  | U149: =IF('Tabelle System 1 - 3'!O30="",#N/A,VLOOKUP($F$146,'Tabelle System 1 - 3'!$B$30:$U$32,U145,FALSE)) ->  | V149: =IF('Tabelle System 1 - 3'!P30="",#N/A,VLOOKUP($F$146,'Tabelle System 1 - 3'!$B$30:$U$32,V145,FALSE)) ->  | W149: =IF('Tabelle System 1 - 3'!Q30="",#N/A,VLOOKUP($F$146,'Tabelle System 1 - 3'!$B$30:$U$32,W145,FALSE)) ->  | X149: =IF('Tabelle System 1 - 3'!R30="",#N/A,VLOOKUP($F$146,'Tabelle System 1 - 3'!$B$30:$U$32,X145,FALSE)) ->  | Y149: =IF('Tabelle System 1 - 3'!S30="",#N/A,VLOOKUP($F$146,'Tabelle System 1 - 3'!$B$30:$U$32,Y145,FALSE)) ->  | Z149: =IF('Tabelle System 1 - 3'!T30="",#N/A,VLOOKUP($F$146,'Tabelle System 1 - 3'!$B$30:$U$32,Z145,FALSE)) ->  | AA149: =IF('Tabelle System 1 - 3'!U30="",#N/A,VLOOKUP($F$146,'Tabelle System 1 - 3'!$B$30:$U$32,AA145,FALSE)) -> 
H150: =+'Tabelle System 1 - 3'!$B$55 -> Laufstall-FGM 2x6 - FMW - JV normal - 29 Monate EKA | I150: =IF('Tabelle System 1 - 3'!C78="",#N/A,VLOOKUP($F$146,'Tabelle System 1 - 3'!$B$78:$U$80,I145,FALSE)) ->  | J150: =IF('Tabelle System 1 - 3'!D78="",#N/A,VLOOKUP($F$146,'Tabelle System 1 - 3'!$B$78:$U$80,J145,FALSE)) ->  | K150: =IF('Tabelle System 1 - 3'!E78="",#N/A,VLOOKUP($F$146,'Tabelle System 1 - 3'!$B$78:$U$80,K145,FALSE)) ->  | L150: =IF('Tabelle System 1 - 3'!F78="",#N/A,VLOOKUP($F$146,'Tabelle System 1 - 3'!$B$78:$U$80,L145,FALSE)) ->  | M150: =IF('Tabelle System 1 - 3'!G78="",#N/A,VLOOKUP($F$146,'Tabelle System 1 - 3'!$B$78:$U$80,M145,FALSE)) -> 323.9781142 | N150: =IF('Tabelle System 1 - 3'!H78="",#N/A,VLOOKUP($F$146,'Tabelle System 1 - 3'!$B$78:$U$80,N145,FALSE)) -> 339.469258 | O150: =IF('Tabelle System 1 - 3'!I78="",#N/A,VLOOKUP($F$146,'Tabelle System 1 - 3'!$B$78:$U$80,O145,FALSE)) -> 353.4302748 | P150: =IF('Tabelle System 1 - 3'!J78="",#N/A,VLOOKUP($F$146,'Tabelle System 1 - 3'!$B$78:$U$80,P145,FALSE)) -> 366.176771 | Q150: =IF('Tabelle System 1 - 3'!K78="",#N/A,VLOOKUP($F$146,'Tabelle System 1 - 3'!$B$78:$U$80,Q145,FALSE)) -> 377.9323796 | R150: =IF('Tabelle System 1 - 3'!L78="",#N/A,VLOOKUP($F$146,'Tabelle System 1 - 3'!$B$78:$U$80,R145,FALSE)) -> 388.8619007 | S150: =IF('Tabelle System 1 - 3'!M78="",#N/A,VLOOKUP($F$146,'Tabelle System 1 - 3'!$B$78:$U$80,S145,FALSE)) -> 399.0906167 | T150: =IF('Tabelle System 1 - 3'!N78="",#N/A,VLOOKUP($F$146,'Tabelle System 1 - 3'!$B$78:$U$80,T145,FALSE)) -> 408.7162087 | U150: =IF('Tabelle System 1 - 3'!O78="",#N/A,VLOOKUP($F$146,'Tabelle System 1 - 3'!$B$78:$U$80,U145,FALSE)) -> 417.8164525 | V150: =IF('Tabelle System 1 - 3'!P78="",#N/A,VLOOKUP($F$146,'Tabelle System 1 - 3'!$B$78:$U$80,V145,FALSE)) -> 426.4543813 | W150: =IF('Tabelle System 1 - 3'!Q78="",#N/A,VLOOKUP($F$146,'Tabelle System 1 - 3'!$B$78:$U$80,W145,FALSE)) -> 434.6818588 | X150: =IF('Tabelle System 1 - 3'!R78="",#N/A,VLOOKUP($F$146,'Tabelle System 1 - 3'!$B$78:$U$80,X145,FALSE)) -> 442.5421208 | Y150: =IF('Tabelle System 1 - 3'!S78="",#N/A,VLOOKUP($F$146,'Tabelle System 1 - 3'!$B$78:$U$80,Y145,FALSE)) ->  | Z150: =IF('Tabelle System 1 - 3'!T78="",#N/A,VLOOKUP($F$146,'Tabelle System 1 - 3'!$B$78:$U$80,Z145,FALSE)) ->  | AA150: =IF('Tabelle System 1 - 3'!U78="",#N/A,VLOOKUP($F$146,'Tabelle System 1 - 3'!$B$78:$U$80,AA145,FALSE)) -> 
H151: =+'Tabelle System 1 - 3'!$B$103 -> Laufstall-AMS 3 Boxen - AFS - keine eigene Nachzucht | I151: =IF('Tabelle System 1 - 3'!C126="",#N/A,VLOOKUP($F$146,'Tabelle System 1 - 3'!$B$126:$U$128,I145,FALSE)) ->  | J151: =IF('Tabelle System 1 - 3'!D126="",#N/A,VLOOKUP($F$146,'Tabelle System 1 - 3'!$B$126:$U$128,J145,FALSE)) ->  | K151: =IF('Tabelle System 1 - 3'!E126="",#N/A,VLOOKUP($F$146,'Tabelle System 1 - 3'!$B$126:$U$128,K145,FALSE)) ->  | L151: =IF('Tabelle System 1 - 3'!F126="",#N/A,VLOOKUP($F$146,'Tabelle System 1 - 3'!$B$126:$U$128,L145,FALSE)) ->  | M151: =IF('Tabelle System 1 - 3'!G126="",#N/A,VLOOKUP($F$146,'Tabelle System 1 - 3'!$B$126:$U$128,M145,FALSE)) ->  | N151: =IF('Tabelle System 1 - 3'!H126="",#N/A,VLOOKUP($F$146,'Tabelle System 1 - 3'!$B$126:$U$128,N145,FALSE)) ->  | O151: =IF('Tabelle System 1 - 3'!I126="",#N/A,VLOOKUP($F$146,'Tabelle System 1 - 3'!$B$126:$U$128,O145,FALSE)) ->  | P151: =IF('Tabelle System 1 - 3'!J126="",#N/A,VLOOKUP($F$146,'Tabelle System 1 - 3'!$B$126:$U$128,P145,FALSE)) ->  | Q151: =IF('Tabelle System 1 - 3'!K126="",#N/A,VLOOKUP($F$146,'Tabelle System 1 - 3'!$B$126:$U$128,Q145,FALSE)) ->  | R151: =IF('Tabelle System 1 - 3'!L126="",#N/A,VLOOKUP($F$146,'Tabelle System 1 - 3'!$B$126:$U$128,R145,FALSE)) ->  | S151: =IF('Tabelle System 1 - 3'!M126="",#N/A,VLOOKUP($F$146,'Tabelle System 1 - 3'!$B$126:$U$128,S145,FALSE)) ->  | T151: =IF('Tabelle System 1 - 3'!N126="",#N/A,VLOOKUP($F$146,'Tabelle System 1 - 3'!$B$126:$U$128,T145,FALSE)) ->  | U151: =IF('Tabelle System 1 - 3'!O126="",#N/A,VLOOKUP($F$146,'Tabelle System 1 - 3'!$B$126:$U$128,U145,FALSE)) -> 688.2102569 | V151: =IF('Tabelle System 1 - 3'!P126="",#N/A,VLOOKUP($F$146,'Tabelle System 1 - 3'!$B$126:$U$128,V145,FALSE)) -> 716.5408535 | W151: =IF('Tabelle System 1 - 3'!Q126="",#N/A,VLOOKUP($F$146,'Tabelle System 1 - 3'!$B$126:$U$128,W145,FALSE)) -> 744.1801134 | X151: =IF('Tabelle System 1 - 3'!R126="",#N/A,VLOOKUP($F$146,'Tabelle System 1 - 3'!$B$126:$U$128,X145,FALSE)) -> 771.2052612 | Y151: =IF('Tabelle System 1 - 3'!S126="",#N/A,VLOOKUP($F$146,'Tabelle System 1 - 3'!$B$126:$U$128,Y145,FALSE)) -> 797.6824072 | Z151: =IF('Tabelle System 1 - 3'!T126="",#N/A,VLOOKUP($F$146,'Tabelle System 1 - 3'!$B$126:$U$128,Z145,FALSE)) -> 823.6686716 | AA151: =IF('Tabelle System 1 - 3'!U126="",#N/A,VLOOKUP($F$146,'Tabelle System 1 - 3'!$B$126:$U$128,AA145,FALSE)) -> 849.2138178
E160: Rechengang:
E161: Arbeitseffizienz (kg/AKh) x AKh/AK / 1.000
G172: Erzeugte Jahremilchmenge (Tsd kg) bei einer Milchleistung je Kuh (kg) von:
G173: Herdengröße | I173: 20 | J173: 30 | K173: 40 | L173: 50 | M173: 60 | N173: 70 | O173: 80 | P173: 90 | Q173: 100 | R173: 110 | S173: 120 | T173: 130 | U173: 140 | V173: 150 | W173: 160 | X173: 170 | Y173: 180 | Z173: 190 | AA173: 200
G174: =+Grunddaten!$D$31 -> 6000 | H174: kg/Kuh | I174: =+I173*$G174/1000 -> 120 | J174: =+J173*$G174/1000 -> 180 | K174: 240 | L174: 300 | M174: 360 | N174: 420 | O174: 480 | P174: 540 | Q174: 600 | R174: 660 | S174: 720 | T174: 780 | U174: 840 | V174: 900 | W174: 960 | X174: 1020 | Y174: 1080 | Z174: 1140 | AA174: =+AA173*$G174/1000 -> 1200
G175: =+Grunddaten!$D$32 -> 8000 | H175: kg/Kuh | I175: =+I173*$G175/1000 -> 160 | J175: =+J173*$G175/1000 -> 240 | K175: 320 | L175: 400 | M175: 480 | N175: 560 | O175: 640 | P175: 720 | Q175: 800 | R175: 880 | S175: 960 | T175: 1040 | U175: 1120 | V175: 1200 | W175: 1280 | X175: 1360 | Y175: 1440 | Z175: 1520 | AA175: =+AA173*$G175/1000 -> 1600
G176: =+Grunddaten!$D$33 -> 10000 | H176: kg/Kuh | I176: =+I173*$G176/1000 -> 200 | J176: =+J173*$G176/1000 -> 300 | K176: 400 | L176: 500 | M176: 600 | N176: 700 | O176: 800 | P176: 900 | Q176: 1000 | R176: 1100 | S176: 1200 | T176: 1300 | U176: 1400 | V176: 1500 | W176: 1600 | X176: 1700 | Y176: 1800 | Z176: 1900 | AA176: 2000
A179: 6. Personalkosten (ct/kg Milch) in Abhängigkeit von Herdengröße, Nachzuchtintensität, Melk- und Fütterungsystem sowie der Milchleistung
I181: 2 | J181: 3 | K181: 4 | L181: 5 | M181: 6 | N181: 7 | O181: 8 | P181: 9 | Q181: 10 | R181: 11 | S181: 12 | T181: 13 | U181: 14 | V181: 15 | W181: 16 | X181: 17 | Y181: 18 | Z181: 19 | AA181: 20
B182: Der Stundenlohn (Brutto incl. Arbeitgeberanteile) wurde festgelegt auf | L182: =Grunddaten!E16 -> 17,5 | M182: €/AKh. Mit der erreichten Arbeitseffizienz (kg/AKh) und der nachfolgend ausgwählten Milchleistung
B183: entstehen diese Personalstückosten.
B184: Ausgewählte Milchleistung | F184: =F73 -> 8000 | G184: kg/Kuh (Änderung zentral für Grafiken 3 bis 8 oben bei Grafik 3)
H186: Anzahl Kühe | I186: 20 | J186: 30 | K186: 40 | L186: 50 | M186: 60 | N186: 70 | O186: 80 | P186: 90 | Q186: 100 | R186: 110 | S186: 120 | T186: 130 | U186: 140 | V186: 150 | W186: 160 | X186: 170 | Y186: 180 | Z186: 190 | AA186: 200
H187: ='Tabelle System 1 - 3'!$B$7 -> Anbindestall-Rohr-MA - Siloblock - JV maximal - 32 Monate EKA | I187: =IF('Tabelle System 1 - 3'!C36="",#N/A,VLOOKUP($F$184,'Tabelle System 1 - 3'!$B$36:$U$38,I181,FALSE)) -> 25.76138325 | J187: =IF('Tabelle System 1 - 3'!D36="",#N/A,VLOOKUP($F$184,'Tabelle System 1 - 3'!$B$36:$U$38,J181,FALSE)) -> 23.09386902 | K187: =IF('Tabelle System 1 - 3'!E36="",#N/A,VLOOKUP($F$184,'Tabelle System 1 - 3'!$B$36:$U$38,K181,FALSE)) -> 21.34768634 | L187: =IF('Tabelle System 1 - 3'!F36="",#N/A,VLOOKUP($F$184,'Tabelle System 1 - 3'!$B$36:$U$38,L181,FALSE)) -> 20.14749211 | M187: =IF('Tabelle System 1 - 3'!G36="",#N/A,VLOOKUP($F$184,'Tabelle System 1 - 3'!$B$36:$U$38,M181,FALSE)) -> 19.12016861 | N187: =IF('Tabelle System 1 - 3'!H36="",#N/A,VLOOKUP($F$184,'Tabelle System 1 - 3'!$B$36:$U$38,N181,FALSE)) ->  | O187: =IF('Tabelle System 1 - 3'!I36="",#N/A,VLOOKUP($F$184,'Tabelle System 1 - 3'!$B$36:$U$38,O181,FALSE)) ->  | P187: =IF('Tabelle System 1 - 3'!J36="",#N/A,VLOOKUP($F$184,'Tabelle System 1 - 3'!$B$36:$U$38,P181,FALSE)) ->  | Q187: =IF('Tabelle System 1 - 3'!K36="",#N/A,VLOOKUP($F$184,'Tabelle System 1 - 3'!$B$36:$U$38,Q181,FALSE)) ->  | R187: =IF('Tabelle System 1 - 3'!L36="",#N/A,VLOOKUP($F$184,'Tabelle System 1 - 3'!$B$36:$U$38,R181,FALSE)) ->  | S187: =IF('Tabelle System 1 - 3'!M36="",#N/A,VLOOKUP($F$184,'Tabelle System 1 - 3'!$B$36:$U$38,S181,FALSE)) ->  | T187: =IF('Tabelle System 1 - 3'!N36="",#N/A,VLOOKUP($F$184,'Tabelle System 1 - 3'!$B$36:$U$38,T181,FALSE)) ->  | U187: =IF('Tabelle System 1 - 3'!O36="",#N/A,VLOOKUP($F$184,'Tabelle System 1 - 3'!$B$36:$U$38,U181,FALSE)) ->  | V187: =IF('Tabelle System 1 - 3'!P36="",#N/A,VLOOKUP($F$184,'Tabelle System 1 - 3'!$B$36:$U$38,V181,FALSE)) ->  | W187: =IF('Tabelle System 1 - 3'!Q36="",#N/A,VLOOKUP($F$184,'Tabelle System 1 - 3'!$B$36:$U$38,W181,FALSE)) ->  | X187: =IF('Tabelle System 1 - 3'!R36="",#N/A,VLOOKUP($F$184,'Tabelle System 1 - 3'!$B$36:$U$38,X181,FALSE)) ->  | Y187: =IF('Tabelle System 1 - 3'!S36="",#N/A,VLOOKUP($F$184,'Tabelle System 1 - 3'!$B$36:$U$38,Y181,FALSE)) ->  | Z187: =IF('Tabelle System 1 - 3'!T36="",#N/A,VLOOKUP($F$184,'Tabelle System 1 - 3'!$B$36:$U$38,Z181,FALSE)) ->  | AA187: =IF('Tabelle System 1 - 3'!U36="",#N/A,VLOOKUP($F$184,'Tabelle System 1 - 3'!$B$36:$U$38,AA181,FALSE)) -> 
H188: =+'Tabelle System 1 - 3'!$B$55 -> Laufstall-FGM 2x6 - FMW - JV normal - 29 Monate EKA | I188: =IF('Tabelle System 1 - 3'!C84="",#N/A,VLOOKUP($F$184,'Tabelle System 1 - 3'!$B$84:$U$86,I181,FALSE)) ->  | J188: =IF('Tabelle System 1 - 3'!D84="",#N/A,VLOOKUP($F$184,'Tabelle System 1 - 3'!$B$84:$U$86,J181,FALSE)) ->  | K188: =IF('Tabelle System 1 - 3'!E84="",#N/A,VLOOKUP($F$184,'Tabelle System 1 - 3'!$B$84:$U$86,K181,FALSE)) ->  | L188: =IF('Tabelle System 1 - 3'!F84="",#N/A,VLOOKUP($F$184,'Tabelle System 1 - 3'!$B$84:$U$86,L181,FALSE)) ->  | M188: =IF('Tabelle System 1 - 3'!G84="",#N/A,VLOOKUP($F$184,'Tabelle System 1 - 3'!$B$84:$U$86,M181,FALSE)) -> 14.04415854 | N188: =IF('Tabelle System 1 - 3'!H84="",#N/A,VLOOKUP($F$184,'Tabelle System 1 - 3'!$B$84:$U$86,N181,FALSE)) -> 13.40327553 | O188: =IF('Tabelle System 1 - 3'!I84="",#N/A,VLOOKUP($F$184,'Tabelle System 1 - 3'!$B$84:$U$86,O181,FALSE)) -> 12.87382639 | P188: =IF('Tabelle System 1 - 3'!J84="",#N/A,VLOOKUP($F$184,'Tabelle System 1 - 3'!$B$84:$U$86,P181,FALSE)) -> 12.42569262 | Q188: =IF('Tabelle System 1 - 3'!K84="",#N/A,VLOOKUP($F$184,'Tabelle System 1 - 3'!$B$84:$U$86,Q181,FALSE)) -> 12.03919073 | R188: =IF('Tabelle System 1 - 3'!L84="",#N/A,VLOOKUP($F$184,'Tabelle System 1 - 3'!$B$84:$U$86,R181,FALSE)) -> 11.70081202 | S188: =IF('Tabelle System 1 - 3'!M84="",#N/A,VLOOKUP($F$184,'Tabelle System 1 - 3'!$B$84:$U$86,S181,FALSE)) -> 11.40091951 | T188: =IF('Tabelle System 1 - 3'!N84="",#N/A,VLOOKUP($F$184,'Tabelle System 1 - 3'!$B$84:$U$86,T181,FALSE)) -> 11.13241879 | U188: =IF('Tabelle System 1 - 3'!O84="",#N/A,VLOOKUP($F$184,'Tabelle System 1 - 3'!$B$84:$U$86,U181,FALSE)) -> 10.88994934 | V188: =IF('Tabelle System 1 - 3'!P84="",#N/A,VLOOKUP($F$184,'Tabelle System 1 - 3'!$B$84:$U$86,V181,FALSE)) -> 10.66937098 | W188: =IF('Tabelle System 1 - 3'!Q84="",#N/A,VLOOKUP($F$184,'Tabelle System 1 - 3'!$B$84:$U$86,W181,FALSE)) -> 10.46742556 | X188: =IF('Tabelle System 1 - 3'!R84="",#N/A,VLOOKUP($F$184,'Tabelle System 1 - 3'!$B$84:$U$86,X181,FALSE)) -> 10.2815072 | Y188: =IF('Tabelle System 1 - 3'!S84="",#N/A,VLOOKUP($F$184,'Tabelle System 1 - 3'!$B$84:$U$86,Y181,FALSE)) ->  | Z188: =IF('Tabelle System 1 - 3'!T84="",#N/A,VLOOKUP($F$184,'Tabelle System 1 - 3'!$B$84:$U$86,Z181,FALSE)) ->  | AA188: =IF('Tabelle System 1 - 3'!U84="",#N/A,VLOOKUP($F$184,'Tabelle System 1 - 3'!$B$84:$U$86,AA181,FALSE)) -> 
H189: =+'Tabelle System 1 - 3'!$B$103 -> Laufstall-AMS 3 Boxen - AFS - keine eigene Nachzucht | I189: =IF('Tabelle System 1 - 3'!C132="",#N/A,VLOOKUP($F$184,'Tabelle System 1 - 3'!$B$132:$U$134,I181,FALSE)) ->  | J189: =IF('Tabelle System 1 - 3'!D132="",#N/A,VLOOKUP($F$184,'Tabelle System 1 - 3'!$B$132:$U$134,J181,FALSE)) ->  | K189: =IF('Tabelle System 1 - 3'!E132="",#N/A,VLOOKUP($F$184,'Tabelle System 1 - 3'!$B$132:$U$134,K181,FALSE)) ->  | L189: =IF('Tabelle System 1 - 3'!F132="",#N/A,VLOOKUP($F$184,'Tabelle System 1 - 3'!$B$132:$U$134,L181,FALSE)) ->  | M189: =IF('Tabelle System 1 - 3'!G132="",#N/A,VLOOKUP($F$184,'Tabelle System 1 - 3'!$B$132:$U$134,M181,FALSE)) ->  | N189: =IF('Tabelle System 1 - 3'!H132="",#N/A,VLOOKUP($F$184,'Tabelle System 1 - 3'!$B$132:$U$134,N181,FALSE)) ->  | O189: =IF('Tabelle System 1 - 3'!I132="",#N/A,VLOOKUP($F$184,'Tabelle System 1 - 3'!$B$132:$U$134,O181,FALSE)) ->  | P189: =IF('Tabelle System 1 - 3'!J132="",#N/A,VLOOKUP($F$184,'Tabelle System 1 - 3'!$B$132:$U$134,P181,FALSE)) ->  | Q189: =IF('Tabelle System 1 - 3'!K132="",#N/A,VLOOKUP($F$184,'Tabelle System 1 - 3'!$B$132:$U$134,Q181,FALSE)) ->  | R189: =IF('Tabelle System 1 - 3'!L132="",#N/A,VLOOKUP($F$184,'Tabelle System 1 - 3'!$B$132:$U$134,R181,FALSE)) ->  | S189: =IF('Tabelle System 1 - 3'!M132="",#N/A,VLOOKUP($F$184,'Tabelle System 1 - 3'!$B$132:$U$134,S181,FALSE)) ->  | T189: =IF('Tabelle System 1 - 3'!N132="",#N/A,VLOOKUP($F$184,'Tabelle System 1 - 3'!$B$132:$U$134,T181,FALSE)) ->  | U189: =IF('Tabelle System 1 - 3'!O132="",#N/A,VLOOKUP($F$184,'Tabelle System 1 - 3'!$B$132:$U$134,U181,FALSE)) -> 6.611351624 | V189: =IF('Tabelle System 1 - 3'!P132="",#N/A,VLOOKUP($F$184,'Tabelle System 1 - 3'!$B$132:$U$134,V181,FALSE)) -> 6.349951964 | W189: =IF('Tabelle System 1 - 3'!Q132="",#N/A,VLOOKUP($F$184,'Tabelle System 1 - 3'!$B$132:$U$134,W181,FALSE)) -> 6.114111246 | X189: =IF('Tabelle System 1 - 3'!R132="",#N/A,VLOOKUP($F$184,'Tabelle System 1 - 3'!$B$132:$U$134,X181,FALSE)) -> 5.899856016 | Y189: =IF('Tabelle System 1 - 3'!S132="",#N/A,VLOOKUP($F$184,'Tabelle System 1 - 3'!$B$132:$U$134,Y181,FALSE)) -> 5.704024508 | Z189: =IF('Tabelle System 1 - 3'!T132="",#N/A,VLOOKUP($F$184,'Tabelle System 1 - 3'!$B$132:$U$134,Z181,FALSE)) -> 5.524065873 | AA189: =IF('Tabelle System 1 - 3'!U132="",#N/A,VLOOKUP($F$184,'Tabelle System 1 - 3'!$B$132:$U$134,AA181,FALSE)) -> 5.357896804
E199: Rechengang:
E200: Stundenlohn (€/AKh) x 100 / Arbeitseffizienz (kg Milch/AKh)
G210: Erzeugte Jahremilchmenge (Tsd kg) bei einer Milchleistung je Kuh (kg) von:
G211: Herdengröße | I211: 20 | J211: 30 | K211: 40 | L211: 50 | M211: 60 | N211: 70 | O211: 80 | P211: 90 | Q211: 100 | R211: 110 | S211: 120 | T211: 130 | U211: 140 | V211: 150 | W211: 160 | X211: 170 | Y211: 180 | Z211: 190 | AA211: 200
G212: =+Grunddaten!$D$31 -> 6000 | H212: kg/Kuh | I212: =+I211*$G212/1000 -> 120 | J212: =+J211*$G212/1000 -> 180 | K212: 240 | L212: 300 | M212: 360 | N212: 420 | O212: 480 | P212: 540 | Q212: 600 | R212: 660 | S212: 720 | T212: 780 | U212: 840 | V212: 900 | W212: 960 | X212: 1020 | Y212: 1080 | Z212: 1140 | AA212: =+AA211*$G212/1000 -> 1200
G213: =+Grunddaten!$D$32 -> 8000 | H213: kg/Kuh | I213: =+I211*$G213/1000 -> 160 | J213: =+J211*$G213/1000 -> 240 | K213: 320 | L213: 400 | M213: 480 | N213: 560 | O213: 640 | P213: 720 | Q213: 800 | R213: 880 | S213: 960 | T213: 1040 | U213: 1120 | V213: 1200 | W213: 1280 | X213: 1360 | Y213: 1440 | Z213: 1520 | AA213: =+AA211*$G213/1000 -> 1600
G214: =+Grunddaten!$D$33 -> 10000 | H214: kg/Kuh | I214: =+I211*$G214/1000 -> 200 | J214: =+J211*$G214/1000 -> 300 | K214: 400 | L214: 500 | M214: 600 | N214: 700 | O214: 800 | P214: 900 | Q214: 1000 | R214: 1100 | S214: 1200 | T214: 1300 | U214: 1400 | V214: 1500 | W214: 1600 | X214: 1700 | Y214: 1800 | Z214: 1900 | AA214: 2000
A217: 7. Jahresbruttoeinkommen in Abhängigkeit von Personalstückkosten, Herdengröße, Nachzuchtintensität, Melk- und Fütterungsystem sowie der Milchleistung
I219: 2 | J219: 3 | K219: 4 | L219: 5 | M219: 6 | N219: 7 | O219: 8 | P219: 9 | Q219: 10 | R219: 11 | S219: 12 | T219: 13 | U219: 14 | V219: 15 | W219: 16 | X219: 17 | Y219: 18 | Z219: 19 | AA219: 20
B220: Mit dem Stallpersonal wurde ein umsatzabhängiger "Lohn" (Personalkosten incl. Arbeitgeberanteile) in Höhe von | S220: =Grunddaten!E10 -> 10 | T220: ct/kg Milch vereinbart.
B221: Welches Jahresbruttoeinkommen (incl. Arbeitgeberanteile) kann der Stallarbeiter in den gewählten Stallsystemen und Nachzuchtintensitäten erzielen bei nachfolgend noch
B222: auszuwählender Milchleistung?
B223: Ausgewählte Milchleistung | F223: =F73 -> 8000 | G223: kg/Kuh (Die Änderung erfolgt zentral in Grafik 3) bei | O223: =Grunddaten!D5 -> 2600 | Q223: Arbeitsstunden je Arbeitskraft
H225: Anzahl Kühe | I225: 20 | J225: 30 | K225: 40 | L225: 50 | M225: 60 | N225: 70 | O225: 80 | P225: 90 | Q225: 100 | R225: 110 | S225: 120 | T225: 130 | U225: 140 | V225: 150 | W225: 160 | X225: 170 | Y225: 180 | Z225: 190 | AA225: 200
H226: ='Tabelle System 1 - 3'!$B$7 -> Anbindestall-Rohr-MA - Siloblock - JV maximal - 32 Monate EKA | I226: =IF('Tabelle System 1 - 3'!C43="",#N/A,VLOOKUP($F$223,'Tabelle System 1 - 3'!$B$43:$U$45,I219,FALSE)) -> 17662.09507 | J226: =IF('Tabelle System 1 - 3'!D43="",#N/A,VLOOKUP($F$223,'Tabelle System 1 - 3'!$B$43:$U$45,J219,FALSE)) -> 19702.19886 | K226: =IF('Tabelle System 1 - 3'!E43="",#N/A,VLOOKUP($F$223,'Tabelle System 1 - 3'!$B$43:$U$45,K219,FALSE)) -> 21313.78514 | L226: =IF('Tabelle System 1 - 3'!F43="",#N/A,VLOOKUP($F$223,'Tabelle System 1 - 3'!$B$43:$U$45,L219,FALSE)) -> 22583.45592 | M226: =IF('Tabelle System 1 - 3'!G43="",#N/A,VLOOKUP($F$223,'Tabelle System 1 - 3'!$B$43:$U$45,M219,FALSE)) -> 23796.86127 | N226: =IF('Tabelle System 1 - 3'!H43="",#N/A,VLOOKUP($F$223,'Tabelle System 1 - 3'!$B$43:$U$45,N219,FALSE)) ->  | O226: =IF('Tabelle System 1 - 3'!I43="",#N/A,VLOOKUP($F$223,'Tabelle System 1 - 3'!$B$43:$U$45,O219,FALSE)) ->  | P226: =IF('Tabelle System 1 - 3'!J43="",#N/A,VLOOKUP($F$223,'Tabelle System 1 - 3'!$B$43:$U$45,P219,FALSE)) ->  | Q226: =IF('Tabelle System 1 - 3'!K43="",#N/A,VLOOKUP($F$223,'Tabelle System 1 - 3'!$B$43:$U$45,Q219,FALSE)) ->  | R226: =IF('Tabelle System 1 - 3'!L43="",#N/A,VLOOKUP($F$223,'Tabelle System 1 - 3'!$B$43:$U$45,R219,FALSE)) ->  | S226: =IF('Tabelle System 1 - 3'!M43="",#N/A,VLOOKUP($F$223,'Tabelle System 1 - 3'!$B$43:$U$45,S219,FALSE)) ->  | T226: =IF('Tabelle System 1 - 3'!N43="",#N/A,VLOOKUP($F$223,'Tabelle System 1 - 3'!$B$43:$U$45,T219,FALSE)) ->  | U226: =IF('Tabelle System 1 - 3'!O43="",#N/A,VLOOKUP($F$223,'Tabelle System 1 - 3'!$B$43:$U$45,U219,FALSE)) ->  | V226: =IF('Tabelle System 1 - 3'!P43="",#N/A,VLOOKUP($F$223,'Tabelle System 1 - 3'!$B$43:$U$45,V219,FALSE)) ->  | W226: =IF('Tabelle System 1 - 3'!Q43="",#N/A,VLOOKUP($F$223,'Tabelle System 1 - 3'!$B$43:$U$45,W219,FALSE)) ->  | X226: =IF('Tabelle System 1 - 3'!R43="",#N/A,VLOOKUP($F$223,'Tabelle System 1 - 3'!$B$43:$U$45,X219,FALSE)) ->  | Y226: =IF('Tabelle System 1 - 3'!S43="",#N/A,VLOOKUP($F$223,'Tabelle System 1 - 3'!$B$43:$U$45,Y219,FALSE)) ->  | Z226: =IF('Tabelle System 1 - 3'!T43="",#N/A,VLOOKUP($F$223,'Tabelle System 1 - 3'!$B$43:$U$45,Z219,FALSE)) ->  | AA226: =IF('Tabelle System 1 - 3'!U43="",#N/A,VLOOKUP($F$223,'Tabelle System 1 - 3'!$B$43:$U$45,AA219,FALSE)) -> 
H227: =+'Tabelle System 1 - 3'!$B$55 -> Laufstall-FGM 2x6 - FMW - JV normal - 29 Monate EKA | I227: =IF('Tabelle System 1 - 3'!C91="",#N/A,VLOOKUP($F$223,'Tabelle System 1 - 3'!$B$91:$U$93,I219,FALSE)) ->  | J227: =IF('Tabelle System 1 - 3'!D91="",#N/A,VLOOKUP($F$223,'Tabelle System 1 - 3'!$B$91:$U$93,J219,FALSE)) ->  | K227: =IF('Tabelle System 1 - 3'!E91="",#N/A,VLOOKUP($F$223,'Tabelle System 1 - 3'!$B$91:$U$93,K219,FALSE)) ->  | L227: =IF('Tabelle System 1 - 3'!F91="",#N/A,VLOOKUP($F$223,'Tabelle System 1 - 3'!$B$91:$U$93,L219,FALSE)) ->  | M227: =IF('Tabelle System 1 - 3'!G91="",#N/A,VLOOKUP($F$223,'Tabelle System 1 - 3'!$B$91:$U$93,M219,FALSE)) -> 32397.81142 | N227: =IF('Tabelle System 1 - 3'!H91="",#N/A,VLOOKUP($F$223,'Tabelle System 1 - 3'!$B$91:$U$93,N219,FALSE)) -> 33946.9258 | O227: =IF('Tabelle System 1 - 3'!I91="",#N/A,VLOOKUP($F$223,'Tabelle System 1 - 3'!$B$91:$U$93,O219,FALSE)) -> 35343.02748 | P227: =IF('Tabelle System 1 - 3'!J91="",#N/A,VLOOKUP($F$223,'Tabelle System 1 - 3'!$B$91:$U$93,P219,FALSE)) -> 36617.6771 | Q227: =IF('Tabelle System 1 - 3'!K91="",#N/A,VLOOKUP($F$223,'Tabelle System 1 - 3'!$B$91:$U$93,Q219,FALSE)) -> 37793.23796 | R227: =IF('Tabelle System 1 - 3'!L91="",#N/A,VLOOKUP($F$223,'Tabelle System 1 - 3'!$B$91:$U$93,R219,FALSE)) -> 38886.19007 | S227: =IF('Tabelle System 1 - 3'!M91="",#N/A,VLOOKUP($F$223,'Tabelle System 1 - 3'!$B$91:$U$93,S219,FALSE)) -> 39909.06167 | T227: =IF('Tabelle System 1 - 3'!N91="",#N/A,VLOOKUP($F$223,'Tabelle System 1 - 3'!$B$91:$U$93,T219,FALSE)) -> 40871.62087 | U227: =IF('Tabelle System 1 - 3'!O91="",#N/A,VLOOKUP($F$223,'Tabelle System 1 - 3'!$B$91:$U$93,U219,FALSE)) -> 41781.64525 | V227: =IF('Tabelle System 1 - 3'!P91="",#N/A,VLOOKUP($F$223,'Tabelle System 1 - 3'!$B$91:$U$93,V219,FALSE)) -> 42645.43813 | W227: =IF('Tabelle System 1 - 3'!Q91="",#N/A,VLOOKUP($F$223,'Tabelle System 1 - 3'!$B$91:$U$93,W219,FALSE)) -> 43468.18588 | X227: =IF('Tabelle System 1 - 3'!R91="",#N/A,VLOOKUP($F$223,'Tabelle System 1 - 3'!$B$91:$U$93,X219,FALSE)) -> 44254.21208 | Y227: =IF('Tabelle System 1 - 3'!S91="",#N/A,VLOOKUP($F$223,'Tabelle System 1 - 3'!$B$91:$U$93,Y219,FALSE)) ->  | Z227: =IF('Tabelle System 1 - 3'!T91="",#N/A,VLOOKUP($F$223,'Tabelle System 1 - 3'!$B$91:$U$93,Z219,FALSE)) ->  | AA227: =IF('Tabelle System 1 - 3'!U91="",#N/A,VLOOKUP($F$223,'Tabelle System 1 - 3'!$B$91:$U$93,AA219,FALSE)) -> 
H228: =+'Tabelle System 1 - 3'!$B$103 -> Laufstall-AMS 3 Boxen - AFS - keine eigene Nachzucht | I228: =IF('Tabelle System 1 - 3'!C139="",#N/A,VLOOKUP($F$223,'Tabelle System 1 - 3'!$B$139:$U$141,I219,FALSE)) ->  | J228: =IF('Tabelle System 1 - 3'!D139="",#N/A,VLOOKUP($F$223,'Tabelle System 1 - 3'!$B$139:$U$141,J219,FALSE)) ->  | K228: =IF('Tabelle System 1 - 3'!E139="",#N/A,VLOOKUP($F$223,'Tabelle System 1 - 3'!$B$139:$U$141,K219,FALSE)) ->  | L228: =IF('Tabelle System 1 - 3'!F139="",#N/A,VLOOKUP($F$223,'Tabelle System 1 - 3'!$B$139:$U$141,L219,FALSE)) ->  | M228: =IF('Tabelle System 1 - 3'!G139="",#N/A,VLOOKUP($F$223,'Tabelle System 1 - 3'!$B$139:$U$141,M219,FALSE)) ->  | N228: =IF('Tabelle System 1 - 3'!H139="",#N/A,VLOOKUP($F$223,'Tabelle System 1 - 3'!$B$139:$U$141,N219,FALSE)) ->  | O228: =IF('Tabelle System 1 - 3'!I139="",#N/A,VLOOKUP($F$223,'Tabelle System 1 - 3'!$B$139:$U$141,O219,FALSE)) ->  | P228: =IF('Tabelle System 1 - 3'!J139="",#N/A,VLOOKUP($F$223,'Tabelle System 1 - 3'!$B$139:$U$141,P219,FALSE)) ->  | Q228: =IF('Tabelle System 1 - 3'!K139="",#N/A,VLOOKUP($F$223,'Tabelle System 1 - 3'!$B$139:$U$141,Q219,FALSE)) ->  | R228: =IF('Tabelle System 1 - 3'!L139="",#N/A,VLOOKUP($F$223,'Tabelle System 1 - 3'!$B$139:$U$141,R219,FALSE)) ->  | S228: =IF('Tabelle System 1 - 3'!M139="",#N/A,VLOOKUP($F$223,'Tabelle System 1 - 3'!$B$139:$U$141,S219,FALSE)) ->  | T228: =IF('Tabelle System 1 - 3'!N139="",#N/A,VLOOKUP($F$223,'Tabelle System 1 - 3'!$B$139:$U$141,T219,FALSE)) ->  | U228: =IF('Tabelle System 1 - 3'!O139="",#N/A,VLOOKUP($F$223,'Tabelle System 1 - 3'!$B$139:$U$141,U219,FALSE)) -> 68821.02569 | V228: =IF('Tabelle System 1 - 3'!P139="",#N/A,VLOOKUP($F$223,'Tabelle System 1 - 3'!$B$139:$U$141,V219,FALSE)) -> 71654.08535 | W228: =IF('Tabelle System 1 - 3'!Q139="",#N/A,VLOOKUP($F$223,'Tabelle System 1 - 3'!$B$139:$U$141,W219,FALSE)) -> 74418.01134 | X228: =IF('Tabelle System 1 - 3'!R139="",#N/A,VLOOKUP($F$223,'Tabelle System 1 - 3'!$B$139:$U$141,X219,FALSE)) -> 77120.52612 | Y228: =IF('Tabelle System 1 - 3'!S139="",#N/A,VLOOKUP($F$223,'Tabelle System 1 - 3'!$B$139:$U$141,Y219,FALSE)) -> 79768.24072 | Z228: =IF('Tabelle System 1 - 3'!T139="",#N/A,VLOOKUP($F$223,'Tabelle System 1 - 3'!$B$139:$U$141,Z219,FALSE)) -> 82366.86716 | AA228: =IF('Tabelle System 1 - 3'!U139="",#N/A,VLOOKUP($F$223,'Tabelle System 1 - 3'!$B$139:$U$141,AA219,FALSE)) -> 84921.38178
E239: Rechengang:
E240: Arbeitseffizienz (Tsd kg Milch/AK) x 1.000
E241: x Personalstückkosten (ct/kg) / 100
G249: Erzeugte Jahremilchmenge (Tsd kg) bei einer Milchleistung je Kuh (kg) von:
G250: Herdengröße | I250: 20 | J250: 30 | K250: 40 | L250: 50 | M250: 60 | N250: 70 | O250: 80 | P250: 90 | Q250: 100 | R250: 110 | S250: 120 | T250: 130 | U250: 140 | V250: 150 | W250: 160 | X250: 170 | Y250: 180 | Z250: 190 | AA250: 200
G251: =+Grunddaten!$D$31 -> 6000 | H251: kg/Kuh | I251: =+I250*$G251/1000 -> 120 | J251: =+J250*$G251/1000 -> 180 | K251: 240 | L251: 300 | M251: 360 | N251: 420 | O251: 480 | P251: 540 | Q251: 600 | R251: 660 | S251: 720 | T251: 780 | U251: 840 | V251: 900 | W251: 960 | X251: 1020 | Y251: 1080 | Z251: 1140 | AA251: =+AA250*$G251/1000 -> 1200
G252: =+Grunddaten!$D$32 -> 8000 | H252: kg/Kuh | I252: =+I250*$G252/1000 -> 160 | J252: =+J250*$G252/1000 -> 240 | K252: 320 | L252: 400 | M252: 480 | N252: 560 | O252: 640 | P252: 720 | Q252: 800 | R252: 880 | S252: 960 | T252: 1040 | U252: 1120 | V252: 1200 | W252: 1280 | X252: 1360 | Y252: 1440 | Z252: 1520 | AA252: =+AA250*$G252/1000 -> 1600
G253: =+Grunddaten!$D$33 -> 10000 | H253: kg/Kuh | I253: =+I250*$G253/1000 -> 200 | J253: =+J250*$G253/1000 -> 300 | K253: 400 | L253: 500 | M253: 600 | N253: 700 | O253: 800 | P253: 900 | Q253: 1000 | R253: 1100 | S253: 1200 | T253: 1300 | U253: 1400 | V253: 1500 | W253: 1600 | X253: 1700 | Y253: 1800 | Z253: 1900 | AA253: 2000
A256: 8. Stundenlohn in Abhängigkeit von Personalstückkosten, Herdengröße, Nachzuchtintensität, Melk- und Fütterungsystem sowie der Milchleistung
I258: 2 | J258: 3 | K258: 4 | L258: 5 | M258: 6 | N258: 7 | O258: 8 | P258: 9 | Q258: 10 | R258: 11 | S258: 12 | T258: 13 | U258: 14 | V258: 15 | W258: 16 | X258: 17 | Y258: 18 | Z258: 19 | AA258: 20
B259: Mit dem Stallpersonal wurde ein umsatzabhängiger "Lohn" (Personalkosten incl. Arbeitgeberanteile) in Höhe von | S259: =Grunddaten!E10 -> 10 | T259: ct/kg Milch vereinbart.
B260: Welchen Stundenlohn (Brutto incl. Arbeitgeberanteile) kann der Stallarbeiter in den gewählten Stallsystemen und Nachzuchtintensitäten erzielen bei nachfolgend noch
B261: auszuwählender Milchleistung?
B262: Ausgewählte Milchleistung | F262: =F73 -> 8000 | G262: kg/Kuh (Änderung zentral für Grafiken 3 bis 8 oben bei Grafik 3)
H264: Anzahl Kühe | I264: 20 | J264: 30 | K264: 40 | L264: 50 | M264: 60 | N264: 70 | O264: 80 | P264: 90 | Q264: 100 | R264: 110 | S264: 120 | T264: 130 | U264: 140 | V264: 150 | W264: 160 | X264: 170 | Y264: 180 | Z264: 190 | AA264: 200
H265: ='Tabelle System 1 - 3'!$B$7 -> Anbindestall-Rohr-MA - Siloblock - JV maximal - 32 Monate EKA | I265: =IF('Tabelle System 1 - 3'!C50="",#N/A,VLOOKUP($F$262,'Tabelle System 1 - 3'!$B$50:$U$52,I258,FALSE)) -> 6.793113487 | J265: =IF('Tabelle System 1 - 3'!D50="",#N/A,VLOOKUP($F$262,'Tabelle System 1 - 3'!$B$50:$U$52,J258,FALSE)) -> 7.577768794 | K265: =IF('Tabelle System 1 - 3'!E50="",#N/A,VLOOKUP($F$262,'Tabelle System 1 - 3'!$B$50:$U$52,K258,FALSE)) -> 8.197609671 | L265: =IF('Tabelle System 1 - 3'!F50="",#N/A,VLOOKUP($F$262,'Tabelle System 1 - 3'!$B$50:$U$52,L258,FALSE)) -> 8.685944583 | M265: =IF('Tabelle System 1 - 3'!G50="",#N/A,VLOOKUP($F$262,'Tabelle System 1 - 3'!$B$50:$U$52,M258,FALSE)) -> 9.152638951 | N265: =IF('Tabelle System 1 - 3'!H50="",#N/A,VLOOKUP($F$262,'Tabelle System 1 - 3'!$B$50:$U$52,N258,FALSE)) ->  | O265: =IF('Tabelle System 1 - 3'!I50="",#N/A,VLOOKUP($F$262,'Tabelle System 1 - 3'!$B$50:$U$52,O258,FALSE)) ->  | P265: =IF('Tabelle System 1 - 3'!J50="",#N/A,VLOOKUP($F$262,'Tabelle System 1 - 3'!$B$50:$U$52,P258,FALSE)) ->  | Q265: =IF('Tabelle System 1 - 3'!K50="",#N/A,VLOOKUP($F$262,'Tabelle System 1 - 3'!$B$50:$U$52,Q258,FALSE)) ->  | R265: =IF('Tabelle System 1 - 3'!L50="",#N/A,VLOOKUP($F$262,'Tabelle System 1 - 3'!$B$50:$U$52,R258,FALSE)) ->  | S265: =IF('Tabelle System 1 - 3'!M50="",#N/A,VLOOKUP($F$262,'Tabelle System 1 - 3'!$B$50:$U$52,S258,FALSE)) ->  | T265: =IF('Tabelle System 1 - 3'!N50="",#N/A,VLOOKUP($F$262,'Tabelle System 1 - 3'!$B$50:$U$52,T258,FALSE)) ->  | U265: =IF('Tabelle System 1 - 3'!O50="",#N/A,VLOOKUP($F$262,'Tabelle System 1 - 3'!$B$50:$U$52,U258,FALSE)) ->  | V265: =IF('Tabelle System 1 - 3'!P50="",#N/A,VLOOKUP($F$262,'Tabelle System 1 - 3'!$B$50:$U$52,V258,FALSE)) ->  | W265: =IF('Tabelle System 1 - 3'!Q50="",#N/A,VLOOKUP($F$262,'Tabelle System 1 - 3'!$B$50:$U$52,W258,FALSE)) ->  | X265: =IF('Tabelle System 1 - 3'!R50="",#N/A,VLOOKUP($F$262,'Tabelle System 1 - 3'!$B$50:$U$52,X258,FALSE)) ->  | Y265: =IF('Tabelle System 1 - 3'!S50="",#N/A,VLOOKUP($F$262,'Tabelle System 1 - 3'!$B$50:$U$52,Y258,FALSE)) ->  | Z265: =IF('Tabelle System 1 - 3'!T50="",#N/A,VLOOKUP($F$262,'Tabelle System 1 - 3'!$B$50:$U$52,Z258,FALSE)) ->  | AA265: =IF('Tabelle System 1 - 3'!U50="",#N/A,VLOOKUP($F$262,'Tabelle System 1 - 3'!$B$50:$U$52,AA258,FALSE)) -> 
H266: =+'Tabelle System 1 - 3'!$B$55 -> Laufstall-FGM 2x6 - FMW - JV normal - 29 Monate EKA | I266: =IF('Tabelle System 1 - 3'!C98="",#N/A,VLOOKUP($F$262,'Tabelle System 1 - 3'!$B$98:$U$100,I258,FALSE)) ->  | J266: =IF('Tabelle System 1 - 3'!D98="",#N/A,VLOOKUP($F$262,'Tabelle System 1 - 3'!$B$98:$U$100,J258,FALSE)) ->  | K266: =IF('Tabelle System 1 - 3'!E98="",#N/A,VLOOKUP($F$262,'Tabelle System 1 - 3'!$B$98:$U$100,K258,FALSE)) ->  | L266: =IF('Tabelle System 1 - 3'!F98="",#N/A,VLOOKUP($F$262,'Tabelle System 1 - 3'!$B$98:$U$100,L258,FALSE)) ->  | M266: =IF('Tabelle System 1 - 3'!G98="",#N/A,VLOOKUP($F$262,'Tabelle System 1 - 3'!$B$98:$U$100,M258,FALSE)) -> 12.4606967 | N266: =IF('Tabelle System 1 - 3'!H98="",#N/A,VLOOKUP($F$262,'Tabelle System 1 - 3'!$B$98:$U$100,N258,FALSE)) -> 13.05650992 | O266: =IF('Tabelle System 1 - 3'!I98="",#N/A,VLOOKUP($F$262,'Tabelle System 1 - 3'!$B$98:$U$100,O258,FALSE)) -> 13.59347211 | P266: =IF('Tabelle System 1 - 3'!J98="",#N/A,VLOOKUP($F$262,'Tabelle System 1 - 3'!$B$98:$U$100,P258,FALSE)) -> 14.08372196 | Q266: =IF('Tabelle System 1 - 3'!K98="",#N/A,VLOOKUP($F$262,'Tabelle System 1 - 3'!$B$98:$U$100,Q258,FALSE)) -> 14.53586075 | R266: =IF('Tabelle System 1 - 3'!L98="",#N/A,VLOOKUP($F$262,'Tabelle System 1 - 3'!$B$98:$U$100,R258,FALSE)) -> 14.95622695 | S266: =IF('Tabelle System 1 - 3'!M98="",#N/A,VLOOKUP($F$262,'Tabelle System 1 - 3'!$B$98:$U$100,S258,FALSE)) -> 15.34963911 | T266: =IF('Tabelle System 1 - 3'!N98="",#N/A,VLOOKUP($F$262,'Tabelle System 1 - 3'!$B$98:$U$100,T258,FALSE)) -> 15.71985418 | U266: =IF('Tabelle System 1 - 3'!O98="",#N/A,VLOOKUP($F$262,'Tabelle System 1 - 3'!$B$98:$U$100,U258,FALSE)) -> 16.06986356 | V266: =IF('Tabelle System 1 - 3'!P98="",#N/A,VLOOKUP($F$262,'Tabelle System 1 - 3'!$B$98:$U$100,V258,FALSE)) -> 16.40209159 | W266: =IF('Tabelle System 1 - 3'!Q98="",#N/A,VLOOKUP($F$262,'Tabelle System 1 - 3'!$B$98:$U$100,W258,FALSE)) -> 16.71853303 | X266: =IF('Tabelle System 1 - 3'!R98="",#N/A,VLOOKUP($F$262,'Tabelle System 1 - 3'!$B$98:$U$100,X258,FALSE)) -> 17.0208508 | Y266: =IF('Tabelle System 1 - 3'!S98="",#N/A,VLOOKUP($F$262,'Tabelle System 1 - 3'!$B$98:$U$100,Y258,FALSE)) ->  | Z266: =IF('Tabelle System 1 - 3'!T98="",#N/A,VLOOKUP($F$262,'Tabelle System 1 - 3'!$B$98:$U$100,Z258,FALSE)) ->  | AA266: =IF('Tabelle System 1 - 3'!U98="",#N/A,VLOOKUP($F$262,'Tabelle System 1 - 3'!$B$98:$U$100,AA258,FALSE)) -> 
H267: =+'Tabelle System 1 - 3'!$B$103 -> Laufstall-AMS 3 Boxen - AFS - keine eigene Nachzucht | I267: =IF('Tabelle System 1 - 3'!C146="",#N/A,VLOOKUP($F$262,'Tabelle System 1 - 3'!$B$146:$U$148,I258,FALSE)) ->  | J267: =IF('Tabelle System 1 - 3'!D146="",#N/A,VLOOKUP($F$262,'Tabelle System 1 - 3'!$B$146:$U$148,J258,FALSE)) ->  | K267: =IF('Tabelle System 1 - 3'!E146="",#N/A,VLOOKUP($F$262,'Tabelle System 1 - 3'!$B$146:$U$148,K258,FALSE)) ->  | L267: =IF('Tabelle System 1 - 3'!F146="",#N/A,VLOOKUP($F$262,'Tabelle System 1 - 3'!$B$146:$U$148,L258,FALSE)) ->  | M267: =IF('Tabelle System 1 - 3'!G146="",#N/A,VLOOKUP($F$262,'Tabelle System 1 - 3'!$B$146:$U$148,M258,FALSE)) ->  | N267: =IF('Tabelle System 1 - 3'!H146="",#N/A,VLOOKUP($F$262,'Tabelle System 1 - 3'!$B$146:$U$148,N258,FALSE)) ->  | O267: =IF('Tabelle System 1 - 3'!I146="",#N/A,VLOOKUP($F$262,'Tabelle System 1 - 3'!$B$146:$U$148,O258,FALSE)) ->  | P267: =IF('Tabelle System 1 - 3'!J146="",#N/A,VLOOKUP($F$262,'Tabelle System 1 - 3'!$B$146:$U$148,P258,FALSE)) ->  | Q267: =IF('Tabelle System 1 - 3'!K146="",#N/A,VLOOKUP($F$262,'Tabelle System 1 - 3'!$B$146:$U$148,Q258,FALSE)) ->  | R267: =IF('Tabelle System 1 - 3'!L146="",#N/A,VLOOKUP($F$262,'Tabelle System 1 - 3'!$B$146:$U$148,R258,FALSE)) ->  | S267: =IF('Tabelle System 1 - 3'!M146="",#N/A,VLOOKUP($F$262,'Tabelle System 1 - 3'!$B$146:$U$148,S258,FALSE)) ->  | T267: =IF('Tabelle System 1 - 3'!N146="",#N/A,VLOOKUP($F$262,'Tabelle System 1 - 3'!$B$146:$U$148,T258,FALSE)) ->  | U267: =IF('Tabelle System 1 - 3'!O146="",#N/A,VLOOKUP($F$262,'Tabelle System 1 - 3'!$B$146:$U$148,U258,FALSE)) -> 26.46962527 | V267: =IF('Tabelle System 1 - 3'!P146="",#N/A,VLOOKUP($F$262,'Tabelle System 1 - 3'!$B$146:$U$148,V258,FALSE)) -> 27.5592636 | W267: =IF('Tabelle System 1 - 3'!Q146="",#N/A,VLOOKUP($F$262,'Tabelle System 1 - 3'!$B$146:$U$148,W258,FALSE)) -> 28.62231205 | X267: =IF('Tabelle System 1 - 3'!R146="",#N/A,VLOOKUP($F$262,'Tabelle System 1 - 3'!$B$146:$U$148,X258,FALSE)) -> 29.66174082 | Y267: =IF('Tabelle System 1 - 3'!S146="",#N/A,VLOOKUP($F$262,'Tabelle System 1 - 3'!$B$146:$U$148,Y258,FALSE)) -> 30.68009259 | Z267: =IF('Tabelle System 1 - 3'!T146="",#N/A,VLOOKUP($F$262,'Tabelle System 1 - 3'!$B$146:$U$148,Z258,FALSE)) -> 31.67956429 | AA267: =IF('Tabelle System 1 - 3'!U146="",#N/A,VLOOKUP($F$262,'Tabelle System 1 - 3'!$B$146:$U$148,AA258,FALSE)) -> 32.66206991
E278: Rechengang:
E279: Arbeitseffizienz (kg/AKh) x Personalstückkosten (ct/kg) / 100
G288: Erzeugte Jahremilchmenge (Tsd kg) bei einer Milchleistung je Kuh (kg) von:
G289: Herdengröße | I289: 20 | J289: 30 | K289: 40 | L289: 50 | M289: 60 | N289: 70 | O289: 80 | P289: 90 | Q289: 100 | R289: 110 | S289: 120 | T289: 130 | U289: 140 | V289: 150 | W289: 160 | X289: 170 | Y289: 180 | Z289: 190 | AA289: 200
G290: =+Grunddaten!$D$31 -> 6000 | H290: kg/Kuh | I290: =+I289*$G290/1000 -> 120 | J290: =+J289*$G290/1000 -> 180 | K290: 240 | L290: 300 | M290: 360 | N290: 420 | O290: 480 | P290: 540 | Q290: 600 | R290: 660 | S290: 720 | T290: 780 | U290: 840 | V290: 900 | W290: 960 | X290: 1020 | Y290: 1080 | Z290: 1140 | AA290: =+AA289*$G290/1000 -> 1200
G291: =+Grunddaten!$D$32 -> 8000 | H291: kg/Kuh | I291: =+I289*$G291/1000 -> 160 | J291: =+J289*$G291/1000 -> 240 | K291: 320 | L291: 400 | M291: 480 | N291: 560 | O291: 640 | P291: 720 | Q291: 800 | R291: 880 | S291: 960 | T291: 1040 | U291: 1120 | V291: 1200 | W291: 1280 | X291: 1360 | Y291: 1440 | Z291: 1520 | AA291: =+AA289*$G291/1000 -> 1600
G292: =+Grunddaten!$D$33 -> 10000 | H292: kg/Kuh | I292: =+I289*$G292/1000 -> 200 | J292: =+J289*$G292/1000 -> 300 | K292: 400 | L292: 500 | M292: 600 | N292: 700 | O292: 800 | P292: 900 | Q292: 1000 | R292: 1100 | S292: 1200 | T292: 1300 | U292: 1400 | V292: 1500 | W292: 1600 | X292: 1700 | Y292: 1800 | Z292: 1900 | AA292: 2000

Sheet Fundstellensammlung (hidden)
B1: MILCHKUH OHNE NACHZUCHT
B3: FUNDSTELLEN für Arbeitszeitbedarfswerte (Milchkuh ohne Nachzucht)
B4: Die Fundstellensammlung dient zur "EICHUNG" der im Excelblatt "Rohdaten" dann angenommenen Zahlenreihen.
B5: Dazu werden möglichst viel Daten aus Praxiserhebungen gesammelt und der Rohentwurf von Beraterkollegen "feingearbeitet".
B6: Die Zahlen von Dr. Haidn + Dr. Mačuhová, LfL-ILT wurden im Excelblatt ROHDATEN KUH ab der Spalte V eingetragen.
B8: SCHICK-Vortrag 24.11.10 - Folie 6: | E8: (Kühe) | F8: 20 | G8: 30 | H8: 40 | I8: 50 | J8: 60 | K8: 70 | L8: 80 | M8: 90 | N8: 100 | O8: 110 | P8: 120 | Q8: 130 | R8: 140 | S8: 150 | T8: 160 | U8: 170 | V8: 180 | W8: 190 | X8: 200
B9: Melken | E9: (AKh/Kuh) | F9: 29 | G9: 28.1 | H9: 27.5 | I9: 25 | J9: 23 | K9: 21.8 | L9: 21 | M9: 19 | N9: 18 | O9: 16.2 | P9: 15 | Q9: 14.6 | R9: 14.3 | S9: 14 | T9: 13.8 | U9: 13.5 | V9: 13.3 | W9: 13.1 | X9: 13
B10: Füttern GF + KF | E10: (AKh/Kuh) | F10: 22 | G10: 18.5 | H10: 17.5 | I10: 16.6 | J10: 16 | K10: 15.4 | L10: 15 | M10: 14.7 | N10: 14.5 | O10: 13 | P10: 12 | Q10: 11.3 | R10: 10.8 | S10: 10.3 | T10: 10 | U10: 9.6 | V10: 9.4 | W10: 9.1 | X10: 9
B11: Rest | E11: (AKh/Kuh) | F11: =+F12-F10-F9 -> 29 | G11: =+G12-G10-G9 -> 26.4 | H11: 24 | I11: 22.4 | J11: 21 | K11: 19.8 | L11: 19 | M11: 17.3 | N11: 16.5 | O11: 15.8 | P11: 16 | Q11: 15.9 | R11: 15.9 | S11: 16.1 | T11: 16.2 | U11: 16.2 | V11: 16 | W11: 16.1 | X11: 16
B12: Summe lt. Schick | E12: (AKh/Kuh) | F12: 80 | G12: 73 | H12: 69 | I12: 64 | J12: 60 | K12: 57 | L12: 55 | M12: 51 | N12: 49 | O12: 45 | P12: 43 | Q12: 41.8 | R12: 41 | S12: 40.4 | T12: 40 | U12: 39.3 | V12: 38.7 | W12: 38.3 | X12: 38
E14: VARIATION | F14: =GROWTH($F9:$X9,$F8:$X8) -> 27.90561095 | G14: 26.55414332 | H14: 25.26812722 | I14: 24.04439282 | J14: 22.87992384 | K14: 21.77185004 | L14: 20.71744021 | M14: 19.7140954 | N14: 18.75934255 | O14: 17.85082833 | P14: 16.98631343 | Q14: 16.16366695 | R14: 15.3808612 | S14: 14.6359667 | T14: 13.92714742 | U14: 13.25265622 | V14: 12.61083061 | W14: 12.00008859 | X14: 11.41892477
F15: =LOGEST($F9:$X9,$F8:$X8) -> 0.9950481028 | G15: 30.81839488
E16: RKP | F16: =+$G$15*POWER($F$15,F8) -> 27.90561095 | G16: =+$G$15*POWER($F$15,G8) -> 26.55414332 | H16: 25.26812722 | I16: 24.04439282 | J16: 22.87992384 | K16: 21.77185004 | L16: 20.71744021 | M16: 19.7140954 | N16: 18.75934255 | O16: 17.85082833 | P16: 16.98631343 | Q16: 16.16366695 | R16: 15.3808612 | S16: 14.6359667 | T16: 13.92714742 | U16: 13.25265622 | V16: 12.61083061 | W16: 12.00008859 | X16: 11.41892477
E17: Excel-Potenzfunktion für Melken Zeile 24 | F17: y = 122,34966358789100000000 x-0,42483525311175100000 | N17: R² = 0,94779868645978600000
E18: Excel-Potenzfunktion für Füttern Zeile 25 | F18: y = 77,66014589227370000000 x-0,39542640846110800000 | N18: R² = 0,93401017023246600000
E19: Excel-Potenzfunktion für Rest Zeile 26 | F19: y = 66,22337064630110000000 x-0,28312889017205300000 | N19: R² = 0,92526688378386100000
E20: Umrechnung MELKEN über Potenzfunktion | F20: =122.349663587891*POWER(F$8,-0.424835253111751) -> 34.26725939 | G20: =122.349663587891*POWER(G$8,-0.424835253111751) -> 28.84493718 | H20: 25.52649682 | I20: 23.21776589 | J20: 21.48727999 | K20: 20.12519452 | L20: 19.01529482 | M20: 18.08721364 | N20: 17.29546622 | O20: 16.60914213 | P20: 16.0063861 | Q20: 15.4712399 | R20: 14.99173622 | S20: 14.55869671 | T20: 14.16494553 | U20: 13.80477865 | V20: 13.47359578 | W20: 13.16763916 | X20: 12.88380429
E21: Umrechnung FÜTTERN über Potenzfunktion | F21: =77.6601458922737*POWER(F$8,-0.395426408461108) -> 23.75399078 | G21: =77.6601458922737*POWER(G$8,-0.395426408461108) -> 20.2351044 | H21: 18.05931917 | I21: 16.53410134 | J21: 15.3840343 | K21: 14.4743047 | L21: 13.72986173 | M21: 13.10506277 | N21: 12.57029255 | O21: 12.10535763 | P21: 11.69593725 | Q21: 11.33154622 | R21: 11.00430201 | S21: 10.70814519 | T21: 10.43832834 | U21: 10.19107026 | V21: 9.963315782 | W21: 9.752564918 | X21: 9.556748898
E22: Umrechnung REST über Potenzfunktion | F22: =66.2233706463011*POWER(F$8,-0.283128890172053) -> 28.35646588 | G22: =66.2233706463011*POWER(G$8,-0.283128890172053) -> 25.28107752 | H22: 23.30353546 | I22: 21.87679967 | J22: 20.7761605 | K22: 19.88889804 | L22: 19.15100307 | M22: 18.52289091 | N22: 17.97850195 | O22: 17.49983832 | P22: 17.07398923 | Q22: 16.69140314 | R22: 16.34483094 | S22: 16.02865121 | T22: 15.73842386 | U22: 15.47058563 | V22: 15.22223704 | W22: 14.99098963 | X22: 14.7748545
E23: SUMME | F23: =SUM(F20:F22) -> 86.37771606 | G23: =SUM(G20:G22) -> 74.3611191 | H23: 66.88935146 | I23: 61.6286669 | J23: 57.64747479 | K23: 54.48839727 | L23: 51.89615962 | M23: 49.71516732 | N23: 47.84426071 | O23: 46.21433808 | P23: 44.77631258 | Q23: 43.49418926 | R23: 42.34086917 | S23: 41.29549311 | T23: 40.34169773 | U23: 39.46643455 | V23: 38.6591486 | W23: 37.91119371 | X23: 37.21540769
B25: Datensammlung Mittelfranken 2004 | E25: (Kühe) | F25: 20 | G25: 30 | H25: 40 | I25: 50 | J25: 60 | K25: 70 | L25: 80 | M25: 90 | N25: 100 | O25: 110 | P25: 120 | Q25: 130 | R25: 140 | S25: 150 | T25: 160 | U25: 170 | V25: 180 | W25: 190 | X25: 200
B26: Anbindestall | C26: Incl. Kalb bis Absetzen, Dungausbringung, Futterbereitstellung, ohne allg. Arbeiten. | E26: (AKh/Kuh) | F26: 90 | G26: 80 | H26: 75
B27: Laufstall | G27: 60 | H27: 55 | I27: 50 | J27: 45 | K27: 42 | L27: 40 | M27: 38 | N27: 35
B29: Dr. Albrecht Arbeitsbedarfswerte 1995 | E29: (Kühe) | F29: 20 | G29: 30 | H29: 40 | I29: 50 | J29: 60 | K29: 70 | L29: 80 | M29: 90 | N29: 100 | O29: 110 | P29: 120 | Q29: 130 | R29: 140 | S29: 150 | T29: 160 | U29: 170 | V29: 180 | W29: 190 | X29: 200
B30: Anbindestall | C30: Incl. Kalb bis Absetzen, Dungausbringung, Futterbereitstellung, ohne allg. Arbeiten. | E30: (AKh/Kuh) | F30: 92 | G30: 86 | H30: 83
B31: Laufstall | C31: Incl. Kalb bis Absetzen, Dungausbringung, Futterbereitstellung, ohne allg. Arbeiten. | H31: 51 | I31: 47 | J31: 43 | K31: 40 | L31: 37 | M31: 32 | N31: 30
B33: KTBL | C33: In der KTBL-Datensammlung Betriebsplanung 2014/15, Seite 573 sind die Arbeitszeitbedarfswerte nach Stall-, Entmistungs- und Melksystem unter Angabe des
C34: Fütterungssystems aufgeführt und somit nicht direkt in dieses System übertragbar. Es erfolgte ein Vergleich für den KTBL-Liegeboxenlaufstall mit Flüssigmist und perforierten
C35: Laufgängen ohne Auslauf.ERGEBNIS: Die Gesamtarbeitszeit liegt um 20 - 30 % (Durchschnitt 25 %) über den KTBL-Werten, wobei das Melken im Mittel um 12 % schneller geht,
C36: dafür das Füttern 32 % mehr Zeit braucht und vor allem bei den sonstigen Arbeiten die doppelte Arbeitszeit angesetzt wurde.
B38: NUR MELKEN
B40: HÖMBERG-Doktorarbeit 2001 - Tabelle 70+71 | E40: (Kühe) | F40: 20 | G40: 30 | H40: 40 | I40: 50 | J40: 60 | K40: 70 | L40: 80 | M40: 90 | N40: 100 | O40: 110 | P40: 120 | Q40: 130 | R40: 140 | S40: 150 | T40: 160 | U40: 170 | V40: 180 | W40: 190 | X40: 200
B41: FGM 2x5 | E41: (AKh/Kuh) | H41: 22 | I41: 20.5 | J41: 19.5 | K41: 18.7 | L41: 18.2
B42: FGM 2x6 | E42: (AKh/Kuh) | I42: 20.5 | J42: 19.3 | K42: 18.4 | L42: 17.8 | M42: 17.3 | N42: 16.9 | O42: 16.5 | P42: 16.2
B43: FGM 2x7 | E43: (AKh/Kuh) | L43: 17.1 | M43: 16.5 | N43: 16.1 | O43: 15.7 | P43: 15.4 | Q43: 15.1 | R43: 14.8 | S43: 14.6
B44: Karussell 18 | E44: (AKh/Kuh) | R44: 13.9 | S44: 13.7 | T44: 13.4 | U44: 13.2 | V44: 13 | W44: 12.9 | X44: 12.7 | Y44: 12.6
B45: AMS Einbox-A. 1x | E45: (AKh/Kuh) | H45: 8.9 | I45: 8.1 | J45: 7.6 | K45: 7.3 | L45: 7
B46: AMS Einbox-A. 2x | E46: (AKh/Kuh) | L46: 8.9 | M46: 8.5 | N46: 8.1 | O46: 7.9 | P46: 7.6 | Q46: 7.4 | R46: 7.3 | S46: 7.1
B47: AMS Einbox-A. 3x | E47: (AKh/Kuh) | R47: 8.4 | S47: 8.1 | T47: 8 | U47: 7.8 | V47: 7.6 | W47: 7.5 | X47: 7.4 | Y47: 7.3
B48: AMS Zweibox-A. | E48: (AKh/Kuh) | I48: 11.2 | J48: 10.2 | K48: 9.4 | L48: 8.9 | M48: 8.5 | N48: 8.1 | O48: 7.9 | P48: 7.6
B49: AMS Dreibox-A. | E49: (AKh/Kuh) | L49: 10.8 | M49: 10.2 | N49: 9.7 | O49: 9.2 | P49: 8.9 | Q49: 8.6 | R49: 8.4 | S49: 8.1
B50: AMS Vierbox-A. | E50: (AKh/Kuh) | R50: 9.4 | S50: 9.2 | T50: 8.9 | U50: 8.7 | V50: 8.5 | W50: 8.3 | X50: 8.1 | Y50: 8
B52: SCHICK-Vortrag 11:03:2010 - Folien 42+43: | E52: (Kühe) | F52: 20 | G52: 30 | H52: 40 | I52: 50 | J52: 60 | K52: 70 | L52: 80 | M52: 90 | N52: 100 | O52: 110 | P52: 120 | Q52: 130 | R52: 140 | S52: 150 | T52: 160 | U52: 170 | V52: 180 | W52: 190 | X52: 200
B53: Folie 42 - Melksystem | C53: 2x6 | D53: 2x6 | E53: 2x6 | F53: 2x6 | G53: 2x6 | H53: 2x6 | I53: 2x8 | J53: 2x8 | K53: 2x8 | L53: 2x8 | M53: 2x10 | N53: 2x10 | O53: 2x10 | P53: 2x10 | Q53: K20 | R53: K20 | S53: K20 | T53: K20
B54: Herdengröße | C54: 60 | D54: 80 | E54: 100 | F54: 120 | G54: 140 | H54: 180 | I54: 100 | J54: 120 | K54: 140 | L54: 180 | M54: 100 | N54: 120 | O54: 140 | P54: 180 | Q54: 100 | R54: 120 | S54: 140 | T54: 180
B55: cm in der Grafik | C55: 14.2 | D55: 13.5 | E55: 12.2 | F55: 11.8 | G55: 11.6 | H55: 11.2 | I55: 11.9 | J55: 11.5 | K55: 11.3 | L55: 10.9 | M55: 10.7 | N55: 10.4 | O55: 9.9 | P55: 9.5 | Q55: 7.2 | R55: 6.8 | S55: 6.6 | T55: 6.2
B56: Durch 4 = Minuten/Kuh/Tag | C56: =+C55/4 -> 3.55 | D56: =+D55/4 -> 3.375 | E56: 3.05 | F56: 2.95 | G56: 2.9 | H56: 2.8 | I56: 2.975 | J56: 2.875 | K56: 2.825 | L56: 2.725 | M56: 2.675 | N56: 2.6 | O56: 2.475 | P56: 2.375 | Q56: 1.8 | R56: 1.7 | S56: 1.65 | T56: 1.55
B57: Melken AKh/Jahr | C57: =+C56*365/60 -> 21.59583333 | D57: =+D56*365/60 -> 20.53125 | E57: 18.55416667 | F57: 17.94583333 | G57: 17.64166667 | H57: 17.03333333 | I57: 18.09791667 | J57: 17.48958333 | K57: 17.18541667 | L57: 16.57708333 | M57: 16.27291667 | N57: 15.81666667 | O57: 15.05625 | P57: 14.44791667 | Q57: 10.95 | R57: 10.34166667 | S57: 10.0375 | T57: 9.429166667
B58: Folie 43 Melksystem | C58: 2x8 | D58: 2x8 | E58: 2x8 | F58: 2x10 | G58: 2x10 | H58: 2x10 | I58: 2x12 | J58: 2x12 | K58: 2x12 | L58: 2x12 | M58: 2x20 | N58: 2x20 | O58: 2x20 | P58: 2x20 | Q58: K20 | R58: K20 | S58: K20 | T58: K20 | U58: K40 | V58: K40 | W58: K40 | X58: K40 | Y58: K40 | Z58: 60 | AA58: 60
B59: Herdengröße | C59: 120 | D59: 160 | E59: 200 | F59: 120 | G59: 160 | H59: 200 | I59: 120 | J59: 160 | K59: 200 | L59: 400 | M59: 120 | N59: 160 | O59: 200 | P59: 400 | Q59: 120 | R59: 160 | S59: 200 | T59: 400 | U59: 200 | V59: 400 | W59: 1000 | X59: 2000 | Y59: 400 | Z59: 1000 | AA59: 2000
B60: cm in der Grafik | C60: 11.45 | D60: 11 | E60: 10.7 | F60: 10.35 | G60: 9.75 | H60: 9.4 | I60: 10.15 | J60: 9.45 | K60: 9 | L60: 8.2 | M60: 10.9 | N60: 9.9 | O60: 9.3 | P60: 8.1 | Q60: 7.2 | R60: 6.8 | S60: 6.5 | T60: 5.8 | U60: 7.6 | V60: 6.5 | W60: 5.7 | X60: 5.4 | Y60: 6.8 | Z60: 5.8 | AA60: 5.4
B61: Durch 4 = Minuten/Kuh/Tag | C61: =+C60/4 -> 2.8625 | D61: =+D60/4 -> 2.75 | E61: 2.675 | F61: 2.5875 | G61: 2.4375 | H61: 2.35 | I61: 2.5375 | J61: 2.3625 | K61: 2.25 | L61: 2.05 | M61: 2.725 | N61: 2.475 | O61: 2.325 | P61: 2.025 | Q61: 1.8 | R61: 1.7 | S61: 1.625 | T61: 1.45 | U61: 1.9 | V61: 1.625 | W61: 1.425 | X61: 1.35 | Y61: 1.7 | Z61: 1.45 | AA61: 1.35
B62: Melken AKh/Jahr | C62: =+C61*365/60 -> 17.41354167 | D62: =+D61*365/60 -> 16.72916667 | E62: 16.27291667 | F62: 15.740625 | G62: 14.828125 | H62: 14.29583333 | I62: 15.43645833 | J62: 14.371875 | K62: 13.6875 | L62: 12.47083333 | M62: 16.57708333 | N62: 15.05625 | O62: 14.14375 | P62: 12.31875 | Q62: 10.95 | R62: 10.34166667 | S62: 9.885416667 | T62: 8.820833333 | U62: 11.55833333 | V62: 9.885416667 | W62: 8.66875 | X62: 8.2125 | Y62: 10.34166667 | Z62: 8.820833333 | AA62: 8.2125
B63: FGM 2x6 | J63: =+C57 -> 21.59583333 | L63: =+D57 -> 20.53125 | N63: =+E57 -> 18.55416667 | P63: =+F57 -> 17.94583333 | R63: =+G57 -> 17.64166667 | V63: =+H57 -> 17.03333333
B64: FGM 2x8 | N64: =+I57 -> 18.09791667 | P64: =+J57 -> 17.48958333 | R64: =+K57 -> 17.18541667 | T64: =+D62 -> 16.72916667 | V64: =+L57 -> 16.57708333 | X64: =+E62 -> 16.27291667
B65: FGM 2x10 | N65: =+M57 -> 16.27291667 | P65: =+N57 -> 15.81666667 | R65: =+O57 -> 15.05625 | T65: =+G62 -> 14.828125 | V65: =+P57 -> 14.44791667 | X65: =+H62 -> 14.29583333
B66: FGM 2x12 | P66: =+I62 -> 15.43645833 | T66: =+J62 -> 14.371875 | X66: =+K62 -> 13.6875
B67: FGM 2x20 | P67: =+M62 -> 16.57708333 | T67: =+N62 -> 15.05625 | X67: =+O62 -> 14.14375
B68: Karussell 20 | N68: 12 | P68: =+Q62 -> 10.95 | R68: 10.5 | T68: =+R62 -> 10.34166667 | V68: 10.1 | X68: =+S62 -> 9.885416667
B70: Zu Melkstandgröße und maximale Herdengröße für diese Auswertung:
B71: Theoretisch könnte im Schichtbetrieb 18 und mehr Stunden am Tag gemolken werden. Im (erweiterten) Familienbetrieb wurde die reine Melkzeit ohne Rüstzeiten und Reinigung auf mind. 1 und max. 2,5 Stunden festgesetzt.
B72: Welche Herdengrößen können dann bedient werden?
B73: Dazu wurde in folgender Datei Fundstellen und Eigenberechnungen zusammen gestellt:
B74: S:\ILB\ILB4\4a Milch\Beratung\Milchvieh Melken\Melkstand und Herdengröße bei 1.0 bis 2.5 Stunden Melkzeit.xlsx
A76: 12 - 14: Fütterung der Milchkuh (ohne Nachzucht)
B77: Grundlage ist der Beitrag in top agrar 3/2014, R36 - R40, Haidn, Macuhova, Oberschätzl, Siefer:Futter-Roboter: Wie viel Zeit sparen sie wirklich?
T78: Ausgangsbais: Futtermischwagen (FMW) - nur Füttern und Nachschieben
B79: Die Zeitangaben in diesem Artikel beziehen sich auf Futterentnahme, Vorlage und Nachschieben bei der Milchkuh ohne Nachzucht. | Z79: Kühe: | AA79: 20 | AB79: 50 | AC79: 200
B80: Es fehlen: Steuerung und Wartung der Technik, Rationsberechnung und Kontrolle, Tierkontrolle (z.B. BCS). | Z80: AKh/Kuh für Futterentnahme, -vorlage, Nachschieben | AA80: 15 | AB80: 10 | AC80: 6
B81: Der Futtermischwagen (FMW) wird hier mit 10 bis 4 AKh/Kuh angegeben (bei 50 bis 200 Kühen). Allerdings soll der Vorteil von AFS gegenüber FMW
B82: in großen Beständen bei 3 AKh/Kuh liegen => FMW mit 4 AKh bei 200 Kühen minus 3 = 1 AKh/Kuh im AFS => FMW mit 6 AKh/Kuh bei 200 Kühen. | Z82: Zuschlag für Steuerung, Wartung, Kontrolle | AA82: 5 | AB82: 2 | AC82: 0.5
B83: => Es fehlt der Zuschlag für Steuerung, Wartung, Kontrolle (siehe oben): eigene Schätzung: | Z83: Gesamtfütterungszeit FMW | AA83: =+AA80+AA82 -> 20 | AB83: =+AB80+AB82 -> 12 | AC83: =+AC80+AC82 -> 6.5
Z84: Akh/Herde und Jahr | AA84: =+AA79*AA82 -> 100 | AB84: =+AB79*AB82 -> 100 | AC84: =+AC79*AC82 -> 100
Z85: Akh/Herde und Tag | AA85: =+AA84/365 -> 0.2739726027 | AB85: =+AB84/365 -> 0.2739726027 | AC85: =+AC84/365 -> 0.2739726027
T87: Ableitung: AFS = FMW minus AFS-Vorteil
B88: Das Automatische Fütterungssystem kommt in der Übersicht 1 bei täglicher Fütterung auf 7,0 bis 3,5 AKh/Kuh | Z88: Kühe: | AA88: 20 | AB88: 50 | AC88: 200
B89: (50 bis 200 Kühe, wieder nur Futterentnahme, -vorlage, Nachschieben). | Z89: Gesamtfütterungszeit Futtermischwagen (FMW) | AA89: =+AA83 -> 20 | AB89: =+AB83 -> 12 | AC89: =+AC83 -> 6.5
B90: Nach Grothmann, ART CH 2011 mit Vergleich AFS und FMW liegt der AFS-Vorteil gegenüber dem FMW bei 3 Stunden in großen Beständen => | Z90: Vorteil AFS zu FMW | AA90: 1 | AC90: 3
B91: FMW 200 Kühe mit 10 AKh/Kuh minus 3 = 7 AKh/Kuh für AFS 200 Kühe. | AA91: =+AA89-AA90 -> 19 | AC91: =+AC89-AC90 -> 3.5
B92: => 5 AKh Füttern gesamt bei 200 Kühen mit AFS = 3 AKh/Kuh für Futterentnahme, - vorlage und Nachschieben und nochmal 2 AKh für den zweiten
B93: Fütterungsarbeitsblock Steuerung, Wartung und Kontrolle ist stimmig.
B95: Der Siloblockschneider mit Verteilung von Hand (SBS) wird von der Futtermischwagen-Zahlenreihe abgeleitet. | T95: Ableitung: SBS = FMW +- Korrekturfaktor
B96: => Er hat nur geringe Degressionseffekte: Ein Block reicht immer für X Kühe, die Verteilung von Hand bleibt je Kuh annähernd gleich, nur die Rüstarbeiten | Z96: Kühe: | AA96: 20 | AB96: 50 | AC96: 200
B97: lassen sich auf mehr Kühe verteilen. | Z97: Gesamtfütterungszeit Futtermischwagen (FMW) | AA97: =+AA83 -> 20 | AB97: =+AB83 -> 12 | AC97: 6.5
B98: => In kleinen Herden läßt der SBS gegenüber dem FMW sogar einen Arbeistzeitvorteil erwarten, da beim FMW das Anmischen so viel Zeit braucht: -3 AKh bei 20 Kühen | Z98: Vorteil AFS zu FMW | AA98: -3 | AB98: 1 | AC98: 5
B99: und +- 0 AKh bei 40 Kühen. | AA99: =+AA97+AA98 -> 17 | AB99: =+AB97+AB98 -> 13 | AC99: 11.5
B100: => Ab 40 Kühen erreicht der SBS nicht die Arbeitszeitdegression wie der Futtermischwagen. Bei 200 Kühen liegt die Schätzung für den FMW bei 8 AKh/Kuh, beim SBS bei 13 AKh/Kuh.

Sheet Rohdaten KUH (hidden)
A1: Jahresarbeitsstunden (AKh/Kuh) in Abhängigkeit von der Bestandsgröße mit Ableitung über die nachfolgenden Regressionsgeraden | W1: GRÜNER TEXT: Dr. Juliana Mačuhová, ILT und Dr. Bernhard Haidn, ILT
B2: Diese Arbeitszeitschätzungen stammen aus Literatur und Praxis. Eigene Fundstellen sind im Excelblatt "Fundstellensammlung". Die Datenrecherche von Dr. Haidn und Dr. Mačuhová
B3: sind in diesem Blatt ab Spalte W (grüne Schrift)
B4: Bei der Milchkuh setzt sich die Jahresabeitszeit zusammen aus Melken, Füttern und Sonstige Arbeiten. Bei der Nachzucht wird die Jahresabeitszeit auf die Milchkuh umgelegt.
B5: Die Zeilen 10 bis 32 beziehen die Daten aus den nachfolgend abgeleiteten Regressionsgeraden.
B6: In der Zeile 35 - 39 kann - über die Zahlen in der Spalte A - zur Kontrolle ein Stallsystem zusammengestellt werden, um die Gesamtarbeitszeit je Kuh und Jahr dargestellt zu bekommen.
B7: Ab der Zeile 44 erfolgt die Ableitung der Regressionsgeraden. Die Daten in den gelben Eingabefeldern sind die Berechnungsgrundlage. Eine Änderung dieser Daten führt sofort
B8: zu einer neuen Regressionsgeraden, zu neuen Tabellenwerten und zu neuen Grafiken. Über diese Eingabefelder erfolgt die "Feinjustierung" der Arbeitszeitbedarfsreihen.
W9: Quellen:
B10: 2 | C10: 3 | D10: 4 | E10: 5 | F10: 6 | G10: 7 | H10: 8 | I10: 9 | J10: 10 | K10: 11 | L10: 12 | M10: 13 | N10: 14 | O10: 15 | P10: 16 | Q10: 17 | R10: 18 | S10: 19 | T10: 20 | U10: 21 | W10: 1: Schick (2006), Der Arbeitsfalle entrinnen. "Arbeitsproduktivität, Arbeitsleistung, Arbeitsverwertung - Zeitdieben auf der Spur". AGEF-Winterfagung, 16.03.2006.
B11: Milchkühe Jahres-Ø | C11: 20 | D11: 30 | E11: 40 | F11: 50 | G11: 60 | H11: 70 | I11: 80 | J11: 90 | K11: 100 | L11: 110 | M11: 120 | N11: 130 | O11: 140 | P11: 150 | Q11: 160 | R11: 170 | S11: 180 | T11: 190 | U11: 200 | W11: 2: Guler (2006), Welches Melksystem eignet sich am besten? Die Grüne 25, 8-13
A12: 1 | B12: Anbindestall-Rohr-MA | C12: =IF(C73>0,C73," ") -> 55.29489651 | D12: 49.2322598 | E12: 45.33831452 | F12: 42.53131729 | G12: 40.36733623 | W12: 3: Schick (2000): Arbeitszeitbedarf verschiedener Melkverfahren. Von der Eimermelkanlage zum AMS. FAT-Berichte Nr. 544, 16 S.
A13: =+A12+1 -> 2 | B13: Laufstall-FGM 2x2 o. 1x4 | C13: =IF(C82>0,C82," ") -> 53.35546347 | D13: 49.42858932 | E13: 46.81898109 | F13: 44.8900723 | G13: 43.37318127 | W13: 4: Greimel, Handler, Blumauer (2002). Arbeitszeitbedarf in der österreichsichen Landwirtschaft. Abschlussbericht, S. 53
A14: =+A13+1 -> 3 | B14: Laufstall-FGM 2x3 | C14: =IF(C91>0,C91," ") ->  | E14: 37.79427099 | F14: 35.89173935 | G14: 34.40857299 | H14: 33.20249277 | I14: 32.19196377 | J14: 31.32617363 | W14: 5: diverse Autoren, (2010). Wirtschaftslehre, BLV Buchverlag GmbH & Co. KG München, 958 S.
A15: 4 | B15: Laufstall-FGM 2x4 | C15: =IF(C100>0,C100," ") ->  | F15: 29.25687252 | G15: 28.14990863 | H15: 27.24672429 | I15: 26.48780771 | J15: 25.83596117 | K15: 25.26646928 | L15: 24.76212288 | M15: 24.31048641 | W15: 6: Müller, Baumgarten (2007). In der Hälfte der Zeit melken. DLZ 9,90-94
A16: 5 | B16: Laufstall-FGM 2x6 | C16: =IF(C109>0,C109," ") ->  | G16: 23.12282387 | H16: 22.23074811 | I16: 21.48586409 | J16: 20.84957435 | K16: 20.29637757 | L16: 19.80860539 | M16: 19.37354725 | N16: 18.98177549 | O16: 18.62611813 | P16: 18.30100145 | Q16: 18.00201418 | R16: 17.72560954 | W16: 7:Thomsen (2007). Die Organisation der Arbeitswirtschaft steht im Mittelpunkt. Landpost, 44-47
A17: 6 | B17: Laufstall-FGM 2x8 | C17: =IF(C118>0,C118," ") ->  | J17: 20.2980631 | K17: 19.89294842 | L17: 19.53344734 | M17: 19.21092448 | N17: 18.9189369 | O17: 18.65255668 | P17: 18.40793499 | Q17: 18.18201163 | R17: 17.97231555 | S17: 17.77682431 | T17: 17.59386288 | U17: 17.42202925 | W17: 8: Schleitzer, G. (2010). Melkroboter im Systemvergleich. Weniger Arbeit, höhere Kosten. Neue Landwirtschaft 3, 84-87.
A18: 7 | B18: Laufstall-FGM 2x10 | C18: =IF(C127>0,C127," ") ->  | M18: 18.15493528 | N18: 17.85933758 | O18: 17.58994944 | P18: 17.34280876 | Q18: 17.11476836 | R18: 16.90328931 | S18: 16.70629543 | T18: 16.52206857 | U18: 16.34917173 | W18: 9: Böning, Franke (n.n.). Automatische Melksysteme - ökonomische Anforderungen an die Arbeitsorganisation und Verfahrenstechnik, Präsentationsfolien.
A19: 8 | B19: Laufstall-Karussell 20 | C19: =IF(C136>0,C136," ") ->  | M19: 11.5914331 | N19: 11.24830134 | O19: 10.93967332 | P19: 10.65996385 | Q19: 10.40479072 | R19: 10.17065892 | S19: 9.954740941 | T19: 9.754720367 | U19: 9.56867817 | W19: 10: KTBL (2012). Betriebsplanung Landwirtschaft 2012/2013, Darmstatd, 824 S.
A20: 9 | B20: Laufstall-AMS 1 Box | C20: =IF(C145>0,C145," ") ->  | F20: 11.88003268 | G20: 10.1655082 | H20: 8.910442041 | I20: 7.949219745 | W20: 11: Over (2009). Betriebliches Wachstum und Arbeitswirtschaft. Lösungen für die Arbeitsfalle. Präsentationsfolien.
A21: 10 | B21: Laufstall-AMS 2 Boxen | C21: =IF(C154>0,C154," ") ->  | I21: 10.48636072 | J21: 9.688655977 | K21: 9.02664459 | L21: 8.466836446 | M21: 7.986142162 | N21: 7.568083192 | O21: 7.20055744 | P21: 6.874459966 | Q21: 6.582798149 | W21: 12:Schick (2011). Arbeitsorganisation auf dem wachsenden Betrieb. "Wege aus der Arbeitsfalle". Vortragstagung "Zukunft Milch 2011", Alsfeld, 01.12.2011.
A22: 11 | B22: Laufstall-AMS 3 Boxen | C22: =IF(C163>0,C163," ") ->  | O22: 9.088720898 | P22: 8.574502037 | Q22: 8.119851425 | R22: 7.714755272 | S22: 7.35134815 | T22: 7.023362866 | U22: 6.725741756 | W22: 13: Siefer, V., Oberschätzl, R., Mačuhová, J. und Haidn, B. 2014. Futter-Roboter: Wie viel Zeit sparen sie wirklich? Top Agrar 3, R36-R39.
A23: 12 | B23: Siloblock | C23: =IF(C189>0,C189," ") -> 17.83554564 | D23: 16.21335031 | E23: 15.03207437 | F23: 14.45459224 | G23: 13.54694774 | H23: 12.88683682 | I23: 12.39564241 | J23: 12.02601394 | K23: 11.74747434 | L23: 11.5393832 | M23: 11.38718715 | N23: 11.28028334 | O23: 11.21073454 | P23: 11.17246158 | Q23: 11.16071639 | R23: 11.17172738 | S23: 11.20245401 | T23: 11.25041299 | U23: 11.31355259 | W23: 14: ILT-Modellberechnungen (mit Abnahmeautomatik, bis 14 Einheiten 1 Melker, bei mehr Einheiten 2 Melker)
A24: 13 | B24: FMW | C24: =IF(C172>0,C172," ") -> 20.83554564 | D24: 17.21335031 | E24: 15.03207437 | F24: 13.53237521 | G24: 12.41879461 | H24: 11.54907818 | I24: 10.84508483 | J24: 10.25982548 | K24: 9.763107439 | L24: 9.334520184 | M24: 8.959700286 | N24: 8.628204576 | O24: 8.332232093 | P24: 8.065821328 | Q24: 7.824326971 | R24: 7.604067927 | S24: 7.40208403 | T24: 7.215963865 | U24: 7.043720363 | W24: 15: Nydegger, Schick, Ammann (2004). Milchviehfütterung - Konventionelle Ration oder Totalmischration (TMR) vorlegen? FAT-Berichte Nr. 624, 12 S.
A25: 14 | B25: AFS | C25: =IF(C200>0,C200," ") -> 19.95262267 | D25: 16.15121514 | E25: 13.82113328 | F25: 12.19179868 | G25: 10.96206152 | H25: 9.986318228 | I25: 9.184262344 | J25: 8.507410488 | K25: 7.924488138 | L25: 7.414272164 | M25: 6.961770654 | N25: 6.556042671 | O25: 6.188885165 | P25: 5.854006388 | Q25: 5.546485916 | R25: 5.262410633 | S25: 4.998622582 | T25: 4.752540135 | U25: 4.522028511 | W25: 16: Schik M. (2006). Melksysteme im arbeitswirtschaftlichen Vergleich. Weiterbildung für Baufachleute, 14.-15.11. 2006
A26: 15 | B26: Sonstige Arbeiten (Milchkuh) | C26: =IF(C209>0,C209," ") -> 25.07060381 | D26: 22.05727201 | E26: 20.14159 | F26: 18.77101305 | G26: 17.72069523 | H26: 16.87864882 | I26: 16.18164648 | J26: 15.59077707 | K26: 15.08053223 | L26: 14.6333603 | M26: 14.23671247 | N26: 13.88133306 | O26: 13.56021685 | P26: 13.26794536 | Q26: 13.00024887 | R26: 12.75370839 | S26: 12.52554753 | T26: 12.31348368 | U26: 12.11561953
A27: 16 | B27: keine eigene Nachzucht | C27: =+C218 -> 4.215948091 | D27: 3.343438548 | E27: 2.836248005 | F27: 2.496456157 | G27: 2.249273641 | H27: 2.059478225 | I27: 1.908064941 | J27: 1.783776278 | K27: 1.67947248 | L27: 1.590382234 | M27: 1.513182264 | N27: 1.445478771 | O27: 1.385498797 | P27: 1.331898047 | Q27: 1.283636626 | R27: 1.239896061 | S27: 1.200022344 | T27: 1.163485883 | U27: 1.129852732
A28: 17 | B28: JV reduziert - 26 Monate EKA | C28: =+'Rohdaten FÄRSE'!B84 -> 8.714766873 | D28: =+'Rohdaten FÄRSE'!C84 -> 8.048335215 | E28: =+'Rohdaten FÄRSE'!D84 -> 7.606636132 | F28: =+'Rohdaten FÄRSE'!E84 -> 7.280790933 | G28: =+'Rohdaten FÄRSE'!F84 -> 7.02494494 | H28: =+'Rohdaten FÄRSE'!G84 -> 6.815657086 | I28: =+'Rohdaten FÄRSE'!H84 -> 6.639410335 | J28: =+'Rohdaten FÄRSE'!I84 -> 6.487736571 | K28: =+'Rohdaten FÄRSE'!J84 -> 6.354998153 | L28: =+'Rohdaten FÄRSE'!K84 -> 6.237262756 | M28: =+'Rohdaten FÄRSE'!L84 -> 6.131684391 | N28: =+'Rohdaten FÄRSE'!M84 -> 6.036140593 | O28: =+'Rohdaten FÄRSE'!N84 -> 5.949008644 | P28: =+'Rohdaten FÄRSE'!O84 -> 5.869021647 | Q28: =+'Rohdaten FÄRSE'!P84 -> 5.795172641 | R28: =+'Rohdaten FÄRSE'!Q84 -> 5.726648789 | S28: =+'Rohdaten FÄRSE'!R84 -> 5.662785033 | T28: =+'Rohdaten FÄRSE'!S84 -> 5.603030711 | U28: =+'Rohdaten FÄRSE'!T84 -> 5.546925038
A29: 18 | B29: JV reduziert - 29 Monate EKA | C29: =+'Rohdaten FÄRSE'!B85 -> 9.51427155 | D29: =+'Rohdaten FÄRSE'!C85 -> 8.786700537 | E29: =+'Rohdaten FÄRSE'!D85 -> 8.304479373 | F29: =+'Rohdaten FÄRSE'!E85 -> 7.948740688 | G29: =+'Rohdaten FÄRSE'!F85 -> 7.669423033 | H29: =+'Rohdaten FÄRSE'!G85 -> 7.440934824 | I29: =+'Rohdaten FÄRSE'!H85 -> 7.248518954 | J29: =+'Rohdaten FÄRSE'!I85 -> 7.08293043 | K29: =+'Rohdaten FÄRSE'!J85 -> 6.938014407 | L29: =+'Rohdaten FÄRSE'!K85 -> 6.809477804 | M29: =+'Rohdaten FÄRSE'!L85 -> 6.694213535 | N29: =+'Rohdaten FÄRSE'!M85 -> 6.589904417 | O29: =+'Rohdaten FÄRSE'!N85 -> 6.494778864 | P29: =+'Rohdaten FÄRSE'!O85 -> 6.40745375 | Q29: =+'Rohdaten FÄRSE'!P85 -> 6.326829734 | R29: =+'Rohdaten FÄRSE'!Q85 -> 6.25201941 | S29: =+'Rohdaten FÄRSE'!R85 -> 6.182296706 | T29: =+'Rohdaten FÄRSE'!S85 -> 6.11706044 | U29: =+'Rohdaten FÄRSE'!T85 -> 6.055807556
A30: 19 | B30: JV reduziert - 32 Monate EKA | C30: =+'Rohdaten FÄRSE'!B86 -> 10.29768104 | D30: =+'Rohdaten FÄRSE'!C86 -> 9.510201494 | E30: =+'Rohdaten FÄRSE'!D86 -> 8.988274018 | F30: =+'Rohdaten FÄRSE'!E86 -> 8.603243646 | G30: =+'Rohdaten FÄRSE'!F86 -> 8.300926848 | H30: =+'Rohdaten FÄRSE'!G86 -> 8.053624814 | I30: =+'Rohdaten FÄRSE'!H86 -> 7.845365333 | J30: =+'Rohdaten FÄRSE'!I86 -> 7.666142174 | K30: =+'Rohdaten FÄRSE'!J86 -> 7.5092937 | L30: =+'Rohdaten FÄRSE'!K86 -> 7.370173333 | M30: =+'Rohdaten FÄRSE'!L86 -> 7.245418152 | N30: =+'Rohdaten FÄRSE'!M86 -> 7.132520173 | O30: =+'Rohdaten FÄRSE'!N86 -> 7.029561938 | P30: =+'Rohdaten FÄRSE'!O86 -> 6.935046434 | Q30: =+'Rohdaten FÄRSE'!P86 -> 6.8477838 | R30: =+'Rohdaten FÄRSE'!Q86 -> 6.76681356 | S30: =+'Rohdaten FÄRSE'!R86 -> 6.691349856 | T30: =+'Rohdaten FÄRSE'!S86 -> 6.620742006 | U30: =+'Rohdaten FÄRSE'!T86 -> 6.554445531
A31: 20 | B31: JV normal - 26 Monate EKA | C31: =+'Rohdaten FÄRSE'!B75 -> 12.4306172 | D31: =+'Rohdaten FÄRSE'!C75 -> 11.48002874 | E31: =+'Rohdaten FÄRSE'!D75 -> 10.84999557 | F31: =+'Rohdaten FÄRSE'!E75 -> 10.3852147 | G31: =+'Rohdaten FÄRSE'!F75 -> 10.02027968 | H31: =+'Rohdaten FÄRSE'!G75 -> 9.721754518 | I31: =+'Rohdaten FÄRSE'!H75 -> 9.470358706 | J31: =+'Rohdaten FÄRSE'!I75 -> 9.254013446 | K31: =+'Rohdaten FÄRSE'!J75 -> 9.064677289 | L31: =+'Rohdaten FÄRSE'!K75 -> 8.896741226 | M31: =+'Rohdaten FÄRSE'!L75 -> 8.746145776 | N31: =+'Rohdaten FÄRSE'!M75 -> 8.609863486 | O31: =+'Rohdaten FÄRSE'!N75 -> 8.485579736 | P31: =+'Rohdaten FÄRSE'!O75 -> 8.371487442 | Q31: =+'Rohdaten FÄRSE'!P75 -> 8.26615029 | R31: =+'Rohdaten FÄRSE'!Q75 -> 8.168408861 | S31: =+'Rohdaten FÄRSE'!R75 -> 8.077314525 | T31: =+'Rohdaten FÄRSE'!S75 -> 7.992081825 | U31: =+'Rohdaten FÄRSE'!T75 -> 7.912053506
A32: 21 | B32: JV normal - 29 Monate EKA | C32: =+'Rohdaten FÄRSE'!B76 -> 13.57101909 | D32: =+'Rohdaten FÄRSE'!C76 -> 12.53322234 | E32: =+'Rohdaten FÄRSE'!D76 -> 11.84538906 | F32: =+'Rohdaten FÄRSE'!E76 -> 11.33796855 | G32: =+'Rohdaten FÄRSE'!F76 -> 10.93955389 | H32: =+'Rohdaten FÄRSE'!G76 -> 10.61364162 | I32: =+'Rohdaten FÄRSE'!H76 -> 10.33918241 | J32: =+'Rohdaten FÄRSE'!I76 -> 10.10298934 | K32: =+'Rohdaten FÄRSE'!J76 -> 9.896283228 | L32: =+'Rohdaten FÄRSE'!K76 -> 9.712940479 | M32: =+'Rohdaten FÄRSE'!L76 -> 9.548529196 | N32: =+'Rohdaten FÄRSE'!M76 -> 9.399744181 | O32: =+'Rohdaten FÄRSE'!N76 -> 9.26405847 | P32: =+'Rohdaten FÄRSE'!O76 -> 9.139499193 | Q32: =+'Rohdaten FÄRSE'!P76 -> 9.024498265 | R32: =+'Rohdaten FÄRSE'!Q76 -> 8.917789903 | S32: =+'Rohdaten FÄRSE'!R76 -> 8.818338448 | T32: =+'Rohdaten FÄRSE'!S76 -> 8.725286383 | U32: =+'Rohdaten FÄRSE'!T76 -> 8.637916157
A33: 22 | B33: JV normal - 32 Monate EKA | C33: =+'Rohdaten FÄRSE'!B77 -> 14.68846303 | D33: =+'Rohdaten FÄRSE'!C77 -> 13.56521362 | E33: =+'Rohdaten FÄRSE'!D77 -> 12.82074383 | F33: =+'Rohdaten FÄRSE'!E77 -> 12.27154209 | G33: =+'Rohdaten FÄRSE'!F77 -> 11.84032179 | H33: =+'Rohdaten FÄRSE'!G77 -> 11.48757375 | I33: =+'Rohdaten FÄRSE'!H77 -> 11.19051544 | J33: =+'Rohdaten FÄRSE'!I77 -> 10.93487413 | K33: =+'Rohdaten FÄRSE'!J77 -> 10.71114773 | L33: =+'Rohdaten FÄRSE'!K77 -> 10.51270846 | M33: =+'Rohdaten FÄRSE'!L77 -> 10.33475947 | N33: =+'Rohdaten FÄRSE'!M77 -> 10.17372343 | O33: =+'Rohdaten FÄRSE'!N77 -> 10.0268653 | P33: =+'Rohdaten FÄRSE'!O77 -> 9.892049753 | Q33: =+'Rohdaten FÄRSE'!P77 -> 9.767579597 | R33: =+'Rohdaten FÄRSE'!Q77 -> 9.652084819 | S33: =+'Rohdaten FÄRSE'!R77 -> 9.544444485 | T33: =+'Rohdaten FÄRSE'!S77 -> 9.443730471 | U33: =+'Rohdaten FÄRSE'!T77 -> 9.34916614
A34: 23 | B34: JV maximal - 26 Monate EKA | C34: =+'Rohdaten FÄRSE'!B66 -> 16.55778921 | D34: =+'Rohdaten FÄRSE'!C66 -> 15.29158954 | E34: =+'Rohdaten FÄRSE'!D66 -> 14.45237486 | F34: =+'Rohdaten FÄRSE'!E66 -> 13.833279 | G34: =+'Rohdaten FÄRSE'!F66 -> 13.34717948 | H34: =+'Rohdaten FÄRSE'!G66 -> 12.94953898 | I34: =+'Rohdaten FÄRSE'!H66 -> 12.61467557 | J34: =+'Rohdaten FÄRSE'!I66 -> 12.32650008 | K34: =+'Rohdaten FÄRSE'!J66 -> 12.07430117 | L34: =+'Rohdaten FÄRSE'!K66 -> 11.85060753 | M34: =+'Rohdaten FÄRSE'!L66 -> 11.65001189 | N34: =+'Rohdaten FÄRSE'!M66 -> 11.46848161 | O34: =+'Rohdaten FÄRSE'!N66 -> 11.30293358 | P34: =+'Rohdaten FÄRSE'!O66 -> 11.15096074 | Q34: =+'Rohdaten FÄRSE'!P66 -> 11.0106499 | R34: =+'Rohdaten FÄRSE'!Q66 -> 10.88045669 | S34: =+'Rohdaten FÄRSE'!R66 -> 10.75911752 | T34: =+'Rohdaten FÄRSE'!S66 -> 10.64558614 | U34: =+'Rohdaten FÄRSE'!T66 -> 10.53898709
A35: 24 | B35: JV maximal - 29 Monate EKA | C35: =+'Rohdaten FÄRSE'!B67 -> 18.07682352 | D35: =+'Rohdaten FÄRSE'!C67 -> 16.69446096 | E35: =+'Rohdaten FÄRSE'!D67 -> 15.77825557 | F35: =+'Rohdaten FÄRSE'!E67 -> 15.102363 | G35: =+'Rohdaten FÄRSE'!F67 -> 14.57166804 | H35: =+'Rohdaten FÄRSE'!G67 -> 14.13754747 | I35: =+'Rohdaten FÄRSE'!H67 -> 13.77196323 | J35: =+'Rohdaten FÄRSE'!I67 -> 13.45735012 | K35: =+'Rohdaten FÄRSE'!J67 -> 13.18201413 | L35: =+'Rohdaten FÄRSE'!K67 -> 12.93779854 | M35: =+'Rohdaten FÄRSE'!L67 -> 12.71879997 | N35: =+'Rohdaten FÄRSE'!M67 -> 12.52061585 | O35: =+'Rohdaten FÄRSE'!N67 -> 12.33988022 | P35: =+'Rohdaten FÄRSE'!O67 -> 12.17396519 | Q35: =+'Rohdaten FÄRSE'!P67 -> 12.02078204 | R35: =+'Rohdaten FÄRSE'!Q67 -> 11.87864472 | S35: =+'Rohdaten FÄRSE'!R67 -> 11.74617373 | T35: =+'Rohdaten FÄRSE'!S67 -> 11.62222683 | U35: =+'Rohdaten FÄRSE'!T67 -> 11.50584823
A36: 25 | B36: JV maximal - 32 Monate EKA | C36: =+'Rohdaten FÄRSE'!B68 -> 19.56527747 | D36: =+'Rohdaten FÄRSE'!C68 -> 18.06909054 | E36: =+'Rohdaten FÄRSE'!D68 -> 17.07744438 | F36: =+'Rohdaten FÄRSE'!E68 -> 16.34589851 | G36: =+'Rohdaten FÄRSE'!F68 -> 15.77150588 | H36: =+'Rohdaten FÄRSE'!G68 -> 15.30163962 | I36: =+'Rohdaten FÄRSE'!H68 -> 14.90595301 | J36: =+'Rohdaten FÄRSE'!I68 -> 14.56543451 | K36: =+'Rohdaten FÄRSE'!J68 -> 14.26742723 | L36: =+'Rohdaten FÄRSE'!K68 -> 14.00310281 | M36: =+'Rohdaten FÄRSE'!L68 -> 13.7660718 | N36: =+'Rohdaten FÄRSE'!M68 -> 13.55156911 | O36: =+'Rohdaten FÄRSE'!N68 -> 13.35595163 | P36: =+'Rohdaten FÄRSE'!O68 -> 13.17637508 | Q36: =+'Rohdaten FÄRSE'!P68 -> 13.01057875 | R36: =+'Rohdaten FÄRSE'!Q68 -> 12.85673779 | S36: =+'Rohdaten FÄRSE'!R68 -> 12.71335907 | T36: =+'Rohdaten FÄRSE'!S68 -> 12.57920632 | U36: =+'Rohdaten FÄRSE'!T68 -> 12.45324506
A38: Zur Kontrolle der AKh gesamt je Kuh und Jahr (mit oder ohne Nachzucht) - Zusammenstellung über Auswahlnummer in der ersten Spalte (Kuh solo: ohne Nummer in Zeile 33):
B39: Milchkühe Jahres-Ø | C39: 20 | D39: 30 | E39: 40 | F39: 50 | G39: 60 | H39: 70 | I39: 80 | J39: 90 | K39: 100 | L39: 110 | M39: 120 | N39: 130 | O39: 140 | P39: 150 | Q39: 160 | R39: 170 | S39: 180 | T39: 190 | U39: 200
A40: 5 | B40: =VLOOKUP($A$40,$A$12:$U$36,B10,FALSE) -> Laufstall-FGM 2x6 | C40: =IF(ISBLANK(VLOOKUP($A$40,$A$12:$U$36,C10,FALSE))," ",VLOOKUP($A$40,$A$12:$U$36,C10,FALSE)) ->  | G40: 23.12282387 | H40: 22.23074811 | I40: 21.48586409 | J40: 20.84957435 | K40: 20.29637757 | L40: 19.80860539 | M40: 19.37354725 | N40: 18.98177549 | O40: 18.62611813 | P40: 18.30100145 | Q40: 18.00201418 | R40: 17.72560954
A41: 13 | B41: =VLOOKUP(A41,$A$12:$U$36,2,FALSE) -> FMW | C41: =IF(ISNUMBER(C40),VLOOKUP($A41,$A$23:$U$25,C$10,FALSE)," ") ->  | G41: 12.41879461 | H41: 11.54907818 | I41: 10.84508483 | J41: 10.25982548 | K41: 9.763107439 | L41: 9.334520184 | M41: 8.959700286 | N41: 8.628204576 | O41: 8.332232093 | P41: 8.065821328 | Q41: 7.824326971 | R41: 7.604067927
A42: 15 | B42: =VLOOKUP(A42,$A$12:$U$36,2,FALSE) -> Sonstige Arbeiten (Milchkuh) | C42: =IF(ISNUMBER(C40),C26," ") ->  | D42: =IF(ISNUMBER(D40),D26," ") ->  | G42: 17.72069523 | H42: 16.87864882 | I42: 16.18164648 | J42: 15.59077707 | K42: 15.08053223 | L42: 14.6333603 | M42: 14.23671247 | N42: 13.88133306 | O42: 13.56021685 | P42: 13.26794536 | Q42: 13.00024887 | R42: 12.75370839
A43: 21 | B43: =IF(ISBLANK(A43),"nur Milchkuh (solo) ohne Nachzucht",VLOOKUP(A43,$A$12:$U$36,2,FALSE)) -> JV normal - 29 Monate EKA | C43: =IF(ISERROR(VLOOKUP($A43,$A$27:$U$36,C$10,FALSE))," ",IF(ISNUMBER(C40),VLOOKUP($A43,$A$27:$U$36,C$10,FALSE)," ")) ->  | D43: =IF(ISERROR(VLOOKUP($A43,$A$27:$U$36,D$10,FALSE))," ",IF(ISNUMBER(D40),VLOOKUP($A43,$A$27:$U$36,D$10,FALSE)," ")) ->  | G43: 10.93955389 | H43: 10.61364162 | I43: 10.33918241 | J43: 10.10298934 | K43: 9.896283228 | L43: 9.712940479 | M43: 9.548529196 | N43: 9.399744181 | O43: 9.26405847 | P43: 9.139499193 | Q43: 9.024498265 | R43: 8.917789903
A44: SUMME Jahresarbeitszeit (AKh/Kuh) | C44: =IF(SUM(C40:C43)>0,SUM(C40:C43)," ") ->  | D44: =IF(SUM(D40:D43)>0,SUM(D40:D43)," ") ->  | G44: 64.20186761 | H44: 61.27211672 | I44: 58.8517778 | J44: 56.80316625 | K44: 55.03630047 | L44: 53.48942636 | M44: 52.11848921 | N44: 50.89105731 | O44: 49.78262554 | P44: 48.77426734 | Q44: 47.85108828 | R44: 47.00117576
A45: Nur Milchkuh: Prozentanteil Melken+Füttern | C45: =IFERROR((C40+C41)/(C40+C41+C42)," ") ->  | D45: =IFERROR((D40+D41)/(D40+D41+D42)," ") ->  | G45: 0.667293927 | H45: 0.6668149054 | I45: 0.6664444286 | J45: 0.6661516485 | K45: 0.6659165602 | L45: 0.66572556 | M45: 0.6655690428 | N45: 0.6654400159 | O45: 0.6653332575 | P45: 0.6652447842 | Q45: 0.6651715006 | R45: 0.6651109636
A48: Ableitung der Regressionsgeraden für die Punkte 1 bis 23:
A50: =+A12 -> 1 | B50: Anbindestall mit Rohrmelkanlage
B51: Milchkühe Jahres-Ø | C51: 20 | D51: 30 | E51: 40 | F51: 50 | G51: 60 | H51: 70 | I51: 80 | J51: 90 | K51: 100 | L51: 110 | M51: 120 | N51: 130 | O51: 140 | P51: 150 | Q51: 160 | R51: 170 | S51: 180 | T51: 190 | U51: 200 | Y51: Bestandsgröße
C52: BZA Bayern 2011/12: 17 Rohrmelkanlagenbetriebe | W52: Quelle | X52: Anzahl Melkeinheiten | Y52: 20 | Z52: 40 | AA52: 60 | AB52: 80
B53: a. Literatur- u./o. Praxis- | D53: Kühe | E53: 20 | F53: 40 | G53: 60 | W53: 1 | X53: 3 | Z53: 37.41
B54: zahlen zur Jahresmelk- | D54: Jahresmelkzeit | E54: 55 | F54: 46 | G54: 40 | N54: = überschreibbare Arbeitszeitdaten | W54: 1 | X54: 4 | Z54: 30.42
B55: zeit (überschreibbar in | E55: y=c*x^b | G55: c = | H55: =EXP(INDEX(LINEST(LN(E54:G54),LN(E53:G53),,),1,2)) -> 130.4128245 | J55: b = | K55: =INDEX(LINEST(LN(E54:G54),LN(E53:G53),,),1) -> -0.2864155728 | O55: = Basis für die Regressionsgeradenberechnung. | W55: 2 | X55: 3 | Y55: 42.12 | Z55: 37.41
B56: den gelben Zellen) | D56: Differenz/Kuh | E56: =+(F54-E54)/(F53-E53) -> -0.45 | F56: =+(G54-F54)/(G53-F53) -> -0.3 | O56: => Kann bei Bedarf an eigene Erfahrungswerte ange- | W56: 2 | X56: 4 | Y56: 36.66 | Z56: 29.64
O57: passt werden. | W57: 3 | X57: 2 | Y57: =12.1*365/60 -> 73.60833333 | Z57: =11.4*365/60 -> 69.35
B58: b. Ableitung der Regressions- | W58: 3 | X58: 3 | Y58: =10.2*365/60 -> 62.05 | Z58: =9.5*365/60 -> 57.79166667
B59: geraden über die Potenz- | W59: 3 | X59: 4 | Y59: =8.4*365/60 -> 51.1 | Z59: =7.6*365/60 -> 46.23333333
B60: funktion (c und b wird über | W60: 4 | X60: ? | Y60: 48.67
B61: Excelformel berechnet, zur | X61: Mittelwert | Y61: =AVERAGE(Y53:Y60) -> 52.36805556 | Z61: =AVERAGE(Z53:Z60) -> 44.03642857
B62: Veranschaulichung für die | W62: unsere Schätzung | Y62: 55 | Z62: 40 | AA62: 35
B63: erste Ableitung die Excel-
B64: Grafik dazu)
B71: c. Über die Potenzfunktion wird für den gewünschten Herdengrößenbereich die geglättete Datenreihe ermittelt.
B73: "Geglättete" Datenreihe | C73: =$H$55*C51^$K$55 -> 55.29489651 | D73: =$H$55*D51^$K$55 -> 49.2322598 | E73: =$H$55*E51^$K$55 -> 45.33831452 | F73: =$H$55*F51^$K$55 -> 42.53131729 | G73: =$H$55*G51^$K$55 -> 40.36733623
A75: =+A13 -> 2 | B75: Laufstall mit FGM 2x2 oder 1x4
B76: Milchkühe Jahres-Ø | C76: 20 | D76: 30 | E76: 40 | F76: 50 | G76: 60 | H76: 70 | I76: 80 | J76: 90 | K76: 100 | L76: 110 | M76: 120 | N76: 130 | O76: 140 | P76: 150 | Q76: 160 | R76: 170 | S76: 180 | T76: 190 | U76: 200 | X76: Bestandsgröße
C77: Ableitung aus gesammelten Fundstellen | W77: Quelle | X77: 20 | Y77: 30 | Z77: 40 | AA77: 50 | AB77: 60
D78: Kühe | E78: 20 | F78: 30 | G78: 40 | H78: 60 | W78: 3 | X78: =8.9*365/60 -> 54.14166667 | Y78: =8.4*365/60 -> 51.1 | Z78: =7.6*365/60 -> 46.23333333 | AB78: =7.3*365/60 -> 44.40833333
D79: Jahresmelkzeit | E79: 54 | F79: 49 | G79: 46 | H79: 44
E80: y=c*x^b | G80: c = | H80: =EXP(INDEX(LINEST(LN(E79:H79),LN(E78:H78),,),1,2)) -> 93.85951474 | J80: b = | K80: =INDEX(LINEST(LN(E79:H79),LN(E78:H78),,),1) -> -0.1885424691
D81: Differenz/Kuh | E81: =+(F79-E79)/(F78-E78) -> -0.5 | F81: =+(G79-F79)/(G78-F78) -> -0.3 | G81: -0.1
B82: "Geglättete" Datenreihe | C82: =$H$80*C76^$K$80 -> 53.35546347 | D82: =$H$80*D76^$K$80 -> 49.42858932 | E82: =$H$80*E76^$K$80 -> 46.81898109 | F82: =$H$80*F76^$K$80 -> 44.8900723 | G82: =$H$80*G76^$K$80 -> 43.37318127
A84: =+A14 -> 3 | B84: Laufstall mit FGM 2x3
B85: Milchkühe Jahres-Ø | C85: 20 | D85: 30 | E85: 40 | F85: 50 | G85: 60 | H85: 70 | I85: 80 | J85: 90 | K85: 100 | L85: 110 | M85: 120 | N85: 130 | O85: 140 | P85: 150 | Q85: 160 | R85: 170 | S85: 180 | T85: 190 | U85: 200 | X85: Bestandsgröße
C86: Ableitung aus gesammelten Fundstellen | W86: Quelle | X86: 20 | Y86: 30 | Z86: 40 | AA86: 50 | AB86: 60
D87: Kühe | E87: 20 | F87: 30 | G87: 40 | H87: 60 | W87: 1 | Y87: =3.35/0.52*365/60 -> 39.19070513 | Z87: =3.2/0.52*365/60 -> 37.43589744 | AB87: =3/0.52*365/60 -> 35.09615385
D88: Jahresmelkzeit | E88: 45 | F88: 40 | G88: 37 | H88: 35 | W88: 2 | X88: =2.8/0.39*365/60 -> 43.67521368 | Y88: =2.45/0.39*365/60 -> 38.21581197 | Z88: =2.35/0.39*365/60 -> 36.65598291
E89: y=c*x^b | G89: c = | H89: =EXP(INDEX(LINEST(LN(E88:H88),LN(E87:H87),,),1,2)) -> 88.76667494 | J89: b = | K89: =INDEX(LINEST(LN(E88:H88),LN(E87:H87),,),1) -> -0.2314669747 | W89: 16 | Y89: 39.92 | Z89: 37.64 | AB89: 34.22
D90: Differenz/Kuh | E90: =+(F88-E88)/(F87-E87) -> -0.5 | F90: =+(G88-F88)/(G87-F87) -> -0.3 | G90: -0.1 | W90: Mittelwert | X90: =AVERAGE(X87:X89) -> 43.67521368 | Y90: =AVERAGE(Y87:Y89) -> 39.10883903 | Z90: 37.24396011 | AB90: 34.65807692
B91: "Geglättete" Datenreihe | E91: =$H$89*E85^$K$89 -> 37.79427099 | F91: 35.89173935 | G91: 34.40857299 | H91: 33.20249277 | I91: 32.19196377 | J91: 31.32617363
A93: =+A15 -> 4 | B93: Laufstall mit FGM 2x4
B94: Milchkühe Jahres-Ø | C94: 20 | D94: 30 | E94: 40 | F94: 50 | G94: 60 | H94: 70 | I94: 80 | J94: 90 | K94: 100 | L94: 110 | M94: 120 | N94: 130 | O94: 140 | P94: 150 | Q94: 160 | R94: 170 | S94: 180 | T94: 190 | U94: 200 | W94: Quelle | X94: 20 | Y94: 30 | Z94: 40 | AA94: 50 | AB94: 60 | AC94: 80 | AD94: 100 | AE94: 120
C95: Ableitung aus gesammelten Fundstellen | W95: 1 | Y95: =2.8/0.52*365/60 -> 32.75641026 | Z95: =2.65/0.52*365/60 -> 31.00160256 | AB95: =2.45/0.52*365/60 -> 28.66185897 | AC95: =2.35/0.52*365/60 -> 27.49198718
D96: Kühe | E96: 40 | F96: 60 | G96: 80 | H96: 100 | I96: 120 | W96: 2 | Y96: =2.15/0.39*365/60 -> 33.53632479 | Z96: =2/0.39*365/60 -> 31.1965812 | AB96: =1.8/0.39*365/60 -> 28.07692308 | AC96: =1.7/0.39*365/60 -> 26.51709402
D97: Jahresmelkzeit | E97: 31 | F97: 28 | G97: 26 | H97: 25.2 | I97: 24.7 | W97: 3 | X97: =6.2*365/60 -> 37.71666667 | Y97: 33.46 | Z97: =5.1*365/60 -> 31.025 | AA97: 29.5 | AB97: =4.7*365/60 -> 28.59166667 | AC97: =4.5*365/60 -> 27.375 | AD97: =4.4*365/60 -> 26.76666667 | AF97: 1+2+3 können zusammengefasst werden (gleiche Datengrundlage)
E98: y=c*x^b | G98: c = | H98: =EXP(INDEX(LINEST(LN(E97:I97),LN(E96:I96),,),1,2)) -> 66.93411394 | J98: b = | K98: =INDEX(LINEST(LN(E97:I97),LN(E96:I96),,),1) -> -0.2115514802 | W98: 5 | Z98: =5.1*365/60 -> 31.025 | AB98: =4.59*365/60 -> 27.9225 | AC98: =4.25*365/60 -> 25.85416667 | AD98: 25 | AE98: =4.07*365/60 -> 24.75916667
D99: Differenz/Kuh | E99: =+(F97-E97)/(F96-E96) -> -0.15 | F99: =+(G97-F97)/(G96-F96) -> -0.1 | G99: -0.04 | H99: -0.025 | W99: 10 | Z99: =4.58*365/60 -> 27.86166667 | AB99: =4.04*365/60 -> 24.57666667 | AC99: =3.77*365/60 -> 22.93416667
B100: "Geglättete" Datenreihe | F100: =$H$98*F94^$K$98 -> 29.25687252 | G100: 28.14990863 | H100: 27.24672429 | I100: 26.48780771 | J100: 25.83596117 | K100: 25.26646928 | L100: 24.76212288 | M100: 24.31048641 | W100: 14 | Z100: 31.61 | AB100: 28.47 | AC100: 26.03 | AD100: 25.3 | AE100: 24.73
Y101: Mittelwert | Z101: =AVERAGE(Z95:Z100) -> 30.61997507 | AA101: =AVERAGE(AA95:AA100) -> 29.5 | AB101: 27.71660256 | AC101: 26.03373575 | AD101: 25.68888889 | AE101: 24.74458333
A102: =+A16 -> 5 | B102: Laufstall mit FGM 2x6
B103: Milchkühe Jahres-Ø | C103: 20 | D103: 30 | E103: 40 | F103: 50 | G103: 60 | H103: 70 | I103: 80 | J103: 90 | K103: 100 | L103: 110 | M103: 120 | N103: 130 | O103: 140 | P103: 150 | Q103: 160 | R103: 170 | S103: 180 | T103: 190 | U103: 200 | W103: Quelle | X103: 20 | Y103: 30 | Z103: 40 | AA103: 50 | AB103: 60 | AC103: 80 | AD103: 100 | AE103: 120 | AF103: 140 | AG103: 180
C104: Ableitung aus gesammelten Fundstellen | W104: 2 | AB104: =4.15/1.15*365/60 -> 21.95289855 | AC104: =3.95/1.15*365/60 -> 20.89492754 | AD104: =3.45/1.15*365/60 -> 18.25 | AE104: =3.4/1.15*365/60 -> 17.98550725 | AF104: =3.35/1.15*365/60 -> 17.72101449 | AG104: =3.25/1.15*365/60 -> 17.19202899
D105: Kühe | E105: 60 | F105: 80 | G105: 100 | H105: 120 | I105: 140 | J105: 180 | U105: 3 | W105: 3 | X105: =5.5*365/60 -> 33.45833333 | Y105: =4.5*365/60 -> 27.375 | Z105: =4*365/60 -> 24.33333333 | AA105: 22.6 | AB105: =3.5*365/60 -> 21.29166667 | AC105: =3.3*365/60 -> 20.075 | AD105: =3.2*365/60 -> 19.46666667
D106: Jahresmelkzeit | E106: 23.5 | F106: 21.5 | G106: 20 | H106: 19 | I106: 18.49550725 | J106: 17.9 | U106: 5 | W106: 5 | AB106: =3.66*365/50 -> 26.718 | AC106: =3.48*365/50 -> 25.404 | AE106: =3.06*365/50 -> 22.338
E107: y=c*x^b | G107: c = | H107: =EXP(INDEX(LINEST(LN(E106:J106),LN(E105:J105),,),1,2)) -> 65.74723054 | J107: b = | K107: =INDEX(LINEST(LN(E106:J106),LN(E105:J105),,),1) -> -0.2552294652 | W107: 10 | Z107: =4.63*365/60 -> 28.16583333 | AB107: =3.98*365/60 -> 24.21166667 | AC107: =3.71*365/60 -> 22.56916667
D108: Differenz/Kuh | E108: =+(F106-E106)/(F105-E105) -> -0.1 | F108: =+(G106-F106)/(G105-F105) -> -0.075 | G108: -0.05 | H108: -0.02522463768 | I108: -0.01488768116 | W108: 14 | Z108: 26.86 | AB108: 23.22 | AC108: 21.32 | AD108: 20.28 | AE108: 19.53 | AF108: 19.27 | AG108: 18.54
B109: "Geglättete" Datenreihe | G109: =$H$107*G103^$K$107 -> 23.12282387 | H109: 22.23074811 | I109: 21.48586409 | J109: 20.84957435 | K109: 20.29637757 | L109: 19.80860539 | M109: 19.37354725 | N109: 18.98177549 | O109: 18.62611813 | P109: 18.30100145 | Q109: 18.00201418 | R109: 17.72560954 | W109: Mittelwert | X109: =AVERAGE(X104:X108) -> 33.45833333 | Y109: =AVERAGE(Y104:Y108) -> 27.375 | Z109: 26.45305556 | AA109: 22.6 | AB109: 23.47884638 | AC109: 22.05261884 | AD109: 19.33222222 | AE109: 19.95116908 | AF109: 18.49550725 | AG109: 17.86601449
A111: =+A17 -> 6 | B111: Laufstall mit FGM 2x8
B112: Milchkühe Jahres-Ø | C112: 20 | D112: 30 | E112: 40 | F112: 50 | G112: 60 | H112: 70 | I112: 80 | J112: 90 | K112: 100 | L112: 110 | M112: 120 | N112: 130 | O112: 140 | P112: 150 | Q112: 160 | R112: 170 | S112: 180 | T112: 190 | U112: 200 | W112: Quelle | X112: 20 | Y112: 30 | Z112: 40 | AA112: 50 | AB112: 60 | AC112: 80 | AD112: 100 | AE112: 120 | AF112: 140 | AG112: 180
C113: Ableitung aus gesammelten Fundstellen | W113: 2 | AD113: =3.35/1.15*365/60 -> 17.72101449 | AE113: =3.3/1.15*365/60 -> 17.45652174 | AF113: =3.25/1.15*365/60 -> 17.19202899 | AG113: =3.1/1.15*365/60 -> 16.39855072
D114: Kühe | E114: 80 | F114: 100 | G114: 120 | H114: 140 | I114: 180 | W114: 5 | AC114: =2.94*365/60 -> 17.885 | AE114: =2.66*365/60 -> 16.18166667
D115: Jahresmelkzeit | E115: 21 | F115: 19.8 | G115: 19 | H115: 18.5 | I115: 18 | W115: 10 | AC115: =3.41*365/60 -> 20.74416667 | AE115: =3.03*365/60 -> 18.4325 | AG115: =2.85*365/60 -> 17.3375
E116: y=c*x^b | G116: c = | H116: =EXP(INDEX(LINEST(LN(E115:I115),LN(E114:I114),,),1,2)) -> 48.01622924 | J116: b = | K116: =INDEX(LINEST(LN(E115:I115),LN(E114:I114),,),1) -> -0.1913444474 | W116: 14 | AC116: 24.2 | AD116: 22.61 | AE116: 21.46 | AF116: 21.03 | AG116: 20.61
D117: Differenz/Kuh | E117: =+(F115-E115)/(F114-E114) -> -0.06 | F117: =+(G115-F115)/(G114-F114) -> -0.04 | G117: -0.025 | H117: -0.0125 | AB117: Mittelwert | AC117: =AVERAGE(AC113:AC116) -> 20.94305556 | AD117: =AVERAGE(AD113:AD116) -> 20.16550725 | AE117: 18.3826721 | AF117: 19.11101449 | AG117: 18.11535024
B118: "Geglättete" Datenreihe | J118: =$H$116*J112^$K$116 -> 20.2980631 | K118: 19.89294842 | L118: 19.53344734 | M118: 19.21092448 | N118: 18.9189369 | O118: 18.65255668 | P118: 18.40793499 | Q118: 18.18201163 | R118: 17.97231555 | S118: 17.77682431 | T118: 17.59386288 | U118: 17.42202925
A120: =+A18 -> 7 | B120: Laufstall mit FGM 2x10
B121: Milchkühe Jahres-Ø | C121: 20 | D121: 30 | E121: 40 | F121: 50 | G121: 60 | H121: 70 | I121: 80 | J121: 90 | K121: 100 | L121: 110 | M121: 120 | N121: 130 | O121: 140 | P121: 150 | Q121: 160 | R121: 170 | S121: 180 | T121: 190 | U121: 200 | W121: Quelle | X121: 20 | Y121: 30 | Z121: 40 | AA121: 50 | AB121: 60 | AC121: 80 | AD121: 100 | AE121: 120 | AF121: 140 | AG121: 180
C122: Ableitung aus gesammelten Fundstellen | W122: 2 | AD122: =3.15/1.15*365/60 -> 16.66304348 | AE122: =3/1.15*365/60 -> 15.86956522 | AF122: =2.5*365/60 -> 15.20833333 | AG122: =2.8/1.15*365/60 -> 14.8115942
D123: Kühe | E123: 100 | F123: 120 | G123: 140 | H123: 180 | W123: 10 | AE123: =3.01*365/60 -> 18.31083333 | AG123: =2.79*365/60 -> 16.9725
D124: Jahresmelkzeit | E124: 19 | F124: 18 | G124: 17.5 | H124: 16.8 | W124: 14 | AD124: 21.03 | AE124: 20.05 | AF124: 19.65 | AG124: 18.73
E125: y=c*x^b | G125: c = | H125: =EXP(INDEX(LINEST(LN(E124:H124),LN(E123:H123),,),1,2)) -> 48.46340093 | J125: b = | K125: =INDEX(LINEST(LN(E124:H124),LN(E123:H123),,),1) -> -0.2050899523 | AC125: Mittelwert | AD125: =AVERAGE(AD122:AD124) -> 18.84652174 | AE125: =AVERAGE(AE122:AE124) -> 18.07679952 | AF125: 17.42916667 | AG125: 16.8380314
D126: Differenz/Kuh | E126: =+(F124-E124)/(F123-E123) -> -0.05 | F126: =+(G124-F124)/(G123-F123) -> -0.025 | G126: -0.0175
B127: "Geglättete" Datenreihe | M127: =$H$125*M121^$K$125 -> 18.15493528 | N127: 17.85933758 | O127: 17.58994944 | P127: 17.34280876 | Q127: 17.11476836 | R127: 16.90328931 | S127: 16.70629543 | T127: 16.52206857 | U127: 16.34917173
A129: =+A19 -> 8 | B129: Laufstall mit 20er Melkkarussell
B130: Milchkühe Jahres-Ø | C130: 20 | D130: 30 | E130: 40 | F130: 50 | G130: 60 | H130: 70 | I130: 80 | J130: 90 | K130: 100 | L130: 110 | M130: 120 | N130: 130 | O130: 140 | P130: 150 | Q130: 160 | R130: 170 | S130: 180 | T130: 190 | U130: 200 | W130: Quelle | X130: ME | Y130: 30 | Z130: 40 | AA130: 50 | AB130: 60 | AC130: 80 | AD130: 100 | AE130: 120 | AF130: 140 | AG130: 180
C131: Ableitung aus gesammelten Fundstellen | W131: 2 | X131: 20 | AD131: =2.1/1.15*365/60 -> 11.10869565 | AE131: =1.95/1.15*365/60 -> 10.31521739 | AF131: =1.85/1.15*365/60 -> 9.786231884 | AG131: =1.5*365/60 -> 9.125
D132: Kühe | E132: 100 | F132: 120 | G132: 140 | H132: 180 | W132: 10 | X132: 20 | AE132: =2.02*365/60 -> 12.28833333 | AG132: =1.77*365/60 -> 10.7675
D133: Jahresmelkzeit | E133: 12.5 | F133: 11.5 | G133: 10.9 | H133: 10 | AC133: Mittelwert | AD133: =AVERAGE(AD131:AD132) -> 11.10869565 | AE133: =AVERAGE(AE131:AE132) -> 11.30177536 | AF133: 9.786231884 | AG133: 9.94625
E134: y=c*x^b | G134: c = | H134: =EXP(INDEX(LINEST(LN(E133:H133),LN(E132:H132),,),1,2)) -> 69.93449311 | J134: b = | K134: =INDEX(LINEST(LN(E133:H133),LN(E132:H132),,),1) -> -0.3754142645
D135: Differenz/Kuh | E135: =+(F133-E133)/(F132-E132) -> -0.05 | F135: =+(G133-F133)/(G132-F132) -> -0.03 | G135: -0.0225
B136: "Geglättete" Datenreihe | M136: =$H$134*M130^$K$134 -> 11.5914331 | N136: 11.24830134 | O136: 10.93967332 | P136: 10.65996385 | Q136: 10.40479072 | R136: 10.17065892 | S136: 9.954740941 | T136: 9.754720367 | U136: 9.56867817
A138: =+A20 -> 9 | B138: Laufstall - AMS - 1 Box
B139: Milchkühe Jahres-Ø | C139: 20 | D139: 30 | E139: 40 | F139: 50 | G139: 60 | H139: 70 | I139: 80 | J139: 90 | K139: 100 | L139: 110 | M139: 120 | N139: 130 | O139: 140 | P139: 150 | Q139: 160 | R139: 170 | S139: 180 | T139: 190 | U139: 200 | W139: Quelle | X139: 20 | Y139: 30 | Z139: 40 | AA139: 50 | AB139: 60 | AC139: 70 | AD139: 80 | AE139: 120-140 | AF139: 180-200 | AG139: 350 | AH139: k.A.
C140: Ableitung aus gesammelten Fundstellen | W140: 3 | X140: =6.2*365/60 -> 37.71666667 | Y140: =4.1*365/60 -> 24.94166667 | Z140: =3.1*365/60 -> 18.85833333 | AB140: =2.1*365/60 -> 12.775
D141: Kühe | E141: 50 | F141: 60 | G141: 80 | W141: 6 | AC141: 6.1
D142: Jahresmelkzeit | E142: 12 | F142: 10 | G142: 8 | W142: 7 | AD142: 7.5
E143: y=c*x^b | G143: c = | H143: =EXP(INDEX(LINEST(LN(E142:G142),LN(E141:G141),,),1,2)) -> 336.6602532 | J143: b = | K143: =INDEX(LINEST(LN(E142:G142),LN(E141:G141),,),1) -> -0.8548557106 | W143: 8 | AG143: 5.96
D144: Differenz/Kuh | E144: =+(F142-E142)/(F141-E141) -> -0.2 | F144: =+(G142-F142)/(G141-F141) -> -0.1 | W144: 9 | AH144: 8.2
B145: "Geglättete" Datenreihe | F145: =$H$143*F139^$K$143 -> 11.88003268 | G145: =$H$143*G139^$K$143 -> 10.1655082 | H145: =$H$143*H139^$K$143 -> 8.910442041 | I145: =$H$143*I139^$K$143 -> 7.949219745 | W145: 10 | Z145: =3.33*365/60 -> 20.2575 | AB145: =2.29*365/60 -> 13.93083333
W146: 11 | AD146: 7.2
A147: =+A21 -> 10 | B147: Laufstall - AMS - 2 Boxen | W147: unsere Schätzung | AB147: 10 | AC147: 9 | AD147: 8 | AE147: 7.5 | AF147: 7 | AG147: 6
B148: Milchkühe Jahres-Ø | C148: 20 | D148: 30 | E148: 40 | F148: 50 | G148: 60 | H148: 70 | I148: 80 | J148: 90 | K148: 100 | L148: 110 | M148: 120 | N148: 130 | O148: 140 | P148: 150 | Q148: 160 | R148: 170 | S148: 180 | T148: 190 | U148: 200 | AB148: 1 AMS | AC148: 1 AMS | AD148: 1 AMS | AE148: 2 AMS | AF148: 3 AMS | AG148: 6
C149: Ableitung aus gesammelten Fundstellen
D150: Kühe | E150: 80 | F150: 100 | G150: 120 | H150: 140 | W150: Quelle | X150: 20 | Y150: 30 | Z150: 40 | AA150: 50 | AB150: 60 | AC150: 80 | AD150: 120 | AE150: 180 | AF150: 240
D151: Jahresmelkzeit | E151: 10.5 | F151: 9 | G151: 8 | H151: 7.2 | W151: 10 | AC151: =2.56*365/60 -> 15.57333333 | AD151: =1.77*365/60 -> 10.7675 | AE151: =1.6*365/60 -> 9.733333333 | AF151: =1.52*365/60 -> 9.246666667
E152: y=c*x^b | G152: c = | H152: =EXP(INDEX(LINEST(LN(E151:H151),LN(E150:H150),,),1,2)) -> 199.0713535 | J152: b = | K152: =INDEX(LINEST(LN(E151:H151),LN(E150:H150),,),1) -> -0.6717412131 | AC152: 2 AMS | AD152: 2 AMS | AE152: 3 AMS | AF152: 4 AMS
D153: Differenz/Kuh | E153: =+(F151-E151)/(F150-E150) -> -0.075 | F153: =+(G151-F151)/(G150-F150) -> -0.05 | G153: -0.04
B154: "Geglättete" Datenreihe | I154: =$H$152*I148^$K$152 -> 10.48636072 | J154: 9.688655977 | K154: 9.02664459 | L154: 8.466836446 | M154: 7.986142162 | N154: 7.568083192 | O154: 7.20055744 | P154: 6.874459966 | Q154: 6.582798149
A156: =+A22 -> 11 | B156: Laufstall - AMS - 3 Boxen
B157: Milchkühe Jahres-Ø | C157: 20 | D157: 30 | E157: 40 | F157: 50 | G157: 60 | H157: 70 | I157: 80 | J157: 90 | K157: 100 | L157: 110 | M157: 120 | N157: 130 | O157: 140 | P157: 150 | Q157: 160 | R157: 170 | S157: 180 | T157: 190 | U157: 200
C158: Ableitung aus gesammelten Fundstellen
D159: Kühe | E159: 160 | F159: 180 | G159: 200
D160: Jahresmelkzeit | E160: 8.2 | F160: 7.2 | G160: 6.8
E161: y=c*x^b | G161: c = | H161: =EXP(INDEX(LINEST(LN(E160:G160),LN(E159:G159),,),1,2)) -> 589.0954919 | J161: b = | K161: =INDEX(LINEST(LN(E160:G160),LN(E159:G159),,),1) -> -0.8441634898
D162: Differenz/Kuh | E162: =+(F160-E160)/(F159-E159) -> -0.05 | F162: =+(G160-F160)/(G159-F159) -> -0.02
B163: "Geglättete" Datenreihe | O163: =$H$161*O157^$K$161 -> 9.088720898 | P163: 8.574502037 | Q163: 8.119851425 | R163: 7.714755272 | S163: 7.35134815 | T163: 7.023362866 | U163: 6.725741756
A165: =+A24 -> 13 | B165: FMW = Futtermischwagen + Kraftfutterautomat (als Ausgangsbasis für die Ableitung bei Siloblockschneider und AFS)
B166: Milchkühe Jahres-Ø | C166: 20 | D166: 30 | E166: 40 | F166: 50 | G166: 60 | H166: 70 | I166: 80 | J166: 90 | K166: 100 | L166: 110 | M166: 120 | N166: 130 | O166: 140 | P166: 150 | Q166: 160 | R166: 170 | S166: 180 | T166: 190 | U166: 200 | W166: Inkl. Rüstarbeiten und andere mit Futtern verbundene Arbeiten | X166: 10 | AB166: =(0.45+0.15+0.71)*365/60 -> 7.969166667 | AD166: =(0.4+0.14+0.64)*365/60 -> 7.178333333 | AF166: =(0.3+0.56)*365/60 -> 5.231666667 | AH166: =(0.15+0.55)*365/60 -> 4.258333333 | AI166: =(0.13+0.55)*365/60 -> 4.136666667 | AJ166: =(0.1+0.55)*365/60 -> 3.954166667 | AK166: Selbstfahrende, Selbstbefühler (80 und 120 Kühe mit Kraftfutterstation)??
C167: Ableitung aus gesammelten Fundstellen | W167: ? | X167: 12 | AA167: 5.59 | AC167: 6.08 | AE167: 5.18 | AG167: 4.77 | AK167: Selbstfahrende, Selbstbefühler
D168: Anzahl Kühe | E168: 20 | F168: 40 | G168: 80 | H168: 160 | I168: 200 | X168: 15 | Y168: 14.3 | Z168: 12.7 | AK168: FMW+Kraftfutterstation
D169: Fütterungszeit | E169: 20 | F169: 15 | G169: 12 | H169: 8 | I169: 6.5
E170: y=c*x^b | G170: c = | H170: =EXP(INDEX(LINEST(LN(E169:I169),LN(E168:I168),,),1,2)) -> 85.42669663 | J170: b = | K170: =INDEX(LINEST(LN(E169:I169),LN(E168:I168),,),1) -> -0.4710027722
D171: Differenz/Kuh | E171: =+(F169-E169)/(F168-E168) -> -0.25 | F171: =+(G169-F169)/(G168-F168) -> -0.075 | G171: -0.05 | H171: -0.0375
B172: "Geglättete" Datenreihe | C172: =+$H$170*C166^$K$170 -> 20.83554564 | D172: 17.21335031 | E172: 15.03207437 | F172: 13.53237521 | G172: 12.41879461 | H172: 11.54907818 | I172: 10.84508483 | J172: 10.25982548 | K172: 9.763107439 | L172: 9.334520184 | M172: 8.959700286 | N172: 8.628204576 | O172: 8.332232093 | P172: 8.065821328 | Q172: 7.824326971 | R172: 7.604067927 | S172: 7.40208403 | T172: 7.215963865 | U172: 7.043720363
A175: =+A23 -> 12 | B175: SBS = Siloblockschneider mit Vorlage von Hand + Kraftfutter von Hand
B176: Milchkühe Jahres-Ø | C176: 20 | D176: 30 | E176: 40 | F176: 50 | G176: 60 | H176: 70 | I176: 80 | J176: 90 | K176: 100 | L176: 110 | M176: 120 | N176: 130 | O176: 140 | P176: 150 | Q176: 160 | R176: 170 | S176: 180 | T176: 190 | U176: 200
B177: Ausgangsbasis: Futtermischwagen | C177: =+C172 -> 20.83554564 | D177: 17.21335031 | E177: 15.03207437 | F177: 13.53237521 | G177: 12.41879461 | H177: 11.54907818 | I177: 10.84508483 | J177: 10.25982548 | K177: 9.763107439 | L177: 9.334520184 | M177: 8.959700286 | N177: 8.628204576 | O177: 8.332232093 | P177: 8.065821328 | Q177: 7.824326971 | R177: 7.604067927 | S177: 7.40208403 | T177: 7.215963865 | U177: 7.043720363
C178: Korrektur über Schätzung: Ausgehend vom Futtermischwagen (FMW) wird über einen Korrekturfaktor die Fütterungszeit beim Siloblockschneider (SBS) abgeleitet.
C179: In kleinen Beständen geht das Füttern mit dem SBS schneller als mit dem FMW (viel Zeit für die Mischung, kurze Vorlagezeit) => Zeitvorteil für den Siloblockschneider.
C180: In großen Beständen wird der Entnahmevorteil des Siloblockschneiders auf viele Kühe verdünnt, die zeitaufwendigere Futterverteilung von Hand dominiert die Fütterungszeit.
C181: Annahme: Bis 40 Kühe geht die Fütterung mit dem SBS schneller (Vorteil sinkend von 3 auf 0 h), darüber steigt der Zeitaufwand je Kuh von 1 bei 50 auf 5 h bei 200 Kühen.
D183: Ab 50 Kühe mittels Regressionsgerade: Zuschlag FMW + x = SBS-Zeitaufwand.
D184: Kühe | E184: 50 | F184: 125 | G184: 200
D185: Jahresmelkzeit | E185: 1 | F185: 2 | G185: 5
E186: y=c*x^b | G186: c = | H186: =EXP(INDEX(LINEST(LN(E185:G185),LN(E184:G184),,),1,2)) -> 0.01220733332 | J186: b = | K186: =INDEX(LINEST(LN(E185:G185),LN(E184:G184),,),1) -> 1.105500586
D187: Differenz/Kuh | E187: =+(F185-E185)/(F184-E184) -> 0.01333333333 | F187: =+(G185-F185)/(G184-F184) -> 0.04
B188: Korrektur: SBS statt FMW | C188: -3 | D188: -1 | E188: 0 | F188: =$H$186*F176^$K$186 -> 0.9222170307 | G188: 1.128153128 | H188: 1.337758648 | I188: 1.55055758 | J188: 1.766188457 | K188: 1.984366902 | L188: 2.204863014 | M188: 2.427486864 | N188: 2.65207876 | O188: 2.878502451 | P188: 3.106640249 | Q188: 3.336389417 | R188: 3.56765945 | S188: 3.800369977 | T188: 4.034449129 | U188: 4.26983223
B189: "Geglättete" Datenreihe | C189: =+C177+C188 -> 17.83554564 | D189: =+D177+D188 -> 16.21335031 | E189: =+E177+E188 -> 15.03207437 | F189: =+F172+F188 -> 14.45459224 | G189: =+G172+G188 -> 13.54694774 | H189: 12.88683682 | I189: 12.39564241 | J189: 12.02601394 | K189: 11.74747434 | L189: 11.5393832 | M189: 11.38718715 | N189: 11.28028334 | O189: 11.21073454 | P189: 11.17246158 | Q189: 11.16071639 | R189: 11.17172738 | S189: 11.20245401 | T189: 11.25041299 | U189: 11.31355259
A191: =+A25 -> 14 | B191: AFS = Automatisches Futtervorlage-System (mit täglicher Vorratsbefüllung) | W191: Quelle | Y191: 50 | Z191: 75 | AA191: 100 | AB191: 125 | AC191: 150 | AD191: 175 | AE191: 200
B192: Milchkühe Jahres-Ø | C192: 20 | D192: 30 | E192: 40 | F192: 50 | G192: 60 | H192: 70 | I192: 80 | J192: 90 | K192: 100 | L192: 110 | M192: 120 | N192: 130 | O192: 140 | P192: 150 | Q192: 160 | R192: 170 | S192: 180 | T192: 190 | U192: 200 | W192: 13 | X192: Schneidschaufel (2 m³, jeden 2. Tag) | Y192: 3.6 | Z192: 2.91 | AA192: 2.48 | AB192: 2.22 | AC192: 2.07 | AD192: 1.91 | AE192: 1.88
B193: Ausgangsbasis: Futtermischwagen | C193: =+C172 -> 20.83554564 | D193: 17.21335031 | E193: 15.03207437 | F193: 13.53237521 | G193: 12.41879461 | H193: 11.54907818 | I193: 10.84508483 | J193: 10.25982548 | K193: 9.763107439 | L193: 9.334520184 | M193: 8.959700286 | N193: 8.628204576 | O193: 8.332232093 | P193: 8.065821328 | Q193: 7.824326971 | R193: 7.604067927 | S193: 7.40208403 | T193: 7.215963865 | U193: 7.043720363 | X193: Schneidschaufel (2 m³, täglich) | Y193: 6.12 | Z193: 4.84 | AA193: 4.05 | AB193: 3.56 | AC193: 3.35 | AD193: 2.95 | AE193: 2.93
X194: Greifschaufel (1,15 m³, jeden 2. Tag) | Y194: 4.12 | Z194: 3.4 | AA194: 2.95 | AB194: 2.73 | AC194: 2.64 | AD194: 2.44 | AE194: 2.38
D195: Kühe | E195: 20 | F195: 60 | G195: 120 | H195: 200 | X195: Greifschaufel (1,15 m³, täglich) | Y195: 6.8 | Z195: 5.34 | AA195: 4.43 | AB195: 4.01 | AC195: 3.87 | AD195: 3.49 | AE195: 3.44
D196: Zeiteinsparung ggü Futtermischwagen | E196: 1 | F196: 1.2 | G196: 1.8 | H196: 3 | I196: Vorteil des AFS gegenüber dem Futtermischwagen (Durchschnittswert, überschreibbar) | X196: Blockschneider (2,5 m³, jeden 2. Tag) | Y196: 4.59 | Z196: 3.43 | AA196: 2.97 | AB196: 2.66 | AC196: 2.49 | AD196: 2.24 | AE196: 2.21
C197: y=c*x^b | E197: c = | F197: =EXP(INDEX(LINEST(LN(E196:H196),LN(E195:H195),,),1,2)) -> 0.2253997416 | H197: b = | I197: =INDEX(LINEST(LN(E196:H196),LN(E195:H195),,),1) -> 0.4557692005 | X197: Blockschneider (2,5 m³, täglich) | Y197: 7.42 | Z197: 5.65 | AA197: 4.72 | AB197: 4.15 | AC197: 3.75 | AD197: 3.46 | AE197: 3.33
D198: Differenz/Kuh | E198: =+(F196-E196)/(F195-E195) -> 0.005 | F198: =+(G196-F196)/(G195-F195) -> 0.01 | G198: 0.015 | X198: vollautomatisch aus Hoch-/Tiefsilo | Y198: 0.81 | Z198: 0.65 | AA198: 0.57 | AB198: 0.51 | AC198: 0.49 | AD198: 0.47 | AE198: 0.46
B199: Zeiteinsparung durch AFS | C199: =$F$197*C192^$I$197 -> 0.8829229686 | D199: 1.062135164 | E199: 1.210941088 | F199: 1.340576538 | G199: 1.456733097 | H199: 1.562759949 | I199: 1.660822484 | J199: 1.752414992 | K199: 1.838619301 | L199: 1.92024802 | M199: 1.997929632 | N199: 2.072161906 | O199: 2.143346928 | P199: 2.21181494 | Q199: 2.277841055 | R199: 2.341657294 | S199: 2.403461448 | T199: 2.46342373 | U199: 2.521691853 | Y199: Automatisches Nachschieben angenommen
B200: "Geglättete" Datenreihe | C200: =+C193-C199 -> 19.95262267 | D200: =+D193-D199 -> 16.15121514 | E200: 13.82113328 | F200: 12.19179868 | G200: 10.96206152 | H200: 9.986318228 | I200: 9.184262344 | J200: 8.507410488 | K200: 7.924488138 | L200: 7.414272164 | M200: 6.961770654 | N200: 6.556042671 | O200: 6.188885165 | P200: 5.854006388 | Q200: 5.546485916 | R200: 5.262410633 | S200: 4.998622582 | T200: 4.752540135 | U200: 4.522028511 | X200: falls Mobiles Nachschieben (2x täglich), dann zusätzlich | Y200: 1.98 | Z200: 1.36 | AA200: 1.04 | AB200: 0.85 | AC200: 0.72 | AD200: 0.61 | AE200: 0.54
W201: Schwierig zu beurteilen. Unsere Untersuchungen: Anteil Melken+Füttern an der Gesamtarbeitszeit bei konventioneller Melktechnik 50-55 % und bei AMS 40-45 %.
A202: =+A26 -> 15 | B202: Sonstige Arbeiten Milchkuh (incl. Büro, sonstige Reparaturen, Tierbeobachtung; mit Wirtschaftsdüngerausbringung)
B203: Milchkühe Jahres-Ø | C203: 20 | D203: 30 | E203: 40 | F203: 50 | G203: 60 | H203: 70 | I203: 80 | J203: 90 | K203: 100 | L203: 110 | M203: 120 | N203: 130 | O203: 140 | P203: 150 | Q203: 160 | R203: 170 | S203: 180 | T203: 190 | U203: 200 | W203: Anteil "Melken + Füttern" an der Gesamtarbeitszeit
C204: Ableitung aus gesammelten Fundstellen | X204: Milchkuh ohne Nachzucht: 55 - 40 %
C205: Kühe | D205: 20 | E205: 40 | F205: 80 | G205: 160 | H205: 200 | X205: Milchkuh mit Nachzucht: 70 - 60 %
C206: Einzeldaten (geschätzt oder Literatur) | D206: 25 | E206: 20 | F206: 16.5 | G206: 13 | H206: 12 | W206: => Kontrollrechnung: Siehe Arbeitsblatt-Ende.
B207: Ableitung der Potenzfunktion | C207: y=c*x^b | E207: c = | F207: =EXP(INDEX(LINEST(LN(D206:H206),LN(D205:H205),,),1,2)) -> 64.57360062 | H207: b = | I207: =INDEX(LINEST(LN(D206:H206),LN(D205:H205),,),1) -> -0.315819167
C208: Differenz/Kuh | D208: =+(E206-D206)/(E205-D205) -> -0.25 | E208: =+(F206-E206)/(F205-E205) -> -0.0875 | F208: -0.04375 | G208: -0.025
B209: "Geglättete" Datenreihe | C209: =+$F$207*C203^$I$207 -> 25.07060381 | D209: 22.05727201 | E209: 20.14159 | F209: 18.77101305 | G209: 17.72069523 | H209: 16.87864882 | I209: 16.18164648 | J209: 15.59077707 | K209: 15.08053223 | L209: 14.6333603 | M209: 14.23671247 | N209: 13.88133306 | O209: 13.56021685 | P209: 13.26794536 | Q209: 13.00024887 | R209: 12.75370839 | S209: 12.52554753 | T209: 12.31348368 | U209: 12.11561953
A211: =+A27 -> 16 | B211: Keine eigene Nachzucht - Zeitbedarf für den Jungkuhzukauf
B212: Geschätzter Zeitbedarf je Kuh und Jahr für den Jungkuhkauf
B213: Milchkühe Jahres-Ø | C213: 20 | D213: 30 | E213: 40 | F213: 50 | G213: 60 | H213: 70 | I213: 80 | J213: 90 | K213: 100 | L213: 110 | M213: 120 | N213: 130 | O213: 140 | P213: 150 | Q213: 160 | R213: 170 | S213: 180 | T213: 190 | U213: 200
C214: Eigene Schätzung | G214: Kühe | H214: 20 | I214: 100 | J214: 200
G215: Zeitbedarf | H215: 4 | I215: 2 | J215: 1
F216: y=c*x^b | H216: c = | I216: =EXP(INDEX(LINEST(LN(H215:J215),LN(H214:J214),,),1,2)) -> 23.38404948 | K216: b = | L216: =INDEX(LINEST(LN(H215:J215),LN(H214:J214),,),1) -> -0.5718734148
G217: Differenz/Kuh | H217: =+(I215-H215)/(I214-H214) -> -0.025 | I217: =+(J215-I215)/(J214-I214) -> -0.01
B218: "Geglättete" Datenreihe | C218: =$I$216*C213^$L$216 -> 4.215948091 | D218: 3.343438548 | E218: 2.836248005 | F218: 2.496456157 | G218: 2.249273641 | H218: 2.059478225 | I218: 1.908064941 | J218: 1.783776278 | K218: 1.67947248 | L218: 1.590382234 | M218: 1.513182264 | N218: 1.445478771 | O218: 1.385498797 | P218: 1.331898047 | Q218: 1.283636626 | R218: 1.239896061 | S218: 1.200022344 | T218: 1.163485883 | U218: 1.129852732
A220: =+A28 -> 17 | B220: bis 23 | C220: Siehe Excelblatt "Nachzucht"
A224: Zur Kontrolle: Gesamtarbeitszeit Milchkuh OHNE Nachzucht im Vergleich mit den BZA Ergebnissen
A225: Bis 40 Kühe mit Siloblockschneider (SBS), ab 50 Kühe mit Futtermischwagen (FMW). Ohne AFS. Ohne die Nachzuchtarbeit.
B226: Milchkühe Jahres-Ø | C226: 20 | D226: 30 | E226: 40 | F226: 50 | G226: 60 | H226: 70 | I226: 80 | J226: 90 | K226: 100 | L226: 110 | M226: 120 | N226: 130 | O226: 140 | P226: 150 | Q226: 160 | R226: 170 | S226: 180 | T226: 190 | U226: 200
B227: Anbindestall-Rohr-MA | C227: =+C12+C$23+C$26 -> 98.20104596 | D227: 87.50288212 | E227: 80.51197889 | F227: =+F12+F$24+F$26 -> 74.83470556 | G227: 70.50682608
B228: Laufstall-FGM 2x2 o. 1x4 | C228: 96.26161292 | D228: 87.69921164 | E228: 81.99264547 | F228: 77.19346057 | G228: 73.51267112
B229: Laufstall-FGM 2x3 | E229: =+E14+E$23+E$26 -> 72.96793536 | F229: 68.19512761 | G229: 64.54806284 | H229: =+H14+H$24+H$26 -> 61.63021976 | I229: 59.21869508 | J229: 57.17677618
... 67 more rows

Sheet Rohdaten FÄRSE (hidden)
A1: Ableitung des Arbeitszeitbedarfs für die weibliche Nachzucht - ZIEL: Nachzucht-AKh je KUH
A3: Herdengröße | B3: 20 | C3: 30 | D3: 40 | E3: 50 | F3: 60 | G3: 70 | H3: 80 | I3: 90 | J3: 100 | K3: 110 | L3: 120 | M3: 130 | N3: 140 | O3: 150 | P3: 160 | Q3: 170 | R3: 180 | S3: 190 | T3: 200
A4: x 0,9 Kälber / Kuh = Kuhkälber / Jahr | B4: =+B3*0.9 -> 18 | C4: =+C3*0.9 -> 27 | D4: 36 | E4: 45 | F4: 54 | G4: 63 | H4: 72 | I4: 81 | J4: 90 | K4: 99 | L4: 108 | M4: 117 | N4: 126 | O4: 135 | P4: 144 | Q4: 153 | R4: 162 | S4: 171 | T4: 180
A5: x 50 % weiblich = Kuhkälber weiblich / Jahr | B5: =+B4*0.5 -> 9 | C5: =+C4*0.5 -> 13.5 | D5: 18 | E5: 22.5 | F5: 27 | G5: 31.5 | H5: 36 | I5: 40.5 | J5: 45 | K5: 49.5 | L5: 54 | M5: 58.5 | N5: 63 | O5: 67.5 | P5: 72 | Q5: 76.5 | R5: 81 | S5: 85.5 | T5: 90
A6: x 90 % Aufzuchtfaktor = Erstkalbungen / Jahr | B6: =+B5*0.9 -> 8.1 | C6: =+C5*0.9 -> 12.15 | D6: 16.2 | E6: 20.25 | F6: 24.3 | G6: 28.35 | H6: 32.4 | I6: 36.45 | J6: 40.5 | K6: 44.55 | L6: 48.6 | M6: 52.65 | N6: 56.7 | O6: 60.75 | P6: 64.8 | Q6: 68.85 | R6: 72.9 | S6: 76.95 | T6: 81
A7: x 0,9 Kälber / Kalbin = Kalbinkälber / Jahr | B7: =+B6*0.9 -> 7.29 | C7: 10.935 | D7: 14.58 | E7: 18.225 | F7: 21.87 | G7: 25.515 | H7: 29.16 | I7: 32.805 | J7: 36.45 | K7: 40.095 | L7: 43.74 | M7: 47.385 | N7: 51.03 | O7: 54.675 | P7: 58.32 | Q7: 61.965 | R7: 65.61 | S7: 69.255 | T7: 72.9
A8: x 50 % weiblich = Kalbinkälber weiblich / Jahr | B8: =+B7*0.5 -> 3.645 | C8: =+C7*0.5 -> 5.4675 | D8: 7.29 | E8: 9.1125 | F8: 10.935 | G8: 12.7575 | H8: 14.58 | I8: 16.4025 | J8: 18.225 | K8: 20.0475 | L8: 21.87 | M8: 23.6925 | N8: 25.515 | O8: 27.3375 | P8: 29.16 | Q8: 30.9825 | R8: 32.805 | S8: 34.6275 | T8: 36.45
A9: x 90 % Aufzuchtfaktor = Erstkalbungen / Jahr | B9: =+B8*0.9 -> 3.2805 | C9: =+C8*0.9 -> 4.92075 | D9: 6.561 | E9: 8.20125 | F9: 9.8415 | G9: 11.48175 | H9: 13.122 | I9: 14.76225 | J9: 16.4025 | K9: 18.04275 | L9: 19.683 | M9: 21.32325 | N9: 22.9635 | O9: 24.60375 | P9: 26.244 | Q9: 27.88425 | R9: 29.5245 | S9: 31.16475 | T9: 32.805
A11: Summe Erstkalbungen aus Kuh + Kalbin | B11: =+B6+B9 -> 11.3805 | C11: =+C6+C9 -> 17.07075 | D11: 22.761 | E11: 28.45125 | F11: 34.1415 | G11: 39.83175 | H11: 45.522 | I11: 51.21225 | J11: 56.9025 | K11: 62.59275 | L11: 68.283 | M11: 73.97325 | N11: 79.6635 | O11: 85.35375 | P11: 91.044 | Q11: 96.73425 | R11: 102.4245 | S11: 108.11475 | T11: 113.805
A12: Kalbinnenfaktor MAXIMAL | B12: =+B11/B3 -> 0.569025 | C12: =+C11/C3 -> 0.569025 | D12: 0.569025 | E12: 0.569025 | F12: 0.569025 | G12: 0.569025 | H12: 0.569025 | I12: 0.569025 | J12: 0.569025 | K12: 0.569025 | L12: 0.569025 | M12: 0.569025 | N12: 0.569025 | O12: 0.569025 | P12: 0.569025 | Q12: 0.569025 | R12: 0.569025 | S12: 0.569025 | T12: 0.569025
B13: Ist die Anzahl der Kalbungen in Summe nicht zu hoch? Wenn Betrieb nicht wachsen will.
A15: 1. Berechnung des Nachzuchtbestands in Abhängigkeit von Herdengröße, Erstkalbealter und Bestandsergänzungsrate:
A16: MAXIMAL = 100 % Erstkalbungen => Alle weiblichen Kälber werden aufgestellt und entweder junge Altkühe oder Jungkühe zur Zucht verkauft
A17: Summe Erstkalbungen aus Kuh + Kalbin | B17: =+B11 -> 11.3805 | C17: 17.07075 | D17: 22.761 | E17: 28.45125 | F17: 34.1415 | G17: 39.83175 | H17: 45.522 | I17: 51.21225 | J17: 56.9025 | K17: 62.59275 | L17: 68.283 | M17: 73.97325 | N17: 79.6635 | O17: 85.35375 | P17: 91.044 | Q17: 96.73425 | R17: 102.4245 | S17: 108.11475 | T17: 113.805
A18: Jahresdurchschnittsbestand - 26 Monate EKA | B18: =+B17*26/12 -> 24.65775 | C18: =+C17*26/12 -> 36.986625 | D18: 49.3155 | E18: 61.644375 | F18: 73.97325 | G18: 86.302125 | H18: 98.631 | I18: 110.959875 | J18: 123.28875 | K18: 135.617625 | L18: 147.9465 | M18: 160.275375 | N18: 172.60425 | O18: 184.933125 | P18: 197.262 | Q18: 209.590875 | R18: 221.91975 | S18: 234.248625 | T18: 246.5775
A19: Jahresdurchschnittsbestand - 29 Monate EKA | B19: =+B17*29/12 -> 27.502875 | C19: =+C17*29/12 -> 41.2543125 | D19: 55.00575 | E19: 68.7571875 | F19: 82.508625 | G19: 96.2600625 | H19: 110.0115 | I19: 123.7629375 | J19: 137.514375 | K19: 151.2658125 | L19: 165.01725 | M19: 178.7686875 | N19: 192.520125 | O19: 206.2715625 | P19: 220.023 | Q19: 233.7744375 | R19: 247.525875 | S19: 261.2773125 | T19: 275.02875
A20: Jahresdurchschnittsbestand - 32 Monate EKA | B20: =+B17*32/12 -> 30.348 | C20: =+C17*32/12 -> 45.522 | D20: 60.696 | E20: 75.87 | F20: 91.044 | G20: 106.218 | H20: 121.392 | I20: 136.566 | J20: 151.74 | K20: 166.914 | L20: 182.088 | M20: 197.262 | N20: 212.436 | O20: 227.61 | P20: 242.784 | Q20: 257.958 | R20: 273.132 | S20: 288.306 | T20: 303.48
A21: Umgerechnet je Kuh:
A22: Anzahl Nachzuchttiere / Kuh - 26 Monate EKA | B22: =+B18/B$3 -> 1.2328875 | C22: =+C18/C$3 -> 1.2328875 | D22: 1.2328875 | E22: 1.2328875 | F22: 1.2328875 | G22: 1.2328875 | H22: 1.2328875 | I22: 1.2328875 | J22: 1.2328875 | K22: 1.2328875 | L22: 1.2328875 | M22: 1.2328875 | N22: 1.2328875 | O22: 1.2328875 | P22: 1.2328875 | Q22: 1.2328875 | R22: 1.2328875 | S22: 1.2328875 | T22: 1.2328875
A23: Anzahl Nachzuchttiere / Kuh - 29 Monate EKA | B23: =+B19/B$3 -> 1.37514375 | C23: 1.37514375 | D23: 1.37514375 | E23: 1.37514375 | F23: 1.37514375 | G23: 1.37514375 | H23: 1.37514375 | I23: 1.37514375 | J23: 1.37514375 | K23: 1.37514375 | L23: 1.37514375 | M23: 1.37514375 | N23: 1.37514375 | O23: 1.37514375 | P23: 1.37514375 | Q23: 1.37514375 | R23: 1.37514375 | S23: 1.37514375 | T23: 1.37514375
A24: Anzahl Nachzuchttiere / Kuh - 32 Monate EKA | B24: =+B20/B$3 -> 1.5174 | C24: 1.5174 | D24: 1.5174 | E24: 1.5174 | F24: 1.5174 | G24: 1.5174 | H24: 1.5174 | I24: 1.5174 | J24: 1.5174 | K24: 1.5174 | L24: 1.5174 | M24: 1.5174 | N24: 1.5174 | O24: 1.5174 | P24: 1.5174 | Q24: 1.5174 | R24: 1.5174 | S24: 1.5174 | T24: 1.5174
A25: Reproduktionsrate (%) | B25: =+B17/B3*100 -> 56.9025 | C25: 56.9025 | D25: 56.9025 | E25: 56.9025 | F25: 56.9025 | G25: 56.9025 | H25: 56.9025 | I25: 56.9025 | J25: 56.9025 | K25: 56.9025 | L25: 56.9025 | M25: 56.9025 | N25: 56.9025 | O25: 56.9025 | P25: 56.9025 | Q25: 56.9025 | R25: 56.9025 | S25: 56.9025 | T25: 56.9025
A27: NORMAL = 70 % Erstkalbungen => Je Milchkuh ein Nachzuchttier => z.B. 50 Kühe + 50 weibliche Jungrinder
A28: 70 % von Summe Erstkalbungen aus Kuh + Kalbin | B28: =+B11*0.7 -> 7.96635 | C28: 11.949525 | D28: 15.9327 | E28: 19.915875 | F28: 23.89905 | G28: 27.882225 | H28: 31.8654 | I28: 35.848575 | J28: 39.83175 | K28: 43.814925 | L28: 47.7981 | M28: 51.781275 | N28: 55.76445 | O28: 59.747625 | P28: 63.7308 | Q28: 67.713975 | R28: 71.69715 | S28: 75.680325 | T28: 79.6635
A29: Jahresdurchschnittsbestand - 26 Monate EKA | B29: =+B28*26/12 -> 17.260425 | C29: 25.8906375 | D29: 34.52085 | E29: 43.1510625 | F29: 51.781275 | G29: 60.4114875 | H29: 69.0417 | I29: 77.6719125 | J29: 86.302125 | K29: 94.9323375 | L29: 103.56255 | M29: 112.1927625 | N29: 120.822975 | O29: 129.4531875 | P29: 138.0834 | Q29: 146.7136125 | R29: 155.343825 | S29: 163.9740375 | T29: 172.60425
A30: Jahresdurchschnittsbestand - 29 Monate EKA | B30: =+B28*29/12 -> 19.2520125 | C30: 28.87801875 | D30: 38.504025 | E30: 48.13003125 | F30: 57.7560375 | G30: 67.38204375 | H30: 77.00805 | I30: 86.63405625 | J30: 96.2600625 | K30: 105.8860688 | L30: 115.512075 | M30: 125.1380812 | N30: 134.7640875 | O30: 144.3900938 | P30: 154.0161 | Q30: 163.6421063 | R30: 173.2681125 | S30: 182.8941188 | T30: 192.520125
A31: Jahresdurchschnittsbestand - 32 Monate EKA | B31: =+B28*32/12 -> 21.2436 | C31: 31.8654 | D31: 42.4872 | E31: 53.109 | F31: 63.7308 | G31: 74.3526 | H31: 84.9744 | I31: 95.5962 | J31: 106.218 | K31: 116.8398 | L31: 127.4616 | M31: 138.0834 | N31: 148.7052 | O31: 159.327 | P31: 169.9488 | Q31: 180.5706 | R31: 191.1924 | S31: 201.8142 | T31: 212.436
A32: Umgerechnet je Kuh:
A33: Anzahl Nachzuchttiere / Kuh - 26 Monate EKA | B33: =+B29/B$3 -> 0.86302125 | C33: =+C29/C$3 -> 0.86302125 | D33: 0.86302125 | E33: 0.86302125 | F33: 0.86302125 | G33: 0.86302125 | H33: 0.86302125 | I33: 0.86302125 | J33: 0.86302125 | K33: 0.86302125 | L33: 0.86302125 | M33: 0.86302125 | N33: 0.86302125 | O33: 0.86302125 | P33: 0.86302125 | Q33: 0.86302125 | R33: 0.86302125 | S33: 0.86302125 | T33: 0.86302125
A34: Anzahl Nachzuchttiere / Kuh - 29 Monate EKA | B34: =+B30/B$3 -> 0.962600625 | C34: 0.962600625 | D34: 0.962600625 | E34: 0.962600625 | F34: 0.962600625 | G34: 0.962600625 | H34: 0.962600625 | I34: 0.962600625 | J34: 0.962600625 | K34: 0.962600625 | L34: 0.962600625 | M34: 0.962600625 | N34: 0.962600625 | O34: 0.962600625 | P34: 0.962600625 | Q34: 0.962600625 | R34: 0.962600625 | S34: 0.962600625 | T34: 0.962600625
A35: Anzahl Nachzuchttiere / Kuh - 32 Monate EKA | B35: =+B31/B$3 -> 1.06218 | C35: 1.06218 | D35: 1.06218 | E35: 1.06218 | F35: 1.06218 | G35: 1.06218 | H35: 1.06218 | I35: 1.06218 | J35: 1.06218 | K35: 1.06218 | L35: 1.06218 | M35: 1.06218 | N35: 1.06218 | O35: 1.06218 | P35: 1.06218 | Q35: 1.06218 | R35: 1.06218 | S35: 1.06218 | T35: 1.06218
A36: Reproduktionsrate (%) | B36: =+B28/B3*100 -> 39.83175 | C36: 39.83175 | D36: 39.83175 | E36: 39.83175 | F36: 39.83175 | G36: 39.83175 | H36: 39.83175 | I36: 39.83175 | J36: 39.83175 | K36: 39.83175 | L36: 39.83175 | M36: 39.83175 | N36: 39.83175 | O36: 39.83175 | P36: 39.83175 | Q36: 39.83175 | R36: 39.83175 | S36: 39.83175 | T36: 39.83175
A38: MINIMAL = 45 % Erstkalbungen => Reduzierte Nachzucht mit verschärfter Vorselektion, aber ohne Jungkuh- bzw. Zuchtkalbinnenzukauf
A39: 45 % von Summe Erstkalbungen aus Kuh + Kalbin | B39: =+B11*0.45 -> 5.121225 | C39: 7.6818375 | D39: 10.24245 | E39: 12.8030625 | F39: 15.363675 | G39: 17.9242875 | H39: 20.4849 | I39: 23.0455125 | J39: 25.606125 | K39: 28.1667375 | L39: 30.72735 | M39: 33.2879625 | N39: 35.848575 | O39: 38.4091875 | P39: 40.9698 | Q39: 43.5304125 | R39: 46.091025 | S39: 48.6516375 | T39: 51.21225
A40: Jahresdurchschnittsbestand - 26 Monate EKA | B40: =+B39*26/12 -> 11.0959875 | C40: 16.64398125 | D40: 22.191975 | E40: 27.73996875 | F40: 33.2879625 | G40: 38.83595625 | H40: 44.38395 | I40: 49.93194375 | J40: 55.4799375 | K40: 61.02793125 | L40: 66.575925 | M40: 72.12391875 | N40: 77.6719125 | O40: 83.21990625 | P40: 88.7679 | Q40: 94.31589375 | R40: 99.8638875 | S40: 105.4118813 | T40: 110.959875
A41: Jahresdurchschnittsbestand - 29 Monate EKA | B41: =+B39*29/12 -> 12.37629375 | C41: 18.56444062 | D41: 24.7525875 | E41: 30.94073438 | F41: 37.12888125 | G41: 43.31702813 | H41: 49.505175 | I41: 55.69332188 | J41: 61.88146875 | K41: 68.06961563 | L41: 74.2577625 | M41: 80.44590937 | N41: 86.63405625 | O41: 92.82220313 | P41: 99.01035 | Q41: 105.1984969 | R41: 111.3866438 | S41: 117.5747906 | T41: 123.7629375
A42: Jahresdurchschnittsbestand - 32 Monate EKA | B42: =+B39*32/12 -> 13.6566 | C42: 20.4849 | D42: 27.3132 | E42: 34.1415 | F42: 40.9698 | G42: 47.7981 | H42: 54.6264 | I42: 61.4547 | J42: 68.283 | K42: 75.1113 | L42: 81.9396 | M42: 88.7679 | N42: 95.5962 | O42: 102.4245 | P42: 109.2528 | Q42: 116.0811 | R42: 122.9094 | S42: 129.7377 | T42: 136.566
A43: Umgerechnet je Kuh:
A44: Anzahl Nachzuchttiere / Kuh - 26 Monate EKA | B44: =+B40/B$3 -> 0.554799375 | C44: =+C40/C$3 -> 0.554799375 | D44: 0.554799375 | E44: 0.554799375 | F44: 0.554799375 | G44: 0.554799375 | H44: 0.554799375 | I44: 0.554799375 | J44: 0.554799375 | K44: 0.554799375 | L44: 0.554799375 | M44: 0.554799375 | N44: 0.554799375 | O44: 0.554799375 | P44: 0.554799375 | Q44: 0.554799375 | R44: 0.554799375 | S44: 0.554799375 | T44: 0.554799375
A45: Anzahl Nachzuchttiere / Kuh - 29 Monate EKA | B45: =+B41/B$3 -> 0.6188146875 | C45: =+C41/C$3 -> 0.6188146875 | D45: 0.6188146875 | E45: 0.6188146875 | F45: 0.6188146875 | G45: 0.6188146875 | H45: 0.6188146875 | I45: 0.6188146875 | J45: 0.6188146875 | K45: 0.6188146875 | L45: 0.6188146875 | M45: 0.6188146875 | N45: 0.6188146875 | O45: 0.6188146875 | P45: 0.6188146875 | Q45: 0.6188146875 | R45: 0.6188146875 | S45: 0.6188146875 | T45: 0.6188146875
A46: Anzahl Nachzuchttiere / Kuh - 32 Monate EKA | B46: =+B42/B$3 -> 0.68283 | C46: =+C42/C$3 -> 0.68283 | D46: 0.68283 | E46: 0.68283 | F46: 0.68283 | G46: 0.68283 | H46: 0.68283 | I46: 0.68283 | J46: 0.68283 | K46: 0.68283 | L46: 0.68283 | M46: 0.68283 | N46: 0.68283 | O46: 0.68283 | P46: 0.68283 | Q46: 0.68283 | R46: 0.68283 | S46: 0.68283 | T46: 0.68283
A47: Reproduktionsrate (%) | B47: =+B39/B3*100 -> 25.606125 | C47: 25.606125 | D47: 25.606125 | E47: 25.606125 | F47: 25.606125 | G47: 25.606125 | H47: 25.606125 | I47: 25.606125 | J47: 25.606125 | K47: 25.606125 | L47: 25.606125 | M47: 25.606125 | N47: 25.606125 | O47: 25.606125 | P47: 25.606125 | Q47: 25.606125 | R47: 25.606125 | S47: 25.606125 | T47: 25.606125
A49: 2. Ableitung einer Potenzfunktion für den Arbeitszeitbedarf in Abhängigkeit von der Größe des Nachzuchtbestands
A50: Nachzucht im Laufstall - Arbeitszeitbedarfswerte je Tierplatz bei einer Bestandsgröße von 11,1 bis 303 Jungrindern - Ableitung über Potenzfunktion:
A51: Nachzuchtbestand | B51: 20 | C51: 50 | D51: 100 | E51: 200
A52: AKh-Bedarfswerte/Kuh und Jahr | B52: 14 | C52: 11.8 | D52: 10 | E52: 9 | K52: könnte passen
A53: Potenzfunktion zur Ableitung der AKh/Tier und Tag | B53: y=c*x^b | D53: c = | E53: =EXP(INDEX(LINEST(LN(B52:E52),LN(B51:E51),,),1,2)) -> 25.18749667 | G53: b = | H53: =INDEX(LINEST(LN(B52:E52),LN(B51:E51),,),1) -> -0.1962034771
A54: Differenz/Kuh | B54: =+(C52-B52)/(C51-B51) -> -0.07333333333 | C54: =+(D52-C52)/(D51-C51) -> -0.036 | D54: -0.01
A56: AKh-Bedarfswerte/Tier+Jahr mit Potenzfunktion: | B56: =$E$53*B51^$H$53 -> 13.99324368 | C56: =$E$53*C51^$H$53 -> 11.69071797 | D56: 10.20417861 | E56: 8.906660942
A57: Plausikontrolle: AKh-Bedarfswerte/Kalbin mit 30 Monaten EKA | B57: =+B56/12*30 -> 34.9831092 | C57: =+C56/12*30 -> 29.22679493 | D57: 25.51044653 | E57: 22.26665235
A59: 3. Berechnung des Arbeitszeitbedarfs je Kuh in Abhängigkeit von Nachzuchtbestand, Erstkalbealter und Bestandsergänzungsrate:
A60: Herdengröße | B60: 20 | C60: 30 | D60: 40 | E60: 50 | F60: 60 | G60: 70 | H60: 80 | I60: 90 | J60: 100 | K60: 110 | L60: 120 | M60: 130 | N60: 140 | O60: 150 | P60: 160 | Q60: 170 | R60: 180 | S60: 190 | T60: 200
A61: MAXIMAL = 100 % Erstkalbungen
A62: Nachzucht-Gesamt-AKh - 26 Monate EKA | B62: =B18*($E$53*B18^$H$53) -> 331.1557842 | C62: 458.7476863 | D62: 578.0949944 | E62: 691.6639499 | F62: 800.8307685 | G62: 906.4677289 | H62: 1009.174046 | I62: 1109.385008 | J62: 1207.430117 | K62: 1303.566829 | L62: 1398.001426 | M62: 1490.902609 | N62: 1582.410701 | O62: 1672.644112 | P62: 1761.703984 | Q62: 1849.677637 | R62: 1936.641153 | S62: 2022.661367 | T62: 2107.797417
A63: Nachzucht-Gesamt-AKh - 29 Monate EKA | B63: =B19*($E$53*B19^$H$53) -> 361.5364705 | C63: 500.8338288 | D63: 631.1302229 | E63: 755.1181501 | F63: 874.3000826 | G63: 989.6283228 | H63: 1101.757058 | I63: 1211.161511 | J63: 1318.201413 | K63: 1423.157839 | L63: 1526.255996 | M63: 1627.680061 | N63: 1727.583231 | O63: 1826.094779 | P63: 1923.325126 | Q63: 2019.369603 | R63: 2114.311271 | S63: 2208.223097 | T63: 2301.169646
A64: Nachzucht-Gesamt-AKh - 32 Monate EKA | B64: =B20*($E$53*B20^$H$53) -> 391.3055495 | C64: 542.0727163 | D64: 683.0977752 | E64: 817.2949254 | F64: 946.2903529 | G64: 1071.114773 | H64: 1192.47624 | I64: 1310.889106 | J64: 1426.742723 | K64: 1540.341309 | L64: 1651.928616 | M64: 1761.703984 | N64: 1869.833228 | O64: 1976.456261 | P64: 2081.692601 | Q64: 2185.645424 | R64: 2288.404632 | S64: 2390.049201 | T64: 2490.649011
A65: Umgerechnet je Kuh:
A66: Nachzucht-AKh/Kuh - 26 Monate EKA | B66: =+B62/B$60 -> 16.55778921 | C66: 15.29158954 | D66: 14.45237486 | E66: 13.833279 | F66: 13.34717948 | G66: =+G62/G$60 -> 12.94953898 | H66: 12.61467557 | I66: 12.32650008 | J66: 12.07430117 | K66: 11.85060753 | L66: 11.65001189 | M66: 11.46848161 | N66: 11.30293358 | O66: 11.15096074 | P66: 11.0106499 | Q66: 10.88045669 | R66: 10.75911752 | S66: 10.64558614 | T66: 10.53898709
A67: Nachzucht-AKh/Kuh - 29 Monate EKA | B67: 18.07682352 | C67: 16.69446096 | D67: 15.77825557 | E67: 15.102363 | F67: 14.57166804 | G67: =+G63/G$60 -> 14.13754747 | H67: 13.77196323 | I67: 13.45735012 | J67: 13.18201413 | K67: 12.93779854 | L67: 12.71879997 | M67: 12.52061585 | N67: 12.33988022 | O67: 12.17396519 | P67: 12.02078204 | Q67: 11.87864472 | R67: 11.74617373 | S67: 11.62222683 | T67: 11.50584823
A68: Nachzucht-AKh/Kuh - 32 Monate EKA | B68: 19.56527747 | C68: 18.06909054 | D68: 17.07744438 | E68: 16.34589851 | F68: 15.77150588 | G68: =+G64/G$60 -> 15.30163962 | H68: 14.90595301 | I68: 14.56543451 | J68: 14.26742723 | K68: 14.00310281 | L68: 13.7660718 | M68: 13.55156911 | N68: 13.35595163 | O68: 13.17637508 | P68: 13.01057875 | Q68: 12.85673779 | R68: 12.71335907 | S68: 12.57920632 | T68: 12.45324506
A70: NORMAL = 70 % Erstkalbungen
A71: Nachzucht-Gesamt-AKh - 26 Monate EKA | B71: =B29*($E$53*B29^$H$53) -> 248.612344 | C71: 344.4008622 | D71: 433.9998227 | E71: 519.2607349 | F71: 601.2167808 | G71: 680.5228162 | H71: 757.6286965 | I71: 832.8612101 | J71: 906.4677289 | K71: 978.6415348 | L71: 1049.537493 | M71: 1119.282253 | N71: 1187.981163 | O71: 1255.723116 | P71: 1322.584046 | Q71: 1388.629506 | R71: 1453.916614 | S71: 1518.495547 | T71: 1582.410701
A72: Nachzucht-Gesamt-AKh - 29 Monate EKA | B72: =B30*($E$53*B30^$H$53) -> 271.4203818 | C72: 375.9966701 | D72: 473.8155623 | E72: 566.8984275 | F72: 656.3732337 | G72: 742.9549136 | H72: 827.1345932 | I72: 909.2690409 | J72: 989.6283228 | K72: 1068.423453 | L72: 1145.823504 | M72: 1221.966744 | N72: 1296.968186 | O72: 1370.924879 | P72: 1443.919722 | Q72: 1516.024284 | R72: 1587.300921 | S72: 1657.804413 | T72: 1727.583231
A73: Nachzucht-Gesamt-AKh - 32 Monate EKA | B73: =B31*($E$53*B31^$H$53) -> 293.7692607 | C73: 406.9564086 | D73: 512.8297533 | E73: 613.5771044 | F73: 710.4193071 | G73: 804.1301624 | H73: 895.2412354 | I73: 984.1386713 | J73: 1071.114773 | K73: 1156.39793 | L73: 1240.171137 | M73: 1322.584046 | N73: 1403.761142 | O73: 1483.807463 | P73: 1562.812735 | Q73: 1640.854419 | R73: 1718.000007 | S73: 1794.308789 | T73: 1869.833228
A74: Umgerechnet je Kuh:
A75: Nachzucht-AKh/Kuh - 26 Monate EKA | B75: =+B71/B$3 -> 12.4306172 | C75: =+C71/C$3 -> 11.48002874 | D75: 10.84999557 | E75: 10.3852147 | F75: 10.02027968 | G75: 9.721754518 | H75: 9.470358706 | I75: 9.254013446 | J75: 9.064677289 | K75: 8.896741226 | L75: 8.746145776 | M75: 8.609863486 | N75: 8.485579736 | O75: 8.371487442 | P75: 8.26615029 | Q75: 8.168408861 | R75: 8.077314525 | S75: 7.992081825 | T75: 7.912053506
A76: Nachzucht-AKh/Kuh - 29 Monate EKA | B76: =+B72/B$3 -> 13.57101909 | C76: 12.53322234 | D76: 11.84538906 | E76: 11.33796855 | F76: 10.93955389 | G76: 10.61364162 | H76: 10.33918241 | I76: 10.10298934 | J76: 9.896283228 | K76: 9.712940479 | L76: 9.548529196 | M76: 9.399744181 | N76: 9.26405847 | O76: 9.139499193 | P76: 9.024498265 | Q76: 8.917789903 | R76: 8.818338448 | S76: 8.725286383 | T76: 8.637916157
A77: Nachzucht-AKh/Kuh - 32 Monate EKA | B77: =+B73/B$3 -> 14.68846303 | C77: 13.56521362 | D77: 12.82074383 | E77: 12.27154209 | F77: 11.84032179 | G77: 11.48757375 | H77: 11.19051544 | I77: 10.93487413 | J77: 10.71114773 | K77: 10.51270846 | L77: 10.33475947 | M77: 10.17372343 | N77: 10.0268653 | O77: 9.892049753 | P77: 9.767579597 | Q77: 9.652084819 | R77: 9.544444485 | S77: 9.443730471 | T77: 9.34916614
A79: REDUZIERT = 45 % Erstkalbungen
A80: Nachzucht-Gesamt-AKh - 26 Monate EKA | B80: =B40*($E$53*B40^$H$53) -> 174.2953375 | C80: 241.4500565 | D80: 304.2654453 | E80: 364.0395466 | F80: 421.4966964 | G80: 477.095996 | H80: 531.1528268 | I80: 583.8962914 | J80: 635.4998153 | K80: 686.0989032 | L80: 735.802127 | M80: 784.698277 | N80: 832.8612101 | O80: 880.353247 | P80: 927.2276225 | Q80: 973.5302941 | R80: 1019.301306 | S80: 1064.575835 | T80: 1109.385008
A81: Nachzucht-Gesamt-AKh - 29 Monate EKA | B81: =B41*($E$53*B41^$H$53) -> 190.285431 | C81: 263.6010161 | D81: 332.1791749 | E81: 397.4370344 | F81: 460.165382 | G81: 520.8654377 | H81: 579.8815163 | I81: 637.4637387 | J81: 693.8014407 | K81: 749.0425584 | L81: 803.3056242 | M81: 856.6875742 | N81: 909.2690409 | O81: 961.1180625 | P81: 1012.292757 | Q81: 1062.8433 | R81: 1112.813407 | S81: 1162.241484 | T81: 1211.161511
A82: Nachzucht-Gesamt-AKh - 32 Monate EKA | B82: =B42*($E$53*B42^$H$53) -> 205.9536208 | C82: 285.3060448 | D82: 359.5309607 | E82: 430.1621823 | F82: 498.0556109 | G82: 563.753737 | H82: 627.6292267 | I82: 689.9527957 | J82: 750.92937 | K82: 810.7190667 | L82: 869.4501782 | M82: 927.2276225 | N82: 984.1386713 | O82: 1040.256965 | P82: 1095.645408 | Q82: 1150.358305 | R82: 1204.442974 | S82: 1257.940981 | T82: 1310.889106
A83: Umgerechnet je Kuh:
A84: Nachzucht-AKh/Kuh - 26 Monate EKA | B84: =+B80/B$3 -> 8.714766873 | C84: =+C80/C$3 -> 8.048335215 | D84: 7.606636132 | E84: 7.280790933 | F84: 7.02494494 | G84: 6.815657086 | H84: 6.639410335 | I84: 6.487736571 | J84: 6.354998153 | K84: 6.237262756 | L84: 6.131684391 | M84: 6.036140593 | N84: 5.949008644 | O84: 5.869021647 | P84: 5.795172641 | Q84: 5.726648789 | R84: 5.662785033 | S84: 5.603030711 | T84: 5.546925038
A85: Nachzucht-AKh/Kuh - 29 Monate EKA | B85: =+B81/B$3 -> 9.51427155 | C85: 8.786700537 | D85: 8.304479373 | E85: 7.948740688 | F85: 7.669423033 | G85: 7.440934824 | H85: 7.248518954 | I85: 7.08293043 | J85: 6.938014407 | K85: 6.809477804 | L85: 6.694213535 | M85: 6.589904417 | N85: 6.494778864 | O85: 6.40745375 | P85: 6.326829734 | Q85: 6.25201941 | R85: 6.182296706 | S85: 6.11706044 | T85: 6.055807556
A86: Nachzucht-AKh/Kuh - 32 Monate EKA | B86: =+B82/B$3 -> 10.29768104 | C86: 9.510201494 | D86: 8.988274018 | E86: 8.603243646 | F86: 8.300926848 | G86: 8.053624814 | H86: 7.845365333 | I86: 7.666142174 | J86: 7.5092937 | K86: 7.370173333 | L86: 7.245418152 | M86: 7.132520173 | N86: 7.029561938 | O86: 6.935046434 | P86: 6.8477838 | Q86: 6.76681356 | R86: 6.691349856 | S86: 6.620742006 | T86: 6.554445531

Sheet Kuhbereich Melksystem (hidden)
A3: Herdengröße und Melkstandgröße bei 1 bis 2,5 Stunden reiner Melkzeit
B11: Harsch, Aulendorf: Melkstände für Kleinbetriebe:
B12: https://www.landwirtschaft-bw.info/pb/site/lel/get/documents/MLR.LEL/PB5Documents/lazbw_rh/pdf/m/Melkstaende%20fuer%20Kleinbetriebe.pdf?attachment=true
B13: "… . Je Melkplatz können in einem Fischgrätenmelkstand ca. 5 Kühe in der Stunde gemolken werden."
B14: Wenn unterstellt wird, dass rund 14 % der Kühe im Jahresdurchschnitt "Trockensteher" sind:
D16: Gemolkene Kühe je Platz: | F16: 5 | G16: Anteil Trockensteher: | I16: 0.14
D17: Maximale Melkzeit (ohne Rüstzeit) | F17: 2.5 | G17: Stunden
E19: Melkzeuge | F19: gemolken 1 h Melkzeit | G19: gemolken/ 2,5 h MZ | H19: Herde incl. Trockene | I19: Herde incl. Trockene | J19: Herde gerundet | K19: Herde gerundet
H20: 1 h Melkzeit | I20: 2,5 h MZ | J20: 1 h MZ | K20: 2,5 h MZ
D21: 2 x 2 oder 1 x 4 FGM | E21: 4 | F21: =+E21*$F$16 -> 20 | G21: =+F21*$F$17 -> 50 | H21: =+F21/(1-$I$16) -> 23.25581395 | I21: =+G21/(1-$I$16) -> 58.13953488 | J21: =ROUND(H21,-1) -> 20 | K21: 60
D22: 2 x 3 FGM | E22: 6 | F22: =+E22*$F$16 -> 30 | G22: =+F22*$F$17 -> 75 | H22: =+F22/(1-$I$16) -> 34.88372093 | I22: 87.20930233 | J22: 30 | K22: 90
D23: 2 x 4 FGM | E23: 8 | F23: 40 | G23: 100 | H23: 46.51162791 | I23: 116.2790698 | J23: 50 | K23: 120
D24: 2 x 5 FGM | E24: 10 | F24: 50 | G24: 125 | H24: 58.13953488 | I24: 145.3488372 | J24: 60 | K24: 150
D25: 2 x 6 FGM | E25: 12 | F25: 60 | G25: 150 | H25: 69.76744186 | I25: 174.4186047 | J25: 70 | K25: 170
D26: 4 x 8 FGM | E26: 16 | F26: 80 | G26: 200 | H26: 93.02325581 | I26: 232.5581395 | J26: 90 | K26: 230
D27: 4 x 10 FGM | E27: 20 | F27: 100 | G27: 250 | H27: 116.2790698 | I27: 290.6976744 | J27: 120 | K27: 290
D28: 2 x 12 FGM | E28: 24 | F28: 120 | G28: 300 | H28: 139.5348837 | I28: 348.8372093 | J28: 140 | K28: 350
A30: http://www.aelf-co.bayern.de/tierhaltung/29344/linkurl_12.pdf
A31: Vortrag von Herrn Kühberger aus dem Jahr 2007
J41: Kühe/h
J42: 12 min = 5/h
J43: =60/1.5 -> 40
J44: =75/1.5 -> 50
J45: =90/1.5 -> 60
J46: =120/1.5 -> 80
J48: =150/1.5 -> 100
J49: =270/1.5 -> 180
J50: =360/1.5 -> 240
F55: gemolken 1 h Melkzeit | G55: gemolken/ 2,5 h MZ | H55: Herde incl. Trockene | I55: Herde incl. Trockene | J55: Herde gerundet | K55: Herde gerundet
H56: 1 h Melkzeit | I56: 2,5 h MZ | J56: 1 h MZ | K56: 2,5 h MZ
D57: FGM, SbS 2 x 4 | F57: =60/1.5 -> 40 | G57: =+F57*2.5 -> 100 | H57: =+F57/(1-$I$16) -> 46.51162791 | I57: 116.2790698 | J57: =ROUND(H57,-1) -> 50 | K57: =ROUND(I57,-1) -> 120
D58: FGM, SbS 2 x 5 | F58: =75/1.5 -> 50 | G58: =+F58*2.5 -> 125 | H58: 58.13953488 | I58: 145.3488372 | J58: =ROUND(H58,-1) -> 60 | K58: 150
D59: FGM, SbS 2 x 6 | F59: =90/1.5 -> 60 | G59: 150 | H59: 69.76744186 | I59: 174.4186047 | J59: 70 | K59: 170
D60: FGM, SbS 2 x 7 | F60: =120/1.5 -> 80 | G60: 200 | H60: 93.02325581 | I60: 232.5581395 | J60: 90 | K60: 230
D62: Karussell 20 | F62: =150/1.5 -> 100 | G62: =+F62*2.5 -> 250 | H62: =+F62/(1-$I$16) -> 116.2790698 | I62: 290.6976744 | J62: 120 | K62: 290
D63: Karussell 36 | F63: =270/1.5 -> 180 | G63: =+F63*2.5 -> 450 | H63: 209.3023256 | I63: 523.255814 | J63: 210 | K63: 520
D64: Karussell 48 | F64: =360/1.5 -> 240 | G64: 600 | H64: 279.0697674 | I64: 697.6744186 | J64: 280 | K64: 700
A66: Harsch, Aulendorf: Welches Melkverfahren passt zu meinem Betrieb
B67: http://www.lazbw.de/pb/site/lel/get/documents/MLR.LEL/PB5Documents/lazbw_rh/pdf/w/Welches%20Melkverfahren%20passt%20zu%20meinem%20Betrieb.pdf?attachment=true
A99: AMS = Melkroboter:
A100: Zielwert je Box ist lt. Bonsels bei 55 - 70 melkende Kühe => 70 / 0,86 = 81,4 => 80 Kühe/Box
B101: Melkroboter\AllgBB 2014 Bonsels - Optimierungspotential bei AMS nutzen.pdf

Sheet Tabelle für INFO (hidden)
A1: Spannen der Produktivität in kg Milch je Arbeitskraft in den jeweiligen Herdengrößenklassen
B2: Kühe Durchschnittsbestand
A3: Herdengrößenklasse (Kuhbestand) | B3: <40 | C3: 40-60 | D3: 60-80 | E3: 80-100 | F3: >100 | G3: Gesamt
A4: Anzahl Betriebe je Gruppe | B4: 17 | C4: 37 | D4: 52 | E4: 36 | F4: 33 | G4: 175
A5: Kuhbestand (Ø Kühe) | B5: 32.21882353 | C5: 52.55297297 | D5: 68.23173077 | E5: 89.08694444 | F5: 133.5084848 | G5: 78.01794286
A6: AKh/Kuh - Mittelwert | B6: 85.40176471 | C6: 63.12405405 | D6: 59.14846154 | E6: 53.98 | F6: 48.21666667 | G6: 59.41468571
A7: AKh/Kuh - Minimum | B7: 63.76 | C7: 41.99 | D7: 38.23 | E7: 26.44 | F7: 33.02 | G7: 26.44
A8: AKh/Kuh - Maximum | B8: 114.27 | C8: 105.37 | D8: 94.72 | E8: 79.05 | F8: 69.09 | G8: 114.27
A9: Kühe je AK[Kühe/AK] - Mittelwert | B9: 30.15941176 | C9: 40.01594595 | D9: 43.3775 | E9: 46.81916667 | F9: 50.61939394 | G9: 43.45634286
A10: Kühe je AK[Kühe/AK] - Minimum | B10: 22.93 | C10: 26.94 | D10: 25.11 | E10: 31.53 | F10: 33.24 | G10: 22.93
A11: Kühe je AK[Kühe/AK] - Maximum | B11: 39.78 | C11: 57.06 | D11: 69.72 | E11: 91.12 | F11: 80.38 | G11: 91.12
A12: kg ECM/AK - Mittelwert | B12: 239107.8012 | C12: 318126.2873 | D12: 345791.4117 | E12: 378457.9906 | F12: 442487.3412 | G12: 354532.7347
A13: kg ECM/AK - Minimum | B13: 166338.46 | C13: 177610.4 | D13: 219850.82 | E13: 234535.44 | F13: 263998.34 | G13: 166338.46
A14: kg ECM/AK - Maximum | B14: 344142.73 | C14: 460213.54 | D14: 580485.05 | E14: 770827.1 | F14: 703392.12 | G14: 770827.1
A15: kg ECM/AKh - Mittelwert | B15: 95.94823529 | C15: 130.1772973 | D15: 139.3751923 | E15: 156.5391667 | F15: 186.3975758 | G15: 145.6098286
A16: kg ECM/AKh - Minimum | B16: 63.98 | C16: 62.39 | D16: 79.33 | E16: 97.72 | F16: 114.81 | G16: 62.39
A17: kg ECM/AKh - Maximum | B17: 145.8 | C17: 191.76 | D17: 225.27 | E17: 321.18 | F17: 264.72 | G17: 321.18
A18: Herdengrößenklasse (Kuhbestand) | B18: <40 | C18: 40-60 | D18: 60-80 | E18: 80-100 | F18: >100 | G18: Gesamt
A19: Summe Personalkosten - Kuh mit Färse (ct/kg ECM) | B19: 16.6835948 | C19: 12.18029151 | D19: 11.14671274 | E19: 9.834984677 | F19: 7.576130815 | G19: 10.95995843
A20: Faktorkostendeckung - Kuh mit Färse (%) | B20: 57.11187847 | C20: 57.28514871 | D20: 61.86027534 | E20: 95.12822601 | F20: 114.9590211 | G20: 77.28828906
A21: Lohnansatz für Familienarbeit (€/Fam-AKh) | B21: 15 | C21: 15 | D21: 15 | E21: 15 | F21: 15 | G21: 15
A22: Erreichte Stundenentlohnung (€/Familien-AKh) | B22: =+B21*B20/100 -> 8.56678177 | C22: =+C21*C20/100 -> 8.592772306 | D22: 9.279041301 | E22: 14.2692339 | F22: 17.24385316 | G22: 11.59324336
A23: Datengrundlage: Milchreport Bayern 2013, 175 konventionell wirtschaftende Milchviehbetriebe, Kuh mit Nachzucht ohne Außenwirtschaft
A26: Spannen der Produktivität in kg Milch je Arbeitskraft in den jeweiligen Herdengrößenklassen
A27: Herdengrößenklasse (Kuhbestand) | B27: <40 | C27: 40-60 | D27: 60-80 | E27: 80-100 | F27: >100 | G27: Gesamt
A28: Anzahl Betriebe je Gruppe | B28: 17 | C28: 37 | D28: 52 | E28: 36 | F28: 33 | G28: 175
A29: Kuhbestand (Ø Kühe) | B29: 32.21882353 | C29: 52.55297297 | D29: 68.23173077 | E29: 89.08694444 | F29: 133.5084848 | G29: 78.01794286
A30: kg ECM/AK - Mittelwert | B30: 239107.8012 | C30: 318126.2873 | D30: 345791.4117 | E30: 378457.9906 | F30: 442487.3412 | G30: 354532.7347
A31: kg ECM/AK - Minimum | B31: 166338.46 | C31: 177610.4 | D31: 219850.82 | E31: 234535.44 | F31: 263998.34 | G31: 166338.46
A32: kg ECM/AK - Maximum | B32: 344142.73 | C32: 460213.54 | D32: 580485.05 | E32: 770827.1 | F32: 703392.12 | G32: 770827.1
A33: Minimum in % vom Mittelwert | B33: =+B31/B30 -> 0.6956630406 | C33: =+C31/C30 -> 0.5583015522 | D33: 0.6357902844 | E33: 0.6197132729 | F33: 0.5966234859 | G33: 0.4691765913
A34: Maximum in % vom Mittelwert | B34: =+B32/B30 -> 1.439278553 | C34: =+C32/C30 -> 1.446637887 | D34: 1.67871448 | E34: 2.036757366 | F34: 1.589632187 | G34: 2.174205721
A35: Maximum / Minimum | B35: =+B32/B31 -> 2.068930601 | C35: =+C32/C31 -> 2.591140721 | D35: 2.640358812 | E35: 3.286612462 | F35: 2.664380844 | G35: 4.634088232
A36: Personalstückkosten und erreichte Arbeitsentlohnung in den jeweiligen Herdengrößenklassen
A37: Herdengrößenklasse (Kuhbestand) | B37: <40 | C37: 40-60 | D37: 60-80 | E37: 80-100 | F37: >100 | G37: Gesamt
A38: Personalkosten (ct/kg ECM)* | B38: 16.6835948 | C38: 12.18029151 | D38: 11.14671274 | E38: 9.834984677 | F38: 7.576130815 | G38: 10.95995843
A39: Erreichte Arbeitsentlohnung (€/Familien-Akh) ** | B39: 8.56678177 | C39: 8.592772306 | D39: 9.279041301 | E39: 14.2692339 | F39: 17.24385316 | G39: 11.59324336
A40: Datengrundlage: Milchreport Bayern 2013, 175 konventionell wirtschaftende Milchviehbetriebe mit 92 % Laufstallbetriebe, 89 % mit Fleckvieh,
A41: 94 % mit Teil- oder Vollmischration und 13 % AMS-Betriebe.

Sheet Grafik_1
A1: 1. Jahresarbeitszeitbedarf je Milchkuh in Abhängigkeit von Herdengröße, Nachzuchtintensität sowie Melk- und Fütterungsystem
D3: 20 | E3: 30 | F3: 40 | G3: 50 | H3: 60 | I3: 70 | J3: 80 | K3: 90 | L3: 100 | M3: 110 | N3: 120 | O3: 130 | P3: 140 | Q3: 150 | R3: 160 | S3: 170 | T3: 180 | U3: 190 | V3: 200 | W3: Anzahl Kühe
D4: =IF('Tabelle System 1 - 3'!C14="",#N/A,'Tabelle System 1 - 3'!C14) -> 117.7663234 | E4: =IF('Tabelle System 1 - 3'!D14="",#N/A,'Tabelle System 1 - 3'!D14) -> 105.5719727 | F4: =IF('Tabelle System 1 - 3'!E14="",#N/A,'Tabelle System 1 - 3'!E14) -> 97.58942327 | G4: =IF('Tabelle System 1 - 3'!F14="",#N/A,'Tabelle System 1 - 3'!F14) -> 92.1028211 | H4: =IF('Tabelle System 1 - 3'!G14="",#N/A,'Tabelle System 1 - 3'!G14) -> 87.40648509 | I4: =IF('Tabelle System 1 - 3'!H14="",#N/A,'Tabelle System 1 - 3'!H14) ->  | J4: =IF('Tabelle System 1 - 3'!I14="",#N/A,'Tabelle System 1 - 3'!I14) ->  | K4: =IF('Tabelle System 1 - 3'!J14="",#N/A,'Tabelle System 1 - 3'!J14) ->  | L4: =IF('Tabelle System 1 - 3'!K14="",#N/A,'Tabelle System 1 - 3'!K14) ->  | M4: =IF('Tabelle System 1 - 3'!L14="",#N/A,'Tabelle System 1 - 3'!L14) ->  | N4: =IF('Tabelle System 1 - 3'!M14="",#N/A,'Tabelle System 1 - 3'!M14) ->  | O4: =IF('Tabelle System 1 - 3'!N14="",#N/A,'Tabelle System 1 - 3'!N14) ->  | P4: =IF('Tabelle System 1 - 3'!O14="",#N/A,'Tabelle System 1 - 3'!O14) ->  | Q4: =IF('Tabelle System 1 - 3'!P14="",#N/A,'Tabelle System 1 - 3'!P14) ->  | R4: =IF('Tabelle System 1 - 3'!Q14="",#N/A,'Tabelle System 1 - 3'!Q14) ->  | S4: =IF('Tabelle System 1 - 3'!R14="",#N/A,'Tabelle System 1 - 3'!R14) ->  | T4: =IF('Tabelle System 1 - 3'!S14="",#N/A,'Tabelle System 1 - 3'!S14) ->  | U4: =IF('Tabelle System 1 - 3'!T14="",#N/A,'Tabelle System 1 - 3'!T14) ->  | V4: =IF('Tabelle System 1 - 3'!U14="",#N/A,'Tabelle System 1 - 3'!U14) ->  | W4: ='Tabelle System 1 - 3'!$B$7 -> Anbindestall-Rohr-MA - Siloblock - JV maximal - 32 Monate EKA
D5: =IF('Tabelle System 1 - 3'!C62="",#N/A,'Tabelle System 1 - 3'!C62) ->  | E5: =IF('Tabelle System 1 - 3'!D62="",#N/A,'Tabelle System 1 - 3'!D62) ->  | F5: =IF('Tabelle System 1 - 3'!E62="",#N/A,'Tabelle System 1 - 3'!E62) ->  | G5: =IF('Tabelle System 1 - 3'!F62="",#N/A,'Tabelle System 1 - 3'!F62) ->  | H5: =IF('Tabelle System 1 - 3'!G62="",#N/A,'Tabelle System 1 - 3'!G62) -> 64.20186761 | I5: =IF('Tabelle System 1 - 3'!H62="",#N/A,'Tabelle System 1 - 3'!H62) -> 61.27211672 | J5: =IF('Tabelle System 1 - 3'!I62="",#N/A,'Tabelle System 1 - 3'!I62) -> 58.8517778 | K5: =IF('Tabelle System 1 - 3'!J62="",#N/A,'Tabelle System 1 - 3'!J62) -> 56.80316625 | L5: =IF('Tabelle System 1 - 3'!K62="",#N/A,'Tabelle System 1 - 3'!K62) -> 55.03630047 | M5: =IF('Tabelle System 1 - 3'!L62="",#N/A,'Tabelle System 1 - 3'!L62) -> 53.48942636 | N5: =IF('Tabelle System 1 - 3'!M62="",#N/A,'Tabelle System 1 - 3'!M62) -> 52.11848921 | O5: =IF('Tabelle System 1 - 3'!N62="",#N/A,'Tabelle System 1 - 3'!N62) -> 50.89105731 | P5: =IF('Tabelle System 1 - 3'!O62="",#N/A,'Tabelle System 1 - 3'!O62) -> 49.78262554 | Q5: =IF('Tabelle System 1 - 3'!P62="",#N/A,'Tabelle System 1 - 3'!P62) -> 48.77426734 | R5: =IF('Tabelle System 1 - 3'!Q62="",#N/A,'Tabelle System 1 - 3'!Q62) -> 47.85108828 | S5: =IF('Tabelle System 1 - 3'!R62="",#N/A,'Tabelle System 1 - 3'!R62) -> 47.00117576 | T5: =IF('Tabelle System 1 - 3'!S62="",#N/A,'Tabelle System 1 - 3'!S62) ->  | U5: =IF('Tabelle System 1 - 3'!T62="",#N/A,'Tabelle System 1 - 3'!T62) ->  | V5: =IF('Tabelle System 1 - 3'!U62="",#N/A,'Tabelle System 1 - 3'!U62) ->  | W5: =+'Tabelle System 1 - 3'!$B$55 -> Laufstall-FGM 2x6 - FMW - JV normal - 29 Monate EKA
D6: =IF('Tabelle System 1 - 3'!C110="",#N/A,'Tabelle System 1 - 3'!C110) ->  | E6: =IF('Tabelle System 1 - 3'!D110="",#N/A,'Tabelle System 1 - 3'!D110) ->  | F6: =IF('Tabelle System 1 - 3'!E110="",#N/A,'Tabelle System 1 - 3'!E110) ->  | G6: =IF('Tabelle System 1 - 3'!F110="",#N/A,'Tabelle System 1 - 3'!F110) ->  | H6: =IF('Tabelle System 1 - 3'!G110="",#N/A,'Tabelle System 1 - 3'!G110) ->  | I6: =IF('Tabelle System 1 - 3'!H110="",#N/A,'Tabelle System 1 - 3'!H110) ->  | J6: =IF('Tabelle System 1 - 3'!I110="",#N/A,'Tabelle System 1 - 3'!I110) ->  | K6: =IF('Tabelle System 1 - 3'!J110="",#N/A,'Tabelle System 1 - 3'!J110) ->  | L6: =IF('Tabelle System 1 - 3'!K110="",#N/A,'Tabelle System 1 - 3'!K110) ->  | M6: =IF('Tabelle System 1 - 3'!L110="",#N/A,'Tabelle System 1 - 3'!L110) ->  | N6: =IF('Tabelle System 1 - 3'!M110="",#N/A,'Tabelle System 1 - 3'!M110) ->  | O6: =IF('Tabelle System 1 - 3'!N110="",#N/A,'Tabelle System 1 - 3'!N110) ->  | P6: =IF('Tabelle System 1 - 3'!O110="",#N/A,'Tabelle System 1 - 3'!O110) -> 30.22332171 | Q6: =IF('Tabelle System 1 - 3'!P110="",#N/A,'Tabelle System 1 - 3'!P110) -> 29.02835184 | R6: =IF('Tabelle System 1 - 3'!Q110="",#N/A,'Tabelle System 1 - 3'!Q110) -> 27.95022284 | S6: =IF('Tabelle System 1 - 3'!R110="",#N/A,'Tabelle System 1 - 3'!R110) -> 26.97077036 | T6: =IF('Tabelle System 1 - 3'!S110="",#N/A,'Tabelle System 1 - 3'!S110) -> 26.07554061 | U6: =IF('Tabelle System 1 - 3'!T110="",#N/A,'Tabelle System 1 - 3'!T110) -> 25.25287256 | V6: =IF('Tabelle System 1 - 3'!U110="",#N/A,'Tabelle System 1 - 3'!U110) -> 24.49324253 | W6: =+'Tabelle System 1 - 3'!$B$103 -> Laufstall-AMS 3 Boxen - AFS - keine eigene Nachzucht
B26: Erzeugte Jahremilchmenge (Tsd kg) bei einer Milchleistung je Kuh (kg) von:
B27: Herdengröße | D27: 20 | E27: 30 | F27: 40 | G27: 50 | H27: 60 | I27: 70 | J27: 80 | K27: 90 | L27: 100 | M27: 110 | N27: 120 | O27: 130 | P27: 140 | Q27: 150 | R27: 160 | S27: 170 | T27: 180 | U27: 190 | V27: 200
B28: =+Grunddaten!$D$31 -> 6000 | C28: kg/Kuh | D28: =+D27*$B28/1000 -> 120 | E28: =+E27*$B28/1000 -> 180 | F28: 240 | G28: 300 | H28: 360 | I28: 420 | J28: 480 | K28: 540 | L28: 600 | M28: 660 | N28: 720 | O28: 780 | P28: 840 | Q28: 900 | R28: 960 | S28: 1020 | T28: 1080 | U28: 1140 | V28: =+V27*$B28/1000 -> 1200
B29: =+Grunddaten!$D$32 -> 8000 | C29: kg/Kuh | D29: =+D27*$B29/1000 -> 160 | E29: =+E27*$B29/1000 -> 240 | F29: 320 | G29: 400 | H29: 480 | I29: 560 | J29: 640 | K29: 720 | L29: 800 | M29: 880 | N29: 960 | O29: 1040 | P29: 1120 | Q29: 1200 | R29: 1280 | S29: 1360 | T29: 1440 | U29: 1520 | V29: =+V27*$B29/1000 -> 1600
B30: =+Grunddaten!$D$33 -> 10000 | C30: kg/Kuh | D30: =+D27*$B30/1000 -> 200 | E30: =+E27*$B30/1000 -> 300 | F30: 400 | G30: 500 | H30: 600 | I30: 700 | J30: 800 | K30: 900 | L30: 1000 | M30: 1100 | N30: 1200 | O30: 1300 | P30: 1400 | Q30: 1500 | R30: 1600 | S30: 1700 | T30: 1800 | U30: 1900 | V30: 2000

Sheet Grafik_2
A1: 2. Jahresarbeitszeitbedarf für die Herde in Abhängigkeit von Herdengröße, Nachzuchtintensität sowie Melk- und Fütterungsystem
D3: 20 | E3: 30 | F3: 40 | G3: 50 | H3: 60 | I3: 70 | J3: 80 | K3: 90 | L3: 100 | M3: 110 | N3: 120 | O3: 130 | P3: 140 | Q3: 150 | R3: 160 | S3: 170 | T3: 180 | U3: 190 | V3: 200 | W3: Anzahl Kühe
D4: =IF('Tabelle System 1 - 3'!C16="",#N/A,'Tabelle System 1 - 3'!C16) -> 2355.326469 | E4: =IF('Tabelle System 1 - 3'!D16="",#N/A,'Tabelle System 1 - 3'!D16) -> 3167.15918 | F4: =IF('Tabelle System 1 - 3'!E16="",#N/A,'Tabelle System 1 - 3'!E16) -> 3903.576931 | G4: =IF('Tabelle System 1 - 3'!F16="",#N/A,'Tabelle System 1 - 3'!F16) -> 4605.141055 | H4: =IF('Tabelle System 1 - 3'!G16="",#N/A,'Tabelle System 1 - 3'!G16) -> 5244.389106 | I4: =IF('Tabelle System 1 - 3'!H16="",#N/A,'Tabelle System 1 - 3'!H16) ->  | J4: =IF('Tabelle System 1 - 3'!I16="",#N/A,'Tabelle System 1 - 3'!I16) ->  | K4: =IF('Tabelle System 1 - 3'!J16="",#N/A,'Tabelle System 1 - 3'!J16) ->  | L4: =IF('Tabelle System 1 - 3'!K16="",#N/A,'Tabelle System 1 - 3'!K16) ->  | M4: =IF('Tabelle System 1 - 3'!L16="",#N/A,'Tabelle System 1 - 3'!L16) ->  | N4: =IF('Tabelle System 1 - 3'!M16="",#N/A,'Tabelle System 1 - 3'!M16) ->  | O4: =IF('Tabelle System 1 - 3'!N16="",#N/A,'Tabelle System 1 - 3'!N16) ->  | P4: =IF('Tabelle System 1 - 3'!O16="",#N/A,'Tabelle System 1 - 3'!O16) ->  | Q4: =IF('Tabelle System 1 - 3'!P16="",#N/A,'Tabelle System 1 - 3'!P16) ->  | R4: =IF('Tabelle System 1 - 3'!Q16="",#N/A,'Tabelle System 1 - 3'!Q16) ->  | S4: =IF('Tabelle System 1 - 3'!R16="",#N/A,'Tabelle System 1 - 3'!R16) ->  | T4: =IF('Tabelle System 1 - 3'!S16="",#N/A,'Tabelle System 1 - 3'!S16) ->  | U4: =IF('Tabelle System 1 - 3'!T16="",#N/A,'Tabelle System 1 - 3'!T16) ->  | V4: =IF('Tabelle System 1 - 3'!U16="",#N/A,'Tabelle System 1 - 3'!U16) ->  | W4: ='Tabelle System 1 - 3'!$B$7 -> Anbindestall-Rohr-MA - Siloblock - JV maximal - 32 Monate EKA
D5: =IF('Tabelle System 1 - 3'!C64="",#N/A,'Tabelle System 1 - 3'!C64) ->  | E5: =IF('Tabelle System 1 - 3'!D64="",#N/A,'Tabelle System 1 - 3'!D64) ->  | F5: =IF('Tabelle System 1 - 3'!E64="",#N/A,'Tabelle System 1 - 3'!E64) ->  | G5: =IF('Tabelle System 1 - 3'!F64="",#N/A,'Tabelle System 1 - 3'!F64) ->  | H5: =IF('Tabelle System 1 - 3'!G64="",#N/A,'Tabelle System 1 - 3'!G64) -> 3852.112057 | I5: =IF('Tabelle System 1 - 3'!H64="",#N/A,'Tabelle System 1 - 3'!H64) -> 4289.048171 | J5: =IF('Tabelle System 1 - 3'!I64="",#N/A,'Tabelle System 1 - 3'!I64) -> 4708.142224 | K5: =IF('Tabelle System 1 - 3'!J64="",#N/A,'Tabelle System 1 - 3'!J64) -> 5112.284962 | L5: =IF('Tabelle System 1 - 3'!K64="",#N/A,'Tabelle System 1 - 3'!K64) -> 5503.630047 | M5: =IF('Tabelle System 1 - 3'!L64="",#N/A,'Tabelle System 1 - 3'!L64) -> 5883.836899 | N5: =IF('Tabelle System 1 - 3'!M64="",#N/A,'Tabelle System 1 - 3'!M64) -> 6254.218705 | O5: =IF('Tabelle System 1 - 3'!N64="",#N/A,'Tabelle System 1 - 3'!N64) -> 6615.837451 | P5: =IF('Tabelle System 1 - 3'!O64="",#N/A,'Tabelle System 1 - 3'!O64) -> 6969.567576 | Q5: =IF('Tabelle System 1 - 3'!P64="",#N/A,'Tabelle System 1 - 3'!P64) -> 7316.140101 | R5: =IF('Tabelle System 1 - 3'!Q64="",#N/A,'Tabelle System 1 - 3'!Q64) -> 7656.174125 | S5: =IF('Tabelle System 1 - 3'!R64="",#N/A,'Tabelle System 1 - 3'!R64) -> 7990.199879 | T5: =IF('Tabelle System 1 - 3'!S64="",#N/A,'Tabelle System 1 - 3'!S64) ->  | U5: =IF('Tabelle System 1 - 3'!T64="",#N/A,'Tabelle System 1 - 3'!T64) ->  | V5: =IF('Tabelle System 1 - 3'!U64="",#N/A,'Tabelle System 1 - 3'!U64) ->  | W5: =+'Tabelle System 1 - 3'!$B$55 -> Laufstall-FGM 2x6 - FMW - JV normal - 29 Monate EKA
D6: =IF('Tabelle System 1 - 3'!C112="",#N/A,'Tabelle System 1 - 3'!C112) ->  | E6: =IF('Tabelle System 1 - 3'!D112="",#N/A,'Tabelle System 1 - 3'!D112) ->  | F6: =IF('Tabelle System 1 - 3'!E112="",#N/A,'Tabelle System 1 - 3'!E112) ->  | G6: =IF('Tabelle System 1 - 3'!F112="",#N/A,'Tabelle System 1 - 3'!F112) ->  | H6: =IF('Tabelle System 1 - 3'!G112="",#N/A,'Tabelle System 1 - 3'!G112) ->  | I6: =IF('Tabelle System 1 - 3'!H112="",#N/A,'Tabelle System 1 - 3'!H112) ->  | J6: =IF('Tabelle System 1 - 3'!I112="",#N/A,'Tabelle System 1 - 3'!I112) ->  | K6: =IF('Tabelle System 1 - 3'!J112="",#N/A,'Tabelle System 1 - 3'!J112) ->  | L6: =IF('Tabelle System 1 - 3'!K112="",#N/A,'Tabelle System 1 - 3'!K112) ->  | M6: =IF('Tabelle System 1 - 3'!L112="",#N/A,'Tabelle System 1 - 3'!L112) ->  | N6: =IF('Tabelle System 1 - 3'!M112="",#N/A,'Tabelle System 1 - 3'!M112) ->  | O6: =IF('Tabelle System 1 - 3'!N112="",#N/A,'Tabelle System 1 - 3'!N112) ->  | P6: =IF('Tabelle System 1 - 3'!O112="",#N/A,'Tabelle System 1 - 3'!O112) -> 4231.26504 | Q6: =IF('Tabelle System 1 - 3'!P112="",#N/A,'Tabelle System 1 - 3'!P112) -> 4354.252775 | R6: =IF('Tabelle System 1 - 3'!Q112="",#N/A,'Tabelle System 1 - 3'!Q112) -> 4472.035654 | S6: =IF('Tabelle System 1 - 3'!R112="",#N/A,'Tabelle System 1 - 3'!R112) -> 4585.030961 | T6: =IF('Tabelle System 1 - 3'!S112="",#N/A,'Tabelle System 1 - 3'!S112) -> 4693.597309 | U6: =IF('Tabelle System 1 - 3'!T112="",#N/A,'Tabelle System 1 - 3'!T112) -> 4798.045787 | V6: =IF('Tabelle System 1 - 3'!U112="",#N/A,'Tabelle System 1 - 3'!U112) -> 4898.648506 | W6: =+'Tabelle System 1 - 3'!$B$103 -> Laufstall-AMS 3 Boxen - AFS - keine eigene Nachzucht
X12: AKh/ Jahr | Y12: AKh/ Tag | Z12: AK | AA12: Rechengang:
Z13: =CONCATENATE("(",Grunddaten!$D$5," AKh)") -> (2600 AKh) | AA13: Kühe Ø x Arbeitszeitbedarf (AKh/Kuh)
X14: 7000 | Y14: =+X14/365 -> 19.17808219 | Z14: =+X14/Grunddaten!$D$5 -> 2.692307692
X15: 6500 | Y15: 17.80821918 | Z15: =+X15/Grunddaten!$D$5 -> 2.5
X16: 6000 | Y16: =+X16/365 -> 16.43835616 | Z16: =+X16/Grunddaten!$D$5 -> 2.307692308
X17: 5500 | Y17: =+X17/365 -> 15.06849315 | Z17: =+X17/Grunddaten!$D$5 -> 2.115384615
X18: 5000 | Y18: 13.69863014 | Z18: =+X18/Grunddaten!$D$5 -> 1.923076923
X19: 4500 | Y19: 12.32876712 | Z19: =+X19/Grunddaten!$D$5 -> 1.730769231
X20: 4000 | Y20: 10.95890411 | Z20: =+X20/Grunddaten!$D$5 -> 1.538461538
X21: 3500 | Y21: 9.589041096 | Z21: =+X21/Grunddaten!$D$5 -> 1.346153846
X22: 3000 | Y22: 8.219178082 | Z22: =+X22/Grunddaten!$D$5 -> 1.153846154
X23: 2500 | Y23: 6.849315068 | Z23: =+X23/Grunddaten!$D$5 -> 0.9615384615
X24: 2000 | Y24: 5.479452055 | Z24: =+X24/Grunddaten!$D$5 -> 0.7692307692
B27: Erzeugte Jahremilchmenge (Tsd kg) bei einer Milchleistung je Kuh (kg) von:
B28: Herdengröße | D28: 20 | E28: 30 | F28: 40 | G28: 50 | H28: 60 | I28: 70 | J28: 80 | K28: 90 | L28: 100 | M28: 110 | N28: 120 | O28: 130 | P28: 140 | Q28: 150 | R28: 160 | S28: 170 | T28: 180 | U28: 190 | V28: 200
B29: =+Grunddaten!$D$31 -> 6000 | C29: kg/Kuh | D29: =+D28*$B29/1000 -> 120 | E29: 180 | F29: 240 | G29: 300 | H29: 360 | I29: 420 | J29: 480 | K29: 540 | L29: 600 | M29: 660 | N29: 720 | O29: 780 | P29: 840 | Q29: 900 | R29: 960 | S29: 1020 | T29: 1080 | U29: 1140 | V29: 1200
B30: =+Grunddaten!$D$32 -> 8000 | C30: kg/Kuh | D30: =+D28*$B30/1000 -> 160 | E30: 240 | F30: 320 | G30: 400 | H30: 480 | I30: 560 | J30: 640 | K30: 720 | L30: 800 | M30: 880 | N30: 960 | O30: 1040 | P30: 1120 | Q30: 1200 | R30: 1280 | S30: 1360 | T30: 1440 | U30: 1520 | V30: 1600
B31: =+Grunddaten!$D$33 -> 10000 | C31: kg/Kuh | D31: =+D28*$B31/1000 -> 200 | E31: 300 | F31: 400 | G31: 500 | H31: 600 | I31: 700 | J31: 800 | K31: 900 | L31: 1000 | M31: 1100 | N31: 1200 | O31: 1300 | P31: 1400 | Q31: 1500 | R31: 1600 | S31: 1700 | T31: 1800 | U31: 1900 | V31: 2000

Sheet Grafik_3
A1: 3. Jahresmilchproduktion (Tsd kg Milch) in Abhängigkeit von Herdengröße, Nachzuchtintensität, Melk- und Fütterungsystem sowie der Milchleistung
I3: 2 | J3: 3 | K3: 4 | L3: 5 | M3: 6 | N3: 7 | O3: 8 | P3: 9 | Q3: 10 | R3: 11 | S3: 12 | T3: 13 | U3: 14 | V3: 15 | W3: 16 | X3: 17 | Y3: 18 | Z3: 19 | AA3: 20
A4: Auswahl der Milchleistung | F4: =+Grafiken!F73 -> 8000 | G4: kg/Kuh
D6: 20 | E6: 30 | F6: 40 | G6: 50 | H6: 60 | I6: 70 | J6: 80 | K6: 90 | L6: 100 | M6: 110 | N6: 120 | O6: 130 | P6: 140 | Q6: 150 | R6: 160 | S6: 170 | T6: 180 | U6: 190 | V6: 200 | W6: Anzahl Kühe
D7: =IF('Tabelle System 1 - 3'!C19="",#N/A,VLOOKUP($F$4,'Tabelle System 1 - 3'!$B$19:$U$21,I3,FALSE)) -> 160 | E7: =IF('Tabelle System 1 - 3'!D19="",#N/A,VLOOKUP($F$4,'Tabelle System 1 - 3'!$B$19:$U$21,J3,FALSE)) -> 240 | F7: =IF('Tabelle System 1 - 3'!E19="",#N/A,VLOOKUP($F$4,'Tabelle System 1 - 3'!$B$19:$U$21,K3,FALSE)) -> 320 | G7: =IF('Tabelle System 1 - 3'!F19="",#N/A,VLOOKUP($F$4,'Tabelle System 1 - 3'!$B$19:$U$21,L3,FALSE)) -> 400 | H7: =IF('Tabelle System 1 - 3'!G19="",#N/A,VLOOKUP($F$4,'Tabelle System 1 - 3'!$B$19:$U$21,M3,FALSE)) -> 480 | I7: =IF('Tabelle System 1 - 3'!H19="",#N/A,VLOOKUP($F$4,'Tabelle System 1 - 3'!$B$19:$U$21,N3,FALSE)) ->  | J7: =IF('Tabelle System 1 - 3'!I19="",#N/A,VLOOKUP($F$4,'Tabelle System 1 - 3'!$B$19:$U$21,O3,FALSE)) ->  | K7: =IF('Tabelle System 1 - 3'!J19="",#N/A,VLOOKUP($F$4,'Tabelle System 1 - 3'!$B$19:$U$21,P3,FALSE)) ->  | L7: =IF('Tabelle System 1 - 3'!K19="",#N/A,VLOOKUP($F$4,'Tabelle System 1 - 3'!$B$19:$U$21,Q3,FALSE)) ->  | M7: =IF('Tabelle System 1 - 3'!L19="",#N/A,VLOOKUP($F$4,'Tabelle System 1 - 3'!$B$19:$U$21,R3,FALSE)) ->  | N7: =IF('Tabelle System 1 - 3'!M19="",#N/A,VLOOKUP($F$4,'Tabelle System 1 - 3'!$B$19:$U$21,S3,FALSE)) ->  | O7: =IF('Tabelle System 1 - 3'!N19="",#N/A,VLOOKUP($F$4,'Tabelle System 1 - 3'!$B$19:$U$21,T3,FALSE)) ->  | P7: =IF('Tabelle System 1 - 3'!O19="",#N/A,VLOOKUP($F$4,'Tabelle System 1 - 3'!$B$19:$U$21,U3,FALSE)) ->  | Q7: =IF('Tabelle System 1 - 3'!P19="",#N/A,VLOOKUP($F$4,'Tabelle System 1 - 3'!$B$19:$U$21,V3,FALSE)) ->  | R7: =IF('Tabelle System 1 - 3'!Q19="",#N/A,VLOOKUP($F$4,'Tabelle System 1 - 3'!$B$19:$U$21,W3,FALSE)) ->  | S7: =IF('Tabelle System 1 - 3'!R19="",#N/A,VLOOKUP($F$4,'Tabelle System 1 - 3'!$B$19:$U$21,X3,FALSE)) ->  | T7: =IF('Tabelle System 1 - 3'!S19="",#N/A,VLOOKUP($F$4,'Tabelle System 1 - 3'!$B$19:$U$21,Y3,FALSE)) ->  | U7: =IF('Tabelle System 1 - 3'!T19="",#N/A,VLOOKUP($F$4,'Tabelle System 1 - 3'!$B$19:$U$21,Z3,FALSE)) ->  | V7: =IF('Tabelle System 1 - 3'!U19="",#N/A,VLOOKUP($F$4,'Tabelle System 1 - 3'!$B$19:$U$21,AA3,FALSE)) ->  | W7: ='Tabelle System 1 - 3'!$B$7 -> Anbindestall-Rohr-MA - Siloblock - JV maximal - 32 Monate EKA
D8: =IF('Tabelle System 1 - 3'!C67="",#N/A,VLOOKUP($F$4,'Tabelle System 1 - 3'!$B$67:$U$69,I3,FALSE)) ->  | E8: =IF('Tabelle System 1 - 3'!D67="",#N/A,VLOOKUP($F$4,'Tabelle System 1 - 3'!$B$67:$U$69,J3,FALSE)) ->  | F8: =IF('Tabelle System 1 - 3'!E67="",#N/A,VLOOKUP($F$4,'Tabelle System 1 - 3'!$B$67:$U$69,K3,FALSE)) ->  | G8: =IF('Tabelle System 1 - 3'!F67="",#N/A,VLOOKUP($F$4,'Tabelle System 1 - 3'!$B$67:$U$69,L3,FALSE)) ->  | H8: =IF('Tabelle System 1 - 3'!G67="",#N/A,VLOOKUP($F$4,'Tabelle System 1 - 3'!$B$67:$U$69,M3,FALSE)) -> 480 | I8: =IF('Tabelle System 1 - 3'!H67="",#N/A,VLOOKUP($F$4,'Tabelle System 1 - 3'!$B$67:$U$69,N3,FALSE)) -> 560 | J8: =IF('Tabelle System 1 - 3'!I67="",#N/A,VLOOKUP($F$4,'Tabelle System 1 - 3'!$B$67:$U$69,O3,FALSE)) -> 640 | K8: =IF('Tabelle System 1 - 3'!J67="",#N/A,VLOOKUP($F$4,'Tabelle System 1 - 3'!$B$67:$U$69,P3,FALSE)) -> 720 | L8: =IF('Tabelle System 1 - 3'!K67="",#N/A,VLOOKUP($F$4,'Tabelle System 1 - 3'!$B$67:$U$69,Q3,FALSE)) -> 800 | M8: =IF('Tabelle System 1 - 3'!L67="",#N/A,VLOOKUP($F$4,'Tabelle System 1 - 3'!$B$67:$U$69,R3,FALSE)) -> 880 | N8: =IF('Tabelle System 1 - 3'!M67="",#N/A,VLOOKUP($F$4,'Tabelle System 1 - 3'!$B$67:$U$69,S3,FALSE)) -> 960 | O8: =IF('Tabelle System 1 - 3'!N67="",#N/A,VLOOKUP($F$4,'Tabelle System 1 - 3'!$B$67:$U$69,T3,FALSE)) -> 1040 | P8: =IF('Tabelle System 1 - 3'!O67="",#N/A,VLOOKUP($F$4,'Tabelle System 1 - 3'!$B$67:$U$69,U3,FALSE)) -> 1120 | Q8: =IF('Tabelle System 1 - 3'!P67="",#N/A,VLOOKUP($F$4,'Tabelle System 1 - 3'!$B$67:$U$69,V3,FALSE)) -> 1200 | R8: =IF('Tabelle System 1 - 3'!Q67="",#N/A,VLOOKUP($F$4,'Tabelle System 1 - 3'!$B$67:$U$69,W3,FALSE)) -> 1280 | S8: =IF('Tabelle System 1 - 3'!R67="",#N/A,VLOOKUP($F$4,'Tabelle System 1 - 3'!$B$67:$U$69,X3,FALSE)) -> 1360 | T8: =IF('Tabelle System 1 - 3'!S67="",#N/A,VLOOKUP($F$4,'Tabelle System 1 - 3'!$B$67:$U$69,Y3,FALSE)) ->  | U8: =IF('Tabelle System 1 - 3'!T67="",#N/A,VLOOKUP($F$4,'Tabelle System 1 - 3'!$B$67:$U$69,Z3,FALSE)) ->  | V8: =IF('Tabelle System 1 - 3'!U67="",#N/A,VLOOKUP($F$4,'Tabelle System 1 - 3'!$B$67:$U$69,AA3,FALSE)) ->  | W8: =+'Tabelle System 1 - 3'!$B$55 -> Laufstall-FGM 2x6 - FMW - JV normal - 29 Monate EKA
D9: =IF('Tabelle System 1 - 3'!C115="",#N/A,VLOOKUP($F$4,'Tabelle System 1 - 3'!$B$115:$U$117,I3,FALSE)) ->  | E9: =IF('Tabelle System 1 - 3'!D115="",#N/A,VLOOKUP($F$4,'Tabelle System 1 - 3'!$B$115:$U$117,J3,FALSE)) ->  | F9: =IF('Tabelle System 1 - 3'!E115="",#N/A,VLOOKUP($F$4,'Tabelle System 1 - 3'!$B$115:$U$117,K3,FALSE)) ->  | G9: =IF('Tabelle System 1 - 3'!F115="",#N/A,VLOOKUP($F$4,'Tabelle System 1 - 3'!$B$115:$U$117,L3,FALSE)) ->  | H9: =IF('Tabelle System 1 - 3'!G115="",#N/A,VLOOKUP($F$4,'Tabelle System 1 - 3'!$B$115:$U$117,M3,FALSE)) ->  | I9: =IF('Tabelle System 1 - 3'!H115="",#N/A,VLOOKUP($F$4,'Tabelle System 1 - 3'!$B$115:$U$117,N3,FALSE)) ->  | J9: =IF('Tabelle System 1 - 3'!I115="",#N/A,VLOOKUP($F$4,'Tabelle System 1 - 3'!$B$115:$U$117,O3,FALSE)) ->  | K9: =IF('Tabelle System 1 - 3'!J115="",#N/A,VLOOKUP($F$4,'Tabelle System 1 - 3'!$B$115:$U$117,P3,FALSE)) ->  | L9: =IF('Tabelle System 1 - 3'!K115="",#N/A,VLOOKUP($F$4,'Tabelle System 1 - 3'!$B$115:$U$117,Q3,FALSE)) ->  | M9: =IF('Tabelle System 1 - 3'!L115="",#N/A,VLOOKUP($F$4,'Tabelle System 1 - 3'!$B$115:$U$117,R3,FALSE)) ->  | N9: =IF('Tabelle System 1 - 3'!M115="",#N/A,VLOOKUP($F$4,'Tabelle System 1 - 3'!$B$115:$U$117,S3,FALSE)) ->  | O9: =IF('Tabelle System 1 - 3'!N115="",#N/A,VLOOKUP($F$4,'Tabelle System 1 - 3'!$B$115:$U$117,T3,FALSE)) ->  | P9: =IF('Tabelle System 1 - 3'!O115="",#N/A,VLOOKUP($F$4,'Tabelle System 1 - 3'!$B$115:$U$117,U3,FALSE)) -> 1120 | Q9: =IF('Tabelle System 1 - 3'!P115="",#N/A,VLOOKUP($F$4,'Tabelle System 1 - 3'!$B$115:$U$117,V3,FALSE)) -> 1200 | R9: =IF('Tabelle System 1 - 3'!Q115="",#N/A,VLOOKUP($F$4,'Tabelle System 1 - 3'!$B$115:$U$117,W3,FALSE)) -> 1280 | S9: =IF('Tabelle System 1 - 3'!R115="",#N/A,VLOOKUP($F$4,'Tabelle System 1 - 3'!$B$115:$U$117,X3,FALSE)) -> 1360 | T9: =IF('Tabelle System 1 - 3'!S115="",#N/A,VLOOKUP($F$4,'Tabelle System 1 - 3'!$B$115:$U$117,Y3,FALSE)) -> 1440 | U9: =IF('Tabelle System 1 - 3'!T115="",#N/A,VLOOKUP($F$4,'Tabelle System 1 - 3'!$B$115:$U$117,Z3,FALSE)) -> 1520 | V9: =IF('Tabelle System 1 - 3'!U115="",#N/A,VLOOKUP($F$4,'Tabelle System 1 - 3'!$B$115:$U$117,AA3,FALSE)) -> 1600 | W9: =+'Tabelle System 1 - 3'!$B$103 -> Laufstall-AMS 3 Boxen - AFS - keine eigene Nachzucht
X12: Rechengang:
X13: Kühe Ø x Milchleistung (kg/Kuh) / 1.000
B30: Erzeugte Jahremilchmenge (Tsd kg) bei einer Milchleistung je Kuh (kg) von:
B31: Herdengröße | D31: 20 | E31: 30 | F31: 40 | G31: 50 | H31: 60 | I31: 70 | J31: 80 | K31: 90 | L31: 100 | M31: 110 | N31: 120 | O31: 130 | P31: 140 | Q31: 150 | R31: 160 | S31: 170 | T31: 180 | U31: 190 | V31: 200
B32: =+Grunddaten!$D$31 -> 6000 | C32: kg/Kuh | D32: =+D31*$B32/1000 -> 120 | E32: =+E31*$B32/1000 -> 180 | F32: 240 | G32: 300 | H32: 360 | I32: 420 | J32: 480 | K32: 540 | L32: 600 | M32: 660 | N32: 720 | O32: 780 | P32: 840 | Q32: 900 | R32: 960 | S32: 1020 | T32: 1080 | U32: 1140 | V32: =+V31*$B32/1000 -> 1200
B33: =+Grunddaten!$D$32 -> 8000 | C33: kg/Kuh | D33: =+D31*$B33/1000 -> 160 | E33: =+E31*$B33/1000 -> 240 | F33: 320 | G33: 400 | H33: 480 | I33: 560 | J33: 640 | K33: 720 | L33: 800 | M33: 880 | N33: 960 | O33: 1040 | P33: 1120 | Q33: 1200 | R33: 1280 | S33: 1360 | T33: 1440 | U33: 1520 | V33: =+V31*$B33/1000 -> 1600
B34: =+Grunddaten!$D$33 -> 10000 | C34: kg/Kuh | D34: =+D31*$B34/1000 -> 200 | E34: =+E31*$B34/1000 -> 300 | F34: 400 | G34: 500 | H34: 600 | I34: 700 | J34: 800 | K34: 900 | L34: 1000 | M34: 1100 | N34: 1200 | O34: 1300 | P34: 1400 | Q34: 1500 | R34: 1600 | S34: 1700 | T34: 1800 | U34: 1900 | V34: 2000

Sheet Grafik_4
A1: 4. Arbeitseffizienz (kg Milch je AKh) in Abhängigkeit von Herdengröße, Nachzuchtintensität, Melk- und Fütterungsystem sowie der Milchleistung
I3: 2 | J3: 3 | K3: 4 | L3: 5 | M3: 6 | N3: 7 | O3: 8 | P3: 9 | Q3: 10 | R3: 11 | S3: 12 | T3: 13 | U3: 14 | V3: 15 | W3: 16 | X3: 17 | Y3: 18 | Z3: 19 | AA3: 20
A4: Ausgewählte Milchleistung | E4: =Grafik_3!F4 -> 8000 | F4: kg/Kuh | G4: (Die Änderung erfolgt zentral in Grafik 3)
D6: 20 | E6: 30 | F6: 40 | G6: 50 | H6: 60 | I6: 70 | J6: 80 | K6: 90 | L6: 100 | M6: 110 | N6: 120 | O6: 130 | P6: 140 | Q6: 150 | R6: 160 | S6: 170 | T6: 180 | U6: 190 | V6: 200 | W6: Anzahl Kühe
D7: =IF('Tabelle System 1 - 3'!C72="",#N/A,VLOOKUP($E$4,'Tabelle System 1 - 3'!$B$24:$U$26,I3,FALSE)) -> 67.93113487 | E7: =IF('Tabelle System 1 - 3'!D24="",#N/A,VLOOKUP($E$4,'Tabelle System 1 - 3'!$B$24:$U$26,J3,FALSE)) -> 75.77768794 | F7: =IF('Tabelle System 1 - 3'!E24="",#N/A,VLOOKUP($E$4,'Tabelle System 1 - 3'!$B$24:$U$26,K3,FALSE)) -> 81.97609671 | G7: =IF('Tabelle System 1 - 3'!F24="",#N/A,VLOOKUP($E$4,'Tabelle System 1 - 3'!$B$24:$U$26,L3,FALSE)) -> 86.85944583 | H7: =IF('Tabelle System 1 - 3'!G24="",#N/A,VLOOKUP($E$4,'Tabelle System 1 - 3'!$B$24:$U$26,M3,FALSE)) -> 91.52638951 | I7: =IF('Tabelle System 1 - 3'!H24="",#N/A,VLOOKUP($E$4,'Tabelle System 1 - 3'!$B$24:$U$26,N3,FALSE)) ->  | J7: =IF('Tabelle System 1 - 3'!I24="",#N/A,VLOOKUP($E$4,'Tabelle System 1 - 3'!$B$24:$U$26,O3,FALSE)) ->  | K7: =IF('Tabelle System 1 - 3'!J24="",#N/A,VLOOKUP($E$4,'Tabelle System 1 - 3'!$B$24:$U$26,P3,FALSE)) ->  | L7: =IF('Tabelle System 1 - 3'!K24="",#N/A,VLOOKUP($E$4,'Tabelle System 1 - 3'!$B$24:$U$26,Q3,FALSE)) ->  | M7: =IF('Tabelle System 1 - 3'!L24="",#N/A,VLOOKUP($E$4,'Tabelle System 1 - 3'!$B$24:$U$26,R3,FALSE)) ->  | N7: =IF('Tabelle System 1 - 3'!M24="",#N/A,VLOOKUP($E$4,'Tabelle System 1 - 3'!$B$24:$U$26,S3,FALSE)) ->  | O7: =IF('Tabelle System 1 - 3'!N24="",#N/A,VLOOKUP($E$4,'Tabelle System 1 - 3'!$B$24:$U$26,T3,FALSE)) ->  | P7: =IF('Tabelle System 1 - 3'!O24="",#N/A,VLOOKUP($E$4,'Tabelle System 1 - 3'!$B$24:$U$26,U3,FALSE)) ->  | Q7: =IF('Tabelle System 1 - 3'!P24="",#N/A,VLOOKUP($E$4,'Tabelle System 1 - 3'!$B$24:$U$26,V3,FALSE)) ->  | R7: =IF('Tabelle System 1 - 3'!Q24="",#N/A,VLOOKUP($E$4,'Tabelle System 1 - 3'!$B$24:$U$26,W3,FALSE)) ->  | S7: =IF('Tabelle System 1 - 3'!R24="",#N/A,VLOOKUP($E$4,'Tabelle System 1 - 3'!$B$24:$U$26,X3,FALSE)) ->  | T7: =IF('Tabelle System 1 - 3'!S24="",#N/A,VLOOKUP($E$4,'Tabelle System 1 - 3'!$B$24:$U$26,Y3,FALSE)) ->  | U7: =IF('Tabelle System 1 - 3'!T24="",#N/A,VLOOKUP($E$4,'Tabelle System 1 - 3'!$B$24:$U$26,Z3,FALSE)) ->  | V7: =IF('Tabelle System 1 - 3'!U24="",#N/A,VLOOKUP($E$4,'Tabelle System 1 - 3'!$B$24:$U$26,AA3,FALSE)) ->  | W7: ='Tabelle System 1 - 3'!$B$7 -> Anbindestall-Rohr-MA - Siloblock - JV maximal - 32 Monate EKA
D8: =IF('Tabelle System 1 - 3'!C25="",#N/A,VLOOKUP($E$4,'Tabelle System 1 - 3'!$B$72:$U$74,I3,FALSE)) ->  | E8: =IF('Tabelle System 1 - 3'!D25="",#N/A,VLOOKUP($E$4,'Tabelle System 1 - 3'!$B$72:$U$74,J3,FALSE)) ->  | F8: =IF('Tabelle System 1 - 3'!E25="",#N/A,VLOOKUP($E$4,'Tabelle System 1 - 3'!$B$72:$U$74,K3,FALSE)) ->  | G8: =IF('Tabelle System 1 - 3'!F25="",#N/A,VLOOKUP($E$4,'Tabelle System 1 - 3'!$B$72:$U$74,L3,FALSE)) ->  | H8: =IF('Tabelle System 1 - 3'!G25="",#N/A,VLOOKUP($E$4,'Tabelle System 1 - 3'!$B$72:$U$74,M3,FALSE)) -> 124.606967 | I8: =IF('Tabelle System 1 - 3'!H25="",#N/A,VLOOKUP($E$4,'Tabelle System 1 - 3'!$B$72:$U$74,N3,FALSE)) -> 130.5650992 | J8: =IF('Tabelle System 1 - 3'!I25="",#N/A,VLOOKUP($E$4,'Tabelle System 1 - 3'!$B$72:$U$74,O3,FALSE)) -> 135.9347211 | K8: =IF('Tabelle System 1 - 3'!J25="",#N/A,VLOOKUP($E$4,'Tabelle System 1 - 3'!$B$72:$U$74,P3,FALSE)) -> 140.8372196 | L8: =IF('Tabelle System 1 - 3'!K25="",#N/A,VLOOKUP($E$4,'Tabelle System 1 - 3'!$B$72:$U$74,Q3,FALSE)) -> 145.3586075 | M8: =IF('Tabelle System 1 - 3'!L25="",#N/A,VLOOKUP($E$4,'Tabelle System 1 - 3'!$B$72:$U$74,R3,FALSE)) -> 149.5622695 | N8: =IF('Tabelle System 1 - 3'!M25="",#N/A,VLOOKUP($E$4,'Tabelle System 1 - 3'!$B$72:$U$74,S3,FALSE)) -> 153.4963911 | O8: =IF('Tabelle System 1 - 3'!N25="",#N/A,VLOOKUP($E$4,'Tabelle System 1 - 3'!$B$72:$U$74,T3,FALSE)) -> 157.1985418 | P8: =IF('Tabelle System 1 - 3'!O25="",#N/A,VLOOKUP($E$4,'Tabelle System 1 - 3'!$B$72:$U$74,U3,FALSE)) -> 160.6986356 | Q8: =IF('Tabelle System 1 - 3'!P25="",#N/A,VLOOKUP($E$4,'Tabelle System 1 - 3'!$B$72:$U$74,V3,FALSE)) -> 164.0209159 | R8: =IF('Tabelle System 1 - 3'!Q25="",#N/A,VLOOKUP($E$4,'Tabelle System 1 - 3'!$B$72:$U$74,W3,FALSE)) -> 167.1853303 | S8: =IF('Tabelle System 1 - 3'!R25="",#N/A,VLOOKUP($E$4,'Tabelle System 1 - 3'!$B$72:$U$74,X3,FALSE)) -> 170.208508 | T8: =IF('Tabelle System 1 - 3'!S25="",#N/A,VLOOKUP($E$4,'Tabelle System 1 - 3'!$B$72:$U$74,Y3,FALSE)) ->  | U8: =IF('Tabelle System 1 - 3'!T25="",#N/A,VLOOKUP($E$4,'Tabelle System 1 - 3'!$B$72:$U$74,Z3,FALSE)) ->  | V8: =IF('Tabelle System 1 - 3'!U25="",#N/A,VLOOKUP($E$4,'Tabelle System 1 - 3'!$B$72:$U$74,AA3,FALSE)) ->  | W8: =+'Tabelle System 1 - 3'!$B$55 -> Laufstall-FGM 2x6 - FMW - JV normal - 29 Monate EKA
D9: =IF('Tabelle System 1 - 3'!C120="",#N/A,VLOOKUP($E$4,'Tabelle System 1 - 3'!$B$120:$U$122,I3,FALSE)) ->  | E9: =IF('Tabelle System 1 - 3'!D120="",#N/A,VLOOKUP($E$4,'Tabelle System 1 - 3'!$B$120:$U$122,J3,FALSE)) ->  | F9: =IF('Tabelle System 1 - 3'!E120="",#N/A,VLOOKUP($E$4,'Tabelle System 1 - 3'!$B$120:$U$122,K3,FALSE)) ->  | G9: =IF('Tabelle System 1 - 3'!F120="",#N/A,VLOOKUP($E$4,'Tabelle System 1 - 3'!$B$120:$U$122,L3,FALSE)) ->  | H9: =IF('Tabelle System 1 - 3'!G120="",#N/A,VLOOKUP($E$4,'Tabelle System 1 - 3'!$B$120:$U$122,M3,FALSE)) ->  | I9: =IF('Tabelle System 1 - 3'!H120="",#N/A,VLOOKUP($E$4,'Tabelle System 1 - 3'!$B$120:$U$122,N3,FALSE)) ->  | J9: =IF('Tabelle System 1 - 3'!I120="",#N/A,VLOOKUP($E$4,'Tabelle System 1 - 3'!$B$120:$U$122,O3,FALSE)) ->  | K9: =IF('Tabelle System 1 - 3'!J120="",#N/A,VLOOKUP($E$4,'Tabelle System 1 - 3'!$B$120:$U$122,P3,FALSE)) ->  | L9: =IF('Tabelle System 1 - 3'!K120="",#N/A,VLOOKUP($E$4,'Tabelle System 1 - 3'!$B$120:$U$122,Q3,FALSE)) ->  | M9: =IF('Tabelle System 1 - 3'!L120="",#N/A,VLOOKUP($E$4,'Tabelle System 1 - 3'!$B$120:$U$122,R3,FALSE)) ->  | N9: =IF('Tabelle System 1 - 3'!M120="",#N/A,VLOOKUP($E$4,'Tabelle System 1 - 3'!$B$120:$U$122,S3,FALSE)) ->  | O9: =IF('Tabelle System 1 - 3'!N120="",#N/A,VLOOKUP($E$4,'Tabelle System 1 - 3'!$B$120:$U$122,T3,FALSE)) ->  | P9: =IF('Tabelle System 1 - 3'!O120="",#N/A,VLOOKUP($E$4,'Tabelle System 1 - 3'!$B$120:$U$122,U3,FALSE)) -> 264.6962527 | Q9: =IF('Tabelle System 1 - 3'!P120="",#N/A,VLOOKUP($E$4,'Tabelle System 1 - 3'!$B$120:$U$122,V3,FALSE)) -> 275.592636 | R9: =IF('Tabelle System 1 - 3'!Q120="",#N/A,VLOOKUP($E$4,'Tabelle System 1 - 3'!$B$120:$U$122,W3,FALSE)) -> 286.2231205 | S9: =IF('Tabelle System 1 - 3'!R120="",#N/A,VLOOKUP($E$4,'Tabelle System 1 - 3'!$B$120:$U$122,X3,FALSE)) -> 296.6174082 | T9: =IF('Tabelle System 1 - 3'!S120="",#N/A,VLOOKUP($E$4,'Tabelle System 1 - 3'!$B$120:$U$122,Y3,FALSE)) -> 306.8009259 | U9: =IF('Tabelle System 1 - 3'!T120="",#N/A,VLOOKUP($E$4,'Tabelle System 1 - 3'!$B$120:$U$122,Z3,FALSE)) -> 316.7956429 | V9: =IF('Tabelle System 1 - 3'!U120="",#N/A,VLOOKUP($E$4,'Tabelle System 1 - 3'!$B$120:$U$122,AA3,FALSE)) -> 326.6206991 | W9: =+'Tabelle System 1 - 3'!$B$103 -> Laufstall-AMS 3 Boxen - AFS - keine eigene Nachzucht
X11: Rechengang:
X12: Erzeugte Jahresmilchmenge (kg) /
X13: Arbeitszeitbedarf Herde und Jahr (AKh)
B31: Erzeugte Jahremilchmenge (Tsd kg) bei einer Milchleistung je Kuh (kg) von:
B32: Herdengröße | D32: 20 | E32: 30 | F32: 40 | G32: 50 | H32: 60 | I32: 70 | J32: 80 | K32: 90 | L32: 100 | M32: 110 | N32: 120 | O32: 130 | P32: 140 | Q32: 150 | R32: 160 | S32: 170 | T32: 180 | U32: 190 | V32: 200
B33: =+Grunddaten!$D$31 -> 6000 | C33: kg/Kuh | D33: =+D32*$B33/1000 -> 120 | E33: =+E32*$B33/1000 -> 180 | F33: 240 | G33: 300 | H33: 360 | I33: 420 | J33: 480 | K33: 540 | L33: 600 | M33: 660 | N33: 720 | O33: 780 | P33: 840 | Q33: 900 | R33: 960 | S33: 1020 | T33: 1080 | U33: 1140 | V33: =+V32*$B33/1000 -> 1200
B34: =+Grunddaten!$D$32 -> 8000 | C34: kg/Kuh | D34: =+D32*$B34/1000 -> 160 | E34: =+E32*$B34/1000 -> 240 | F34: 320 | G34: 400 | H34: 480 | I34: 560 | J34: 640 | K34: 720 | L34: 800 | M34: 880 | N34: 960 | O34: 1040 | P34: 1120 | Q34: 1200 | R34: 1280 | S34: 1360 | T34: 1440 | U34: 1520 | V34: =+V32*$B34/1000 -> 1600
B35: =+Grunddaten!$D$33 -> 10000 | C35: kg/Kuh | D35: =+D32*$B35/1000 -> 200 | E35: =+E32*$B35/1000 -> 300 | F35: 400 | G35: 500 | H35: 600 | I35: 700 | J35: 800 | K35: 900 | L35: 1000 | M35: 1100 | N35: 1200 | O35: 1300 | P35: 1400 | Q35: 1500 | R35: 1600 | S35: 1700 | T35: 1800 | U35: 1900 | V35: 2000

Sheet Grafik_5
A1: 5. Arbeitseffizienz (Tsd kg Milch je AK) in Abhängigkeit von Herdengröße, Nachzuchtintensität, Melk- und Fütterungsystem sowie der Milchleistung
F3: 2 | G3: 3 | H3: 4 | I3: 5 | J3: 6 | K3: 7 | L3: 8 | M3: 9 | N3: 10 | O3: 11 | P3: 12 | T3: 13 | U3: 14 | V3: 15 | W3: 16 | X3: 17 | Y3: 18 | Z3: 19 | AA3: 20
A4: Ausgewählte Milchleistung | E4: =Grafik_3!F4 -> 8000 | G4: kg/Kuh (Die Änderung erfolgt zentral in Grafik 3) bei | O4: =+Grunddaten!D5 -> 2600 | Q4: Arbeitsstunden je Arbeitskraft
D6: 20 | E6: 30 | F6: 40 | G6: 50 | H6: 60 | I6: 70 | J6: 80 | K6: 90 | L6: 100 | M6: 110 | N6: 120 | O6: 130 | P6: 140 | Q6: 150 | R6: 160 | S6: 170 | T6: 180 | U6: 190 | V6: 200 | W6: Anzahl Kühe
D7: =IF('Tabelle System 1 - 3'!C30="",#N/A,VLOOKUP($E$4,'Tabelle System 1 - 3'!$B$30:$U$32,F3,FALSE)) -> 176.6209507 | E7: =IF('Tabelle System 1 - 3'!D30="",#N/A,VLOOKUP($E$4,'Tabelle System 1 - 3'!$B$30:$U$32,G3,FALSE)) -> 197.0219886 | F7: =IF('Tabelle System 1 - 3'!E30="",#N/A,VLOOKUP($E$4,'Tabelle System 1 - 3'!$B$30:$U$32,H3,FALSE)) -> 213.1378514 | G7: =IF('Tabelle System 1 - 3'!F30="",#N/A,VLOOKUP($E$4,'Tabelle System 1 - 3'!$B$30:$U$32,I3,FALSE)) -> 225.8345592 | H7: =IF('Tabelle System 1 - 3'!G30="",#N/A,VLOOKUP($E$4,'Tabelle System 1 - 3'!$B$30:$U$32,J3,FALSE)) -> 237.9686127 | I7: =IF('Tabelle System 1 - 3'!H30="",#N/A,VLOOKUP($E$4,'Tabelle System 1 - 3'!$B$30:$U$32,K3,FALSE)) ->  | J7: =IF('Tabelle System 1 - 3'!I30="",#N/A,VLOOKUP($E$4,'Tabelle System 1 - 3'!$B$30:$U$32,L3,FALSE)) ->  | K7: =IF('Tabelle System 1 - 3'!J30="",#N/A,VLOOKUP($E$4,'Tabelle System 1 - 3'!$B$30:$U$32,M3,FALSE)) ->  | L7: =IF('Tabelle System 1 - 3'!K30="",#N/A,VLOOKUP($E$4,'Tabelle System 1 - 3'!$B$30:$U$32,N3,FALSE)) ->  | M7: =IF('Tabelle System 1 - 3'!L30="",#N/A,VLOOKUP($E$4,'Tabelle System 1 - 3'!$B$30:$U$32,O3,FALSE)) ->  | N7: =IF('Tabelle System 1 - 3'!M30="",#N/A,VLOOKUP($E$4,'Tabelle System 1 - 3'!$B$30:$U$32,P3,FALSE)) ->  | O7: =IF('Tabelle System 1 - 3'!N30="",#N/A,VLOOKUP($E$4,'Tabelle System 1 - 3'!$B$30:$U$32,T3,FALSE)) ->  | P7: =IF('Tabelle System 1 - 3'!O30="",#N/A,VLOOKUP($E$4,'Tabelle System 1 - 3'!$B$30:$U$32,U3,FALSE)) ->  | Q7: =IF('Tabelle System 1 - 3'!P30="",#N/A,VLOOKUP($E$4,'Tabelle System 1 - 3'!$B$30:$U$32,V3,FALSE)) ->  | R7: =IF('Tabelle System 1 - 3'!Q30="",#N/A,VLOOKUP($E$4,'Tabelle System 1 - 3'!$B$30:$U$32,W3,FALSE)) ->  | S7: =IF('Tabelle System 1 - 3'!R30="",#N/A,VLOOKUP($E$4,'Tabelle System 1 - 3'!$B$30:$U$32,X3,FALSE)) ->  | T7: =IF('Tabelle System 1 - 3'!S30="",#N/A,VLOOKUP($E$4,'Tabelle System 1 - 3'!$B$30:$U$32,Y3,FALSE)) ->  | U7: =IF('Tabelle System 1 - 3'!T30="",#N/A,VLOOKUP($E$4,'Tabelle System 1 - 3'!$B$30:$U$32,Z3,FALSE)) ->  | V7: =IF('Tabelle System 1 - 3'!U30="",#N/A,VLOOKUP($E$4,'Tabelle System 1 - 3'!$B$30:$U$32,AA3,FALSE)) ->  | W7: ='Tabelle System 1 - 3'!$B$7 -> Anbindestall-Rohr-MA - Siloblock - JV maximal - 32 Monate EKA
D8: =IF('Tabelle System 1 - 3'!C78="",#N/A,VLOOKUP($E$4,'Tabelle System 1 - 3'!$B$78:$U$80,F3,FALSE)) ->  | E8: =IF('Tabelle System 1 - 3'!D78="",#N/A,VLOOKUP($E$4,'Tabelle System 1 - 3'!$B$78:$U$80,G3,FALSE)) ->  | F8: =IF('Tabelle System 1 - 3'!E78="",#N/A,VLOOKUP($E$4,'Tabelle System 1 - 3'!$B$78:$U$80,H3,FALSE)) ->  | G8: =IF('Tabelle System 1 - 3'!F78="",#N/A,VLOOKUP($E$4,'Tabelle System 1 - 3'!$B$78:$U$80,I3,FALSE)) ->  | H8: =IF('Tabelle System 1 - 3'!G78="",#N/A,VLOOKUP($E$4,'Tabelle System 1 - 3'!$B$78:$U$80,J3,FALSE)) -> 323.9781142 | I8: =IF('Tabelle System 1 - 3'!H78="",#N/A,VLOOKUP($E$4,'Tabelle System 1 - 3'!$B$78:$U$80,K3,FALSE)) -> 339.469258 | J8: =IF('Tabelle System 1 - 3'!I78="",#N/A,VLOOKUP($E$4,'Tabelle System 1 - 3'!$B$78:$U$80,L3,FALSE)) -> 353.4302748 | K8: =IF('Tabelle System 1 - 3'!J78="",#N/A,VLOOKUP($E$4,'Tabelle System 1 - 3'!$B$78:$U$80,M3,FALSE)) -> 366.176771 | L8: =IF('Tabelle System 1 - 3'!K78="",#N/A,VLOOKUP($E$4,'Tabelle System 1 - 3'!$B$78:$U$80,N3,FALSE)) -> 377.9323796 | M8: =IF('Tabelle System 1 - 3'!L78="",#N/A,VLOOKUP($E$4,'Tabelle System 1 - 3'!$B$78:$U$80,O3,FALSE)) -> 388.8619007 | N8: =IF('Tabelle System 1 - 3'!M78="",#N/A,VLOOKUP($E$4,'Tabelle System 1 - 3'!$B$78:$U$80,P3,FALSE)) -> 399.0906167 | O8: =IF('Tabelle System 1 - 3'!N78="",#N/A,VLOOKUP($E$4,'Tabelle System 1 - 3'!$B$78:$U$80,T3,FALSE)) -> 408.7162087 | P8: =IF('Tabelle System 1 - 3'!O78="",#N/A,VLOOKUP($E$4,'Tabelle System 1 - 3'!$B$78:$U$80,U3,FALSE)) -> 417.8164525 | Q8: =IF('Tabelle System 1 - 3'!P78="",#N/A,VLOOKUP($E$4,'Tabelle System 1 - 3'!$B$78:$U$80,V3,FALSE)) -> 426.4543813 | R8: =IF('Tabelle System 1 - 3'!Q78="",#N/A,VLOOKUP($E$4,'Tabelle System 1 - 3'!$B$78:$U$80,W3,FALSE)) -> 434.6818588 | S8: =IF('Tabelle System 1 - 3'!R78="",#N/A,VLOOKUP($E$4,'Tabelle System 1 - 3'!$B$78:$U$80,X3,FALSE)) -> 442.5421208 | T8: =IF('Tabelle System 1 - 3'!S78="",#N/A,VLOOKUP($E$4,'Tabelle System 1 - 3'!$B$78:$U$80,Y3,FALSE)) ->  | U8: =IF('Tabelle System 1 - 3'!T78="",#N/A,VLOOKUP($E$4,'Tabelle System 1 - 3'!$B$78:$U$80,Z3,FALSE)) ->  | V8: =IF('Tabelle System 1 - 3'!U78="",#N/A,VLOOKUP($E$4,'Tabelle System 1 - 3'!$B$78:$U$80,AA3,FALSE)) ->  | W8: =+'Tabelle System 1 - 3'!$B$55 -> Laufstall-FGM 2x6 - FMW - JV normal - 29 Monate EKA
D9: =IF('Tabelle System 1 - 3'!C126="",#N/A,VLOOKUP($E$4,'Tabelle System 1 - 3'!$B$126:$U$128,F3,FALSE)) ->  | E9: =IF('Tabelle System 1 - 3'!D126="",#N/A,VLOOKUP($E$4,'Tabelle System 1 - 3'!$B$126:$U$128,G3,FALSE)) ->  | F9: =IF('Tabelle System 1 - 3'!E126="",#N/A,VLOOKUP($E$4,'Tabelle System 1 - 3'!$B$126:$U$128,H3,FALSE)) ->  | G9: =IF('Tabelle System 1 - 3'!F126="",#N/A,VLOOKUP($E$4,'Tabelle System 1 - 3'!$B$126:$U$128,I3,FALSE)) ->  | H9: =IF('Tabelle System 1 - 3'!G126="",#N/A,VLOOKUP($E$4,'Tabelle System 1 - 3'!$B$126:$U$128,J3,FALSE)) ->  | I9: =IF('Tabelle System 1 - 3'!H126="",#N/A,VLOOKUP($E$4,'Tabelle System 1 - 3'!$B$126:$U$128,K3,FALSE)) ->  | J9: =IF('Tabelle System 1 - 3'!I126="",#N/A,VLOOKUP($E$4,'Tabelle System 1 - 3'!$B$126:$U$128,L3,FALSE)) ->  | K9: =IF('Tabelle System 1 - 3'!J126="",#N/A,VLOOKUP($E$4,'Tabelle System 1 - 3'!$B$126:$U$128,M3,FALSE)) ->  | L9: =IF('Tabelle System 1 - 3'!K126="",#N/A,VLOOKUP($E$4,'Tabelle System 1 - 3'!$B$126:$U$128,N3,FALSE)) ->  | M9: =IF('Tabelle System 1 - 3'!L126="",#N/A,VLOOKUP($E$4,'Tabelle System 1 - 3'!$B$126:$U$128,O3,FALSE)) ->  | N9: =IF('Tabelle System 1 - 3'!M126="",#N/A,VLOOKUP($E$4,'Tabelle System 1 - 3'!$B$126:$U$128,P3,FALSE)) ->  | O9: =IF('Tabelle System 1 - 3'!N126="",#N/A,VLOOKUP($E$4,'Tabelle System 1 - 3'!$B$126:$U$128,T3,FALSE)) ->  | P9: =IF('Tabelle System 1 - 3'!O126="",#N/A,VLOOKUP($E$4,'Tabelle System 1 - 3'!$B$126:$U$128,U3,FALSE)) -> 688.2102569 | Q9: =IF('Tabelle System 1 - 3'!P126="",#N/A,VLOOKUP($E$4,'Tabelle System 1 - 3'!$B$126:$U$128,V3,FALSE)) -> 716.5408535 | R9: =IF('Tabelle System 1 - 3'!Q126="",#N/A,VLOOKUP($E$4,'Tabelle System 1 - 3'!$B$126:$U$128,W3,FALSE)) -> 744.1801134 | S9: =IF('Tabelle System 1 - 3'!R126="",#N/A,VLOOKUP($E$4,'Tabelle System 1 - 3'!$B$126:$U$128,X3,FALSE)) -> 771.2052612 | T9: =IF('Tabelle System 1 - 3'!S126="",#N/A,VLOOKUP($E$4,'Tabelle System 1 - 3'!$B$126:$U$128,Y3,FALSE)) -> 797.6824072 | U9: =IF('Tabelle System 1 - 3'!T126="",#N/A,VLOOKUP($E$4,'Tabelle System 1 - 3'!$B$126:$U$128,Z3,FALSE)) -> 823.6686716 | V9: =IF('Tabelle System 1 - 3'!U126="",#N/A,VLOOKUP($E$4,'Tabelle System 1 - 3'!$B$126:$U$128,AA3,FALSE)) -> 849.2138178 | W9: =+'Tabelle System 1 - 3'!$B$103 -> Laufstall-AMS 3 Boxen - AFS - keine eigene Nachzucht
X12: Rechengang:
X13: Arbeitseffizienz (kg/AKh) x AKh/AK / 1.000
B30: Erzeugte Jahremilchmenge (Tsd kg) bei einer Milchleistung je Kuh (kg) von:
B31: Herdengröße | D31: 20 | E31: 30 | F31: 40 | G31: 50 | H31: 60 | I31: 70 | J31: 80 | K31: 90 | L31: 100 | M31: 110 | N31: 120 | O31: 130 | P31: 140 | Q31: 150 | R31: 160 | S31: 170 | T31: 180 | U31: 190 | V31: 200
B32: =+Grunddaten!$D$31 -> 6000 | C32: kg/Kuh | D32: =+D31*$B32/1000 -> 120 | E32: =+E31*$B32/1000 -> 180 | F32: 240 | G32: 300 | H32: 360 | I32: 420 | J32: 480 | K32: 540 | L32: 600 | M32: 660 | N32: 720 | O32: 780 | P32: 840 | Q32: 900 | R32: 960 | S32: 1020 | T32: 1080 | U32: 1140 | V32: =+V31*$B32/1000 -> 1200
B33: =+Grunddaten!$D$32 -> 8000 | C33: kg/Kuh | D33: =+D31*$B33/1000 -> 160 | E33: =+E31*$B33/1000 -> 240 | F33: 320 | G33: 400 | H33: 480 | I33: 560 | J33: 640 | K33: 720 | L33: 800 | M33: 880 | N33: 960 | O33: 1040 | P33: 1120 | Q33: 1200 | R33: 1280 | S33: 1360 | T33: 1440 | U33: 1520 | V33: =+V31*$B33/1000 -> 1600
B34: =+Grunddaten!$D$33 -> 10000 | C34: kg/Kuh | D34: =+D31*$B34/1000 -> 200 | E34: =+E31*$B34/1000 -> 300 | F34: 400 | G34: 500 | H34: 600 | I34: 700 | J34: 800 | K34: 900 | L34: 1000 | M34: 1100 | N34: 1200 | O34: 1300 | P34: 1400 | Q34: 1500 | R34: 1600 | S34: 1700 | T34: 1800 | U34: 1900 | V34: 2000

Sheet Grafik_6
A1: 6. Personalkosten (ct/kg Milch) in Abhängigkeit von Herdengröße, Nachzuchtintensität, Melk- und Fütterungsystem sowie der Milchleistung
I3: 2 | J3: 3 | K3: 4 | L3: 5 | M3: 6 | N3: 7 | O3: 8 | P3: 9 | Q3: 10 | R3: 11 | S3: 12 | T3: 13 | U3: 14 | V3: 15 | W3: 16 | X3: 17 | Y3: 18 | Z3: 19 | AA3: 20
B4: Der Stundenlohn (Brutto incl. Arbeitgeberanteile) wurde festgelegt auf | L4: =+Grunddaten!E16 -> 17,5 | M4: €/AKh. Mit der erreichten Arbeitseffizienz (kg/AKh) und der nachfolgend ausgwählten
B5: Milchleistung entstehen diese Personalstückosten.
A7: Ausgewählte Milchleistung | E7: =Grafik_3!F4 -> 8000 | F7: kg/Kuh | G7: (Die Änderung erfolgt zentral in Grafik 3)
D9: 20 | E9: 30 | F9: 40 | G9: 50 | H9: 60 | I9: 70 | J9: 80 | K9: 90 | L9: 100 | M9: 110 | N9: 120 | O9: 130 | P9: 140 | Q9: 150 | R9: 160 | S9: 170 | T9: 180 | U9: 190 | V9: 200 | W9: Anzahl Kühe
D10: =IF('Tabelle System 1 - 3'!C36="",#N/A,VLOOKUP($E$7,'Tabelle System 1 - 3'!$B$36:$U$38,I3,FALSE)) -> 25.76138325 | E10: =IF('Tabelle System 1 - 3'!D36="",#N/A,VLOOKUP($E$7,'Tabelle System 1 - 3'!$B$36:$U$38,J3,FALSE)) -> 23.09386902 | F10: =IF('Tabelle System 1 - 3'!E36="",#N/A,VLOOKUP($E$7,'Tabelle System 1 - 3'!$B$36:$U$38,K3,FALSE)) -> 21.34768634 | G10: =IF('Tabelle System 1 - 3'!F36="",#N/A,VLOOKUP($E$7,'Tabelle System 1 - 3'!$B$36:$U$38,L3,FALSE)) -> 20.14749211 | H10: =IF('Tabelle System 1 - 3'!G36="",#N/A,VLOOKUP($E$7,'Tabelle System 1 - 3'!$B$36:$U$38,M3,FALSE)) -> 19.12016861 | I10: =IF('Tabelle System 1 - 3'!H36="",#N/A,VLOOKUP($E$7,'Tabelle System 1 - 3'!$B$36:$U$38,N3,FALSE)) ->  | J10: =IF('Tabelle System 1 - 3'!I36="",#N/A,VLOOKUP($E$7,'Tabelle System 1 - 3'!$B$36:$U$38,O3,FALSE)) ->  | K10: =IF('Tabelle System 1 - 3'!J36="",#N/A,VLOOKUP($E$7,'Tabelle System 1 - 3'!$B$36:$U$38,P3,FALSE)) ->  | L10: =IF('Tabelle System 1 - 3'!K36="",#N/A,VLOOKUP($E$7,'Tabelle System 1 - 3'!$B$36:$U$38,Q3,FALSE)) ->  | M10: =IF('Tabelle System 1 - 3'!L36="",#N/A,VLOOKUP($E$7,'Tabelle System 1 - 3'!$B$36:$U$38,R3,FALSE)) ->  | N10: =IF('Tabelle System 1 - 3'!M36="",#N/A,VLOOKUP($E$7,'Tabelle System 1 - 3'!$B$36:$U$38,S3,FALSE)) ->  | O10: =IF('Tabelle System 1 - 3'!N36="",#N/A,VLOOKUP($E$7,'Tabelle System 1 - 3'!$B$36:$U$38,T3,FALSE)) ->  | P10: =IF('Tabelle System 1 - 3'!O36="",#N/A,VLOOKUP($E$7,'Tabelle System 1 - 3'!$B$36:$U$38,U3,FALSE)) ->  | Q10: =IF('Tabelle System 1 - 3'!P36="",#N/A,VLOOKUP($E$7,'Tabelle System 1 - 3'!$B$36:$U$38,V3,FALSE)) ->  | R10: =IF('Tabelle System 1 - 3'!Q36="",#N/A,VLOOKUP($E$7,'Tabelle System 1 - 3'!$B$36:$U$38,W3,FALSE)) ->  | S10: =IF('Tabelle System 1 - 3'!R36="",#N/A,VLOOKUP($E$7,'Tabelle System 1 - 3'!$B$36:$U$38,X3,FALSE)) ->  | T10: =IF('Tabelle System 1 - 3'!S36="",#N/A,VLOOKUP($E$7,'Tabelle System 1 - 3'!$B$36:$U$38,Y3,FALSE)) ->  | U10: =IF('Tabelle System 1 - 3'!T36="",#N/A,VLOOKUP($E$7,'Tabelle System 1 - 3'!$B$36:$U$38,Z3,FALSE)) ->  | V10: =IF('Tabelle System 1 - 3'!U36="",#N/A,VLOOKUP($E$7,'Tabelle System 1 - 3'!$B$36:$U$38,AA3,FALSE)) ->  | W10: ='Tabelle System 1 - 3'!$B$7 -> Anbindestall-Rohr-MA - Siloblock - JV maximal - 32 Monate EKA
D11: =IF('Tabelle System 1 - 3'!C84="",#N/A,VLOOKUP($E$7,'Tabelle System 1 - 3'!$B$84:$U$86,I3,FALSE)) ->  | E11: =IF('Tabelle System 1 - 3'!D84="",#N/A,VLOOKUP($E$7,'Tabelle System 1 - 3'!$B$84:$U$86,J3,FALSE)) ->  | F11: =IF('Tabelle System 1 - 3'!E84="",#N/A,VLOOKUP($E$7,'Tabelle System 1 - 3'!$B$84:$U$86,K3,FALSE)) ->  | G11: =IF('Tabelle System 1 - 3'!F84="",#N/A,VLOOKUP($E$7,'Tabelle System 1 - 3'!$B$84:$U$86,L3,FALSE)) ->  | H11: =IF('Tabelle System 1 - 3'!G84="",#N/A,VLOOKUP($E$7,'Tabelle System 1 - 3'!$B$84:$U$86,M3,FALSE)) -> 14.04415854 | I11: =IF('Tabelle System 1 - 3'!H84="",#N/A,VLOOKUP($E$7,'Tabelle System 1 - 3'!$B$84:$U$86,N3,FALSE)) -> 13.40327553 | J11: =IF('Tabelle System 1 - 3'!I84="",#N/A,VLOOKUP($E$7,'Tabelle System 1 - 3'!$B$84:$U$86,O3,FALSE)) -> 12.87382639 | K11: =IF('Tabelle System 1 - 3'!J84="",#N/A,VLOOKUP($E$7,'Tabelle System 1 - 3'!$B$84:$U$86,P3,FALSE)) -> 12.42569262 | L11: =IF('Tabelle System 1 - 3'!K84="",#N/A,VLOOKUP($E$7,'Tabelle System 1 - 3'!$B$84:$U$86,Q3,FALSE)) -> 12.03919073 | M11: =IF('Tabelle System 1 - 3'!L84="",#N/A,VLOOKUP($E$7,'Tabelle System 1 - 3'!$B$84:$U$86,R3,FALSE)) -> 11.70081202 | N11: =IF('Tabelle System 1 - 3'!M84="",#N/A,VLOOKUP($E$7,'Tabelle System 1 - 3'!$B$84:$U$86,S3,FALSE)) -> 11.40091951 | O11: =IF('Tabelle System 1 - 3'!N84="",#N/A,VLOOKUP($E$7,'Tabelle System 1 - 3'!$B$84:$U$86,T3,FALSE)) -> 11.13241879 | P11: =IF('Tabelle System 1 - 3'!O84="",#N/A,VLOOKUP($E$7,'Tabelle System 1 - 3'!$B$84:$U$86,U3,FALSE)) -> 10.88994934 | Q11: =IF('Tabelle System 1 - 3'!P84="",#N/A,VLOOKUP($E$7,'Tabelle System 1 - 3'!$B$84:$U$86,V3,FALSE)) -> 10.66937098 | R11: =IF('Tabelle System 1 - 3'!Q84="",#N/A,VLOOKUP($E$7,'Tabelle System 1 - 3'!$B$84:$U$86,W3,FALSE)) -> 10.46742556 | S11: =IF('Tabelle System 1 - 3'!R84="",#N/A,VLOOKUP($E$7,'Tabelle System 1 - 3'!$B$84:$U$86,X3,FALSE)) -> 10.2815072 | T11: =IF('Tabelle System 1 - 3'!S84="",#N/A,VLOOKUP($E$7,'Tabelle System 1 - 3'!$B$84:$U$86,Y3,FALSE)) ->  | U11: =IF('Tabelle System 1 - 3'!T84="",#N/A,VLOOKUP($E$7,'Tabelle System 1 - 3'!$B$84:$U$86,Z3,FALSE)) ->  | V11: =IF('Tabelle System 1 - 3'!U84="",#N/A,VLOOKUP($E$7,'Tabelle System 1 - 3'!$B$84:$U$86,AA3,FALSE)) ->  | W11: =+'Tabelle System 1 - 3'!$B$55 -> Laufstall-FGM 2x6 - FMW - JV normal - 29 Monate EKA
D12: =IF('Tabelle System 1 - 3'!C132="",#N/A,VLOOKUP($E$7,'Tabelle System 1 - 3'!$B$132:$U$134,I3,FALSE)) ->  | E12: =IF('Tabelle System 1 - 3'!D132="",#N/A,VLOOKUP($E$7,'Tabelle System 1 - 3'!$B$132:$U$134,J3,FALSE)) ->  | F12: =IF('Tabelle System 1 - 3'!E132="",#N/A,VLOOKUP($E$7,'Tabelle System 1 - 3'!$B$132:$U$134,K3,FALSE)) ->  | G12: =IF('Tabelle System 1 - 3'!F132="",#N/A,VLOOKUP($E$7,'Tabelle System 1 - 3'!$B$132:$U$134,L3,FALSE)) ->  | H12: =IF('Tabelle System 1 - 3'!G132="",#N/A,VLOOKUP($E$7,'Tabelle System 1 - 3'!$B$132:$U$134,M3,FALSE)) ->  | I12: =IF('Tabelle System 1 - 3'!H132="",#N/A,VLOOKUP($E$7,'Tabelle System 1 - 3'!$B$132:$U$134,N3,FALSE)) ->  | J12: =IF('Tabelle System 1 - 3'!I132="",#N/A,VLOOKUP($E$7,'Tabelle System 1 - 3'!$B$132:$U$134,O3,FALSE)) ->  | K12: =IF('Tabelle System 1 - 3'!J132="",#N/A,VLOOKUP($E$7,'Tabelle System 1 - 3'!$B$132:$U$134,P3,FALSE)) ->  | L12: =IF('Tabelle System 1 - 3'!K132="",#N/A,VLOOKUP($E$7,'Tabelle System 1 - 3'!$B$132:$U$134,Q3,FALSE)) ->  | M12: =IF('Tabelle System 1 - 3'!L132="",#N/A,VLOOKUP($E$7,'Tabelle System 1 - 3'!$B$132:$U$134,R3,FALSE)) ->  | N12: =IF('Tabelle System 1 - 3'!M132="",#N/A,VLOOKUP($E$7,'Tabelle System 1 - 3'!$B$132:$U$134,S3,FALSE)) ->  | O12: =IF('Tabelle System 1 - 3'!N132="",#N/A,VLOOKUP($E$7,'Tabelle System 1 - 3'!$B$132:$U$134,T3,FALSE)) ->  | P12: =IF('Tabelle System 1 - 3'!O132="",#N/A,VLOOKUP($E$7,'Tabelle System 1 - 3'!$B$132:$U$134,U3,FALSE)) -> 6.611351624 | Q12: =IF('Tabelle System 1 - 3'!P132="",#N/A,VLOOKUP($E$7,'Tabelle System 1 - 3'!$B$132:$U$134,V3,FALSE)) -> 6.349951964 | R12: =IF('Tabelle System 1 - 3'!Q132="",#N/A,VLOOKUP($E$7,'Tabelle System 1 - 3'!$B$132:$U$134,W3,FALSE)) -> 6.114111246 | S12: =IF('Tabelle System 1 - 3'!R132="",#N/A,VLOOKUP($E$7,'Tabelle System 1 - 3'!$B$132:$U$134,X3,FALSE)) -> 5.899856016 | T12: =IF('Tabelle System 1 - 3'!S132="",#N/A,VLOOKUP($E$7,'Tabelle System 1 - 3'!$B$132:$U$134,Y3,FALSE)) -> 5.704024508 | U12: =IF('Tabelle System 1 - 3'!T132="",#N/A,VLOOKUP($E$7,'Tabelle System 1 - 3'!$B$132:$U$134,Z3,FALSE)) -> 5.524065873 | V12: =IF('Tabelle System 1 - 3'!U132="",#N/A,VLOOKUP($E$7,'Tabelle System 1 - 3'!$B$132:$U$134,AA3,FALSE)) -> 5.357896804 | W12: =+'Tabelle System 1 - 3'!$B$103 -> Laufstall-AMS 3 Boxen - AFS - keine eigene Nachzucht
Y15: Rechengang:
Y16: Stundenlohn (€/AKh) x 100 /
Y17: Arbeitseffizienz (kg Milch/AKh)
B33: Erzeugte Jahremilchmenge (Tsd kg) bei einer Milchleistung je Kuh (kg) von:
B34: Herdengröße | D34: 20 | E34: 30 | F34: 40 | G34: 50 | H34: 60 | I34: 70 | J34: 80 | K34: 90 | L34: 100 | M34: 110 | N34: 120 | O34: 130 | P34: 140 | Q34: 150 | R34: 160 | S34: 170 | T34: 180 | U34: 190 | V34: 200
B35: =+Grunddaten!$D$31 -> 6000 | C35: kg/Kuh | D35: =+D34*$B35/1000 -> 120 | E35: =+E34*$B35/1000 -> 180 | F35: 240 | G35: 300 | H35: 360 | I35: 420 | J35: 480 | K35: 540 | L35: 600 | M35: 660 | N35: 720 | O35: 780 | P35: 840 | Q35: 900 | R35: 960 | S35: 1020 | T35: 1080 | U35: 1140 | V35: =+V34*$B35/1000 -> 1200
B36: =+Grunddaten!$D$32 -> 8000 | C36: kg/Kuh | D36: =+D34*$B36/1000 -> 160 | E36: =+E34*$B36/1000 -> 240 | F36: 320 | G36: 400 | H36: 480 | I36: 560 | J36: 640 | K36: 720 | L36: 800 | M36: 880 | N36: 960 | O36: 1040 | P36: 1120 | Q36: 1200 | R36: 1280 | S36: 1360 | T36: 1440 | U36: 1520 | V36: =+V34*$B36/1000 -> 1600
B37: =+Grunddaten!$D$33 -> 10000 | C37: kg/Kuh | D37: =+D34*$B37/1000 -> 200 | E37: =+E34*$B37/1000 -> 300 | F37: 400 | G37: 500 | H37: 600 | I37: 700 | J37: 800 | K37: 900 | L37: 1000 | M37: 1100 | N37: 1200 | O37: 1300 | P37: 1400 | Q37: 1500 | R37: 1600 | S37: 1700 | T37: 1800 | U37: 1900 | V37: 2000

Sheet Grafik_7
A1: 7. Jahresbruttoeinkommen in Abhängigkeit von Personalstückkosten, Herdengröße, Nachzuchtintensität, Melk- und Fütterungsystem sowie der Milchleistung
I3: 2 | J3: 3 | K3: 4 | L3: 5 | M3: 6 | N3: 7 | O3: 8 | P3: 9 | Q3: 10 | R3: 11 | S3: 12 | T3: 13 | U3: 14 | V3: 15 | W3: 16 | X3: 17 | Y3: 18 | Z3: 19 | AA3: 20
B4: Mit dem Stallpersonal wurde ein umsatzabhängiger "Lohn" (Personalkosten incl. Arbeitgeberanteile) in Höhe von | S4: =+Grunddaten!E10 -> 10 | T4: ct/kg Milch vereinbart.Welches Jahresbruttoeinkommen
B5: (incl. Arbeitgeberanteile) kann der Stallarbeiter in den gewählten Stallsystemen und Nachzuchtintensitäten erzielen bei nachfolgend noch auszuwählender Milchleistung?
A7: Ausgewählte Milchleistung | E7: =Grafik_3!F4 -> 8000 | G7: kg/Kuh (Die Änderung erfolgt zentral in Grafik 3) bei | O7: =Grunddaten!D5 -> 2600 | Q7: Arbeitsstunden je Arbeitskraft
D9: 20 | E9: 30 | F9: 40 | G9: 50 | H9: 60 | I9: 70 | J9: 80 | K9: 90 | L9: 100 | M9: 110 | N9: 120 | O9: 130 | P9: 140 | Q9: 150 | R9: 160 | S9: 170 | T9: 180 | U9: 190 | V9: 200 | W9: Anzahl Kühe
D10: =IF('Tabelle System 1 - 3'!C43="",#N/A,VLOOKUP($E$7,'Tabelle System 1 - 3'!$B$43:$U$45,I3,FALSE)) -> 17662.09507 | E10: =IF('Tabelle System 1 - 3'!D43="",#N/A,VLOOKUP($E$7,'Tabelle System 1 - 3'!$B$43:$U$45,J3,FALSE)) -> 19702.19886 | F10: =IF('Tabelle System 1 - 3'!E43="",#N/A,VLOOKUP($E$7,'Tabelle System 1 - 3'!$B$43:$U$45,K3,FALSE)) -> 21313.78514 | G10: =IF('Tabelle System 1 - 3'!F43="",#N/A,VLOOKUP($E$7,'Tabelle System 1 - 3'!$B$43:$U$45,L3,FALSE)) -> 22583.45592 | H10: =IF('Tabelle System 1 - 3'!G43="",#N/A,VLOOKUP($E$7,'Tabelle System 1 - 3'!$B$43:$U$45,M3,FALSE)) -> 23796.86127 | I10: =IF('Tabelle System 1 - 3'!H43="",#N/A,VLOOKUP($E$7,'Tabelle System 1 - 3'!$B$43:$U$45,N3,FALSE)) ->  | J10: =IF('Tabelle System 1 - 3'!I43="",#N/A,VLOOKUP($E$7,'Tabelle System 1 - 3'!$B$43:$U$45,O3,FALSE)) ->  | K10: =IF('Tabelle System 1 - 3'!J43="",#N/A,VLOOKUP($E$7,'Tabelle System 1 - 3'!$B$43:$U$45,P3,FALSE)) ->  | L10: =IF('Tabelle System 1 - 3'!K43="",#N/A,VLOOKUP($E$7,'Tabelle System 1 - 3'!$B$43:$U$45,Q3,FALSE)) ->  | M10: =IF('Tabelle System 1 - 3'!L43="",#N/A,VLOOKUP($E$7,'Tabelle System 1 - 3'!$B$43:$U$45,R3,FALSE)) ->  | N10: =IF('Tabelle System 1 - 3'!M43="",#N/A,VLOOKUP($E$7,'Tabelle System 1 - 3'!$B$43:$U$45,S3,FALSE)) ->  | O10: =IF('Tabelle System 1 - 3'!N43="",#N/A,VLOOKUP($E$7,'Tabelle System 1 - 3'!$B$43:$U$45,T3,FALSE)) ->  | P10: =IF('Tabelle System 1 - 3'!O43="",#N/A,VLOOKUP($E$7,'Tabelle System 1 - 3'!$B$43:$U$45,U3,FALSE)) ->  | Q10: =IF('Tabelle System 1 - 3'!P43="",#N/A,VLOOKUP($E$7,'Tabelle System 1 - 3'!$B$43:$U$45,V3,FALSE)) ->  | R10: =IF('Tabelle System 1 - 3'!Q43="",#N/A,VLOOKUP($E$7,'Tabelle System 1 - 3'!$B$43:$U$45,W3,FALSE)) ->  | S10: =IF('Tabelle System 1 - 3'!R43="",#N/A,VLOOKUP($E$7,'Tabelle System 1 - 3'!$B$43:$U$45,X3,FALSE)) ->  | T10: =IF('Tabelle System 1 - 3'!S43="",#N/A,VLOOKUP($E$7,'Tabelle System 1 - 3'!$B$43:$U$45,Y3,FALSE)) ->  | U10: =IF('Tabelle System 1 - 3'!T43="",#N/A,VLOOKUP($E$7,'Tabelle System 1 - 3'!$B$43:$U$45,Z3,FALSE)) ->  | V10: =IF('Tabelle System 1 - 3'!U43="",#N/A,VLOOKUP($E$7,'Tabelle System 1 - 3'!$B$43:$U$45,AA3,FALSE)) ->  | W10: ='Tabelle System 1 - 3'!$B$7 -> Anbindestall-Rohr-MA - Siloblock - JV maximal - 32 Monate EKA
D11: =IF('Tabelle System 1 - 3'!C91="",#N/A,VLOOKUP($E$7,'Tabelle System 1 - 3'!$B$91:$U$93,I3,FALSE)) ->  | E11: =IF('Tabelle System 1 - 3'!D91="",#N/A,VLOOKUP($E$7,'Tabelle System 1 - 3'!$B$91:$U$93,J3,FALSE)) ->  | F11: =IF('Tabelle System 1 - 3'!E91="",#N/A,VLOOKUP($E$7,'Tabelle System 1 - 3'!$B$91:$U$93,K3,FALSE)) ->  | G11: =IF('Tabelle System 1 - 3'!F91="",#N/A,VLOOKUP($E$7,'Tabelle System 1 - 3'!$B$91:$U$93,L3,FALSE)) ->  | H11: =IF('Tabelle System 1 - 3'!G91="",#N/A,VLOOKUP($E$7,'Tabelle System 1 - 3'!$B$91:$U$93,M3,FALSE)) -> 32397.81142 | I11: =IF('Tabelle System 1 - 3'!H91="",#N/A,VLOOKUP($E$7,'Tabelle System 1 - 3'!$B$91:$U$93,N3,FALSE)) -> 33946.9258 | J11: =IF('Tabelle System 1 - 3'!I91="",#N/A,VLOOKUP($E$7,'Tabelle System 1 - 3'!$B$91:$U$93,O3,FALSE)) -> 35343.02748 | K11: =IF('Tabelle System 1 - 3'!J91="",#N/A,VLOOKUP($E$7,'Tabelle System 1 - 3'!$B$91:$U$93,P3,FALSE)) -> 36617.6771 | L11: =IF('Tabelle System 1 - 3'!K91="",#N/A,VLOOKUP($E$7,'Tabelle System 1 - 3'!$B$91:$U$93,Q3,FALSE)) -> 37793.23796 | M11: =IF('Tabelle System 1 - 3'!L91="",#N/A,VLOOKUP($E$7,'Tabelle System 1 - 3'!$B$91:$U$93,R3,FALSE)) -> 38886.19007 | N11: =IF('Tabelle System 1 - 3'!M91="",#N/A,VLOOKUP($E$7,'Tabelle System 1 - 3'!$B$91:$U$93,S3,FALSE)) -> 39909.06167 | O11: =IF('Tabelle System 1 - 3'!N91="",#N/A,VLOOKUP($E$7,'Tabelle System 1 - 3'!$B$91:$U$93,T3,FALSE)) -> 40871.62087 | P11: =IF('Tabelle System 1 - 3'!O91="",#N/A,VLOOKUP($E$7,'Tabelle System 1 - 3'!$B$91:$U$93,U3,FALSE)) -> 41781.64525 | Q11: =IF('Tabelle System 1 - 3'!P91="",#N/A,VLOOKUP($E$7,'Tabelle System 1 - 3'!$B$91:$U$93,V3,FALSE)) -> 42645.43813 | R11: =IF('Tabelle System 1 - 3'!Q91="",#N/A,VLOOKUP($E$7,'Tabelle System 1 - 3'!$B$91:$U$93,W3,FALSE)) -> 43468.18588 | S11: =IF('Tabelle System 1 - 3'!R91="",#N/A,VLOOKUP($E$7,'Tabelle System 1 - 3'!$B$91:$U$93,X3,FALSE)) -> 44254.21208 | T11: =IF('Tabelle System 1 - 3'!S91="",#N/A,VLOOKUP($E$7,'Tabelle System 1 - 3'!$B$91:$U$93,Y3,FALSE)) ->  | U11: =IF('Tabelle System 1 - 3'!T91="",#N/A,VLOOKUP($E$7,'Tabelle System 1 - 3'!$B$91:$U$93,Z3,FALSE)) ->  | V11: =IF('Tabelle System 1 - 3'!U91="",#N/A,VLOOKUP($E$7,'Tabelle System 1 - 3'!$B$91:$U$93,AA3,FALSE)) ->  | W11: =+'Tabelle System 1 - 3'!$B$55 -> Laufstall-FGM 2x6 - FMW - JV normal - 29 Monate EKA
D12: =IF('Tabelle System 1 - 3'!C139="",#N/A,VLOOKUP($E$7,'Tabelle System 1 - 3'!$B$139:$U$141,I3,FALSE)) ->  | E12: =IF('Tabelle System 1 - 3'!D139="",#N/A,VLOOKUP($E$7,'Tabelle System 1 - 3'!$B$139:$U$141,J3,FALSE)) ->  | F12: =IF('Tabelle System 1 - 3'!E139="",#N/A,VLOOKUP($E$7,'Tabelle System 1 - 3'!$B$139:$U$141,K3,FALSE)) ->  | G12: =IF('Tabelle System 1 - 3'!F139="",#N/A,VLOOKUP($E$7,'Tabelle System 1 - 3'!$B$139:$U$141,L3,FALSE)) ->  | H12: =IF('Tabelle System 1 - 3'!G139="",#N/A,VLOOKUP($E$7,'Tabelle System 1 - 3'!$B$139:$U$141,M3,FALSE)) ->  | I12: =IF('Tabelle System 1 - 3'!H139="",#N/A,VLOOKUP($E$7,'Tabelle System 1 - 3'!$B$139:$U$141,N3,FALSE)) ->  | J12: =IF('Tabelle System 1 - 3'!I139="",#N/A,VLOOKUP($E$7,'Tabelle System 1 - 3'!$B$139:$U$141,O3,FALSE)) ->  | K12: =IF('Tabelle System 1 - 3'!J139="",#N/A,VLOOKUP($E$7,'Tabelle System 1 - 3'!$B$139:$U$141,P3,FALSE)) ->  | L12: =IF('Tabelle System 1 - 3'!K139="",#N/A,VLOOKUP($E$7,'Tabelle System 1 - 3'!$B$139:$U$141,Q3,FALSE)) ->  | M12: =IF('Tabelle System 1 - 3'!L139="",#N/A,VLOOKUP($E$7,'Tabelle System 1 - 3'!$B$139:$U$141,R3,FALSE)) ->  | N12: =IF('Tabelle System 1 - 3'!M139="",#N/A,VLOOKUP($E$7,'Tabelle System 1 - 3'!$B$139:$U$141,S3,FALSE)) ->  | O12: =IF('Tabelle System 1 - 3'!N139="",#N/A,VLOOKUP($E$7,'Tabelle System 1 - 3'!$B$139:$U$141,T3,FALSE)) ->  | P12: =IF('Tabelle System 1 - 3'!O139="",#N/A,VLOOKUP($E$7,'Tabelle System 1 - 3'!$B$139:$U$141,U3,FALSE)) -> 68821.02569 | Q12: =IF('Tabelle System 1 - 3'!P139="",#N/A,VLOOKUP($E$7,'Tabelle System 1 - 3'!$B$139:$U$141,V3,FALSE)) -> 71654.08535 | R12: =IF('Tabelle System 1 - 3'!Q139="",#N/A,VLOOKUP($E$7,'Tabelle System 1 - 3'!$B$139:$U$141,W3,FALSE)) -> 74418.01134 | S12: =IF('Tabelle System 1 - 3'!R139="",#N/A,VLOOKUP($E$7,'Tabelle System 1 - 3'!$B$139:$U$141,X3,FALSE)) -> 77120.52612 | T12: =IF('Tabelle System 1 - 3'!S139="",#N/A,VLOOKUP($E$7,'Tabelle System 1 - 3'!$B$139:$U$141,Y3,FALSE)) -> 79768.24072 | U12: =IF('Tabelle System 1 - 3'!T139="",#N/A,VLOOKUP($E$7,'Tabelle System 1 - 3'!$B$139:$U$141,Z3,FALSE)) -> 82366.86716 | V12: =IF('Tabelle System 1 - 3'!U139="",#N/A,VLOOKUP($E$7,'Tabelle System 1 - 3'!$B$139:$U$141,AA3,FALSE)) -> 84921.38178 | W12: =+'Tabelle System 1 - 3'!$B$103 -> Laufstall-AMS 3 Boxen - AFS - keine eigene Nachzucht
X15: Rechengang:
X16: Arbeitseffizienz (Tsd kg Milch/AK) x 1.000 x
X17: Personalstückkosten (ct/kg) / 100
B33: Erzeugte Jahremilchmenge (Tsd kg) bei einer Milchleistung je Kuh (kg) von:
B34: Herdengröße | D34: 20 | E34: 30 | F34: 40 | G34: 50 | H34: 60 | I34: 70 | J34: 80 | K34: 90 | L34: 100 | M34: 110 | N34: 120 | O34: 130 | P34: 140 | Q34: 150 | R34: 160 | S34: 170 | T34: 180 | U34: 190 | V34: 200
B35: =+Grunddaten!$D$31 -> 6000 | C35: kg/Kuh | D35: =+D34*$B35/1000 -> 120 | E35: =+E34*$B35/1000 -> 180 | F35: 240 | G35: 300 | H35: 360 | I35: 420 | J35: 480 | K35: 540 | L35: 600 | M35: 660 | N35: 720 | O35: 780 | P35: 840 | Q35: 900 | R35: 960 | S35: 1020 | T35: 1080 | U35: 1140 | V35: =+V34*$B35/1000 -> 1200
B36: =+Grunddaten!$D$32 -> 8000 | C36: kg/Kuh | D36: =+D34*$B36/1000 -> 160 | E36: =+E34*$B36/1000 -> 240 | F36: 320 | G36: 400 | H36: 480 | I36: 560 | J36: 640 | K36: 720 | L36: 800 | M36: 880 | N36: 960 | O36: 1040 | P36: 1120 | Q36: 1200 | R36: 1280 | S36: 1360 | T36: 1440 | U36: 1520 | V36: =+V34*$B36/1000 -> 1600
B37: =+Grunddaten!$D$33 -> 10000 | C37: kg/Kuh | D37: =+D34*$B37/1000 -> 200 | E37: =+E34*$B37/1000 -> 300 | F37: 400 | G37: 500 | H37: 600 | I37: 700 | J37: 800 | K37: 900 | L37: 1000 | M37: 1100 | N37: 1200 | O37: 1300 | P37: 1400 | Q37: 1500 | R37: 1600 | S37: 1700 | T37: 1800 | U37: 1900 | V37: 2000

Sheet Grafik_8
A1: 8. Stundenlohn in Abhängigkeit von Personalstückkosten, Herdengröße, Nachzuchtintensität, Melk- und Fütterungsystem sowie der Milchleistung
I3: 2 | J3: 3 | K3: 4 | L3: 5 | M3: 6 | N3: 7 | O3: 8 | P3: 9 | Q3: 10 | R3: 11 | S3: 12 | T3: 13 | U3: 14 | V3: 15 | W3: 16 | X3: 17 | Y3: 18 | Z3: 19 | AA3: 20
B4: Mit dem Stallpersonal wurde ein umsatzabhängiger "Lohn" (Personalkosten incl. Arbeitgeberanteile) in Höhe von | S4: =+Grunddaten!E10 -> 10 | T4: ct/kg Milch vereinbart. Welchen Stundenlohn
B5: (Brutto incl. Arbeitgeberanteile) kann der Stallarbeiter in den gewählten Stallsystemen und Nachzuchtintensitäten erzielen bei nachfolgend noch auszuwählender Milchleistung?
A7: Ausgewählte Milchleistung | E7: =Grafik_3!F4 -> 8000 | G7: kg/Kuh (Die Änderung erfolgt zentral in Grafik 3)
D9: 20 | E9: 30 | F9: 40 | G9: 50 | H9: 60 | I9: 70 | J9: 80 | K9: 90 | L9: 100 | M9: 110 | N9: 120 | O9: 130 | P9: 140 | Q9: 150 | R9: 160 | S9: 170 | T9: 180 | U9: 190 | V9: 200 | W9: Anzahl Kühe
